Workbook

Sheet Input
D3: Reference Number: | G3: Date: | H3: 2021-10-13 | J3: Prepared by:
R5: Dielectric’s TLP Series antenna is designed for single channel, low wind load,
C6: Customer Information | R6: horizontal, circular or elliptically polarized operation.
C8: Customer | I8: Location | R8: Dielectric Advantages
R9: · Operating Range 470-860 MHz
C10: Antenna Model | F10: ="TLP-"&IF($K$13="16 C",16,$K$13)&$E$13&IF($C$13="Elliptical / Circular","/VP","")&IF($I$13="Full Radome","-R","")&IF($K$13="16 C","_C","") -> TLP- | R10: · 14 different standard azimuth patterns available
G11: Azimuth | I11: Environmental | R11: · 6 standard elevation gains available
C12: Polarization | E12: Azimuth | G12: Rotation | I12: Protection | K12: Slots | R12: · Available horizontally or elliptically polarized
R13: · Low VSWR
R14: · Slot covers or radome provide ice protection
G15: =IF(E13="A","Note: All A patterns must have a full radome","") ->  | R15: · Standard mounting brackets included
C16: 1 | D16: Percent Hpol | F16: 0.3 | G16: Percent Vpol (5 to 100 percent) | R16: · 1-5/8″ EIA input standard
K17: Null Fill
K21: Beam Tilt
C25: Hpol | E25: =IF(C13="Horizontal","","Vpol") -> Vpol
D26: Call Letters | F26: =IF(L67,"MHz","Channel") -> Channel | G26: Freq | I26: Power
G27: =IF($F27="","",IF($F27<5,57+6*($F27-2),IF($F27<7,79+6*($F27-5),IF($F27<14,177+6*($F27-7),IF($F27<70,473+6*($F27-14),IF(AND($F27>200,$F27<301),($F27-201)*0.2+88.1,"")))))) ->  | J27: =IF(P66," ERP"," TPO") -> ERP
I29: Peak | J29: Peak or RMS ERP calculations
C31: Antenna input power budget | G31: =IF(ISNUMBER(R85),IF(I27>0,(R85/I31),""),"") ->  | H31: =IF(ISNUMBER(R85),R85,"") ->  | I31: =IF(K13=4,4,IF(K13=6,5,IF(K13=8,5,IF(K13=10,5,IF(K13=12,5,IF(K13="16 C",7.5,IF(K13=16,4,""))))))) ->  | J31: Maximum antenna input
C33: Transmission Line
E34: =IF($C$34="","",VLOOKUP($F$66,$F$69:$J$102,3,FALSE)) ->  | F34: =IF($C$34="","",VLOOKUP($F$66,$F$69:$J$102,5,FALSE)) ->  | I34: Vertical | K34: =IF(J34=" "," ",J34*0.3048) -> 0
E35: =IF($C$34="","",VLOOKUP($F$66,$F$69:$J$102,4,FALSE)) ->  | F35: =IF($C$34="","",VLOOKUP($F$66,$F$69:$J$102,3,FALSE)) ->  | I35: Horizontal | K35: =IF(J35=" "," ",J35*0.3048) -> 0
C37: Transmission line power budget | G37: =IF(ISNUMBER(T85),T85,"") -> 0 | I37: Total | J37: =J34+J35 -> 0 | K37: =K34+K35 -> 0
C39: Mechanical Specifications | G39: =IF(ISNUMBER(#REF!),IF(2/3*#REF!<250,"",IF(AND(2/3*#REF!>=250,2/3*#REF!<=820),"Check Mounts!","Requires Special Mounts")),"") -> 
C42: Load Specifications | E42: F | G42: Basic Wind Speed | I42: 90 | J42: mph
D44: Ice Thickness | F44: in (for no ice delete value) | I44: Wind Speed with Ice | L44: mph
D45: Ice Thickness | E45: 1 | F45: in (for no ice delete value) | I45: Wind Speed with Ice | K45: 40 | L45: mph
D47: Structure Class | E47: II | F47: I, II, III | H47: Tower Height | K47: 500 | L47: ft
D48: Exposure Category | E48: B | F48: B, C, D | J48: Elevation on Tower | K48: 500 | L48: ft
D49: Topography Category | E49: 1 | F49: 1, 2, 3, 4 | J49: Tower Base Elevation | K49: 500 | L49: ft
C51: Height H2 | D51: =IF(P80,Antenna!S29&" ft","") ->  | E51: =IF(R75,"Wind Load with Ice","Wind Load Dry") -> Wind Load Dry | G51: =IF(P80,Antenna!S32& " ft²","") ->  | H51: =IF(R75,"Weight with Ice", "Weight Dry") -> Weight Dry | J51: =IF(P80,IF(R75,Antenna!S31,Antenna!S30) & " lbs","") -> 
P63: TRUE
P64: TRUE
P65: TRUE
C66: Horizontal | E66: Peak | F66: =MATCH($C34,$G69:$G98) ->  | H66: Size | I66: Type | O66: 66 | P66: TRUE | Q66: CH 1 use ERP
C67: Elliptical / Circular | E67: RMS | G67: 22.74 | K67: Freq input | L67: FALSE | M67: =IF(F27,VLOOKUP($F$27,$L$71:$M$109,2),"") ->  | O67: 67 | P67: =Summary!AT11 -> FALSE | Q67: RMS
G68: 1 | M68: =IF(#REF!,VLOOKUP(#REF!,$L$71:$M$109,2)," ") ->  | O68: 68 | P68: =IF(I13="Full Radome", TRUE,FALSE) -> FALSE | Q68: Radome
F69: 1 | G69: 0-7/8" | H69: 7/8" | I69: Rigid | J69: 50 Ohm | M69: =IF(#REF!,VLOOKUP(#REF!,$L$71:$M$109,2)," ") ->  | O69: 69 | P69: =IF(I13="Slot Cover",TRUE,FALSE) -> FALSE | Q69: Slot Cover
C70: TLP Paterns | D70: Bean Tilt | F70: 2 | G70: 1-5/8" | H70: 1-5/8" | I70: Rigid | J70: 50 Ohm | M70: =IF(F29,VLOOKUP($F$29,$L$71:$M$109,2)," ") ->  | O70: 70
C71: A | D71: 0 | F71: 3 | G71: 3-1/8" | H71: 3-1/8" | I71: Rigid | J71: 50 Ohm | K71: 14 | L71: 470 | M71: 14 | O71: 71 | P71: =IF(J37>1,TRUE,FALSE) -> FALSE | Q71: Transmission Line
C72: B | D72: 0.5 | F72: 4 | G72: 3-1/8" EHT | H72: 3-1/8" | I72: Rigid EHT | J72: 50 Ohm | K72: 15 | L72: =L71+6 -> 476 | M72: 15 | O72: 72 | P72: FALSE | Q72: Add other
C73: C | D73: 0.75 | F73: 5 | G73: 4-1/16" | H73: 4-1/16" | I73: Rigid | J73: 50 Ohm | K73: 16 | L73: =L72+6 -> 482 | M73: 16 | O73: 73 | P73: =IF(E42="G",TRUE,FALSE) -> FALSE | Q73: G Code | R73: =IF(E45>0,TRUE,FALSE) -> TRUE | S73: Ice
C74: D | D74: 1 | F74: 6 | G74: 4-1/16" EHT | H74: 4-1/16" | I74: Rigid EHT | J74: 50 Ohm | K74: 17 | L74: 488 | M74: 17 | O74: 74 | P74: =IF(E42="F",TRUE,FALSE) -> TRUE | Q74: F Code | R74: =IF(E44>0,TRUE,FALSE) -> FALSE | S74: Ice
C75: E | D75: 1.25 | F75: 7 | G75: 6-1/8" 50 | H75: 6-1/8" | I75: Rigid | J75: 50 Ohm | K75: 18 | L75: 494 | M75: 18 | O75: 75 | P75: =IF(AND(R73,P73),TRUE,IF(AND(R74,P74),TRUE,FALSE)) -> FALSE | Q75: Ice | R75: =IF(AND(R73,P73),TRUE,IF(AND(R74,P74),"TRUE","FALSE")) -> FALSE
C76: F | D76: 1.5 | F76: 8 | G76: 6-1/8" 50 EHT | H76: 6-1/8" | I76: Rigid EHT | J76: 50 Ohm | K76: 19 | L76: 500 | M76: 19 | O76: 76 | P76: =IF(I42>=50,TRUE,FALSE) -> TRUE | Q76: Mechanicals Active
C77: G | D77: 2 | F77: 9 | G77: 6-1/8" 75 | H77: 6-1/8" | I77: Rigid | J77: 75 Ohm | K77: 20 | L77: 506 | M77: 20 | O77: 77 | P77: =IF($C$13="Elliptical / Circular",TRUE,FALSE) -> FALSE | Q77: AZ Vpol
C78: H | F78: 10 | G78: 6-1/8" 75 EHT | H78: 6-1/8" | I78: Rigid EHT | J78: 75 Ohm | K78: 21 | L78: 512 | M78: 21 | O78: 78 | P78: =IF($C$13="Horizontal",TRUE,FALSE) -> FALSE | Q78: AZ Hpol
C79: I | F79: 11 | G79: 7-3/16" 75 | H79: 7-3/16" | I79: Rigid | J79: 75 Ohm | K79: 22 | L79: 518 | M79: 22 | O79: 79 | P79: =IF(AND($K$13>=4,$F$27>=14,$K$18>1),TRUE,FALSE) -> FALSE | Q79: EL
C80: J | F80: 12 | G80: 7-3/16" 75 EHT | H80: 7-3/16" | I80: Rigid EHT | J80: 75 Ohm | K80: 23 | L80: 524 | M80: 23 | O80: 80 | P80: =IF(AND(E13>1,K13>=4,F27>=14),TRUE,FALSE) -> FALSE | Q80: AZ and EL
C81: M | F81: 13 | G81: 8-3/16" 75 | H81: 8-3/16" | I81: Rigid | J81: 75 Ohm | K81: 24 | L81: 530 | M81: 24 | O81: 81 | P81: =IF(F27>=14,IF(F27<=51,IF(P77,TRUE,FALSE))) -> FALSE | Q81: Sheet 1 active w/Vpol | R81: =IF(P81,1,0) -> 0 | S81: =SUM(R81:R84) -> 0
C82: N | F82: 14 | G82: 8-3/16" 75 EHT | H82: 8-3/16" | I82: Rigid EHT | J82: 75 Ohm | K82: 25 | L82: 536 | M82: 25 | O82: 82 | Q82: =if -> 
C83: O | F83: 15 | G83: 9-3/16" 75 | H83: 9-3/16" | I83: Rigid | J83: 75 Ohm | K83: 26 | L83: 542 | M83: 26 | O83: 83 | P83: FALSE | Q83: 16 lsyaer high power
C84: W | F84: 16 | G84: 9-3/16" 75 EHT | H84: 9-3/16" | I84: Rigid EHT | J84: 75 Ohm | K84: 27 | L84: 548 | M84: 27 | O84: 84
F85: 17 | G85: FlexLine Air 0-7/8" | H85: 7/8" | I85: Flexline Air | J85: 50 Ohm | K85: 28 | L85: 554 | M85: 28 | O85: 85 | P85: =IF(ISNUMBER(I27),TRUE,FALSE) -> FALSE | Q85: Summary 1 active | R85: =Summary!I21 ->  | S85: =Summary!I40 ->  | T85: =IF(ISNUMBER(Summary!I40),Summary!X23,0) -> 0
F86: 18 | G86: FlexLine Air 1-5/8" | H86: 1-5/8" | I86: Flexline Air | J86: 50 Ohm | K86: 29 | L86: 560 | M86: 29 | O86: 86
C87: I | D87: TLP Layers | F87: 19 | G87: FlexLine Air 2-1/4" | H87: 2-1/4" | I87: Flexline Air | J87: 50 Ohm | K87: 30 | L87: 566 | M87: 30 | O87: 87
C88: II | D88: 4 | F88: 20 | G88: FlexLine Air 3" | H88: 3" | I88: Flexline Air | J88: 50 Ohm | K88: 31 | L88: 572 | M88: 31 | O88: 88 | AE88: Analog
C89: III | D89: 6 | F89: 21 | G89: FlexLine Air 4" 50 | H89: 4" | I89: Flexline Air | J89: 50 Ohm | K89: 32 | L89: 578 | M89: 32 | O89: 89 | AE89: =IF(#REF!="Analog", TRUE,FALSE) ->  | AF89: =IF(#REF!>1,"Maximum combined average power","Maximum Average Power") -> 
D90: 8 | F90: 22 | G90: FlexLine Air 5" 50 | H90: 5" | I90: Flexline Air | J90: 50 Ohm | K90: 33 | L90: 584 | M90: 33 | O90: 90 | P90: =IF(F27>=14,IF(F27<=51,IF(P78,TRUE,FALSE))) -> FALSE | Q90: Sheet 1 active Hpol Only | R90: =IF(P90,1,0) -> 0 | S90: =SUM(R90:R93) -> 0 | AF90: =IF(#REF!>1,"Maximum combined Peak Analog Power","Maximum Peak Analog Power") -> 
C91: B | D91: 10 | F91: 23 | G91: FlexLine Foam 0-1/2" | H91: 1/2" | I91: Flexline Foam | J91: 50 Ohm | K91: 34 | L91: 590 | M91: 34 | O91: 91
C92: C | D92: 12 | F92: 24 | G92: FlexLine Foam 0-7/8" | H92: 7/8" | I92: Flexline Foam | J92: 50 Ohm | K92: 35 | L92: 596 | M92: 35 | O92: 92 | AE92: =IF(#REF!="Analog", TRUE," ") -> 
C93: D | D93: 16 | E93: =IF(P83,"C","") ->  | F93: 25 | G93: FlexLine Foam 1-1/4" | H93: 1-1/4" | I93: Flexline Foam | J93: 50 Ohm | K93: 36 | L93: 602 | M93: 36 | O93: 93
D94: 16 C | F94: 26 | G94: FlexLine Foam 1-5/8" | H94: 1-5/8" | I94: Flexline Foam | J94: 50 Ohm | K94: 37 | L94: 608 | M94: 37 | O94: 94 | P94: =HLOOKUP((K13*1000)+(K22*100),High!A1:BO2,2,0) ->  | Q94: EL Column Selection Code | S94: =(K13*1000)+(K22*100) -> 0 | AE94: =IF(#REF!="Analog", TRUE," ") -> 
C95: 1 | D95: Null Fill | F95: 27 | G95: FlexLine foam 2-1/4" | H95: 2-1/4" | I95: Flexline Foam | J95: 50 Ohm | K95: 38 | L95: 614 | M95: 38 | O95: 95 | P95: =HLOOKUP($E$13,Azimuth!$B$1:$AC$2,2) ->  | Q95: AZ Column Selection Code Hpol
C96: 2 | D96: Low | F96: 28 | G96: None | K96: 39 | L96: 620 | M96: 39 | O96: 96 | P96: =HLOOKUP($E$13,Azimuth!$B$1:$AC$2,2)+1 ->  | Q96: AZ Column Selection Code Vpol | AE96: =IF(#REF!="Analog", TRUE," ") -> 
C97: 3 | D97: Medium | F97: 29 | G97: Other | K97: 40 | L97: 626 | M97: 40 | O97: 97
C98: 4 | D98: High | F98: 30 | G98: Select | K98: 41 | L98: 632 | M98: 41 | O98: 98 | P98: =IF(ISNUMBER(K13),TRUE,FALSE) -> FALSE | Q98: Slots | AE98: =IF(#REF!="Analog", TRUE," ") -> 
F99: 31 | K99: 42 | L99: 638 | M99: 42 | O99: 99 | P99: =IF(K18>1,TRUE,FALSE) -> FALSE | Q99: Null Fill
C100: F | D100: Protection | F100: 32 | K100: 43 | L100: 644 | M100: 43 | O100: 100 | P100: =IF(ISNUMBER(K22),TRUE,FALSE) -> FALSE | Q100: Beam Tilt | AE100: =IF(#REF!="Analog", TRUE," ") -> 
C101: G | D101: Full Radome | K101: 44 | L101: 650 | M101: 44 | O101: 101
D102: Slot Cover | K102: 45 | L102: 656 | M102: 45 | O102: 102 | AE102: =IF(#REF!="Analog", TRUE," ") -> 
K103: 46 | L103: 662 | M103: 46 | O103: 103
K104: 47 | L104: 668 | M104: 47 | O104: 104 | AE104: =IF(#REF!="Analog", TRUE," ") -> 
K105: 48 | L105: 674 | M105: 48 | O105: 105 | P105: ="CH "& F27&" TLP-"&$K$13&$E$13&IF($C$13="Elliptical / Circular","-VP","")&IF($I$13="Full Radome","-R","") -> CH TLP-
K106: 49 | L106: 680 | M106: 49 | O106: 106 | P106: =IF(K13=16,2,1) -> 1 | Q106: Number of sections | AE106: =IF(#REF!="Analog", TRUE," ") -> 
K107: 50 | L107: 686 | M107: 50 | O107: 107 | P107: =IF(AND(E13>1,F27>=14),TRUE,FALSE) -> FALSE | Q107: AZ Hpol Ready
K108: 51 | L108: 692 | M108: 51 | O108: 108 | P108: =IF(AND(P107,P77),TRUE,FALSE) -> FALSE | Q108: AZ Vpol Ready | AE108: =IF(#REF!="Analog", TRUE," ") -> 
L109: 699 | M109: N/A | O109: 109 | P109: =IF(I29="RMS",TRUE,FALSE) -> FALSE | Q109: RMS Power

Sheet Cover
D11: Antenna Model: | E11: =IF(Input!F10>1,Input!F10,"") -> TLP-
B13: Reference Number: | E13: =IF(Input!E3="","",IF(Input!F5="",Input!E3:F3,Input!E3&"-"&Input!F5)) -> 
B14: Date: | E14: =IF(Input!H3,Input!H3,"") -> 2021-10-13
B15: Customer: | E15: =IF(Input!D8>1,Input!D8,"") -> 
B16: Location: | E16: =IF(Input!J8>1,Input!J8,"") -> 
B18: Electrical Specifications
B19: Polarization: | E19: =IF(Input!C13>1,Input!C13,"") -> 
B20: Azimuth Pattern: | E20: =IF(Input!E13>1,Input!E13,"") -> 
B21: Antenna Input: | E21: =IF(Input!I31<6,"1-5/8 50 Ohm","3-1/8 50 Ohm") -> 3-1/8 50 Ohm
B22: VSWR: | E22: Channel | F22: 1.08
B23: Bandwidth: | E23: 6
B24: Rated Input Power: | E24: =Input!I31 ->  | F24: =IF(Input!I13=1,"13.01 dBK",IF(Input!I13=2,"16.02 dBK",IF(Input!I13=3,"17.78 dBK",""))) ->  | G24: Maximum Average Power | I24: =IF(ISNUMBER(Input!R85),IF(Input!G31>1,"Caution, antenna may be overpowered",""),"") -> 
B26: Mechanical Specifications
B27: Mounting: | E27: Side Mounted
B28: Environmental Protection: | E28: =IF(Input!I13="","",Input!I13) -> 
B29: Height: | E29: =Mechanicals!L32 -> 31.6 ft ( 9.6 m)
B30: Weight: | E30: =Mechanicals!L36 -> 265 lb (121 kg) | F30: Excludes Mounts
B31: Effective Projected Area: | E31: =Mechanicals!L34 -> 42.6 ft² (4 m²) | H31: Basic Wind Speed: | I31: =Mechanicals!O18 -> 90 mph (145 km/h)
B33: Channel Specifications
H35: =IF(Input!P67,"RMS Gain","Peak Gain") -> Peak Gain | I35: =IF(Input!$P$77,IF(Input!P67,"RMS Gain","Peak Gain"),"") ->  | J35: =IF(Input!P67,"RMS Gain","Peak Gain") -> Peak Gain | K35: =IF(Input!$P$77,IF(Input!P67,"RMS Gain","Peak Gain"),"") -> 
H36: Main Lobe | I36: =IF(Input!$P$77,"Main Lobe","") ->  | J36: at Horizontal | K36: =IF(Input!$P$77,"at Horizontal","") -> 
B37: Call | C37: =IF(Input!$L$67,"Freq","Ch") -> Ch | D37: =IF(Input!$L$67,"CH","Freq") -> Freq | E37: Hpol ERP | F37: =IF(Input!P77,"Vpol ERP","") ->  | G37: =IF(Summary!AT10,"TPO","Input") -> Input | H37: Hpol | I37: =IF(Input!$P$77,"Vpol","") ->  | J37: Hpol | K37: =IF(Input!$P$77,"Vpol","") -> 
B39: =IF(Input!D27>1,Input!D27,"") ->  | C39: =IF(Input!F27,Input!F27,"") ->  | D39: =IF(Input!F27,Input!G27,"") ->  | E39: =IF(Input!F27,Summary!I16,"") ->  | F39: =IF(Input!F27,IF(F37="Vpol ERP",Summary!O16,""),"") ->  | G39: =IF(Input!F27,IF(G37="Input",Summary!I21,Summary!I40),"") ->  | H39: =IF(Input!F27,(Summary!$I$17),"") ->  | I39: =IF(Input!F27,IF(ISNUMBER(Summary!O17),Summary!O17,""),"") ->  | J39: =IF(ISNUMBER(H39),H39*Elpat!AA13^2,"") ->  | K39: =IF(ISNUMBER(I39),I39*Elpat!AA13^2,"") -> 
E40: =IF(ISNUMBER(E39),10*LOG(E39)," ") ->  | F40: =IF(Input!$P$78," ",IF(ISNUMBER(F39),10*LOG(F39)," ")) ->  | G40: =IF(ISNUMBER(G39),10*LOG(G39)," ") ->  | H40: =IF(ISNUMBER(H39),10*LOG(H39)," ") ->  | I40: =IF(ISNUMBER(I39),10*LOG(I39)," ") ->  | J40: =IF(ISNUMBER(J39),10*LOG(J39)," ") ->  | K40: =IF(ISNUMBER(K39),10*LOG(K39)," ") -> 
B66: This document contains proprietary and confidential information of Dielectric. It is to be used solely for the purpose for which it is provided.
B67: No disclosure, reproduction, or use of this document or any part of it may be made without the written permission of Dielectric.

Sheet AZ Hpol
AB2: =(ROUND(((($R$13-389)/6)-13),0)*2)+1 -> 
O6: AZIMUTH PATTERN
O7: Horizontal Polarization
O9: Proposal No. | R9: =Cover!E13 ->  | AA9: Normalized Directivity | AB9: =IF(ISNUMBER(R12),360/SUMSQ($AB$15:$AB$374),"") ->  | AC9: =ROUND(AB9,2) -> 
O10: Date | R10: =Cover!E14 -> 2021-10-13 | AA10: Input Peak Value | AB10: =MAX($AC$15:$AC$374) -> 1
O11: Call Letters | R11: =IF(Input!D27>1,Input!D27,"") ->  | AG11: =IF(AG13<0,TRUE,FALSE) -> FALSE
O12: Channel | R12: =IF(Input!F27>1,Input!F27,"") ->  | X12: DwgNo | Y12: D
O13: Frequency | R13: =IF(Input!G27>1,Input!G27,"") ->  | X13: Rotation | Y13: =Input!G13 -> 0 | AG13: =MIN(AG15:AG374) -> 0.1635609834
O14: Antenna Type | R14: =Cover!$E$11 -> TLP- | W14: Deg | X14: Pattern | Y14: Deg | Z14: dB | AB14: Normalized | AC14: Input
O15: Gain | R15: =IF(ISNUMBER(AB9),ROUND(AB9,2)&" ("&ROUND(10*LOG(AB9),2)&"dB)","") ->  | W15: 0 | X15: =INDEX($Y$15:$AC$374,MATCH(MOD($Y15-$Y$13,360),$Y$15:$Y$374,1),4) -> 1 | Y15: 0 | Z15: =ROUND(20*LOG(X15),4) -> 0 | AB15: =(1/$AB$10)*$AC15 -> 1 | AC15: 1 | AE15: 1 | AG15: =X15-'AZ Vpol'!X15 -> 0.4522774425
R16: Calculated | W16: 1 | X16: =INDEX($Y$15:$AC$374,MATCH(MOD($Y16-$Y$13,360),$Y$15:$Y$374,1),4) -> 0.9982258081 | Y16: 1 | Z16: =ROUND(20*LOG(X16),4) -> -0.0154 | AB16: =(1/$AB$10)*$AC16 -> 0.9982258081 | AC16: 0.9982258081 | AE16: 0 | AG16: =X16-'AZ Vpol'!X16 -> 0.4505783383
W17: 2 | X17: 0.9966170788 | Y17: 2 | Z17: -0.0294 | AB17: 0.9966170788 | AC17: 0.9966170788 | AE17: 0 | AG17: =X17-'AZ Vpol'!X17 -> 0.4491831844
O18: Pattern Number | R18: =IF(Input!$F$27<14,"","TLP-"&Y12&"-"&R12&" Hpol") ->  | W18: 3 | X18: 0.9951288104 | Y18: 3 | Z18: -0.0424 | AB18: 0.9951288104 | AC18: 0.9951288104 | AE18: 0 | AG18: =X18-'AZ Vpol'!X18 -> 0.4480465548
W19: 4 | X19: 0.9937158227 | Y19: 4 | Z19: -0.0548 | AB19: 0.9937158227 | AC19: 0.9937158227 | AE19: 0 | AG19: =X19-'AZ Vpol'!X19 -> 0.4471227795
W20: 5 | X20: 0.9923328161 | Y20: 5 | Z20: -0.0669 | AB20: 0.9923328161 | AC20: 0.9923328161 | AE20: 0 | AG20: =X20-'AZ Vpol'!X20 -> 0.4463662978
W21: 6 | X21: 0.9909352064 | Y21: 6 | Z21: -0.0791 | AB21: 0.9909352064 | AC21: 0.9909352064 | AE21: 0 | AG21: =X21-'AZ Vpol'!X21 -> 0.4457320031
W22: 7 | X22: 0.989477694 | Y22: 7 | Z22: -0.0919 | AB22: 0.989477694 | AC22: 0.989477694 | AE22: 0 | AG22: =X22-'AZ Vpol'!X22 -> 0.4451736818
W23: 8 | X23: 0.9879149795 | Y23: 8 | Z23: -0.1056 | AB23: 0.9879149795 | AC23: 0.9879149795 | AE23: 0 | AG23: =X23-'AZ Vpol'!X23 -> 0.4446450222
W24: 9 | X24: 0.9862022996 | Y24: 9 | Z24: -0.1207 | AB24: 0.9862022996 | AC24: 0.9862022996 | AE24: 0 | AG24: =X24-'AZ Vpol'!X24 -> 0.4441007063
W25: 10 | X25: 0.9842944741 | Y25: 10 | Z25: -0.1375 | AB25: 0.9842944741 | AC25: 0.9842944741 | AE25: 0 | AG25: =X25-'AZ Vpol'!X25 -> 0.4434937582
B26: Deg | C26: Value | D26: Deg | E26: Value | F26: Deg | G26: Value | H26: Deg | I26: Value | J26: Deg | K26: Value | L26: Deg | M26: Value | N26: Deg | O26: Value | P26: Deg | Q26: Value | R26: Deg | S26: Value | T26: Deg | U26: Value | W26: 11 | X26: 0.9821463823 | Y26: 11 | Z26: -0.1565 | AB26: 0.9821463823 | AC26: 0.9821463823 | AE26: 0 | AG26: =X26-'AZ Vpol'!X26 -> 0.4427779472
B27: 0 | C27: =VLOOKUP(B27,$W$15:$X$374,2) -> 1 | D27: 36 | E27: =VLOOKUP(D27,$W$15:$X$374,2) -> 0.8324493766 | F27: 72 | G27: =VLOOKUP(F27,$W$15:$X$374,2) -> 0.5164207816 | H27: 108 | I27: =VLOOKUP(H27,$W$15:$X$374,2) -> 0.3295116127 | J27: 144 | K27: =VLOOKUP(J27,$W$15:$X$374,2) -> 0.3291553855 | L27: 180 | M27: =VLOOKUP(L27,$W$15:$X$374,2) -> 0.3931205869 | N27: 216 | O27: =VLOOKUP(N27,$W$15:$X$374,2) -> 0.3379493952 | P27: 252 | Q27: =VLOOKUP(P27,$W$15:$X$374,2) -> 0.3278228045 | R27: 288 | S27: =VLOOKUP(R27,$W$15:$X$374,2) -> 0.5365244746 | T27: 324 | U27: =VLOOKUP(T27,$W$15:$X$374,2) -> 0.8297874928 | W27: 12 | X27: 0.9797127843 | Y27: 12 | Z27: -0.178 | AB27: 0.9797127843 | AC27: 0.9797127843 | AE27: 0 | AG27: =X27-'AZ Vpol'!X27 -> 0.4419070866
B28: 1 | C28: 0.9982258081 | D28: 37 | E28: 0.8238503933 | F28: 73 | G28: 0.5090975761 | H28: 109 | I28: 0.3246077895 | J28: 145 | K28: 0.3319495022 | L28: 181 | M28: 0.3931021988 | N28: 217 | O28: 0.3353277147 | P28: 253 | Q28: 0.3321096897 | R28: 289 | S28: 0.5434299111 | T28: 325 | U28: 0.8383225799 | W28: 13 | X28: 0.9769489765 | Y28: 13 | Z28: -0.2026 | AB28: 0.9769489765 | AC28: 0.9769489765 | AE28: 0 | AG28: =X28-'AZ Vpol'!X28 -> 0.4408344815
B29: 2 | C29: 0.9966170788 | D29: 38 | E29: 0.8151549101 | F29: 74 | G29: 0.5019431114 | H29: 110 | I29: 0.3200095892 | J29: 146 | K29: 0.3347654939 | L29: 182 | M29: 0.3929946125 | N29: 218 | O29: 0.3327105045 | P29: 254 | Q29: 0.3365843892 | R29: 290 | S29: 0.5504040122 | T29: 326 | U29: 0.8467267156 | W29: 14 | X29: 0.9738156199 | Y29: 14 | Z29: -0.2305 | AB29: 0.9738156199 | AC29: 0.9738156199 | AE29: 0 | AG29: =X29-'AZ Vpol'!X29 -> 0.4395188992
B30: 3 | C30: 0.9951288104 | D30: 39 | E30: 0.8063703775 | F30: 75 | G30: 0.4949642122 | H30: 111 | I30: 0.3157786131 | J30: 147 | K30: 0.3375937045 | L30: 183 | M30: 0.3927974999 | N30: 219 | O30: 0.3301041126 | P30: 255 | Q30: 0.3412326872 | R30: 291 | S30: 0.5574476719 | T30: 327 | U30: 0.8549832106 | W30: 15 | X30: 0.970310688 | Y30: 15 | Z30: -0.2618 | AB30: 0.970310688 | AC30: 0.970310688 | AE30: 0 | AG30: =X30-'AZ Vpol'!X30 -> 0.4379574318
B31: 4 | C31: 0.9937158227 | D31: 40 | E31: 0.7975050211 | F31: 76 | G31: 0.4881677926 | H31: 112 | I31: 0.31196329 | J31: 148 | K31: 0.3404250145 | L31: 184 | M31: 0.3925105929 | N31: 220 | O31: 0.327514708 | P31: 256 | Q31: 0.3460397124 | R31: 292 | S31: 0.5645623207 | T31: 328 | U31: 0.863075614 | W31: 16 | X31: 0.9664465785 | Y31: 16 | Z31: -0.2964 | AB31: 0.9664465785 | AC31: 0.9664465785 | AE31: 0 | AG31: =X31-'AZ Vpol'!X31 -> 0.4361598979
B32: 5 | C32: 0.9923328161 | D32: 41 | E32: 0.7885658741 | F32: 77 | G32: 0.4815608859 | H32: 113 | I32: 0.3085590899 | J32: 149 | K32: 0.3432517052 | L32: 185 | M32: 0.3921335042 | N32: 221 | O32: 0.3249483109 | P32: 257 | Q32: 0.3509911001 | R32: 293 | S32: 0.5717486143 | T32: 329 | U32: 0.8709874153 | W32: 17 | X32: 0.9622350931 | Y32: 17 | Z32: -0.3344 | AB32: 0.9622350931 | AC32: 0.9622350931 | AE32: 0 | AG32: =X32-'AZ Vpol'!X32 -> 0.4341360751
B33: 6 | C33: 0.9909352064 | D33: 42 | E33: 0.7795609832 | F33: 78 | G33: 0.4751504064 | H33: 114 | I33: 0.3055486083 | J33: 150 | K33: 0.3460657895 | L33: 186 | M33: 0.3916662037 | N33: 222 | O33: 0.3224113882 | P33: 258 | Q33: 0.356072098 | R33: 294 | S33: 0.5790075064 | T33: 330 | U33: 0.8787019849 | W33: 18 | X33: 0.9576888084 | Y33: 18 | Z33: -0.3755 | AB33: 0.9576888084 | AC33: 0.9576888084 | AE33: 0 | AG33: =X33-'AZ Vpol'!X33 -> 0.4318968425
B34: 7 | C34: 0.989477694 | D34: 43 | E34: 0.7704979181 | F34: 79 | G34: 0.4689432979 | H34: 115 | I34: 0.3029142022 | J34: 151 | K34: 0.3488593102 | L34: 187 | M34: 0.3911082149 | N34: 223 | O34: 0.319909811 | P34: 259 | Q34: 0.3612683117 | R34: 295 | S34: 0.5863401294 | T34: 331 | U34: 0.8862025738 | W34: 19 | X34: 0.9528195262 | Y34: 19 | Z34: -0.4198 | AB34: 0.9528195262 | AC34: 0.9528195262 | AE34: 0 | AG34: =X34-'AZ Vpol'!X34 -> 0.4294515531
B35: 8 | C35: 0.9879149795 | D35: 44 | E35: 0.7613841295 | F35: 80 | G35: 0.4629465044 | H35: 116 | I35: 0.3006384075 | J35: 152 | K35: 0.3516243994 | L35: 188 | M35: 0.3904593885 | N35: 224 | O35: 0.3174499869 | P35: 260 | Q35: 0.3665651977 | R35: 296 | S35: 0.5937473178 | T35: 332 | U35: 0.8934779167 | W35: 20 | X35: 0.947639823 | Y35: 20 | Z35: -0.4671 | AB35: 0.947639823 | AC35: 0.947639823 | AE35: 0 | AG35: =X35-'AZ Vpol'!X35 -> 0.4268105636
B36: 9 | C36: 0.9862022996 | D36: 45 | E36: 0.7522276044 | F36: 81 | G36: 0.4571669996 | H36: 117 | I36: 0.2987037897 | J36: 153 | K36: 0.3543531895 | L36: 189 | M36: 0.3897193074 | N36: 225 | O36: 0.3150379956 | P36: 261 | Q36: 0.3719480932 | R36: 297 | S36: 0.6012297869 | T36: 333 | U36: 0.9005324841 | W36: 21 | X36: 0.9421613812 | Y36: 21 | Z36: -0.5175 | AB36: 0.9421613812 | AC36: 0.9421613812 | AE36: 0 | AG36: =X36-'AZ Vpol'!X36 -> 0.4239830754
B37: 10 | C37: 0.9842944741 | D37: 46 | E37: 0.7430356741 | F37: 82 | G37: 0.4516116977 | H37: 118 | I37: 0.2970929146 | J37: 154 | K37: 0.3570376933 | L37: 190 | M37: 0.3888877928 | N37: 226 | O37: 0.312680006 | P37: 262 | Q37: 0.3774025142 | R37: 298 | S37: 0.6087890267 | T37: 334 | U37: 0.9073755741 | W37: 22 | X37: 0.9363967776 | Y37: 22 | Z37: -0.5708 | AB37: 0.9363967776 | AC37: 0.9363967776 | AE37: 0 | AG37: =X37-'AZ Vpol'!X37 -> 0.420979543
B38: 11 | C38: 0.9821463823 | D38: 47 | E38: 0.7338160872 | F38: 83 | G38: 0.4462875128 | H38: 119 | I38: 0.2957879901 | J38: 155 | K38: 0.3596701026 | L38: 191 | M38: 0.3879644871 | N38: 227 | O38: 0.3103869855 | P38: 263 | Q38: 0.3829137087 | R38: 299 | S38: 0.6164255738 | T38: 335 | U38: 0.9140154123 | W38: 23 | X38: 0.9303581715 | Y38: 23 | Z38: -0.627 | AB38: 0.9303581715 | AC38: 0.9303581715 | AE38: 0 | AG38: =X38-'AZ Vpol'!X38 -> 0.4178092201
B39: 12 | C39: 0.9797127843 | D39: 48 | E39: 0.7245764732 | F39: 84 | G39: 0.4412013888 | H39: 120 | I39: 0.2947717905 | J39: 156 | K39: 0.3622424006 | L39: 192 | M39: 0.3869492114 | N39: 228 | O39: 0.3081794083 | P39: 264 | Q39: 0.388468802 | R39: 300 | S39: 0.6241406202 | T39: 336 | U39: 0.9204608202 | W39: 24 | X39: 0.9240574837 | Y39: 24 | Z39: -0.686 | AB39: 0.9240574837 | AC39: 0.9240574837 | AE39: 0 | AG39: =X39-'AZ Vpol'!X39 -> 0.4144812201
B40: 13 | C40: 0.9769489765 | D40: 49 | E40: 0.7153245211 | F40: 85 | G40: 0.4363569021 | H40: 121 | I40: 0.2940289974 | J40: 157 | K40: 0.3647466004 | L40: 193 | M40: 0.3858416975 | N40: 229 | O40: 0.3060792089 | P40: 265 | Q40: 0.3940643072 | R40: 301 | S40: 0.6319348812 | T40: 337 | U40: 0.9267206192 | W40: 25 | X40: 0.917507112 | Y40: 25 | Z40: -0.7478 | AB40: 0.917507112 | AC40: 0.917507112 | AE40: 0 | AG40: =X40-'AZ Vpol'!X40 -> 0.4110057861
B41: 14 | C41: 0.9738156199 | D41: 50 | E41: 0.7060679793 | F41: 86 | G41: 0.431732893 | H41: 122 | I41: 0.2935489118 | J41: 158 | K41: 0.3671750128 | L41: 194 | M41: 0.3846415877 | N41: 230 | O41: 0.3041085005 | P41: 266 | Q41: 0.3997013867 | R41: 302 | S41: 0.6398094893 | T41: 338 | U41: 0.9328032732 | W41: 26 | X41: 0.9107189775 | Y41: 26 | Z41: -0.8123 | AB41: 0.9107189775 | AC41: 0.9107189775 | AE41: 0 | AG41: =X41-'AZ Vpol'!X41 -> 0.4073917374
B42: 15 | C42: 0.970310688 | D42: 51 | E42: 0.6968142986 | F42: 87 | G42: 0.4272974133 | H42: 123 | I42: 0.2933216095 | J42: 159 | K42: 0.3695195019 | L42: 195 | M42: 0.383348614 | N42: 231 | O42: 0.3022890091 | P42: 267 | Q42: 0.4053812921 | R42: 303 | S42: 0.6477655172 | T42: 339 | U42: 0.9387176037 | W42: 27 | X42: 0.9037055969 | Y42: 27 | Z42: -0.8795 | AB42: 0.9037055969 | AC42: 0.9037055969 | AE42: 0 | AG42: =X42-'AZ Vpol'!X42 -> 0.403648751
B43: 16 | C43: 0.9664465785 | D43: 52 | E43: 0.6875712872 | F43: 88 | G43: 0.4230186939 | H43: 124 | I43: 0.2933368981 | J43: 160 | K43: 0.3717722893 | L43: 196 | M43: 0.3819625974 | N43: 232 | O43: 0.3006427884 | P43: 268 | Q43: 0.4111048877 | R43: 304 | S43: 0.6558036208 | T43: 340 | U43: 0.9444721937 | W43: 28 | X43: 0.8964790106 | Y43: 28 | Z43: -0.9492 | AB43: 0.8964790106 | AC43: 0.8964790106 | AE43: 0 | AG43: =X43-'AZ Vpol'!X43 -> 0.3997860265
B44: 17 | C44: 0.9622350931 | D44: 53 | E44: 0.6783462763 | F44: 89 | G44: 0.4188649058 | H44: 125 | I44: 0.2935847938 | J44: 161 | K44: 0.3739255071 | L44: 197 | M44: 0.3804830909 | N44: 233 | O44: 0.2991917133 | P44: 269 | Q44: 0.4168733954 | R44: 305 | S44: 0.6639248729 | T44: 341 | U44: 0.9500759244 | W44: 29 | X44: 0.8890510798 | Y44: 29 | Z44: -1.0215 | AB44: 0.8890510798 | AC44: 0.8890510798 | AE44: 0 | AG44: =X44-'AZ Vpol'!X44 -> 0.3958125197
B45: 18 | C45: 0.9576888084 | D45: 54 | E45: 0.6691473722 | F45: 90 | G45: 0.4148043096 | H45: 126 | I45: 0.2940553129 | J45: 162 | K45: 0.3759711087 | L45: 198 | M45: 0.3789100051 | N45: 234 | O45: 0.2979575992 | P45: 270 | Q45: 0.4226881862 | R45: 306 | S45: 0.6721304059 | T45: 342 | U45: 0.9555373192 | W45: 30 | X45: 0.8814345002 | Y45: 30 | Z45: -1.0962 | AB45: 0.8814345002 | AC45: 0.8814345002 | AE45: 1 | AG45: =X45-'AZ Vpol'!X45 -> 0.391737466
B46: 19 | C46: 0.9528195262 | D46: 55 | E46: 0.6599819064 | F46: 91 | G46: 0.4108048081 | H46: 127 | I46: 0.2947385013 | J46: 163 | K46: 0.3779012859 | L46: 199 | M46: 0.377242893 | N46: 235 | O46: 0.296962589 | P46: 271 | Q46: 0.4285502136 | R46: 307 | S46: 0.680421114 | T46: 343 | U46: 0.960863173 | W46: 31 | X46: 0.8736410737 | Y46: 31 | Z46: -1.1733 | AB46: 0.8736410737 | AC46: 0.8736410737 | AE46: 0 | AG46: =X46-'AZ Vpol'!X46 -> 0.3875703164
B47: 20 | C47: 0.947639823 | D47: 56 | E47: 0.6508576274 | F47: 92 | G47: 0.406834811 | H47: 128 | I47: 0.2956241071 | J47: 164 | K47: 0.3797084093 | L47: 200 | M47: 0.3754816055 | N47: 236 | O47: 0.2962284088 | P47: 272 | Q47: 0.4344604015 | R47: 308 | S47: 0.6887977719 | T47: 344 | U47: 0.9660233259 | W47: 32 | X47: 0.8656833172 | Y47: 32 | Z47: -1.2528 | AB47: 0.8656833172 | AC47: 0.8656833172 | AE47: 0 | AG47: =X47-'AZ Vpol'!X47 -> 0.383320062
B48: 21 | C48: 0.9421613812 | D48: 57 | E48: 0.6417822242 | F48: 93 | G48: 0.4028623104 | H48: 129 | I48: 0.2967024148 | J48: 165 | K48: 0.3813906014 | L48: 201 | M48: 0.3736257851 | N48: 237 | O48: 0.2957771122 | P48: 273 | Q48: 0.4404202104 | R48: 309 | S48: 0.6972613931 | T48: 345 | U48: 0.9709519744 | W48: 33 | X48: 0.8575726748 | Y48: 33 | Z48: -1.3346 | AB48: 0.8575726748 | AC48: 0.8575726748 | AE48: 0 | AG48: =X48-'AZ Vpol'!X48 -> 0.3789952741
B49: 22 | C49: 0.9363967776 | D49: 58 | E49: 0.632763207 | F49: 94 | G49: 0.3988555968 | H49: 130 | I49: 0.2979629934 | J49: 166 | K49: 0.3829500079 | L49: 202 | M49: 0.371676594 | N49: 238 | O49: 0.2956305146 | P49: 274 | Q49: 0.4464307129 | R49: 310 | S49: 0.7058131099 | T49: 346 | U49: 0.9755820036 | W49: 34 | X49: 0.849322319 | Y49: 34 | Z49: -1.4185 | AB49: 0.849322319 | AC49: 0.849322319 | AE49: 0 | AG49: =X49-'AZ Vpol'!X49 -> 0.374605632
B50: 23 | C50: 0.9303581715 | D50: 59 | E50: 0.6238083243 | F50: 95 | G50: 0.3947826922 | H50: 131 | I50: 0.2993960977 | J50: 167 | K50: 0.3843888044 | L50: 203 | M50: 0.3696391881 | N50: 239 | O50: 0.2958106995 | P50: 275 | Q50: 0.4524928033 | R50: 311 | S50: 0.714453578 | T50: 347 | U50: 0.9798467159 | W50: 35 | X50: 0.8409438133 | Y50: 35 | Z50: -1.5047 | AB50: 0.8409438133 | AC50: 0.8409438133 | AE50: 0 | AG50: =X50-'AZ Vpol'!X50 -> 0.3701599567
B51: 24 | C51: 0.9240574837 | D51: 60 | E51: 0.6149247885 | F51: 96 | G51: 0.3906117976 | H51: 132 | I51: 0.300991714 | J51: 168 | K51: 0.3857091069 | L51: 204 | M51: 0.3675200045 | N51: 240 | O51: 0.2963395119 | P51: 276 | Q51: 0.4586079121 | R51: 312 | S51: 0.7231839895 | T51: 348 | U51: 0.9836791158 | W51: 36 | X51: 0.8324493766 | Y51: 36 | Z51: -1.5928 | AB51: 0.8324493766 | AC51: 0.8324493766 | AE51: 0 | AG51: =X51-'AZ Vpol'!X51 -> 0.3656666149
B52: 25 | C52: 0.917507112 | D52: 61 | E52: 0.6061195731 | F52: 97 | G52: 0.3863111138 | H52: 133 | I52: 0.3027395904 | J52: 169 | K52: 0.3869132996 | L52: 205 | M52: 0.3653250039 | N52: 241 | O52: 0.2972354889 | P52: 277 | Q52: 0.4647769034 | R52: 313 | S52: 0.7319980264 | T52: 349 | U52: 0.9870119095 | W52: 37 | X52: 0.8238503933 | Y52: 37 | Z52: -1.683 | AB52: 0.8238503933 | AC52: 0.8238503933 | AE52: 0 | AG52: =X52-'AZ Vpol'!X52 -> 0.3611346077
B53: 26 | C53: 0.9107189775 | D53: 62 | E53: 0.5973997712 | F53: 98 | G53: 0.3818486929 | H53: 134 | I53: 0.3046298921 | J53: 170 | K53: 0.3880034089 | L53: 206 | M53: 0.3630605042 | N53: 242 | O53: 0.2984941006 | P53: 278 | Q53: 0.4710010886 | R53: 314 | S53: 0.7408800125 | T53: 350 | U53: 0.9897783995 | W53: 38 | X53: 0.8151549101 | Y53: 38 | Z53: -1.7752 | AB53: 0.8151549101 | AC53: 0.8151549101 | AE53: 0 | AG53: =X53-'AZ Vpol'!X53 -> 0.3565682276
B54: 27 | C54: 0.9037055969 | D54: 63 | E54: 0.5887721777 | F54: 99 | G54: 0.3771927059 | H54: 135 | I54: 0.3066524863 | J54: 171 | K54: 0.3889817894 | L54: 207 | M54: 0.3607325852 | N54: 243 | O54: 0.3001008034 | P54: 279 | Q54: 0.4772816002 | R54: 315 | S54: 0.7498130798 | T54: 351 | U54: 0.9919499755 | W54: 39 | X54: 0.8063703775 | Y54: 39 | Z54: -1.8693 | AB54: 0.8063703775 | AC54: 0.8063703775 | AE54: 0 | AG54: =X54-'AZ Vpol'!X54 -> 0.3519718562
B55: 28 | C55: 0.8964790106 | D55: 64 | E55: 0.5802438259 | F55: 100 | G55: 0.3723115027 | H55: 136 | I55: 0.3087973893 | J55: 172 | K55: 0.3898505867 | L55: 208 | M55: 0.3583475053 | N55: 244 | O55: 0.3020409942 | P55: 280 | Q55: 0.4836195111 | R55: 316 | S55: 0.7587810755 | T55: 352 | U55: 0.9936000109 | W55: 40 | X55: 0.7975050211 | Y55: 40 | Z55: -1.9653 | AB55: 0.7975050211 | AC55: 0.7975050211 | AE55: 0 | AG55: =X55-'AZ Vpol'!X55 -> 0.3473503236
B56: 29 | C56: 0.8890510798 | D56: 65 | E56: 0.5718215108 | F56: 101 | G56: 0.3671917021 | H56: 137 | I56: 0.311054498 | J56: 173 | K56: 0.3906120062 | L56: 209 | M56: 0.3559114933 | N56: 245 | O56: 0.304300189 | P56: 281 | Q56: 0.4900158048 | R56: 317 | S56: 0.7677673101 | T56: 353 | U56: 0.9948191047 | W56: 41 | X56: 0.7885658741 | Y56: 41 | Z56: -2.0632 | AB56: 0.7885658741 | AC56: 0.7885658741 | AE56: 0 | AG56: =X56-'AZ Vpol'!X56 -> 0.3427076599
B57: 30 | C57: 0.8814345002 | D57: 66 | E57: 0.5635123253 | F57: 102 | G57: 0.3618823886 | H57: 138 | I57: 0.3134138882 | J57: 174 | K57: 0.3912681937 | L57: 210 | M57: 0.3534305096 | N57: 246 | O57: 0.3068638146 | P57: 282 | Q57: 0.4964720011 | R57: 318 | S57: 0.7767550945 | T57: 354 | U57: 0.9956979752 | W57: 42 | X57: 0.7795609832 | Y57: 42 | Z57: -2.163 | AB57: 0.7795609832 | AC57: 0.7795609832 | AE57: 0 | AG57: =X57-'AZ Vpol'!X57 -> 0.3380484509
B58: 31 | C58: 0.8736410737 | D58: 67 | E58: 0.5553231239 | F58: 103 | G58: 0.3564454913 | H58: 139 | I58: 0.3158654869 | J58: 175 | K58: 0.391821593 | L58: 211 | M58: 0.3509109914 | N58: 247 | O58: 0.3097172081 | P58: 283 | Q58: 0.5029888153 | R58: 319 | S58: 0.7857279778 | T58: 355 | U58: 0.996326983 | W58: 43 | X58: 0.7704979181 | Y58: 43 | Z58: -2.2646 | AB58: 0.7704979181 | AC58: 0.7704979181 | AE58: 0 | AG58: =X58-'AZ Vpol'!X58 -> 0.3333774263
B59: 32 | C59: 0.8656833172 | D59: 68 | E59: 0.5472608805 | F59: 104 | G59: 0.3509429097 | H59: 140 | I59: 0.3183993101 | J59: 176 | K59: 0.3922741115 | L59: 212 | M59: 0.3483588994 | N59: 248 | O59: 0.312846005 | P59: 284 | Q59: 0.5095676184 | R59: 320 | S59: 0.7946692109 | T59: 356 | U59: 0.996796906 | W59: 44 | X59: 0.7613841295 | Y59: 44 | Z59: -2.3679 | AB59: 0.7613841295 | AC59: 0.7613841295 | AE59: 0 | AG59: =X59-'AZ Vpol'!X59 -> 0.3286983802
B60: 33 | C60: 0.8575726748 | D60: 69 | E60: 0.5393326879 | F60: 105 | G60: 0.3454361856 | H60: 141 | I60: 0.3210051954 | J60: 177 | K60: 0.3926280141 | L60: 213 | M60: 0.345780611 | N60: 249 | O60: 0.3162355125 | P60: 285 | Q60: 0.5162094235 | R60: 321 | S60: 0.8035622835 | T60: 357 | U60: 0.9971981049 | W60: 45 | X60: 0.7522276044 | Y60: 45 | Z60: -2.473 | AB60: 0.7522276044 | AC60: 0.7522276044 | AE60: 0 | AG60: =X60-'AZ Vpol'!X60 -> 0.324016296
B61: 34 | C61: 0.849322319 | D61: 70 | E61: 0.5315452218 | F61: 106 | G61: 0.3399874866 | H61: 142 | I61: 0.3236731887 | J61: 178 | K61: 0.3928855956 | L61: 214 | M61: 0.3431820869 | N61: 250 | O61: 0.3198710978 | P61: 286 | Q61: 0.5229154825 | R61: 322 | S61: 0.8123909235 | T61: 358 | U61: 0.997621417 | W61: 46 | X61: 0.7430356741 | Y61: 46 | Z61: -2.5798 | AB61: 0.7430356741 | AC61: 0.7430356741 | AE61: 0 | AG61: =X61-'AZ Vpol'!X61 -> 0.3193356976
B62: 35 | C62: 0.8409438133 | D62: 71 | E62: 0.5239055753 | F62: 107 | G62: 0.3346587121 | H62: 143 | I62: 0.326393187 | J62: 179 | K62: 0.3930490017 | L62: 215 | M62: 0.3405695856 | N62: 251 | O62: 0.3237383962 | P62: 287 | Q62: 0.5296866894 | R62: 323 | S62: 0.8211380243 | T62: 359 | U62: 0.9981572032 | W62: 47 | X62: 0.7338160872 | Y62: 47 | Z62: -2.6883 | AB62: 0.7338160872 | AC62: 0.7338160872 | AE62: 0 | AG62: =X62-'AZ Vpol'!X62 -> 0.3146608403
W63: 48 | X63: 0.7245764732 | Y63: 48 | Z63: -2.7983 | AB63: 0.7245764732 | AC63: 0.7245764732 | AE63: 0 | AG63: =X63-'AZ Vpol'!X63 -> 0.3099961868
W64: 49 | X64: 0.7153245211 | Y64: 49 | Z64: -2.9099 | AB64: 0.7153245211 | AC64: 0.7153245211 | AE64: 0 | AG64: =X64-'AZ Vpol'!X64 -> 0.3053466185
A65: This document contains proprietary and confidential information of Dielectric. It is to be used solely for the purpose for which it is provided. | W65: 50 | X65: 0.7060679793 | Y65: 50 | Z65: -3.0231 | AB65: 0.7060679793 | AC65: 0.7060679793 | AE65: 0 | AG65: =X65-'AZ Vpol'!X65 -> 0.3007172068
A66: No disclosure, reproduction, or use of this document or any part of it may be made without the written permission of Dielectric. | W66: 51 | X66: 0.6968142986 | Y66: 51 | Z66: -3.1377 | AB66: 0.6968142986 | AC66: 0.6968142986 | AE66: 0 | AG66: =X66-'AZ Vpol'!X66 -> 0.2961117461
W67: 52 | X67: 0.6875712872 | Y67: 52 | Z67: -3.2536 | AB67: 0.6875712872 | AC67: 0.6875712872 | AE67: 0 | AG67: =X67-'AZ Vpol'!X67 -> 0.2915352368
W68: 53 | X68: 0.6783462763 | Y68: 53 | Z68: -3.371 | AB68: 0.6783462763 | AC68: 0.6783462763 | AE68: 0 | AG68: =X68-'AZ Vpol'!X68 -> 0.2869927576
W69: 54 | X69: 0.6691473722 | Y69: 54 | Z69: -3.4896 | AB69: 0.6691473722 | AC69: 0.6691473722 | AE69: 0 | AG69: =X69-'AZ Vpol'!X69 -> 0.2824892482
W70: 55 | X70: 0.6599819064 | Y70: 55 | Z70: -3.6094 | AB70: 0.6599819064 | AC70: 0.6599819064 | AE70: 0 | AG70: =X70-'AZ Vpol'!X70 -> 0.2780291015
W71: 56 | X71: 0.6508576274 | Y71: 56 | Z71: -3.7303 | AB71: 0.6508576274 | AC71: 0.6508576274 | AE71: 0 | AG71: =X71-'AZ Vpol'!X71 -> 0.2736174873
W72: 57 | X72: 0.6417822242 | Y72: 57 | Z72: -3.8522 | AB72: 0.6417822242 | AC72: 0.6417822242 | AE72: 0 | AG72: =X72-'AZ Vpol'!X72 -> 0.2692596132
W73: 58 | X73: 0.632763207 | Y73: 58 | Z73: -3.9752 | AB73: 0.632763207 | AC73: 0.632763207 | AE73: 0 | AG73: =X73-'AZ Vpol'!X73 -> 0.2649605083
W74: 59 | X74: 0.6238083243 | Y74: 59 | Z74: -4.099 | AB74: 0.6238083243 | AC74: 0.6238083243 | AE74: 0 | AG74: =X74-'AZ Vpol'!X74 -> 0.2607250809
W75: 60 | X75: 0.6149247885 | Y75: 60 | Z75: -4.2236 | AB75: 0.6149247885 | AC75: 0.6149247885 | AE75: 1 | AG75: =X75-'AZ Vpol'!X75 -> 0.2565582907
W76: 61 | X76: 0.6061195731 | Y76: 61 | Z76: -4.3488 | AB76: 0.6061195731 | AC76: 0.6061195731 | AE76: 0 | AG76: =X76-'AZ Vpol'!X76 -> 0.2524651851
W77: 62 | X77: 0.5973997712 | Y77: 62 | Z77: -4.4747 | AB77: 0.5973997712 | AC77: 0.5973997712 | AE77: 0 | AG77: =X77-'AZ Vpol'!X77 -> 0.2484498862
W78: 63 | X78: 0.5887721777 | Y78: 63 | Z78: -4.6011 | AB78: 0.5887721777 | AC78: 0.5887721777 | AE78: 0 | AG78: =X78-'AZ Vpol'!X78 -> 0.2445173608
W79: 64 | X79: 0.5802438259 | Y79: 64 | Z79: -4.7278 | AB79: 0.5802438259 | AC79: 0.5802438259 | AE79: 0 | AG79: =X79-'AZ Vpol'!X79 -> 0.2406724222
W80: 65 | X80: =INDEX($Y$15:$AC$374,MATCH(MOD($Y80-$Y$13,360),$Y$15:$Y$374,1),4) -> 0.5718215108 | Y80: 65 | Z80: =ROUND(20*LOG(X80),4) -> -4.8548 | AB80: =(1/$AB$10)*$AC80 -> 0.5718215108 | AC80: 0.5718215108 | AE80: 0 | AG80: =X80-'AZ Vpol'!X80 -> 0.2369202657
W81: 66 | X81: 0.5635123253 | Y81: 66 | Z81: -4.9819 | AB81: 0.5635123253 | AC81: 0.5635123253 | AE81: 0 | AG81: =X81-'AZ Vpol'!X81 -> 0.2332657316
W82: 67 | X82: 0.5553231239 | Y82: 67 | Z82: -5.1091 | AB82: 0.5553231239 | AC82: 0.5553231239 | AE82: 0 | AG82: =X82-'AZ Vpol'!X82 -> 0.2297137155
W83: 68 | X83: 0.5472608805 | Y83: 68 | Z83: -5.2361 | AB83: 0.5472608805 | AC83: 0.5472608805 | AE83: 0 | AG83: =X83-'AZ Vpol'!X83 -> 0.226269559
W84: 69 | X84: 0.5393326879 | Y84: 69 | Z84: -5.3629 | AB84: 0.5393326879 | AC84: 0.5393326879 | AE84: 0 | AG84: =X84-'AZ Vpol'!X84 -> 0.2229388206
W85: 70 | X85: 0.5315452218 | Y85: 70 | Z85: -5.4892 | AB85: 0.5315452218 | AC85: 0.5315452218 | AE85: 0 | AG85: =X85-'AZ Vpol'!X85 -> 0.2197263803
W86: 71 | X86: 0.5239055753 | Y86: 71 | Z86: -5.6149 | AB86: 0.5239055753 | AC86: 0.5239055753 | AE86: 0 | AG86: =X86-'AZ Vpol'!X86 -> 0.2166380906
W87: 72 | X87: 0.5164207816 | Y87: 72 | Z87: -5.7399 | AB87: 0.5164207816 | AC87: 0.5164207816 | AE87: 0 | AG87: =X87-'AZ Vpol'!X87 -> 0.2136792546
W88: 73 | X88: 0.5090975761 | Y88: 73 | Z88: -5.864 | AB88: 0.5090975761 | AC88: 0.5090975761 | AE88: 0 | AG88: =X88-'AZ Vpol'!X88 -> 0.2108556282
W89: 74 | X89: 0.5019431114 | Y89: 74 | Z89: -5.9869 | AB89: 0.5019431114 | AC89: 0.5019431114 | AE89: 0 | AG89: =X89-'AZ Vpol'!X89 -> 0.2081732212
W90: 75 | X90: 0.4949642122 | Y90: 75 | Z90: -6.1085 | AB90: 0.4949642122 | AC90: 0.4949642122 | AE90: 0 | AG90: =X90-'AZ Vpol'!X90 -> 0.2056372261
W91: 76 | X91: 0.4881677926 | Y91: 76 | Z91: -6.2286 | AB91: 0.4881677926 | AC91: 0.4881677926 | AE91: 0 | AG91: =X91-'AZ Vpol'!X91 -> 0.2032540674
W92: 77 | X92: 0.4815608859 | Y92: 77 | Z92: -6.347 | AB92: 0.4815608859 | AC92: 0.4815608859 | AE92: 0 | AG92: =X92-'AZ Vpol'!X92 -> 0.2010295051
W93: 78 | X93: 0.4751504064 | Y93: 78 | Z93: -6.4634 | AB93: 0.4751504064 | AC93: 0.4751504064 | AE93: 0 | AG93: =X93-'AZ Vpol'!X93 -> 0.1989700289
W94: 79 | X94: 0.4689432979 | Y94: 79 | Z94: -6.5776 | AB94: 0.4689432979 | AC94: 0.4689432979 | AE94: 0 | AG94: =X94-'AZ Vpol'!X94 -> 0.1970814239
W95: 80 | X95: 0.4629465044 | Y95: 80 | Z95: -6.6894 | AB95: 0.4629465044 | AC95: 0.4629465044 | AE95: 0 | AG95: =X95-'AZ Vpol'!X95 -> 0.195370177
W96: 81 | X96: 0.4571669996 | Y96: 81 | Z96: -6.7985 | AB96: 0.4571669996 | AC96: 0.4571669996 | AE96: 0 | AG96: =X96-'AZ Vpol'!X96 -> 0.1938425925
W97: 82 | X97: 0.4516116977 | Y97: 82 | Z97: -6.9047 | AB97: 0.4516116977 | AC97: 0.4516116977 | AE97: 0 | AG97: =X97-'AZ Vpol'!X97 -> 0.1925051277
W98: 83 | X98: 0.4462875128 | Y98: 83 | Z98: -7.0077 | AB98: 0.4462875128 | AC98: 0.4462875128 | AE98: 0 | AG98: =X98-'AZ Vpol'!X98 -> 0.1913644517
W99: 84 | X99: 0.4412013888 | Y99: 84 | Z99: -7.1073 | AB99: 0.4412013888 | AC99: 0.4412013888 | AE99: 0 | AG99: =X99-'AZ Vpol'!X99 -> 0.1904271169
W100: 85 | X100: 0.4363569021 | Y100: 85 | Z100: -7.2032 | AB100: 0.4363569021 | AC100: 0.4363569021 | AE100: 0 | AG100: =X100-'AZ Vpol'!X100 -> 0.1896963402 | AH100: 1 | AI100: Call | AJ100: CH | AK100: Freq
W101: 86 | X101: 0.431732893 | Y101: 86 | Z101: -7.2957 | AB101: 0.431732893 | AC101: 0.431732893 | AE101: 0 | AG101: =X101-'AZ Vpol'!X101 -> 0.1891508479 | AH101: 1
W102: 87 | X102: 0.4272974133 | Y102: 87 | Z102: -7.3854 | AB102: 0.4272974133 | AC102: 0.4272974133 | AE102: 0 | AG102: =X102-'AZ Vpol'!X102 -> 0.1887586592 | AH102: 2
W103: 88 | X103: 0.4230186939 | Y103: 88 | Z103: -7.4728 | AB103: 0.4230186939 | AC103: 0.4230186939 | AE103: 0 | AG103: =X103-'AZ Vpol'!X103 -> 0.188488119 | AH103: 3
W104: 89 | X104: 0.4188649058 | Y104: 89 | Z104: -7.5585 | AB104: 0.4188649058 | AC104: 0.4188649058 | AE104: 0 | AG104: =X104-'AZ Vpol'!X104 -> 0.1883070721 | AH104: 4
W105: 90 | X105: 0.4148043096 | Y105: 90 | Z105: -7.6431 | AB105: 0.4148043096 | AC105: 0.4148043096 | AE105: 1 | AG105: =X105-'AZ Vpol'!X105 -> 0.1881842686 | AH105: 5
W106: 91 | X106: 0.4108048081 | Y106: 91 | Z106: -7.7273 | AB106: 0.4108048081 | AC106: 0.4108048081 | AE106: 0 | AG106: =X106-'AZ Vpol'!X106 -> 0.1880875135 | AH106: 6
W107: 92 | X107: 0.406834811 | Y107: 92 | Z107: -7.8116 | AB107: 0.406834811 | AC107: 0.406834811 | AE107: 0 | AG107: =X107-'AZ Vpol'!X107 -> 0.1879855755 | AH107: 7
W108: 93 | X108: 0.4028623104 | Y108: 93 | Z108: -7.8969 | AB108: 0.4028623104 | AC108: 0.4028623104 | AE108: 0 | AG108: =X108-'AZ Vpol'!X108 -> 0.1878468713 | AH108: 8
W109: 94 | X109: 0.3988555968 | Y109: 94 | Z109: -7.9837 | AB109: 0.3988555968 | AC109: 0.3988555968 | AE109: 0 | AG109: =X109-'AZ Vpol'!X109 -> 0.1876396422 | AH109: 9
W110: 95 | X110: 0.3947826922 | Y110: 95 | Z110: -8.0728 | AB110: 0.3947826922 | AC110: 0.3947826922 | AE110: 0 | AG110: =X110-'AZ Vpol'!X110 -> 0.187332449 | AH110: 10
W111: 96 | X111: 0.3906117976 | Y111: 96 | Z111: -8.1651 | AB111: 0.3906117976 | AC111: 0.3906117976 | AE111: 0 | AG111: =X111-'AZ Vpol'!X111 -> 0.1868939008
W112: 97 | X112: 0.3863111138 | Y112: 97 | Z112: -8.2613 | AB112: 0.3863111138 | AC112: 0.3863111138 | AE112: 0 | AG112: =X112-'AZ Vpol'!X112 -> 0.1862924759
W113: 98 | X113: 0.3818486929 | Y113: 98 | Z113: -8.3622 | AB113: 0.3818486929 | AC113: 0.3818486929 | AE113: 0 | AG113: =X113-'AZ Vpol'!X113 -> 0.1854967323
W114: 99 | X114: 0.3771927059 | Y114: 99 | Z114: -8.4687 | AB114: 0.3771927059 | AC114: 0.3771927059 | AE114: 0 | AG114: =X114-'AZ Vpol'!X114 -> 0.1844753797
W115: 100 | X115: 0.3723115027 | Y115: 100 | Z115: -8.5819 | AB115: 0.3723115027 | AC115: 0.3723115027 | AE115: 0 | AG115: =X115-'AZ Vpol'!X115 -> 0.1831970947
W116: 101 | X116: 0.3671917021 | Y116: 101 | Z116: -8.7021 | AB116: 0.3671917021 | AC116: 0.3671917021 | AE116: 0 | AG116: =X116-'AZ Vpol'!X116 -> 0.1816489366
W117: 102 | X117: 0.3618823886 | Y117: 102 | Z117: -8.8287 | AB117: 0.3618823886 | AC117: 0.3618823886 | AE117: 0 | AG117: =X117-'AZ Vpol'!X117 -> 0.1798802673
W118: 103 | X118: 0.3564454913 | Y118: 103 | Z118: -8.9601 | AB118: 0.3564454913 | AC118: 0.3564454913 | AE118: 0 | AG118: =X118-'AZ Vpol'!X118 -> 0.1779537181
W119: 104 | X119: 0.3509429097 | Y119: 104 | Z119: -9.0953 | AB119: 0.3509429097 | AC119: 0.3509429097 | AE119: 0 | AG119: =X119-'AZ Vpol'!X119 -> 0.1759314169
W120: 105 | X120: 0.3454361856 | Y120: 105 | Z120: -9.2326 | AB120: 0.3454361856 | AC120: 0.3454361856 | AE120: 0 | AG120: =X120-'AZ Vpol'!X120 -> 0.1738753462
W121: 106 | X121: 0.3399874866 | Y121: 106 | Z121: -9.3707 | AB121: 0.3399874866 | AC121: 0.3399874866 | AE121: 0 | AG121: =X121-'AZ Vpol'!X121 -> 0.1718478858
W122: 107 | X122: 0.3346587121 | Y122: 107 | Z122: -9.508 | AB122: 0.3346587121 | AC122: 0.3346587121 | AE122: 0 | AG122: =X122-'AZ Vpol'!X122 -> 0.1699112127
W123: 108 | X123: 0.3295116127 | Y123: 108 | Z123: -9.6426 | AB123: 0.3295116127 | AC123: 0.3295116127 | AE123: 0 | AG123: =X123-'AZ Vpol'!X123 -> 0.1681274037
W124: 109 | X124: 0.3246077895 | Y124: 109 | Z124: -9.7728 | AB124: 0.3246077895 | AC124: 0.3246077895 | AE124: 0 | AG124: =X124-'AZ Vpol'!X124 -> 0.1665582236
W125: 110 | X125: 0.3200095892 | Y125: 110 | Z125: -9.8967 | AB125: 0.3200095892 | AC125: 0.3200095892 | AE125: 0 | AG125: =X125-'AZ Vpol'!X125 -> 0.1652659207
W126: 111 | X126: 0.3157786131 | Y126: 111 | Z126: -10.0123 | AB126: 0.3157786131 | AC126: 0.3157786131 | AE126: 0 | AG126: =X126-'AZ Vpol'!X126 -> 0.1643122924
W127: 112 | X127: 0.31196329 | Y127: 112 | Z127: -10.1179 | AB127: 0.31196329 | AC127: 0.31196329 | AE127: 0 | AG127: =X127-'AZ Vpol'!X127 -> 0.1637455716
W128: 113 | X128: 0.3085590899 | Y128: 113 | Z128: -10.2132 | AB128: 0.3085590899 | AC128: 0.3085590899 | AE128: 0 | AG128: =X128-'AZ Vpol'!X128 -> 0.1635609834
W129: 114 | X129: 0.3055486083 | Y129: 114 | Z129: -10.2984 | AB129: 0.3055486083 | AC129: 0.3055486083 | AE129: 0 | AG129: =X129-'AZ Vpol'!X129 -> 0.1637413682
W130: 115 | X130: 0.3029142022 | Y130: 115 | Z130: -10.3736 | AB130: 0.3029142022 | AC130: 0.3029142022 | AE130: 0 | AG130: =X130-'AZ Vpol'!X130 -> 0.1642679894
W131: 116 | X131: 0.3006384075 | Y131: 116 | Z131: -10.4391 | AB131: 0.3006384075 | AC131: 0.3006384075 | AE131: 0 | AG131: =X131-'AZ Vpol'!X131 -> 0.1651234153
W132: 117 | X132: 0.2987037897 | Y132: 117 | Z132: -10.4952 | AB132: 0.2987037897 | AC132: 0.2987037897 | AE132: 0 | AG132: =X132-'AZ Vpol'!X132 -> 0.1662891752
W133: 118 | X133: 0.2970929146 | Y133: 118 | Z133: -10.5422 | AB133: 0.2970929146 | AC133: 0.2970929146 | AE133: 0 | AG133: =X133-'AZ Vpol'!X133 -> 0.1677474673
W134: 119 | X134: 0.2957879901 | Y134: 119 | Z134: -10.5804 | AB134: 0.2957879901 | AC134: 0.2957879901 | AE134: 0 | AG134: =X134-'AZ Vpol'!X134 -> 0.1694791694
W135: 120 | X135: 0.2947717905 | Y135: 120 | Z135: -10.6103 | AB135: 0.2947717905 | AC135: 0.2947717905 | AE135: 1 | AG135: =X135-'AZ Vpol'!X135 -> 0.1714662395
W136: 121 | X136: 0.2940289974 | Y136: 121 | Z136: -10.6322 | AB136: 0.2940289974 | AC136: 0.2940289974 | AE136: 0 | AG136: =X136-'AZ Vpol'!X136 -> 0.1736922166
W137: 122 | X137: 0.2935489118 | Y137: 122 | Z137: -10.6464 | AB137: 0.2935489118 | AC137: 0.2935489118 | AE137: 0 | AG137: =X137-'AZ Vpol'!X137 -> 0.1761448591
W138: 123 | X138: 0.2933216095 | Y138: 123 | Z138: -10.6531 | AB138: 0.2933216095 | AC138: 0.2933216095 | AE138: 0 | AG138: =X138-'AZ Vpol'!X138 -> 0.1788127574
W139: 124 | X139: 0.2933368981 | Y139: 124 | Z139: -10.6527 | AB139: 0.2933368981 | AC139: 0.2933368981 | AE139: 0 | AG139: =X139-'AZ Vpol'!X139 -> 0.1816838745
W140: 125 | X140: 0.2935847938 | Y140: 125 | Z140: -10.6453 | AB140: 0.2935847938 | AC140: 0.2935847938 | AE140: 0 | AG140: =X140-'AZ Vpol'!X140 -> 0.1847465128
W141: 126 | X141: 0.2940553129 | Y141: 126 | Z141: -10.6314 | AB141: 0.2940553129 | AC141: 0.2940553129 | AE141: 0 | AG141: =X141-'AZ Vpol'!X141 -> 0.1879882888
W142: 127 | X142: 0.2947385013 | Y142: 127 | Z142: -10.6113 | AB142: 0.2947385013 | AC142: 0.2947385013 | AE142: 0 | AG142: =X142-'AZ Vpol'!X142 -> 0.1913971103
W143: 128 | X143: 0.2956241071 | Y143: 128 | Z143: -10.5852 | AB143: 0.2956241071 | AC143: 0.2956241071 | AE143: 0 | AG143: =X143-'AZ Vpol'!X143 -> 0.1949603665
W144: 129 | X144: =INDEX($Y$15:$AC$374,MATCH(MOD($Y144-$Y$13,360),$Y$15:$Y$374,1),4) -> 0.2967024148 | Y144: 129 | Z144: =ROUND(20*LOG(X144),4) -> -10.5536 | AB144: =(1/$AB$10)*$AC144 -> 0.2967024148 | AC144: 0.2967024148 | AE144: 0 | AG144: =X144-'AZ Vpol'!X144 -> 0.1986653384
W145: 130 | X145: 0.2979629934 | Y145: 130 | Z145: -10.5168 | AB145: 0.2979629934 | AC145: 0.2979629934 | AE145: 0 | AG145: =X145-'AZ Vpol'!X145 -> 0.2024988365
W146: 131 | X146: 0.2993960977 | Y146: 131 | Z146: -10.4751 | AB146: 0.2993960977 | AC146: 0.2993960977 | AE146: 0 | AG146: =X146-'AZ Vpol'!X146 -> 0.206448014
W147: 132 | X147: 0.300991714 | Y147: 132 | Z147: -10.4289 | AB147: 0.300991714 | AC147: 0.300991714 | AE147: 0 | AG147: =X147-'AZ Vpol'!X147 -> 0.2104995681
W148: 133 | X148: 0.3027395904 | Y148: 133 | Z148: -10.3786 | AB148: 0.3027395904 | AC148: 0.3027395904 | AE148: 0 | AG148: =X148-'AZ Vpol'!X148 -> 0.214639566
W149: 134 | X149: 0.3046298921 | Y149: 134 | Z149: -10.3245 | AB149: 0.3046298921 | AC149: 0.3046298921 | AE149: 0 | AG149: =X149-'AZ Vpol'!X149 -> 0.2188547285
W150: 135 | X150: 0.3066524863 | Y150: 135 | Z150: -10.2671 | AB150: 0.3066524863 | AC150: 0.3066524863 | AE150: 0 | AG150: =X150-'AZ Vpol'!X150 -> 0.2231310952
W151: 136 | X151: 0.3087973893 | Y151: 136 | Z151: -10.2065 | AB151: 0.3087973893 | AC151: 0.3087973893 | AE151: 0 | AG151: =X151-'AZ Vpol'!X151 -> 0.2274547808
W152: 137 | X152: 0.311054498 | Y152: 137 | Z152: -10.1433 | AB152: 0.311054498 | AC152: 0.311054498 | AE152: 0 | AG152: =X152-'AZ Vpol'!X152 -> 0.2318114221
W153: 138 | X153: 0.3134138882 | Y153: 138 | Z153: -10.0776 | AB153: 0.3134138882 | AC153: 0.3134138882 | AE153: 0 | AG153: =X153-'AZ Vpol'!X153 -> 0.2361873078
W154: 139 | X154: 0.3158654869 | Y154: 139 | Z154: -10.01 | AB154: 0.3158654869 | AC154: 0.3158654869 | AE154: 0 | AG154: =X154-'AZ Vpol'!X154 -> 0.2405682593
W155: 140 | X155: 0.3183993101 | Y155: 140 | Z155: -9.9406 | AB155: 0.3183993101 | AC155: 0.3183993101 | AE155: 0 | AG155: =X155-'AZ Vpol'!X155 -> 0.2449402367
W156: 141 | X156: 0.3210051954 | Y156: 141 | Z156: -9.8698 | AB156: 0.3210051954 | AC156: 0.3210051954 | AE156: 0 | AG156: =X156-'AZ Vpol'!X156 -> 0.2492890861
W157: 142 | X157: 0.3236731887 | Y157: 142 | Z157: -9.7979 | AB157: 0.3236731887 | AC157: 0.3236731887 | AE157: 0 | AG157: =X157-'AZ Vpol'!X157 -> 0.2536014012
W158: 143 | X158: 0.326393187 | Y158: 143 | Z158: -9.7252 | AB158: 0.326393187 | AC158: 0.326393187 | AE158: 0 | AG158: =X158-'AZ Vpol'!X158 -> 0.2578631287
W159: 144 | X159: 0.3291553855 | Y159: 144 | Z159: -9.652 | AB159: 0.3291553855 | AC159: 0.3291553855 | AE159: 0 | AG159: =X159-'AZ Vpol'!X159 -> 0.2620620561
W160: 145 | X160: 0.3319495022 | Y160: 145 | Z160: -9.5786 | AB160: 0.3319495022 | AC160: 0.3319495022 | AE160: 0 | AG160: =X160-'AZ Vpol'!X160 -> 0.2661848367
W161: 146 | X161: 0.3347654939 | Y161: 146 | Z161: -9.5052 | AB161: 0.3347654939 | AC161: 0.3347654939 | AE161: 0 | AG161: =X161-'AZ Vpol'!X161 -> 0.2702196235
W162: 147 | X162: 0.3375937045 | Y162: 147 | Z162: -9.4321 | AB162: 0.3375937045 | AC162: 0.3375937045 | AE162: 0 | AG162: =X162-'AZ Vpol'!X162 -> 0.2741552179
W163: 148 | X163: 0.3404250145 | Y163: 148 | Z163: -9.3596 | AB163: 0.3404250145 | AC163: 0.3404250145 | AE163: 0 | AG163: =X163-'AZ Vpol'!X163 -> 0.2779820679
W164: 149 | X164: 0.3432517052 | Y164: 149 | Z164: -9.2877 | AB164: 0.3432517052 | AC164: 0.3432517052 | AE164: 0 | AG164: =X164-'AZ Vpol'!X164 -> 0.2816922914
W165: 150 | X165: 0.3460657895 | Y165: 150 | Z165: -9.2168 | AB165: 0.3460657895 | AC165: 0.3460657895 | AE165: 1 | AG165: =X165-'AZ Vpol'!X165 -> 0.2852791583
W166: 151 | X166: 0.3488593102 | Y166: 151 | Z166: -9.147 | AB166: 0.3488593102 | AC166: 0.3488593102 | AE166: 0 | AG166: =X166-'AZ Vpol'!X166 -> 0.2887363519
W167: 152 | X167: 0.3516243994 | Y167: 152 | Z167: -9.0784 | AB167: 0.3516243994 | AC167: 0.3516243994 | AE167: 0 | AG167: =X167-'AZ Vpol'!X167 -> 0.292058914
W168: 153 | X168: 0.3543531895 | Y168: 153 | Z168: -9.0113 | AB168: 0.3543531895 | AC168: 0.3543531895 | AE168: 0 | AG168: =X168-'AZ Vpol'!X168 -> 0.2952425883
W169: 154 | X169: 0.3570376933 | Y169: 154 | Z169: -8.9457 | AB169: 0.3570376933 | AC169: 0.3570376933 | AE169: 0 | AG169: =X169-'AZ Vpol'!X169 -> 0.2982837666
W170: 155 | X170: 0.3596701026 | Y170: 155 | Z170: -8.8819 | AB170: 0.3596701026 | AC170: 0.3596701026 | AE170: 0 | AG170: =X170-'AZ Vpol'!X170 -> 0.3011800724
W171: 156 | X171: 0.3622424006 | Y171: 156 | Z171: -8.82 | AB171: 0.3622424006 | AC171: 0.3622424006 | AE171: 0 | AG171: =X171-'AZ Vpol'!X171 -> 0.3039292263
W172: 157 | X172: 0.3647466004 | Y172: 157 | Z172: -8.7602 | AB172: 0.3647466004 | AC172: 0.3647466004 | AE172: 0 | AG172: =X172-'AZ Vpol'!X172 -> 0.3065297178
W173: 158 | X173: 0.3671750128 | Y173: 158 | Z173: -8.7025 | AB173: 0.3671750128 | AC173: 0.3671750128 | AE173: 0 | AG173: =X173-'AZ Vpol'!X173 -> 0.3089808606
W174: 159 | X174: 0.3695195019 | Y174: 159 | Z174: -8.6473 | AB174: 0.3695195019 | AC174: 0.3695195019 | AE174: 0 | AG174: =X174-'AZ Vpol'!X174 -> 0.3112818601
W175: 160 | X175: 0.3717722893 | Y175: 160 | Z175: -8.5945 | AB175: 0.3717722893 | AC175: 0.3717722893 | AE175: 0 | AG175: =X175-'AZ Vpol'!X175 -> 0.3134324425
W176: 161 | X176: 0.3739255071 | Y176: 161 | Z176: -8.5443 | AB176: 0.3739255071 | AC176: 0.3739255071 | AE176: 0 | AG176: =X176-'AZ Vpol'!X176 -> 0.3154321877
W177: 162 | X177: 0.3759711087 | Y177: 162 | Z177: -8.4969 | AB177: 0.3759711087 | AC177: 0.3759711087 | AE177: 0 | AG177: =X177-'AZ Vpol'!X177 -> 0.3172809372
W178: 163 | X178: 0.3779012859 | Y178: 163 | Z178: -8.4524 | AB178: 0.3779012859 | AC178: 0.3779012859 | AE178: 0 | AG178: =X178-'AZ Vpol'!X178 -> 0.3189781713
W179: 164 | X179: 0.3797084093 | Y179: 164 | Z179: -8.411 | AB179: 0.3797084093 | AC179: 0.3797084093 | AE179: 0 | AG179: =X179-'AZ Vpol'!X179 -> 0.3205238631
W180: 165 | X180: 0.3813906014 | Y180: 165 | Z180: -8.3726 | AB180: 0.3813906014 | AC180: 0.3813906014 | AE180: 0 | AG180: =X180-'AZ Vpol'!X180 -> 0.3219230482
W181: 166 | X181: 0.3829500079 | Y181: 166 | Z181: -8.3372 | AB181: 0.3829500079 | AC181: 0.3829500079 | AE181: 0 | AG181: =X181-'AZ Vpol'!X181 -> 0.323184879
W182: 167 | X182: 0.3843888044 | Y182: 167 | Z182: -8.3046 | AB182: 0.3843888044 | AC182: 0.3843888044 | AE182: 0 | AG182: =X182-'AZ Vpol'!X182 -> 0.3243178811
W183: 168 | X183: 0.3857091069 | Y183: 168 | Z183: -8.2748 | AB183: 0.3857091069 | AC183: 0.3857091069 | AE183: 0 | AG183: =X183-'AZ Vpol'!X183 -> 0.3253302548
W184: 169 | X184: 0.3869132996 | Y184: 169 | Z184: -8.2477 | AB184: 0.3869132996 | AC184: 0.3869132996 | AE184: 0 | AG184: =X184-'AZ Vpol'!X184 -> 0.3262301873
W185: 170 | X185: 0.3880034089 | Y185: 170 | Z185: -8.2233 | AB185: 0.3880034089 | AC185: 0.3880034089 | AE185: 0 | AG185: =X185-'AZ Vpol'!X185 -> 0.3270245819
W186: 171 | X186: 0.3889817894 | Y186: 171 | Z186: -8.2014 | AB186: 0.3889817894 | AC186: 0.3889817894 | AE186: 0 | AG186: =X186-'AZ Vpol'!X186 -> 0.3277209388
W187: 172 | X187: 0.3898505867 | Y187: 172 | Z187: -8.182 | AB187: 0.3898505867 | AC187: 0.3898505867 | AE187: 0 | AG187: =X187-'AZ Vpol'!X187 -> 0.3283256234
W188: 173 | X188: 0.3906120062 | Y188: 173 | Z188: -8.1651 | AB188: 0.3906120062 | AC188: 0.3906120062 | AE188: 0 | AG188: =X188-'AZ Vpol'!X188 -> 0.3288446771
W189: 174 | X189: 0.3912681937 | Y189: 174 | Z189: -8.1505 | AB189: 0.3912681937 | AC189: 0.3912681937 | AE189: 0 | AG189: =X189-'AZ Vpol'!X189 -> 0.3292836369
W190: 175 | X190: 0.391821593 | Y190: 175 | Z190: -8.1382 | AB190: 0.391821593 | AC190: 0.391821593 | AE190: 0 | AG190: =X190-'AZ Vpol'!X190 -> 0.329647852
W191: 176 | X191: 0.3922741115 | Y191: 176 | Z191: -8.1282 | AB191: 0.3922741115 | AC191: 0.3922741115 | AE191: 0 | AG191: =X191-'AZ Vpol'!X191 -> 0.3299417519
W192: 177 | X192: 0.3926280141 | Y192: 177 | Z192: -8.1204 | AB192: 0.3926280141 | AC192: 0.3926280141 | AE192: 0 | AG192: =X192-'AZ Vpol'!X192 -> 0.3301696215
W193: 178 | X193: 0.3928855956 | Y193: 178 | Z193: -8.1147 | AB193: 0.3928855956 | AC193: 0.3928855956 | AE193: 0 | AG193: =X193-'AZ Vpol'!X193 -> 0.3303352981
W194: 179 | X194: 0.3930490017 | Y194: 179 | Z194: -8.1111 | AB194: 0.3930490017 | AC194: 0.3930490017 | AE194: 0 | AG194: =X194-'AZ Vpol'!X194 -> 0.3304421232
W195: 180 | X195: 0.3931205869 | Y195: 180 | Z195: -8.1095 | AB195: 0.3931205869 | AC195: 0.3931205869 | AE195: 1 | AG195: =X195-'AZ Vpol'!X195 -> 0.3304930593
W196: 181 | X196: 0.3931021988 | Y196: 181 | Z196: -8.1099 | AB196: 0.3931021988 | AC196: 0.3931021988 | AE196: 0 | AG196: =X196-'AZ Vpol'!X196 -> 0.3304901703
W197: 182 | X197: 0.3929946125 | Y197: 182 | Z197: -8.1123 | AB197: 0.3929946125 | AC197: 0.3929946125 | AE197: 0 | AG197: =X197-'AZ Vpol'!X197 -> 0.330434072
W198: 183 | X198: 0.3927974999 | Y198: 183 | Z198: -8.1166 | AB198: 0.3927974999 | AC198: 0.3927974999 | AE198: 0 | AG198: =X198-'AZ Vpol'!X198 -> 0.3303237184
W199: 184 | X199: 0.3925105929 | Y199: 184 | Z199: -8.123 | AB199: 0.3925105929 | AC199: 0.3925105929 | AE199: 0 | AG199: =X199-'AZ Vpol'!X199 -> 0.3301576944
W200: 185 | X200: 0.3921335042 | Y200: 185 | Z200: -8.1313 | AB200: 0.3921335042 | AC200: 0.3921335042 | AE200: 0 | AG200: =X200-'AZ Vpol'!X200 -> 0.3299341313
W201: 186 | X201: 0.3916662037 | Y201: 186 | Z201: -8.1417 | AB201: 0.3916662037 | AC201: 0.3916662037 | AE201: 0 | AG201: =X201-'AZ Vpol'!X201 -> 0.3296507548
W202: 187 | X202: 0.3911082149 | Y202: 187 | Z202: -8.1541 | AB202: 0.3911082149 | AC202: 0.3911082149 | AE202: 0 | AG202: =X202-'AZ Vpol'!X202 -> 0.3293048437
W203: 188 | X203: 0.3904593885 | Y203: 188 | Z203: -8.1685 | AB203: 0.3904593885 | AC203: 0.3904593885 | AE203: 0 | AG203: =X203-'AZ Vpol'!X203 -> 0.3288932372
W204: 189 | X204: 0.3897193074 | Y204: 189 | Z204: -8.185 | AB204: 0.3897193074 | AC204: 0.3897193074 | AE204: 0 | AG204: =X204-'AZ Vpol'!X204 -> 0.3284120657
W205: 190 | X205: 0.3888877928 | Y205: 190 | Z205: -8.2035 | AB205: 0.3888877928 | AC205: 0.3888877928 | AE205: 0 | AG205: =X205-'AZ Vpol'!X205 -> 0.3278573675
... 169 more rows

Sheet AZ Vpol
AB2: =(ROUND(((($R$13-389)/6)-13),0)*2) -> 
O6: AZIMUTH PATTERN
O7: Vertical Polarization
O9: Proposal No. | R9: =Cover!E13 ->  | AA9: Normalized Directivity | AB9: =IF(ISNUMBER(R12),360/SUMSQ($AB$15:$AB$374),"") ->  | AC9: =ROUND(AB9,2) -> 
O10: Date | R10: =Cover!E14 -> 2021-10-13 | AA10: Input Peak Value | AB10: =MAX($AC$15:$AC$374) -> 1
O11: Call Letters | R11: =IF(Input!D27>1,Input!D27,"") ->  | AA11: Vpol Value | AB11: =Summary!AG17 -> 0.3
O12: Channel | R12: =IF(Input!F27>1,Input!F27,"") ->  | X12: Dwg No | Y12: D
O13: Frequency | R13: =IF(Input!G27>1,Input!G27,"") ->  | X13: Rotation | Y13: =Input!G13 -> 0
O14: Antenna Type | R14: =Cover!$E$11 -> TLP- | W14: Deg | X14: Pattern | Y14: Deg | Z14: dB | AB14: Normalized | AC14: Input
O15: Gain | R15: =IF(ISNUMBER(AB9),ROUND(AB9,2)&" ("&ROUND(10*LOG(AB9),2)&"dB)","") ->  | W15: 0 | X15: =(INDEX($Y$15:$AC$374,MATCH(MOD($Y15-$Y$13,360),$Y$15:$Y$374,1),5))*SQRT($AB$11) -> 0.5477225575 | Y15: 0 | Z15: =ROUND(20*LOG(X15),4) -> -5.2288 | AB15: =(1/$AB$10)*$AC15 -> 1 | AC15: 1
R16: Calculated | W16: 1 | X16: 0.5476474698 | Y16: 1 | Z16: =ROUND(20*LOG(X16),4) -> -5.23 | AB16: =(1/$AB$10)*$AC16 -> 0.9998629093 | AC16: 0.9998629093
W17: 2 | X17: 0.5474338944 | Y17: 2 | Z17: -5.2334 | AB17: 0.9994729757 | AC17: 0.9994729757
O18: Pattern Number | R18: =IF(Input!$F$27<14,"","TLP-"&Y12&"-"&R12&" Vpol") ->  | W18: 3 | X18: 0.5470822557 | Y18: 3 | Z18: -5.2389 | AB18: 0.9988309741 | AC18: 0.9988309741
W19: 4 | X19: 0.5465930432 | Y19: 4 | Z19: -5.2467 | AB19: 0.9979377985 | AC19: 0.9979377985
W20: 5 | X20: 0.5459665183 | Y20: 5 | Z20: -5.2567 | AB20: 0.9967939258 | AC20: 0.9967939258
W21: 6 | X21: 0.5452032033 | Y21: 6 | Z21: -5.2688 | AB21: 0.9954003096 | AC21: 0.9954003096
W22: 7 | X22: 0.5443040122 | Y22: 7 | Z22: -5.2832 | AB22: 0.9937586188 | AC22: 0.9937586188
W23: 8 | X23: 0.5432699572 | Y23: 8 | Z23: -5.2997 | AB23: 0.9918707013 | AC23: 0.9918707013
W24: 9 | X24: 0.5421015933 | Y24: 9 | Z24: -5.3184 | AB24: 0.9897375703 | AC24: 0.9897375703
W25: 10 | X25: 0.5408007159 | Y25: 10 | Z25: -5.3393 | AB25: 0.987362504 | AC25: 0.987362504
B26: Deg | C26: Value | D26: Deg | E26: Value | F26: Deg | G26: Value | H26: Deg | I26: Value | J26: Deg | K26: Value | L26: Deg | M26: Value | N26: Deg | O26: Value | P26: Deg | Q26: Value | R26: Deg | S26: Value | T26: Deg | U26: Value | W26: 11 | X26: 0.5393684351 | Y26: 11 | Z26: -5.3623 | AB26: 0.984747529 | AC26: 0.984747529
B27: 0 | C27: =VLOOKUP(B27,$W$15:$X$374,2) -> 0.5477225575 | D27: 36 | E27: =VLOOKUP(D27,$W$15:$X$374,2) -> 0.4667827617 | F27: 72 | G27: =VLOOKUP(F27,$W$15:$X$374,2) -> 0.302741527 | H27: 108 | I27: =VLOOKUP(H27,$W$15:$X$374,2) -> 0.1613842089 | J27: 144 | K27: =VLOOKUP(J27,$W$15:$X$374,2) -> 0.0670933294 | L27: 180 | M27: =VLOOKUP(L27,$W$15:$X$374,2) -> 0.06262752758 | N27: 216 | O27: =VLOOKUP(N27,$W$15:$X$374,2) -> 0.0672620277 | P27: 252 | Q27: =VLOOKUP(P27,$W$15:$X$374,2) -> 0.1616586217 | R27: 288 | S27: =VLOOKUP(R27,$W$15:$X$374,2) -> 0.3031572188 | T27: 324 | U27: =VLOOKUP(T27,$W$15:$X$374,2) -> 0.4671374366 | W27: 12 | X27: 0.5378056977 | Y27: 12 | Z27: -5.3875 | AB27: 0.9818943739 | AC27: 0.9818943739
B28: 1 | C28: 0.5476474698 | D28: 37 | E28: 0.4627157855 | F28: 73 | G28: 0.298241948 | H28: 109 | I28: 0.158049566 | J28: 145 | K28: 0.06576466551 | L28: 181 | M28: 0.06261202851 | N28: 217 | O28: 0.06870122553 | P28: 253 | Q28: 0.1650261726 | R28: 289 | S28: 0.3076854617 | T28: 325 | U28: 0.4711324266 | W28: 13 | X28: 0.536114495 | Y28: 13 | Z28: -5.4148 | AB28: 0.9788066745 | AC28: 0.9788066745
B29: 2 | C29: 0.5474338944 | D29: 38 | E29: 0.4585866825 | F29: 74 | G29: 0.2937698902 | H29: 110 | I29: 0.1547436685 | J29: 146 | K29: 0.06454587037 | L29: 182 | M29: 0.06256054041 | N29: 218 | O29: 0.07024541957 | P29: 254 | Q29: 0.1684225996 | R29: 290 | S29: 0.3122387121 | T29: 326 | U29: 0.4750584665 | W29: 14 | X29: 0.5342967208 | Y29: 14 | Z29: -5.4443 | AB29: 0.9754878879 | AC29: 0.9754878879
B30: 3 | C30: 0.5470822557 | D30: 39 | E30: 0.4543985214 | F30: 75 | G30: 0.289326986 | H30: 111 | I30: 0.1514663207 | J30: 147 | K30: 0.06343848654 | L30: 183 | M30: 0.06247378152 | N30: 219 | O30: 0.07189181444 | P30: 255 | Q30: 0.1718482293 | R30: 291 | S30: 0.3168156641 | T30: 327 | U30: 0.4789122916 | W30: 15 | X30: 0.5323532562 | Y30: 15 | Z30: -5.476 | AB30: 0.9719396234 | AC30: 0.9719396234
B31: 4 | C31: 0.5465930432 | D31: 40 | E31: 0.4501546975 | F31: 76 | G31: 0.2849137252 | H31: 112 | I31: 0.1482177184 | J31: 148 | K31: 0.06244294661 | L31: 184 | M31: 0.06235289855 | N31: 220 | O31: 0.07363697407 | P31: 256 | Q31: 0.1753032573 | R31: 292 | S31: 0.3214147832 | T31: 328 | U31: 0.4826908985 | W31: 16 | X31: 0.5302866806 | Y31: 16 | Z31: -5.5098 | AB31: 0.9681665897 | AC31: 0.9681665897
B32: 5 | C32: 0.5459665183 | D32: 41 | E32: 0.4458582142 | F32: 77 | G32: 0.2805313808 | H32: 113 | I32: 0.1449981065 | J32: 149 | K32: 0.06155941378 | L32: 185 | M32: 0.06219937285 | N32: 221 | O32: 0.07547710327 | P32: 257 | Q32: 0.1787878634 | R32: 293 | S32: 0.3260343066 | T32: 329 | U32: 0.4863909899 | W32: 17 | X32: 0.528099018 | Y32: 17 | Z32: -5.5457 | AB32: 0.9641724825 | AC32: 0.9641724825
B33: 6 | C33: 0.5452032033 | D33: 42 | E33: 0.4415125323 | F33: 78 | G33: 0.2761803774 | H33: 114 | I33: 0.1418072401 | J33: 150 | K33: 0.06078663118 | L33: 186 | M33: 0.06201544889 | N33: 222 | O33: 0.0774085864 | P33: 258 | Q33: 0.182302831 | R33: 294 | S33: 0.3306726346 | T33: 330 | U33: 0.4900096927 | W33: 18 | X33: 0.525791966 | Y33: 18 | Z33: -5.5837 | AB33: 0.9599604011 | AC33: 0.9599604011
B34: 7 | C34: 0.5443040122 | D34: 43 | E34: 0.4371204918 | F34: 79 | G34: 0.2718618739 | H34: 115 | I34: 0.1386462128 | J34: 151 | K34: 0.06012295829 | L34: 187 | M34: 0.06180337114 | N34: 223 | O34: 0.07942705695 | P34: 259 | Q34: 0.1858480622 | R34: 295 | S34: 0.3353286898 | T34: 331 | U34: 0.4935435465 | W34: 19 | X34: 0.5233679731 | Y34: 19 | Z34: -5.6239 | AB34: 0.9555348158 | AC34: 0.9555348158
B35: 8 | C35: 0.5432699572 | D35: 44 | E35: 0.4326857494 | F35: 80 | G35: 0.2675763274 | H35: 116 | I35: 0.1355149921 | J35: 152 | K35: 0.05956548547 | L35: 188 | M35: 0.06156615127 | N35: 224 | O35: 0.08152871973 | P35: 260 | Q35: 0.1894242099 | R35: 296 | S35: 0.3399992075 | T35: 332 | U35: 0.496989711 | W35: 20 | X35: 0.5208292593 | Y35: 20 | Z35: -5.6661 | AB35: 0.9508997798 | AC35: 0.9508997798
B36: 9 | C36: 0.5421015933 | D36: 45 | E36: 0.4282113084 | F36: 81 | G36: 0.2633244071 | H36: 117 | I36: 0.1324146145 | J36: 153 | K36: 0.05911060117 | L36: 189 | M36: 0.06130724167 | N36: 225 | O36: 0.0837096408 | P36: 261 | Q36: 0.193031568 | R36: 297 | S36: 0.3446836001 | T36: 333 | U36: 0.5003451499 | W36: 21 | X36: 0.5181783058 | Y36: 21 | Z36: -5.7104 | AB36: 0.946059823 | AC36: 0.946059823
B37: 10 | C37: 0.5408007159 | D37: 46 | E37: 0.4236999765 | F37: 82 | G37: 0.25910657 | H37: 118 | I37: 0.1293454472 | J37: 154 | K37: 0.05875392662 | L37: 190 | M37: 0.0610304253 | N37: 226 | O37: 0.08596533123 | P37: 262 | Q37: 0.1966706261 | R37: 298 | S37: 0.3493791905 | T37: 334 | U37: 0.5036068926 | W37: 22 | X37: 0.5154172346 | Y37: 22 | Z37: -5.7568 | AB37: 0.9410188198 | AC37: 0.9410188198
B38: 11 | C38: 0.5393684351 | D38: 47 | E38: 0.4191552469 | F38: 83 | G38: 0.254923061 | H38: 119 | I38: 0.1263088207 | J38: 155 | K38: 0.05849003023 | L38: 191 | M38: 0.06074018702 | N38: 227 | O38: 0.08829233044 | P38: 263 | Q38: 0.2003418414 | R38: 299 | S38: 0.3540841833 | T38: 335 | U38: 0.5067721965 | W38: 23 | X38: 0.5125489513 | Y38: 23 | Z38: -5.8053 | AB38: 0.9357820749 | AC38: 0.9357820749
B39: 12 | C39: 0.5378056977 | D39: 48 | E39: 0.4145802864 | F39: 84 | G39: 0.250774272 | H39: 120 | I39: 0.123305551 | J39: 156 | K39: 0.0583131743 | L39: 192 | M39: 0.06044107288 | N39: 228 | O39: 0.09068681061 | P39: 264 | Q39: 0.2040456544 | R39: 300 | S39: 0.3587961298 | T39: 336 | U39: 0.5098380257 | W39: 24 | X39: 0.5095762636 | Y39: 24 | Z39: -5.8558 | AB39: 0.9303547144 | AC39: 0.9303547144
B40: 13 | C40: 0.536114495 | D40: 49 | E40: 0.4099779026 | F40: 85 | G40: 0.2466605619 | H40: 121 | I40: 0.1203367808 | J40: 157 | K40: 0.05821688254 | L40: 193 | M40: 0.06013856755 | N40: 229 | O40: 0.0931448786 | P40: 265 | Q40: 0.2077824408 | R40: 301 | S40: 0.3635126795 | T40: 337 | U40: 0.5128018009 | W40: 25 | X40: 0.506501326 | Y40: 25 | Z40: -5.9084 | AB40: 0.9247406721 | AC40: 0.9247406721
B41: 14 | C41: 0.5342967208 | D41: 50 | E41: 0.4053507725 | F41: 86 | G41: 0.2425820451 | H41: 122 | I41: 0.1174040527 | J41: 158 | K41: 0.0581941522 | L41: 194 | M41: 0.05983797614 | N41: 230 | O41: 0.09566319627 | P41: 266 | Q41: 0.2115525758 | R41: 302 | S41: 0.368231743 | T41: 338 | U41: 0.5156603554 | W41: 26 | X41: 0.50332724 | Y41: 26 | Z41: -5.963 | AB41: 0.9189456105 | AC41: 0.9189456105
B42: 15 | C42: 0.5323532562 | D42: 51 | E42: 0.4007025526 | F42: 87 | G42: 0.2385387542 | H42: 123 | I42: 0.1145088521 | J42: 159 | K42: 0.05823764183 | L42: 195 | M42: 0.0595457668 | N42: 231 | O42: 0.09823858873 | P42: 267 | Q42: 0.2153564514 | R42: 303 | S42: 0.3729507413 | T42: 339 | U42: 0.5184116652 | W42: 27 | X42: 0.500056846 | Y42: 27 | Z42: -6.0196 | AB42: 0.9129747152 | AC42: 0.9129747152
B43: 16 | C43: 0.5302866806 | D43: 52 | E43: 0.3960360504 | F43: 88 | G43: 0.2345305749 | H43: 124 | I43: 0.1116530236 | J43: 160 | K43: 0.05833984675 | L43: 196 | M43: 0.05926828933 | N43: 232 | O43: 0.1008678158 | P43: 268 | Q43: 0.2191946713 | R43: 304 | S43: 0.377667291 | T43: 340 | U43: 0.5210530205 | W43: 28 | X43: 0.4966929841 | Y43: 28 | Z43: -6.0782 | AB43: 0.9068331718 | AC43: 0.9068331718
B44: 17 | C44: 0.528099018 | D44: 53 | E44: 0.3913535187 | F44: 89 | G44: 0.2305578338 | H44: 125 | I44: 0.108838281 | J44: 161 | K44: 0.05849331939 | L44: 197 | M44: 0.05901206494 | N44: 233 | O44: 0.1035479882 | P44: 269 | Q44: 0.2230670725 | R44: 305 | S44: 0.3823790416 | T44: 341 | U44: 0.5235816791 | W44: 29 | X44: 0.49323856 | Y44: 29 | Z44: -6.1389 | AB44: 0.9005262852 | AC44: 0.9005262852
B45: 18 | C45: 0.525791966 | D45: 54 | E45: 0.3866581241 | F45: 90 | G45: 0.226620041 | H45: 126 | I45: 0.1060670241 | J45: 162 | K45: 0.05869017149 | L45: 198 | M45: 0.05878454117 | N45: 234 | O45: 0.1062765268 | P45: 270 | Q45: 0.2269740304 | R45: 306 | S45: 0.3870828264 | T45: 342 | U45: 0.5259953229 | W45: 30 | X45: 0.4896970342 | Y45: 30 | Z45: -6.2015 | AB45: 0.8940603733 | AC45: 0.8940603733
B46: 19 | C46: 0.5233679731 | D46: 55 | E46: 0.3819528049 | F46: 91 | G46: 0.2227172946 | H46: 127 | I46: 0.103341391 | J46: 163 | K46: 0.05892311463 | L46: 199 | M46: 0.05859300234 | N46: 235 | O46: 0.109050518 | P46: 271 | Q46: 0.2309160019 | R46: 307 | S46: 0.3917764254 | T46: 343 | U46: 0.5282922218 | W46: 31 | X46: 0.4860707573 | Y46: 31 | Z46: -6.266 | AB46: 0.8874397278 | AC46: 0.8874397278
B47: 20 | C47: 0.5208292593 | D47: 56 | E47: 0.3772401401 | F47: 92 | G47: 0.2188492355 | H47: 128 | I47: 0.1006637406 | J47: 164 | K47: 0.05918454619 | L47: 200 | M47: 0.05844473686 | N47: 236 | O47: 0.1118682232 | P47: 272 | Q47: 0.2348930688 | R47: 308 | S47: 0.3964570963 | T47: 344 | U47: 0.5304694701 | W47: 32 | X47: 0.4823632552 | Y47: 32 | Z47: -6.3325 | AB47: 0.8806707859 | AC47: 0.8806707859
B48: 21 | C48: 0.5181783058 | D48: 57 | E48: 0.372522611 | F48: 93 | G48: 0.2150154391 | H48: 129 | I48: 0.0980370763 | J48: 165 | K48: 0.05946755321 | L48: 201 | M48: 0.05834762485 | N48: 237 | O48: 0.1147271205 | P48: 273 | Q48: 0.2389052472 | R48: 309 | S48: 0.401121607 | T48: 345 | U48: 0.5325252396 | W48: 33 | X48: 0.4785774007 | Y48: 33 | Z48: -6.401 | AB48: 0.8737587929 | AC48: 0.8737587929
B49: 22 | C49: 0.5154172346 | D49: 58 | E49: 0.3678026987 | F49: 94 | G49: 0.2112159546 | H49: 130 | I49: 0.09546415684 | J49: 166 | K49: 0.05976512887 | L49: 202 | M49: 0.05830922812 | N49: 238 | O49: 0.1176252838 | P49: 274 | Q49: 0.2429523578 | R49: 310 | S49: 0.4057673784 | T49: 346 | U49: 0.5344578654 | W49: 34 | X49: 0.474716687 | Y49: 34 | Z49: -6.4713 | AB49: 0.8667101264 | AC49: 0.8667101264
B50: 23 | C50: 0.5125489513 | D50: 59 | E50: 0.3630832434 | F50: 95 | G50: 0.2074502432 | H50: 131 | I50: 0.09294808364 | J50: 167 | K50: 0.06007092336 | L50: 203 | M50: 0.05833705136 | N50: 239 | O50: 0.1205612929 | P50: 275 | Q50: 0.2470350371 | R50: 311 | S50: 0.410391603 | T50: 347 | U50: 0.5362648662 | W50: 35 | X50: 0.4707838566 | Y50: 35 | Z50: -6.5436 | AB50: 0.8595297933 | AC50: 0.8595297933
B51: 24 | C51: 0.5095762636 | D51: 60 | E51: 0.3583664978 | F51: 96 | G51: 0.2037178968 | H51: 132 | I51: 0.09049214585 | J51: 168 | K51: 0.06037885214 | L51: 204 | M51: 0.05843816261 | N51: 240 | O51: 0.1235333441 | P51: 276 | Q51: 0.2511526485 | R51: 312 | S51: 0.4149910812 | T51: 348 | U51: 0.5379449363 | W51: 36 | X51: 0.4667827617 | Y51: 36 | Z51: -6.6177 | AB51: 0.8522248268 | AC51: 0.8522248268
B52: 25 | C52: 0.506501326 | D52: 61 | E52: 0.353654388 | F52: 97 | G52: 0.2000186379 | H52: 133 | I52: 0.08810002442 | J52: 169 | K52: 0.06068311223 | L52: 205 | M52: 0.05861967886 | N52: 241 | O52: 0.1265400172 | P52: 277 | Q52: 0.2553052083 | R52: 313 | S52: 0.4195629729 | T52: 349 | U52: 0.5394964106 | W52: 37 | X52: 0.4627157855 | Y52: 37 | Z52: -6.6937 | AB52: 0.8447995782 | AC52: 0.8447995782
B53: 26 | C53: 0.50332724 | D53: 62 | E53: 0.348949885 | F53: 98 | G53: 0.1963519606 | H53: 134 | I53: 0.08577516357 | J53: 170 | K53: 0.06097882702 | L53: 206 | M53: 0.05888811725 | N53: 242 | O53: 0.1295803084 | P53: 278 | Q53: 0.2594922104 | R53: 314 | S53: 0.4241043072 | T53: 350 | U53: 0.5409175915 | W53: 38 | X53: 0.4585866825 | Y53: 38 | Z53: -6.7716 | AB53: 0.8372609019 | AC53: 0.8372609019
B54: 27 | C54: 0.500056846 | D54: 63 | E54: 0.3442548169 | F54: 99 | G54: 0.1927173261 | H54: 135 | I54: 0.08352139114 | J54: 171 | K54: 0.06126085056 | L54: 207 | M54: 0.05924928481 | N54: 243 | O54: 0.132652977 | P54: 279 | Q54: 0.2637136713 | R54: 315 | S54: 0.4286119174 | T54: 351 | U54: 0.5422070424 | W54: 39 | X54: 0.4543985214 | Y54: 39 | Z54: -6.8513 | AB54: 0.8296144009 | AC54: 0.8296144009
B55: 28 | C55: 0.4966929841 | D55: 64 | E55: 0.3395714037 | F55: 100 | G55: 0.189114408 | H55: 136 | I55: 0.08134260844 | J55: 172 | K55: 0.06152496324 | L55: 208 | M55: 0.05970838463 | N55: 244 | O55: 0.1357571988 | P55: 280 | Q55: 0.2679691011 | R55: 316 | S55: 0.4330822122 | T55: 352 | U55: 0.5433636862 | W55: 40 | X55: 0.4501546975 | Y55: 40 | Z55: -6.9328 | AB55: 0.8218662739 | AC55: 0.8218662739
B56: 29 | C56: 0.49323856 | D56: 65 | E56: 0.3349012451 | F56: 101 | G56: 0.1855427656 | H56: 137 | I56: 0.07924307586 | J56: 173 | K56: 0.06176732907 | L56: 209 | M56: 0.06026974651 | N56: 245 | O56: 0.138891929 | P56: 281 | Q56: 0.2722579777 | R56: 317 | S56: 0.4375129065 | T56: 353 | U56: 0.5443863149 | W56: 41 | X56: 0.4458582142 | Y56: 41 | Z56: -7.0161 | AB56: 0.8140220046 | AC56: 0.8140220046
B57: 30 | C57: 0.4896970342 | D57: 66 | E57: 0.3302465937 | F57: 102 | G57: 0.1820021213 | H57: 138 | I57: 0.07722658044 | J57: 174 | K57: 0.06198455685 | L57: 210 | M57: 0.06093725539 | N57: 246 | O57: 0.1420569882 | P57: 282 | Q57: 0.2765795826 | R57: 318 | S57: 0.4419000825 | T57: 354 | U57: 0.5452736878 | W57: 42 | X57: 0.4415125323 | Y57: 42 | Z57: -7.1011 | AB57: 0.8060879111 | AC57: 0.8060879111
B58: 31 | C58: 0.4860707573 | D58: 67 | E58: 0.3256094084 | F58: 103 | G58: 0.1784917732 | H58: 139 | I58: 0.07529722752 | J58: 175 | K58: 0.06217374102 | L58: 211 | M58: 0.06171338021 | N58: 247 | O58: 0.1452515926 | P58: 283 | Q58: 0.2809335895 | R58: 319 | S58: 0.4462410307 | T58: 355 | U58: 0.5460253152 | W58: 43 | X58: 0.4371204918 | Y58: 43 | Z58: -7.188 | AB58: 0.7980691791 | AC58: 0.7980691791
B59: 32 | C59: 0.4823632552 | D59: 68 | E59: 0.3209913215 | F59: 104 | G59: 0.1750114928 | H59: 140 | I59: 0.07345907345 | J59: 176 | K59: 0.06233235962 | L59: 212 | M59: 0.06260036135 | N59: 248 | O59: 0.1484754323 | P59: 284 | Q59: 0.2853191006 | R59: 320 | S59: 0.4505324863 | T59: 356 | U59: 0.5466403158 | W59: 44 | X59: 0.4326857494 | Y59: 44 | Z59: -7.2765 | AB59: 0.7899724841 | AC59: 0.7899724841
B60: 33 | C60: 0.4785774007 | D60: 69 | E60: 0.3163938673 | F60: 105 | G60: 0.1715608394 | H60: 141 | I60: 0.07171610932 | J60: 177 | K60: 0.06245839263 | L60: 213 | M60: 0.06359897009 | N60: 249 | O60: 0.1517281318 | P60: 285 | Q60: 0.2897353323 | R60: 321 | S60: 0.4547709562 | T60: 357 | U60: 0.5471179386 | W60: 45 | X60: 0.4282113084 | Y60: 45 | Z60: -7.3668 | AB60: 0.7818033099 | AC60: 0.7818033099
B61: 34 | C61: 0.474716687 | D61: 70 | E61: 0.3118188415 | F61: 106 | G61: 0.1681396008 | H61: 142 | I61: 0.07007178752 | J61: 178 | K61: 0.06255029747 | L61: 214 | M61: 0.06470925948 | N61: 250 | O61: 0.1550096421 | P61: 286 | Q61: 0.2941808156 | R61: 322 | S61: 0.4589535347 | T61: 358 | U61: 0.5474576939 | W61: 46 | X61: 0.4236999765 | Y61: 46 | Z61: -7.4588 | AB61: 0.7735667825 | AC61: 0.7735667825
B62: 35 | C62: 0.4707838566 | D62: 71 | E62: 0.3072674846 | F62: 107 | G62: 0.1647474994 | H62: 143 | I62: 0.06853005831 | J62: 179 | K62: 0.06260687847 | L62: 215 | M62: 0.06593095203 | N62: 251 | O62: 0.1583197509 | P62: 287 | Q62: 0.2986553219 | R62: 323 | S62: 0.4630767613 | T62: 359 | U62: 0.54765919 | W62: 47 | X62: 0.4191552469 | Y62: 47 | Z62: -7.5525 | AB62: 0.7652692795 | AC62: 0.7652692795
W63: 48 | X63: 0.4145802864 | Y63: 48 | Z63: -7.6478 | AB63: 0.7569165826 | AC63: 0.7569165826
W64: 49 | X64: 0.4099779026 | Y64: 49 | Z64: -7.7448 | AB64: 0.7485138178 | AC64: 0.7485138178
A65: This document contains proprietary and confidential information of Dielectric. It is to be used solely for the purpose for which it is provided. | W65: 50 | X65: 0.4053507725 | Y65: 50 | Z65: -7.8434 | AB65: 0.7400658727 | AC65: 0.7400658727
A66: No disclosure, reproduction, or use of this document or any part of it may be made without the written permission of Dielectric. | W66: 51 | X66: 0.4007025526 | Y66: 51 | Z66: -7.9436 | AB66: 0.731579423 | AC66: 0.731579423
W67: 52 | X67: 0.3960360504 | Y67: 52 | Z67: -8.0453 | AB67: 0.7230595946 | AC67: 0.7230595946
W68: 53 | X68: 0.3913535187 | Y68: 53 | Z68: -8.1486 | AB68: 0.7145105004 | AC68: 0.7145105004
W69: 54 | X69: 0.3866581241 | Y69: 54 | Z69: -8.2535 | AB69: 0.705937922 | AC69: 0.705937922
W70: 55 | X70: 0.3819528049 | Y70: 55 | Z70: -8.3598 | AB70: 0.6973472238 | AC70: 0.6973472238
W71: 56 | X71: 0.3772401401 | Y71: 56 | Z71: -8.4676 | AB71: 0.6887431145 | AC71: 0.6887431145
W72: 57 | X72: 0.372522611 | Y72: 57 | Z72: -8.5769 | AB72: 0.6801301241 | AC72: 0.6801301241
W73: 58 | X73: 0.3678026987 | Y73: 58 | Z73: -8.6877 | AB73: 0.6715127826 | AC73: 0.6715127826
W74: 59 | X74: 0.3630832434 | Y74: 59 | Z74: -8.7999 | AB74: 0.6628962755 | AC74: 0.6628962755
W75: 60 | X75: 0.3583664978 | Y75: 60 | Z75: -8.9135 | AB75: 0.6542847157 | AC75: 0.6542847157
W76: 61 | X76: 0.353654388 | Y76: 61 | Z76: -9.0284 | AB76: 0.6456816196 | AC76: 0.6456816196
W77: 62 | X77: 0.348949885 | Y77: 62 | Z77: -9.1447 | AB77: 0.6370924115 | AC77: 0.6370924115
W78: 63 | X78: 0.3442548169 | Y78: 63 | Z78: -9.2624 | AB78: 0.6285204291 | AC78: 0.6285204291
W79: 64 | X79: 0.3395714037 | Y79: 64 | Z79: -9.3814 | AB79: 0.6199697256 | AC79: 0.6199697256
W80: 65 | X80: =(INDEX($Y$15:$AC$374,MATCH(MOD($Y80-$Y$13,360),$Y$15:$Y$374,1),5))*SQRT($AB$11) -> 0.3349012451 | Y80: 65 | Z80: =ROUND(20*LOG(X80),4) -> -9.5017 | AB80: =(1/$AB$10)*$AC80 -> 0.6114432216 | AC80: 0.6114432216
W81: 66 | X81: 0.3302465937 | Y81: 66 | Z81: -9.6232 | AB81: 0.6029450297 | AC81: 0.6029450297
W82: 67 | X82: 0.3256094084 | Y82: 67 | Z82: -9.7461 | AB82: 0.5944787264 | AC82: 0.5944787264
W83: 68 | X83: 0.3209913215 | Y83: 68 | Z83: -9.8701 | AB83: 0.5860472918 | AC83: 0.5860472918
W84: 69 | X84: 0.3163938673 | Y84: 69 | Z84: -9.9954 | AB84: 0.5776535273 | AC84: 0.5776535273
W85: 70 | X85: 0.3118188415 | Y85: 70 | Z85: -10.122 | AB85: 0.5693007112 | AC85: 0.5693007112
W86: 71 | X86: 0.3072674846 | Y86: 71 | Z86: -10.2497 | AB86: 0.5609911084 | AC86: 0.5609911084
W87: 72 | X87: 0.302741527 | Y87: 72 | Z87: -10.3786 | AB87: 0.5527278781 | AC87: 0.5527278781
W88: 73 | X88: 0.298241948 | Y88: 73 | Z88: -10.5086 | AB88: 0.5445128083 | AC88: 0.5445128083
W89: 74 | X89: 0.2937698902 | Y89: 74 | Z89: -10.6399 | AB89: 0.5363479853 | AC89: 0.5363479853
W90: 75 | X90: 0.289326986 | Y90: 75 | Z90: -10.7722 | AB90: 0.5282363892 | AC90: 0.5282363892
W91: 76 | X91: 0.2849137252 | Y91: 76 | Z91: -10.9057 | AB91: 0.5201789141 | AC91: 0.5201789141
W92: 77 | X92: 0.2805313808 | Y92: 77 | Z92: -11.0404 | AB92: 0.5121778846 | AC92: 0.5121778846
W93: 78 | X93: 0.2761803774 | Y93: 78 | Z93: -11.1761 | AB93: 0.5042340755 | AC93: 0.5042340755
W94: 79 | X94: 0.2718618739 | Y94: 79 | Z94: -11.313 | AB94: 0.4963496029 | AC94: 0.4963496029
W95: 80 | X95: 0.2675763274 | Y95: 80 | Z95: -11.451 | AB95: 0.4885253012 | AC95: 0.4885253012
W96: 81 | X96: 0.2633244071 | Y96: 81 | Z96: -11.5902 | AB96: 0.4807623923 | AC96: 0.4807623923
W97: 82 | X97: 0.25910657 | Y97: 82 | Z97: -11.7304 | AB97: 0.4730617106 | AC97: 0.4730617106
W98: 83 | X98: 0.254923061 | Y98: 83 | Z98: -11.8718 | AB98: 0.4654237032 | AC98: 0.4654237032
W99: 84 | X99: 0.250774272 | Y99: 84 | Z99: -12.0143 | AB99: 0.4578490853 | AC99: 0.4578490853
W100: 85 | X100: 0.2466605619 | Y100: 85 | Z100: -12.158 | AB100: 0.4503385127 | AC100: 0.4503385127 | AH100: 1 | AI100: Call | AJ100: CH | AK100: Freq
W101: 86 | X101: 0.2425820451 | Y101: 86 | Z101: -12.3028 | AB101: 0.4428921938 | AC101: 0.4428921938 | AH101: 1
W102: 87 | X102: 0.2385387542 | Y102: 87 | Z102: -12.4488 | AB102: 0.4355101883 | AC102: 0.4355101883 | AH102: 2
W103: 88 | X103: 0.2345305749 | Y103: 88 | Z103: -12.596 | AB103: 0.4281922877 | AC103: 0.4281922877 | AH103: 3
W104: 89 | X104: 0.2305578338 | Y104: 89 | Z104: -12.7444 | AB104: 0.4209390879 | AC104: 0.4209390879 | AH104: 4
W105: 90 | X105: 0.226620041 | Y105: 90 | Z105: -12.894 | AB105: 0.4137496948 | AC105: 0.4137496948 | AH105: 5
W106: 91 | X106: 0.2227172946 | Y106: 91 | Z106: -13.0449 | AB106: 0.4066242874 | AC106: 0.4066242874 | AH106: 6
W107: 92 | X107: 0.2188492355 | Y107: 92 | Z107: -13.1971 | AB107: 0.3995622098 | AC107: 0.3995622098 | AH107: 7
W108: 93 | X108: 0.2150154391 | Y108: 93 | Z108: -13.3506 | AB108: 0.3925626874 | AC108: 0.3925626874 | AH108: 8
W109: 94 | X109: 0.2112159546 | Y109: 94 | Z109: -13.5055 | AB109: 0.3856258094 | AC109: 0.3856258094 | AH109: 9
W110: 95 | X110: 0.2074502432 | Y110: 95 | Z110: -13.6617 | AB110: 0.3787505925 | AC110: 0.3787505925 | AH110: 10
W111: 96 | X111: 0.2037178968 | Y111: 96 | Z111: -13.8194 | AB111: 0.3719362915 | AC111: 0.3719362915
W112: 97 | X112: 0.2000186379 | Y112: 97 | Z112: -13.9786 | AB112: 0.3651823997 | AC112: 0.3651823997
W113: 98 | X113: 0.1963519606 | Y113: 98 | Z113: -14.1393 | AB113: 0.3584879935 | AC113: 0.3584879935
W114: 99 | X114: 0.1927173261 | Y114: 99 | Z114: -14.3016 | AB114: 0.3518520892 | AC114: 0.3518520892
W115: 100 | X115: 0.189114408 | Y115: 100 | Z115: -14.4655 | AB115: 0.3452740908 | AC115: 0.3452740908
W116: 101 | X116: 0.1855427656 | Y116: 101 | Z116: -14.6311 | AB116: 0.3387531936 | AC116: 0.3387531936
W117: 102 | X117: 0.1820021213 | Y117: 102 | Z117: -14.7985 | AB117: 0.3322888911 | AC117: 0.3322888911
W118: 103 | X118: 0.1784917732 | Y118: 103 | Z118: -14.9676 | AB118: 0.3258799016 | AC118: 0.3258799016
W119: 104 | X119: 0.1750114928 | Y119: 104 | Z119: -15.1387 | AB119: 0.3195258081 | AC119: 0.3195258081
W120: 105 | X120: 0.1715608394 | Y120: 105 | Z120: -15.3116 | AB120: 0.3132258058 | AC120: 0.3132258058
W121: 106 | X121: 0.1681396008 | Y121: 106 | Z121: -15.4866 | AB121: 0.3069795072 | AC121: 0.3069795072
W122: 107 | X122: 0.1647474994 | Y122: 107 | Z122: -15.6636 | AB122: 0.3007864058 | AC122: 0.3007864058
W123: 108 | X123: 0.1613842089 | Y123: 108 | Z123: -15.8428 | AB123: 0.2946459055 | AC123: 0.2946459055
W124: 109 | X124: 0.158049566 | Y124: 109 | Z124: -16.0241 | AB124: 0.2885577083 | AC124: 0.2885577083
W125: 110 | X125: 0.1547436685 | Y125: 110 | Z125: -16.2077 | AB125: 0.2825219929 | AC125: 0.2825219929
W126: 111 | X126: 0.1514663207 | Y126: 111 | Z126: -16.3937 | AB126: 0.2765384018 | AC126: 0.2765384018
W127: 112 | X127: 0.1482177184 | Y127: 112 | Z127: -16.582 | AB127: 0.2706072927 | AC127: 0.2706072927
W128: 113 | X128: 0.1449981065 | Y128: 113 | Z128: -16.7728 | AB128: 0.2647291124 | AC128: 0.2647291124
W129: 114 | X129: 0.1418072401 | Y129: 114 | Z129: -16.966 | AB129: 0.258903414 | AC129: 0.258903414
W130: 115 | X130: 0.1386462128 | Y130: 115 | Z130: -17.1618 | AB130: 0.2531321943 | AC130: 0.2531321943
W131: 116 | X131: 0.1355149921 | Y131: 116 | Z131: -17.3603 | AB131: 0.2474153936 | AC131: 0.2474153936
W132: 117 | X132: 0.1324146145 | Y132: 117 | Z132: -17.5613 | AB132: 0.2417549044 | AC132: 0.2417549044
W133: 118 | X133: 0.1293454472 | Y133: 118 | Z133: -17.765 | AB133: 0.2361513972 | AC133: 0.2361513972
W134: 119 | X134: 0.1263088207 | Y134: 119 | Z134: -17.9713 | AB134: 0.230607301 | AC134: 0.230607301
W135: 120 | X135: 0.123305551 | Y135: 120 | Z135: -18.1803 | AB135: 0.2251241058 | AC135: 0.2251241058
W136: 121 | X136: 0.1203367808 | Y136: 121 | Z136: -18.392 | AB136: 0.2197038978 | AC136: 0.2197038978
W137: 122 | X137: 0.1174040527 | Y137: 122 | Z137: -18.6063 | AB137: 0.2143494934 | AC137: 0.2143494934
W138: 123 | X138: 0.1145088521 | Y138: 123 | Z138: -18.8232 | AB138: 0.2090636045 | AC138: 0.2090636045
W139: 124 | X139: 0.1116530236 | Y139: 124 | Z139: -19.0426 | AB139: 0.2038495988 | AC139: 0.2038495988
W140: 125 | X140: 0.108838281 | Y140: 125 | Z140: -19.2644 | AB140: 0.1987106055 | AC140: 0.1987106055
W141: 126 | X141: 0.1060670241 | Y141: 126 | Z141: -19.4884 | AB141: 0.1936510056 | AC141: 0.1936510056
W142: 127 | X142: 0.103341391 | Y142: 127 | Z142: -19.7145 | AB142: 0.1886747032 | AC142: 0.1886747032
W143: 128 | X143: 0.1006637406 | Y143: 128 | Z143: -19.9425 | AB143: 0.1837860048 | AC143: 0.1837860048
W144: 129 | X144: =(INDEX($Y$15:$AC$374,MATCH(MOD($Y144-$Y$13,360),$Y$15:$Y$374,1),5))*SQRT($AB$11) -> 0.0980370763 | Y144: 129 | Z144: =ROUND(20*LOG(X144),4) -> -20.1722 | AB144: =(1/$AB$10)*$AC144 -> 0.1789903939 | AC144: 0.1789903939
W145: 130 | X145: 0.09546415684 | Y145: 130 | Z145: -20.4032 | AB145: 0.1742929071 | AC145: 0.1742929071
W146: 131 | X146: 0.09294808364 | Y146: 131 | Z146: -20.6352 | AB146: 0.1696992069 | AC146: 0.1696992069
W147: 132 | X147: 0.09049214585 | Y147: 132 | Z147: -20.8678 | AB147: 0.1652152985 | AC147: 0.1652152985
W148: 133 | X148: 0.08810002442 | Y148: 133 | Z148: -21.1005 | AB148: 0.1608479023 | AC148: 0.1608479023
W149: 134 | X149: 0.08577516357 | Y149: 134 | Z149: -21.3328 | AB149: 0.1566033065 | AC149: 0.1566033065
W150: 135 | X150: 0.08352139114 | Y150: 135 | Z150: -21.564 | AB150: 0.1524884999 | AC150: 0.1524884999
W151: 136 | X151: 0.08134260844 | Y151: 136 | Z151: -21.7936 | AB151: 0.1485106051 | AC151: 0.1485106051
W152: 137 | X152: 0.07924307586 | Y152: 137 | Z152: -22.0208 | AB152: 0.1446774006 | AC152: 0.1446774006
W153: 138 | X153: 0.07722658044 | Y153: 138 | Z153: -22.2447 | AB153: 0.1409958005 | AC153: 0.1409958005
W154: 139 | X154: 0.07529722752 | Y154: 139 | Z154: -22.4644 | AB154: 0.1374733001 | AC154: 0.1374733001
W155: 140 | X155: 0.07345907345 | Y155: 140 | Z155: -22.6791 | AB155: 0.1341173053 | AC155: 0.1341173053
W156: 141 | X156: 0.07171610932 | Y156: 141 | Z156: -22.8877 | AB156: 0.1309351027 | AC156: 0.1309351027
W157: 142 | X157: 0.07007178752 | Y157: 142 | Z157: -23.0891 | AB157: 0.1279329956 | AC157: 0.1279329956
W158: 143 | X158: 0.06853005831 | Y158: 143 | Z158: -23.2824 | AB158: 0.125118196 | AC158: 0.125118196
W159: 144 | X159: 0.0670933294 | Y159: 144 | Z159: -23.4664 | AB159: 0.1224950999 | AC159: 0.1224950999
W160: 145 | X160: 0.06576466551 | Y160: 145 | Z160: -23.6401 | AB160: 0.1200693026 | AC160: 0.1200693026
W161: 146 | X161: 0.06454587037 | Y161: 146 | Z161: -23.8026 | AB161: 0.1178440973 | AC161: 0.1178440973
W162: 147 | X162: 0.06343848654 | Y162: 147 | Z162: -23.9529 | AB162: 0.1158223003 | AC162: 0.1158223003
W163: 148 | X163: 0.06244294661 | Y163: 148 | Z163: -24.0903 | AB163: 0.1140047014 | AC163: 0.1140047014
W164: 149 | X164: 0.06155941378 | Y164: 149 | Z164: -24.2141 | AB164: 0.1123915985 | AC164: 0.1123915985
W165: 150 | X165: 0.06078663118 | Y165: 150 | Z165: -24.3238 | AB165: 0.110980697 | AC165: 0.110980697
W166: 151 | X166: 0.06012295829 | Y166: 151 | Z166: -24.4192 | AB166: 0.1097690016 | AC166: 0.1097690016
W167: 152 | X167: 0.05956548547 | Y167: 152 | Z167: -24.5001 | AB167: 0.1087512001 | AC167: 0.1087512001
W168: 153 | X168: 0.05911060117 | Y168: 153 | Z168: -24.5667 | AB168: 0.1079206988 | AC168: 0.1079206988
W169: 154 | X169: 0.05875392662 | Y169: 154 | Z169: -24.6193 | AB169: 0.1072695032 | AC169: 0.1072695032
W170: 155 | X170: 0.05849003023 | Y170: 155 | Z170: -24.6584 | AB170: 0.1067876965 | AC170: 0.1067876965
W171: 156 | X171: 0.0583131743 | Y171: 156 | Z171: -24.6847 | AB171: 0.1064648032 | AC171: 0.1064648032
W172: 157 | X172: 0.05821688254 | Y172: 157 | Z172: -24.699 | AB172: 0.1062889993 | AC172: 0.1062889993
W173: 158 | X173: 0.0581941522 | Y173: 158 | Z173: -24.7024 | AB173: 0.1062474996 | AC173: 0.1062474996
W174: 159 | X174: 0.05823764183 | Y174: 159 | Z174: -24.6959 | AB174: 0.1063269004 | AC174: 0.1063269004
W175: 160 | X175: 0.05833984675 | Y175: 160 | Z175: -24.6807 | AB175: 0.1065135002 | AC175: 0.1065135002
W176: 161 | X176: 0.05849331939 | Y176: 161 | Z176: -24.6579 | AB176: 0.1067937016 | AC176: 0.1067937016
W177: 162 | X177: 0.05869017149 | Y177: 162 | Z177: -24.6287 | AB177: 0.1071531028 | AC177: 0.1071531028
W178: 163 | X178: 0.05892311463 | Y178: 163 | Z178: -24.5943 | AB178: 0.1075783968 | AC178: 0.1075783968
W179: 164 | X179: 0.05918454619 | Y179: 164 | Z179: -24.5558 | AB179: 0.1080557033 | AC179: 0.1080557033
W180: 165 | X180: 0.05946755321 | Y180: 165 | Z180: -24.5144 | AB180: 0.1085724011 | AC180: 0.1085724011
W181: 166 | X181: 0.05976512887 | Y181: 166 | Z181: -24.471 | AB181: 0.1091156974 | AC181: 0.1091156974
W182: 167 | X182: 0.06007092336 | Y182: 167 | Z182: -24.4267 | AB182: 0.1096739992 | AC182: 0.1096739992
W183: 168 | X183: 0.06037885214 | Y183: 168 | Z183: -24.3823 | AB183: 0.1102361977 | AC183: 0.1102361977
W184: 169 | X184: 0.06068311223 | Y184: 169 | Z184: -24.3386 | AB184: 0.1107916981 | AC184: 0.1107916981
W185: 170 | X185: 0.06097882702 | Y185: 170 | Z185: -24.2964 | AB185: 0.111331597 | AC185: 0.111331597
W186: 171 | X186: 0.06126085056 | Y186: 171 | Z186: -24.2563 | AB186: 0.1118464991 | AC186: 0.1118464991
W187: 172 | X187: 0.06152496324 | Y187: 172 | Z187: -24.219 | AB187: 0.1123287007 | AC187: 0.1123287007
W188: 173 | X188: 0.06176732907 | Y188: 173 | Z188: -24.1848 | AB188: 0.1127711982 | AC188: 0.1127711982
W189: 174 | X189: 0.06198455685 | Y189: 174 | Z189: -24.1543 | AB189: 0.1131678 | AC189: 0.1131678
W190: 175 | X190: 0.06217374102 | Y190: 175 | Z190: -24.1279 | AB190: 0.1135132015 | AC190: 0.1135132015
W191: 176 | X191: 0.06233235962 | Y191: 176 | Z191: -24.1057 | AB191: 0.1138027981 | AC191: 0.1138027981
W192: 177 | X192: 0.06245839263 | Y192: 177 | Z192: -24.0882 | AB192: 0.1140329018 | AC192: 0.1140329018
W193: 178 | X193: 0.06255029747 | Y193: 178 | Z193: -24.0754 | AB193: 0.1142006963 | AC193: 0.1142006963
W194: 179 | X194: 0.06260687847 | Y194: 179 | Z194: -24.0676 | AB194: 0.1143039986 | AC194: 0.1143039986
W195: 180 | X195: 0.06262752758 | Y195: 180 | Z195: -24.0647 | AB195: 0.1143416986 | AC195: 0.1143416986
W196: 181 | X196: 0.06261202851 | Y196: 181 | Z196: -24.0668 | AB196: 0.1143134013 | AC196: 0.1143134013
W197: 182 | X197: 0.06256054041 | Y197: 182 | Z197: -24.074 | AB197: 0.1142193973 | AC197: 0.1142193973
W198: 183 | X198: 0.06247378152 | Y198: 183 | Z198: -24.086 | AB198: 0.114060998 | AC198: 0.114060998
W199: 184 | X199: 0.06235289855 | Y199: 184 | Z199: -24.1029 | AB199: 0.1138402969 | AC199: 0.1138402969
W200: 185 | X200: 0.06219937285 | Y200: 185 | Z200: -24.1243 | AB200: 0.1135599986 | AC200: 0.1135599986
W201: 186 | X201: 0.06201544889 | Y201: 186 | Z201: -24.15 | AB201: 0.1132242009 | AC201: 0.1132242009
W202: 187 | X202: 0.06180337114 | Y202: 187 | Z202: -24.1798 | AB202: 0.1128370017 | AC202: 0.1128370017
W203: 188 | X203: 0.06156615127 | Y203: 188 | Z203: -24.2132 | AB203: 0.1124038994 | AC203: 0.1124038994
W204: 189 | X204: 0.06130724167 | Y204: 189 | Z204: -24.2498 | AB204: 0.1119311973 | AC204: 0.1119311973
W205: 190 | X205: 0.0610304253 | Y205: 190 | Z205: -24.2891 | AB205: 0.1114258021 | AC205: 0.1114258021
... 169 more rows

Sheet Elpat
Z2: 1
O6: ELEVATION PATTERN | AA6: Data Column | AB6: =$R$11-12 -> 
AA7: Data Sheet | AB7: =Input!I13 -> 0
O8: Proposal No. | R8: =Cover!$E$13 -> 
O9: Date | R9: =Cover!$E$14 -> 2021-10-13
O10: Call Letters | R10: =IF(Input!$D$27>1,Input!$D$27,"") -> 
O11: Channel | R11: =IF(Input!$F$27>1,Input!$F$27,"") -> 
O12: Frequency | R12: =IF(Input!$G$27>1,Input!$G$27,"") -> 
O13: Antenna Type | R13: =Cover!$E$11 -> TLP- | Y13: Value Horizontal | AA13: =X118 -> 0.9010000229
C14: RMS Directivity at Main Lobe | H14: =IF(Input!$F$27<14,0,X14) -> 0 | J14: =IF(ISNUMBER(H14),10*LOG(H14)," ") ->  | M14: Beam Tilt | P14: =IF(Input!$F$27<14,"",X15) ->  | W14: Gain | X14: 15.45
C15: RMS Directivity at Horizontal | H15: =IF(ISNUMBER(H14),ROUND(H14*X118^2,1)," ") -> 0 | J15: =IF(ISNUMBER(H14),10*LOG(H15)," ") ->  | M15: Pattern Number | P15: =IF(Input!$F$27<14,"",X16&"-"&R11) ->  | W15: BT | X15: 0.75
H16: Calculated | W16: DW No | X16: 16L155075
W17: Angle | X17: Value | Y17: dB
R18: WB-C160H | W18: -10 | X18: 0.2840000093 | Y18: =IF(X18<0.001,-60,ROUND(20*LOG(X18),4)) -> -10.9336
W19: -9.9 | X19: 0.2779999971 | Y19: =IF(X19<0.001,-60,ROUND(20*LOG(X19),4)) -> -11.1191
W20: -9.8 | X20: 0.2720000148 | Y20: -11.3086
W21: -9.7 | X21: 0.2649999857 | Y21: -11.5351
W22: -9.6 | X22: 0.2569999993 | Y22: -11.8013
W23: -9.5 | X23: 0.2479999959 | Y23: -12.111
W24: -9.4 | X24: 0.2389999926 | Y24: -12.432
W25: -9.3 | X25: 0.2300000042 | Y25: -12.7654
W26: -9.2 | X26: 0.2199999988 | Y26: -13.1515
W27: -9.1 | X27: 0.2109999955 | Y27: -13.5144
W28: -9 | X28: 0.201000005 | Y28: -13.9361
D29: 0.9 | W29: -8.9 | X29: 0.1909999996 | Y29: -14.3793
W30: -8.8 | X30: 0.1819999963 | Y30: -14.7986
W31: -8.7 | X31: 0.172999993 | Y31: -15.2391
W32: -8.6 | X32: 0.1650000066 | Y32: -15.6503
W33: -8.5 | X33: 0.1570000052 | Y33: -16.082
W34: -8.4 | X34: 0.1509999931 | Y34: -16.4205
W35: -8.3 | X35: 0.1449999958 | Y35: -16.7726
E36: Angle | F36: Field | H36: Angle | I36: Field | K36: Angle | L36: Field | N36: Angle | O36: Field | Q36: Angle | R36: Field | W36: -8.2 | X36: 0.1400000006 | Y36: -17.0774
E37: -10 | F37: =LOOKUP(E37,$W$18:$X$1018) -> 0.2840000093 | H37: =E56+1 -> 10 | I37: =LOOKUP(H37,$W$18:$X$1018) -> 0.04100000113 | K37: =H56+1 -> 30 | L37: =LOOKUP(K37,$W$18:$X$1018) -> 0.02800000086 | N37: =K56+1 -> 50 | O37: =LOOKUP(N37,$W$18:$X$1018) -> 0.03500000015 | Q37: =N56+1 -> 70 | R37: =LOOKUP(Q37,$W$18:$X$1018) -> 0.1110000014 | W37: -8.1 | X37: 0.1350000054 | Y37: -17.3933
E38: =E37+1 -> -9 | F38: =LOOKUP(E38,$W$18:$X$1018) -> 0.201000005 | H38: =H37+1 -> 11 | I38: =LOOKUP(H38,$W$18:$X$1018) -> 0.1199999973 | K38: =K37+1 -> 31 | L38: =LOOKUP(K38,$W$18:$X$1018) -> 0.02400000021 | N38: =N37+1 -> 51 | O38: =LOOKUP(N38,$W$18:$X$1018) -> 0.03999999911 | Q38: =Q37+1 -> 71 | R38: =LOOKUP(Q38,$W$18:$X$1018) -> 0.1099999994 | W38: -8 | X38: 0.1319999993 | Y38: -17.5885
E39: -8 | F39: 0.1319999993 | H39: 12 | I39: 0.1550000012 | K39: 32 | L39: 0.04800000042 | N39: 52 | O39: 0.03599999845 | Q39: =Q38+1 -> 72 | R39: 0.1030000001 | W39: -7.9 | X39: 0.1289999932 | Y39: -17.7882
E40: -7 | F40: 0.09300000221 | H40: 13 | I40: 0.1159999967 | K40: 33 | L40: 0.05200000107 | N40: 53 | O40: 0.02300000004 | Q40: 73 | R40: 0.09200000018 | W40: -7.8 | X40: 0.126000002 | Y40: -17.9926
E41: -6 | F41: 0.04199999943 | H41: 14 | I41: 0.07100000232 | K41: 34 | L41: 0.03400000185 | N41: 54 | O41: 0.001000000047 | Q41: 74 | R41: 0.07900000364 | W41: -7.7 | X41: 0.1230000034 | Y41: -18.2019
E42: -5 | F42: 0.2560000122 | H42: 15 | I42: 0.0540000014 | K42: 35 | L42: 0.02600000054 | N42: 55 | O42: 0.03299999982 | Q42: 75 | R42: 0.06499999762 | W42: -7.6 | X42: 0.1209999993 | Y42: -18.3443
E43: -4 | F43: 0.400000006 | H43: 16 | I43: 0.01799999923 | K43: 36 | L43: 0.03500000015 | N43: 56 | O43: 0.07599999756 | Q43: 76 | R43: 0.05200000107 | W43: -7.5 | X43: 0.1180000007 | Y43: -18.5624
E44: -3 | F44: 0.3249999881 | H44: 17 | I44: 0.0390000008 | K44: 37 | L44: 0.05000000075 | N44: 57 | O44: 0.1220000014 | Q44: 77 | R44: 0.04100000113 | W44: -7.4 | X44: 0.1150000021 | Y44: -18.786
E45: -2 | F45: 0.126000002 | H45: 18 | I45: 0.05799999833 | K45: 38 | L45: 0.09200000018 | N45: 58 | O45: 0.1630000025 | Q45: 78 | R45: 0.03099999949 | W45: -7.3 | X45: 0.1110000014 | Y45: -19.0935
E46: -1 | F46: 0.5289999843 | H46: 19 | I46: 0.0270000007 | K46: 39 | L46: 0.1430000067 | N46: 59 | O46: 0.1930000037 | Q46: 79 | R46: 0.02300000004 | W46: -7.2 | X46: 0.1059999987 | Y46: -19.4939
E47: 0 | F47: 0.9010000229 | H47: 20 | I47: 0.03099999949 | K47: 40 | L47: 0.174999997 | N47: 60 | O47: 0.2049999982 | Q47: 80 | R47: 0.01700000092 | W47: -7.1 | X47: 0.1000000015 | Y47: -20
E48: 1 | F48: 0.9909999967 | H48: 21 | I48: 0.06599999964 | K48: 41 | L48: 0.1720000058 | N48: 61 | O48: 0.199000001 | Q48: 81 | R48: 0.0120000001 | W48: -7 | X48: 0.09300000221 | Y48: -20.6303
E49: 2 | F49: 0.7699999809 | H49: 22 | I49: 0.04800000042 | K49: 42 | L49: 0.1340000033 | N49: 62 | O49: 0.175999999 | Q49: 82 | R49: 0.00800000038 | W49: -6.9 | X49: 0.08500000089 | Y49: -21.4116
E50: 3 | F50: 0.3860000074 | H50: 23 | I50: 0.03799999878 | K50: 43 | L50: 0.07599999756 | N50: 63 | O50: 0.1400000006 | Q50: 83 | R50: 0.006000000052 | W50: -6.8 | X50: 0.07599999756 | Y50: -22.3837
E51: 4 | F51: 0.1360000074 | H51: 24 | I51: 0.1150000021 | K51: 44 | L51: 0.01899999939 | N51: 64 | O51: 0.1000000015 | Q51: 84 | R51: 0.00400000019 | W51: -6.7 | X51: 0.06499999762 | Y51: -23.7417
E52: 5 | F52: 0.1850000024 | H52: 25 | I52: 0.1599999964 | K52: 45 | L52: 0.01999999955 | N52: 65 | O52: 0.06499999762 | Q52: 85 | R52: 0.003000000026 | W52: -6.6 | X52: 0.0540000014 | Y52: -25.3521
E53: 6 | F53: 0.123999998 | H53: 26 | I53: 0.1469999999 | K53: 46 | L53: 0.03299999982 | N53: 66 | O53: 0.05600000173 | Q53: 86 | R53: 0.002000000095 | W53: -6.5 | X53: 0.04100000113 | Y53: -27.7443
E54: 7 | F54: 0.09300000221 | H54: 27 | I54: 0.09700000286 | K54: 47 | L54: 0.02400000021 | N54: 67 | O54: 0.07100000232 | Q54: 87 | R54: 0.001000000047 | W54: -6.4 | X54: 0.02600000054 | Y54: -31.7005
E55: 8 | F55: 0.1659999937 | H55: 28 | I55: 0.05600000173 | K55: 48 | L55: 0.003000000026 | N55: 68 | O55: 0.09099999815 | Q55: 88 | R55: 0.001000000047 | W55: -6.3 | X55: 0.01099999994 | Y55: -39.1721
E56: 9 | F56: 0.1319999993 | H56: 29 | I56: 0.04600000009 | K56: 49 | L56: 0.01999999955 | N56: 69 | O56: 0.1049999967 | Q56: 89 | R56: 0 | W56: -6.2 | X56: 0.006000000052 | Y56: -44.437
Q57: =Q56+1 -> 90 | R57: 0 | W57: -6.1 | X57: 0.02400000021 | Y57: -32.3958
W58: -6 | X58: 0.04199999943 | Y58: -27.535
A59: This document contains proprietary and confidential information of Dielectric. It is to be used solely for the purpose for which it is provided. | W59: -5.9 | X59: 0.06199999899 | Y59: -24.1522
A60: No disclosure, reproduction, or use of this document or any part of it may be made without the written permission of Dielectric. | W60: -5.8 | X60: 0.08200000226 | Y60: -21.7237
W61: -5.7 | X61: 0.1040000021 | Y61: -19.6593
W62: -5.6 | X62: 0.125 | Y62: -18.0618
W63: -5.5 | X63: 0.1469999999 | Y63: -16.6537
W64: -5.4 | X64: 0.1689999998 | Y64: -15.4423
W65: -5.3 | X65: 0.1909999996 | Y65: -14.3793
W66: -5.2 | X66: 0.2129999995 | Y66: -13.4324
W67: -5.1 | X67: 0.2349999994 | Y67: -12.5786
W68: -5 | X68: 0.2560000122 | Y68: -11.8352
W69: -4.9 | X69: 0.27700001 | Y69: -11.1504
W70: -4.8 | X70: 0.2960000038 | Y70: -10.5742
W71: -4.7 | X71: 0.3149999976 | Y71: -10.0338
W72: -4.6 | X72: 0.3319999874 | Y72: -9.5772
W73: -4.5 | X73: 0.34799999 | Y73: -9.1684
W74: -4.4 | X74: 0.3619999886 | Y74: -8.8258
W75: -4.3 | X75: 0.3740000129 | Y75: -8.5426
W76: -4.2 | X76: 0.3849999905 | Y76: -8.2908
W77: -4.1 | X77: 0.3939999938 | Y77: -8.0901
W78: -4 | X78: 0.400000006 | Y78: -7.9588
W79: -3.9 | X79: 0.4040000141 | Y79: -7.8724
W80: -3.8 | X80: 0.4059999883 | Y80: -7.8295
W81: -3.7 | X81: 0.4050000012 | Y81: -7.8509
W82: -3.6 | X82: 0.4009999931 | Y82: -7.9371
W83: -3.5 | X83: 0.3950000107 | Y83: =IF(X83<0.001,-60,ROUND(20*LOG(X83),4)) -> -8.0681
W84: -3.4 | X84: 0.3860000074 | Y84: -8.2683
W85: -3.3 | X85: 0.375 | Y85: -8.5194
W86: -3.2 | X86: 0.3610000014 | Y86: -8.8499
W87: -3.1 | X87: 0.3440000117 | Y87: -9.2688
W88: -3 | X88: 0.3249999881 | Y88: -9.7623
W89: -2.9 | X89: 0.3030000031 | Y89: -10.3711
W90: -2.8 | X90: 0.2800000012 | Y90: -11.0568
W91: -2.7 | X91: 0.2540000081 | Y91: -11.9033
W92: -2.6 | X92: 0.2269999981 | Y92: -12.8795
W93: -2.5 | X93: 0.199000001 | Y93: -14.0229
W94: -2.4 | X94: 0.1720000058 | Y94: -15.2894
W95: -2.3 | X95: 0.1469999999 | Y95: -16.6537
W96: -2.2 | X96: 0.1280000061 | Y96: -17.8558
W97: -2.1 | X97: 0.1190000027 | Y97: -18.4891
W98: -2 | X98: 0.126000002 | Y98: -17.9926
W99: -1.9 | X99: 0.1469999999 | Y99: -16.6537
W100: -1.8 | X100: 0.1780000031 | Y100: -14.9916 | AH100: 1 | AI100: Call | AJ100: CH | AK100: Freq
W101: -1.7 | X101: 0.2150000036 | Y101: -13.3512 | AH101: 1
W102: -1.6 | X102: 0.2560000122 | Y102: -11.8352 | AH102: 2
W103: -1.5 | X103: 0.3000000119 | Y103: -10.4576 | AH103: 3
W104: -1.4 | X104: 0.3449999988 | Y104: -9.2436 | AH104: 4
W105: -1.3 | X105: 0.3910000026 | Y105: -8.1565 | AH105: 5
W106: -1.2 | X106: 0.4370000064 | Y106: -7.1904 | AH106: 6
W107: -1.1 | X107: 0.4830000103 | Y107: -6.3211 | AH107: 7
W108: -1 | X108: 0.5289999843 | Y108: -5.5309 | AH108: 8
W109: -0.9 | X109: 0.574000001 | Y109: -4.8218 | AH109: 9
W110: -0.8 | X110: 0.6179999709 | Y110: -4.1802 | AH110: 10
W111: -0.7 | X111: 0.6600000262 | Y111: -3.6091
W112: -0.6 | X112: 0.7009999752 | Y112: -3.0856
W113: -0.5 | X113: 0.7400000095 | Y113: -2.6154
W114: -0.4 | X114: 0.77700001 | Y114: -2.1916
W115: -0.3 | X115: 0.8119999766 | Y115: -1.8089
W116: -0.2 | X116: 0.8439999819 | Y116: -1.4732
W117: -0.1 | X117: 0.8740000129 | Y117: -1.1698
W118: 0 | X118: 0.9010000229 | Y118: -0.9055
W119: 0.1 | X119: 0.9240000248 | Y119: -0.6866
W120: 0.2 | X120: 0.9449999928 | Y120: -0.4914
W121: 0.3 | X121: 0.9629999995 | Y121: -0.3275
W122: 0.4 | X122: 0.9769999981 | Y122: -0.2021
W123: 0.5 | X123: 0.9879999757 | Y123: -0.1049
W124: 0.6 | X124: 0.9950000048 | Y124: -0.0435
W125: 0.7 | X125: 0.9990000129 | Y125: -0.0087
W126: 0.8 | X126: 1 | Y126: 0
W127: 0.9 | X127: 0.996999979 | Y127: -0.0261
W128: 1 | X128: 0.9909999967 | Y128: -0.0785
W129: 1.1 | X129: 0.9819999933 | Y129: -0.1578
W130: 1.2 | X130: 0.9689999819 | Y130: -0.2735
W131: 1.3 | X131: 0.9539999962 | Y131: -0.409
W132: 1.4 | X132: 0.9350000024 | Y132: -0.5838
W133: 1.5 | X133: 0.9139999747 | Y133: -0.7811
W134: 1.6 | X134: 0.8899999857 | Y134: -1.0122
W135: 1.7 | X135: 0.8629999757 | Y135: -1.2798
W136: 1.8 | X136: 0.8339999914 | Y136: -1.5767
W137: 1.9 | X137: 0.8029999733 | Y137: -1.9057
W138: 2 | X138: 0.7699999809 | Y138: -2.2702
W139: 2.1 | X139: 0.7350000143 | Y139: -2.6743
W140: 2.2 | X140: 0.699000001 | Y140: -3.1105
W141: 2.3 | X141: 0.6610000134 | Y141: -3.596
W142: 2.4 | X142: 0.6230000257 | Y142: -4.1102
W143: 2.5 | X143: 0.5839999914 | Y143: -4.6717
W144: 2.6 | X144: 0.5440000296 | Y144: -5.288
W145: 2.7 | X145: 0.5040000081 | Y145: -5.9514
W146: 2.8 | X146: 0.4639999866 | Y146: -6.6696
W147: 2.9 | X147: 0.4250000119 | Y147: =IF(X147<0.001,-60,ROUND(20*LOG(X147),4)) -> -7.4322
W148: 3 | X148: 0.3860000074 | Y148: -8.2683
W149: 3.1 | X149: 0.3490000069 | Y149: -9.1435
W150: 3.2 | X150: 0.3120000064 | Y150: -10.1169
W151: 3.3 | X151: 0.2779999971 | Y151: -11.1191
W152: 3.4 | X152: 0.2460000068 | Y152: -12.1813
W153: 3.5 | X153: 0.2169999927 | Y153: -13.2708
W154: 3.6 | X154: 0.1909999996 | Y154: -14.3793
W155: 3.7 | X155: 0.1689999998 | Y155: -15.4423
W156: 3.8 | X156: 0.1529999971 | Y156: -16.3062
W157: 3.9 | X157: 0.1420000046 | Y157: -16.9542
W158: 4 | X158: 0.1360000074 | Y158: -17.3292
W159: 4.1 | X159: 0.1360000074 | Y159: -17.3292
W160: 4.2 | X160: 0.1400000006 | Y160: -17.0774
W161: 4.3 | X161: 0.1459999979 | Y161: -16.7129
W162: 4.4 | X162: 0.1529999971 | Y162: -16.3062
W163: 4.5 | X163: 0.1609999985 | Y163: -15.8635
W164: 4.6 | X164: 0.1679999977 | Y164: -15.4938
W165: 4.7 | X165: 0.173999995 | Y165: -15.189
W166: 4.8 | X166: 0.1790000051 | Y166: -14.9429
W167: 4.9 | X167: 0.1829999983 | Y167: -14.751
W168: 5 | X168: 0.1850000024 | Y168: -14.6566
W169: 5.1 | X169: 0.1850000024 | Y169: -14.6566
W170: 5.2 | X170: 0.1840000004 | Y170: -14.7036
W171: 5.3 | X171: 0.1809999943 | Y171: -14.8464
W172: 5.4 | X172: 0.175999999 | Y172: -15.0897
W173: 5.5 | X173: 0.1700000018 | Y173: -15.391
W174: 5.6 | X174: 0.1630000025 | Y174: -15.7562
W175: 5.7 | X175: 0.1539999992 | Y175: -16.2496
W176: 5.8 | X176: 0.1439999938 | Y176: -16.8328
W177: 5.9 | X177: 0.1340000033 | Y177: -17.4579
W178: 6 | X178: 0.123999998 | Y178: -18.1316
W179: 6.1 | X179: 0.112999998 | Y179: -18.9384
W180: 6.2 | X180: 0.1019999981 | Y180: -19.828
W181: 6.3 | X181: 0.09300000221 | Y181: -20.6303
W182: 6.4 | X182: 0.08399999887 | Y182: -21.5144
W183: 6.5 | X183: 0.07800000161 | Y183: -22.1581
W184: 6.6 | X184: 0.07500000298 | Y184: -22.4988
W185: 6.7 | X185: 0.07599999756 | Y185: -22.3837
W186: 6.8 | X186: 0.07900000364 | Y186: -22.0475
W187: 6.9 | X187: 0.08500000089 | Y187: -21.4116
W188: 7 | X188: 0.09300000221 | Y188: -20.6303
W189: 7.1 | X189: 0.1019999981 | Y189: -19.828
W190: 7.2 | X190: 0.1110000014 | Y190: -19.0935
W191: 7.3 | X191: 0.1199999973 | Y191: -18.4164
W192: 7.4 | X192: 0.1289999932 | Y192: -17.7882
W193: 7.5 | X193: 0.1379999965 | Y193: -17.2024
W194: 7.6 | X194: 0.1449999958 | Y194: -16.7726
W195: 7.7 | X195: 0.1519999951 | Y195: -16.3631
W196: 7.8 | X196: 0.1580000073 | Y196: -16.0269
W197: 7.9 | X197: 0.1620000005 | Y197: -15.8097
W198: 8 | X198: 0.1659999937 | Y198: -15.5978
W199: 8.1 | X199: 0.1679999977 | Y199: -15.4938
W200: 8.2 | X200: 0.1689999998 | Y200: -15.4423
W201: 8.3 | X201: 0.1679999977 | Y201: -15.4938
W202: 8.4 | X202: 0.1669999957 | Y202: -15.5457
W203: 8.5 | X203: 0.1640000045 | Y203: -15.7031
W204: 8.6 | X204: 0.1599999964 | Y204: -15.9176
... 814 more rows

Sheet Mechanicals
AI2: 1 | AN2: 2 | AS2: 3 | AX2: 4 | BC2: 5
J3: MECHANICAL SPECIFICATIONS | W3: =Input!P73 -> FALSE | X3: TIA-222-G
W4: =Input!P74 -> TRUE | X4: TIA-222-F
N5: Proposal No. | Q5: =Cover!$E$13 ->  | W5: =Input!P75 -> FALSE | X5: Ice
N6: Date | Q6: =Cover!$E$14 -> 2021-10-13 | W6: 4 | X6: Layers
N7: Call Letters | Q7: =IF(Input!$D$27>1,Input!$D$27,"") ->  | W7: =IF(OR(W3,W4),TRUE,FALSE) -> TRUE | X7: Spec selected
N8: Channel | Q8: =IF(Input!$F$27>1,Input!$F$27,"") ->  | W8: =Input!P68 -> FALSE | X8: Radome
N9: Frequency | Q9: =IF(Input!$G$27>1,Input!$G$27,"") -> 
N10: Antenna Type | Q10: =Cover!$E$11 -> TLP-
H11: =L32 -> 31.6 ft ( 9.6 m) | W11: Basic Wind Speed
L12: Preliminary Specifications | W12: Wind Speed w/Ice
AA13: F Spec
K14: Side Mounted | Y14: without ice | AB14: with ice
W15: # Sections | X15: Layers | Y15: H2(ft) | Z15: CaAc(ft2) | AA15: W(lbs) | AB15: H2(ft) | AC15: CaAc(FT2) | AD15: W(lbs)
K16: ="With " &IF(W5,X5,"")&" "&IF(W3,X3,IF(W4,X4,"")) -> With TIA-222-F | W16: =IF(X16=16,2,1) -> 1 | X16: =Input!K13 -> 0 | Y16: 31.6 | Z16: 42.6 | AA16: 265 | AB16: 31.6 | AC16: 48.39 | AD16: 546
W17: =Input!I13 -> 0
K18: Basic Wind Speed | O18: =Input!I42&" mph (" & ROUND(Input!I42*1.60935,0) & " km/h)" -> 90 mph (145 km/h)
K20: =IF(W3,"Structure Class","") ->  | O20: =IF(W3,Input!E47,"") -> 
K21: =IF(W3,"Exposure Category","") ->  | O21: =IF(W3,Input!E48,"") -> 
K22: =IF(W3,"Topography Category","") ->  | O22: =IF(W3,Input!E49,"") -> 
AA23: G Spec
Y24: without ice | AB24: with ice
K25: =IF(W5,"Design Ice","") ->  | O25: =IF(AND(W5,W3),Input!E45,IF(AND(W5,W4),Input!E44,"")) ->  | Q25: =IF(AND(W3,W5),"tiz =","") ->  | R25: =IF(AND(W3,W5),AD29,"") ->  | W25: # Sections | X25: Layers | Y25: H2(ft) | Z25: EPA (ft2) | AA25: W(lbs) | AB25: H2(ft) | AC25: EPA (ft2) | AD25: W(lbs)
K26: =IF(W5,"Wind Speed with Ice","") ->  | O26: =IF(AND(W5,W3),Input!K45&" mph",IF(AND(W5,W4),Input!K44&" mph","")) ->  | W26: =IF(X26=16,2,1) -> 1 | X26: =Input!K13 -> 0 | Y26: 9.8 | Z26: 13.52 | AA26: 102 | AB26: 9.8 | AC26: 23.07 | AD26: 503
W27: =Input!I13 -> 0
AC29: tiz (in) | AD29: 1.31
F30: Mechanical Specifications | L30: without ice | O30: =IF(W5,"with ice","") -> 
W31: Fill Buffer | Z31: without ice | AB31: with ice
F32: Height | K32: H2 | L32: =Z33 -> 31.6 ft ( 9.6 m)
F33: Height of Center of Radiation | K33: H3 | L33: =Z34 -> 15.8 ft (4.9 m) | W33: Height less Lightning Protector | Y33: H2 | Z33: =Z44 & " ft ( " & AA44 & " m)" -> 31.6 ft ( 9.6 m) | AB33: =AB44 & " ft (" & AC44 & " m)" -> ft ( m)
F34: Effective Projected Area | K34: (EPA)S | L34: =IF(W7,Z35,"") -> 42.6 ft² (4 m²) | O34: =IF(AND(W5,W7),AB35,"") ->  | R34: mounts excluded | W34: Height of Center of Radiation | Y34: H3 | Z34: =Z45 & " ft (" & AA45 & " m)" -> 15.8 ft (4.9 m) | AB34: =AB45 & " ft (" & AC45 & " m)" -> ft ( m)
W35: Effective Projected Area | Y35: (EPA)s | Z35: =IF(W3=FALSE,ROUND(Z46,1)&" ft² ("&AA46&" m²)",ROUND(Z47,1)&" ft² ("&ROUND(AA47,1)&" m²)") -> 42.6 ft² (4 m²) | AB35: =IF(W3=FALSE,ROUND(AB46,1)&"ft² ("&AC46&" m²)",ROUND(AB47,1)&" ft² ("&ROUND(AC47,1)&" m²)") -> 48.4ft² (4.5 m²)
F36: Weight | K36: W | L36: =IF(W7,Z40,"") -> 265 lb (121 kg) | O36: =IF(AND(W5,W7),AB40,"") ->  | R36: mounts excluded
C40: ="Antenna designed in accordance with AISC specifications for design of structural steel as prescribed by "&IF(W3,"TIA-222-G",IF(W4,"TIA-222-F","TIA-222")) -> Antenna designed in accordance with AISC specifications for design of structural steel as prescribed by TIA-222-F | W40: Weight | Y40: W | Z40: =ROUNDUP(Z52,0) & " lb (" & AA52 & " kg)" -> 265 lb (121 kg) | AB40: =ROUNDUP(AB52,) & " lb (" & AC52 & " kg)" -> 546 lb (248 kg)
C41: Mechanical data is based on listed criteria and should be verified by the tower engineer.
C42: Prepared by: | E42: =IF(Input!L3="","",Input!L3) ->  | H42: Date: | I42: =IF(Input!H3="","",Input!H3) -> 2021-10-13 | W42: Fill Data | Z42: English | AA42: Metric | AB42: English | AC42: Metric
C44: This document contains proprietary and confidential information of Dielectric. It is to be used solely for the purpose for which it is provided. | W44: Height | Y44: H2 | Z44: =IF(W3=TRUE,Y26,Y16) -> 31.6 | AA44: =IF(ISNUMBER(Z44),ROUND(Z44*0.3048,1)," ") -> 9.6 | AC44: =IF(ISNUMBER(AB44),ROUND(AB44*0.3048,1)," ") -> 
C45: No disclosure, reproduction, or use of this document or any part of it may be made without the written permission of Dielectric. | W45: Height of Center of Radiation | Y45: H3 | Z45: =ROUNDUP((Z44/2),1) -> 15.8 | AA45: =IF(ISNUMBER(Z45),ROUNDUP(Z45*0.3048,1)," ") -> 4.9 | AC45: =IF(ISNUMBER(AB45),ROUND(AB45*0.3048,1)," ") -> 
W46: CaAc's "F" | Y46: CaAc | Z46: =Z16 -> 42.6 | AA46: =IF(ISNUMBER(Z46),ROUND(Z46*0.3048^2,1)," ") -> 4 | AB46: =AC16 -> 48.39 | AC46: =IF(ISNUMBER(AB46),ROUND(AB46*0.3048^2,1)," ") -> 4.5
W47: EPA's "G" | Y47: EPA | Z47: =Z26 -> 13.52 | AA47: =IF(ISNUMBER(Z47),ROUND(Z47*0.3048^2,1)," ") -> 1.3 | AB47: =AC26 -> 23.07 | AC47: =IF(ISNUMBER(AB47),ROUND(AB47*0.3048^2,1)," ") -> 2.1
AE48: =IF(W6=8,#REF!,IF(W6=16,#REF!,IF(W6=24,#REF!,""))) -> 
Z49: =IF(W3=1,IF(W2,AD23,AA23),IF(W3=2,IF(W2,AD24,AA24),IF(W3=3,IF(W2,AD25,AA25),""))) ->  | AE49: =AE48/2 -> 
AE50: =IF(W6=8,#REF!,IF(W6=16,#REF!,IF(W6=24,#REF!,""))) -> 
W52: Weight | Y52: W | Z52: =IF(W3=TRUE,AA26,AA16) -> 265 | AA52: =IF(ISNUMBER(Z52),ROUNDUP(Z52*0.453592,0)," ") -> 121 | AB52: =IF(W3=TRUE,AD26,AD16) -> 546 | AC52: =IF(ISNUMBER(AB52),ROUNDUP(AB52*0.453592,0)," ") -> 248 | AE52: =IF(W6=8,#REF!,IF(W6=16,#REF!,IF(W6=24,#REF!,""))) -> 

Sheet Summary
AK1: 1
AK2: 2
AK3: 3 | AN3: FALSE | AO3: Tests for relative value calculations
AK4: 4
AK5: 5
M6: Summary | AK6: 6 | AT6: =Input!$P$66 -> TRUE | AU6: 6 | AV6: Calculate TPO from ERP | AX6: 2
AK7: 7 | AT7: FALSE | AU7: 7 | AV7: Show Polarization Losses | AX7: 3
M8: Proposal No. | P8: =Cover!$E$13 ->  | Z8: Gains | AK8: 8 | AT8: FALSE | AU8: 8 | AV8: Show Feed System Losses | AX8: 4
M9: Date | P9: =Cover!$E$14 -> 2021-10-13 | Z9: AZ H | AA9: ='AZ Hpol'!AB9 ->  | AK9: 9 | AT9: =Input!R66 -> 0 | AU9: 9 | AV9: Use a Combiner & TL | AX9: 5
M10: Call Letters | P10: =IF(Input!D27>1,Input!D27,"") ->  | R10: =IF(Input!D26>1,Input!D26,"") -> Call Letters | Z10: AZ V | AA10: ='AZ Vpol'!AB9 ->  | AD10: Calculate gains from ERP split | AK10: 10 | AT10: =Input!P71 -> FALSE | AU10: 10 | AV10: Show Transmission Line | AX10: 6
M11: Channel | P11: =IF(Input!F27>1,Input!F27,"") ->  | Z11: EL H | AA11: =Elpat!H14 -> 0 | AC11: 11 | AD11: Horizontal Pat. Gain of HP: | AG11: =IF(AT11,1,AA9) ->  | AH11: =10*LOG10(AG11) ->  | AK11: 11 | AR11: Main Lobe | AT11: =Input!P109 -> FALSE | AU11: 11 | AV11: Use RMS Gains | AX11: 7
M12: Frequency | P12: =IF(Input!G27>1,Input!G27,"") ->  | W12: TV Channel | X12: =P11 ->  | Z12: EL V | AA12: =Elpat!H14 -> 0 | AC12: 12 | AD12: Horizontal Pat. Gain of VP: | AG12: =IF(AT11,1,AA10) ->  | AH12: =10*LOG10(AG12) ->  | AK12: 12 | AM12: Powers Table | AQ12: RMS/Peak | AR12: Gain | AT12: =Input!P77 -> FALSE | AU12: 12 | AV12: Include Vpol | AX12: 8
M13: Antenna Type | P13: =Cover!$E$11 -> TLP- | W13: Frequency | X13: =P12 ->  | AC13: 13 | AD13: Vertical Pat. Gain of HP: | AG13: =AA11 -> 0 | AH13: =10*LOG10(AG13) ->  | AK13: 13 | AM13: Hpol | AN13: =I16 -> 0 | AQ13: =AT11 -> FALSE | AR13: =AF23 ->  | AT13: =IF(X35>0,TRUE,FALSE) -> FALSE | AU13: 13 | AV13: Include Other | AX13: 9
B14: Antenna | AC14: 14 | AD14: Vertical Pat. Gain of VP: | AG14: =AA12 -> 0 | AH14: =10*LOG10(AG14) ->  | AK14: 14 | AM14: Vpol | AN14: =IF($AT$12,IF($AT$6,$AG$19,$AG$32*$AF$24*$AQ$23),"") ->  | AR14: =AF24 -> 
I15: Hpol | O15: =IF(AT12,"Vpol","") ->  | V15: Size | X15: =Input!C34 -> 0 | Y15: =Input!E34 ->  | AC15: 15 | AF15: Desired ERP of Hpol | AG15: =X24 -> 0 | AK15: 15 | AM15: Ant in | AN15: =IF($AT$6,$AG$22,$X$25*$AQ$23) -> 
B16: ERP: | I16: =IF($AT$6,$AG$18,$AG$32*$AF$23*$AQ$23) -> 0 | K16: =10*LOG(I16) ->  | O16: =IF($AT$12,IF($AT$6,$AG$19,$AG$32*$AF$24*$AQ$23),"") ->  | Q16: =IF(AT12,10*LOG(O16),"") ->  | V16: Type | X16: =Input!$E$35 ->  | Y16: =Input!$F$34 ->  | AC16: 16 | AD16: ERP Split | AF16: H ERP % | AG16: 1 | AH16: H | AI16: 1 | AK16: 16 | AM16: TPO | AN16: =IF($AP$23<0,IF($AT$6,$I$21/$AQ$23,$X$25),"") -> 
B17: =IF(AT11=TRUE,"RMS Gain","Peak Gain") -> Peak Gain | I17: =AF23 ->  | K17: =ROUND(10*LOG(I17),2) ->  | O17: =IF(AT12,AF24,"") ->  | Q17: =IF(AT12,ROUND(10*LOG(O17),2),"") ->  | V17: Vertical Length | X17: =Input!H34 -> 0 | AC17: 17 | AF17: V ERP % | AG17: =Input!F16 -> 0.3 | AH17: V | AI17: =X28/100*(100/X27) ->  | AK17: 17
V18: Horizontal Length | X18: =Input!H35 -> 0 | AC18: 18 | AF18: Hpol ERP | AG18: =AG15 -> 0 | AK18: 18
V19: Total Length | X19: =Input!$J$37 -> 0 | AC19: 19 | AF19: Vpol ERP | AG19: =IF(AT12,(AG17/AG16)*AG15,0) -> 0 | AK19: 19
V20: Efficiency | X20: =VLOOKUP(X15,Y61:AG91,9,FALSE) ->  | AC20: 20 | AD20: Hpol Peak Gain | AF20: =AG11*AG13 ->  | AG20: =AG18 -> 0 | AH20: =IF(ISNUMBER(P11),AG20/AF20,"") ->  | AK20: 20
B21: Antenna Input Power | I21: =IF($AT$6,$AG$22,$X$25*$AQ$23) ->  | K21: =10*LOG(I21) ->  | V21: dB | X21: =VLOOKUP(X15,Y61:AG91,8,FALSE) ->  | AC21: 21 | AD21: Vpol Peak Gain | AF21: =AG12*AG14 ->  | AG21: =IF(AX12,AG19,0) -> 0 | AH21: =IF(AT12,AG21/AF21,0) -> 0 | AK21: 21
V22: Max DTV Power | X22: =VLOOKUP(X15,Y61:AG91,5,FALSE) ->  | AC22: 22 | AD22: Antenna Input Pwr Req'd | AG22: =IF(ISNUMBER(P11),AH20+AH21,"") ->  | AH22: =ROUND((10*LOG(AG22)),2) ->  | AK22: 22 | AP22: dB | AQ22: Value
B23: =IF(AT10,"Transmission Line","") ->  | V23: Percent of Max Power | X23: =I40/X22 ->  | AC23: 23 | AD23: Actual gain of Hp | AF23: =AG20/(AH20+AH21) ->  | AG23: =ROUND((10*LOG(AF23)),2) ->  | AH23: Peak Gain | AK23: 23 | AM23: Sum of External Losses | AP23: =SUM(K25:K37)*-1 -> 0 | AQ23: =POWER(10,AP23/10) -> 1
V24: Hpol ERP Desired | X24: =Input!I27 -> 0 | Y24: kW | AC24: 24 | AD24: Actual gain of Vp | AF24: =AG21/(AH20+AH21) ->  | AG24: =10*LOG(AF24) ->  | AH24: Peak Gain | AK24: 24
B25: =IF(AT10,"Type:","") ->  | D25: =IF(AT10,X16,"") ->  | G25: =IF(AT10,"Attenuation:","") ->  | K25: =IF(AT10,X21,"") ->  | V25: TPO Desired | X25: =Input!I27 -> 0 | Y25: kW | AC25: 25 | AK25: 25 | AP25: TPO Reqired | AR25: ERP from TPO
B26: =IF(AT10,"Size:","") ->  | D26: =IF($AT$10,$Y$15,"") ->  | G26: =IF(AT10,"Efficiency:","") ->  | I26: =IF(AT10,10^-(K25/10),"") ->  | AC26: 26 | AD26: % Pwr to Hp | AF26: =AH20/(AH20+AH21) ->  | AG26: =10*LOG(AF26) ->  | AH26: Polarization Loss | AK26: 26 | AP26: AP | AQ26: AQ | AR26: AR | AS26: AS | AT26: AT | AU26: AU
B27: =IF(AT10,"Impedance:","") ->  | D27: =IF($AT$10,$Y$16,"") ->  | L27: =IF(Input!G37>1,"Caution, transmission line is overpowered","") ->  | V27: ERP Power Split Hpol | X27: =Input!F29 -> 0 | AC27: 27 | AD27: % Pwr to Vp | AF27: =AH21/(AH20+AH21) ->  | AG27: =10*LOG(AF27) ->  | AH27: Polarization Loss | AK27: 27 | AM27: TPO from ERP | AP27: Ant In | AQ27: dB | AR27: ERP H | AS27: dB | AT27: ERP V | AU27: dB
B28: =IF(AT10,"Length:","") ->  | D28: =IF($AT$10,$X$19,"") ->  | F28: =IF($AT$10,$D28*0.3048,"") ->  | V28: ERP Power Split Vpol | X28: =Input!F16 -> 0.3 | AK28: 28 | AM28: TPO | AP28: =IF($AT$6,$AG$29,$X$25) ->  | AQ28: =(CONCATENATE((ROUND(10*LOG(AP28),2)&"dB"))) ->  | AR28: =($AG$32)*$AF$23 ->  | AS28: =(CONCATENATE((ROUND(10*LOG(AR28),2)&"dB"))) ->  | AT28: =($AG$32)*$AF$24 ->  | AU28: =(CONCATENATE((ROUND(10*LOG(AT28),2)&"dB"))) -> 
AD29: Required TPO for selected ERP | AG29: =(AG18/AF23) ->  | AH29: =IF(AG29<=0,"",10*LOG(AG29)) ->  | AK29: 29 | AM29: w/ TL | AP29: =$AG$32/$X$20 ->  | AR29: =$AP$39*$AF$23 ->  | AT29: =$AP$39*$AF$24 -> 
B30: =IF($AT$9,"Combiner Losses","") ->  | AK30: 30 | AM30: w/ Other | AP30: =$AG$32/$X$36 ->  | AR30: =$AP$40*$AF$23 ->  | AT30: =$AP$40*$AF$24 -> 
G31: =IF($AT$9,"Attenuation","") ->  | K31: =IF($AT$9,$X$32,"") ->  | AD31: TPO from ERP | AK31: 31 | AM31: w/ TL & comb | AP31: =$AG$32/$X$20/$X$33 ->  | AR31: =($AP$41)*$AF$23 ->  | AT31: =($AP$41)*$AF$24 -> 
G32: =IF($AT$9,"Efficiency","") ->  | I32: =IF(AT9,10^-(K31/10),"") ->  | AC32: 32 | AD32: Antenna Input | AG32: =IF($AT$6,$AG$29,$X$25) ->  | AH32: =(CONCATENATE((ROUND(10*LOG(AG32),2)&"dB"))) ->  | AK32: 32 | AM32: w/ TL & other | AP32: =$AG$32/$X$20/$X$36 ->  | AR32: =$AP$42*$AF$23 ->  | AT32: =$AP$42*$AF$24 -> 
AC33: 33 | AD33: Antenna Input w/ T/L | AG33: =$AG$32/$X$20 ->  | AK33: 33 | AM33: w/ TL & other & comb | AP33: =$AG$32/$X$20/$X$33/$X$36 ->  | AR33: =$AP$43*$AF$23 ->  | AT33: =$AP$43*$AF$24 -> 
AC34: 34 | AD34: Antenna Input w/ T/L and combiner | AG34: =$AG$32/$X$20/$X$33 ->  | AK34: 34
B35: =IF($X$34="","",IF($AT$13,$X$34,"")) ->  | AC35: 35 | AD35: ERP of Hpol | AG35: =($AG$32)*$AF$23 ->  | AK35: 35
G36: =IF($X$34="","",IF($AT$13,"Attenuation","")) ->  | K36: =IF($X$35="","",IF($AT$13,$X$35,"")) ->  | AC36: 36 | AD36: ERP of Hpol w/ TL | AG36: =(AF44)*AF23 ->  | AK36: 36 | AM36: Antenna in from required TPO
G37: =IF($X$34="","",IF($AT$13,"Efficiency","")) ->  | I37: =IF(AT13,10^-(K36/10),"") ->  | AC37: 37 | AD37: ERP of Hpol w/ TL & combiner | AG37: =(AF45)*AF23 ->  | AK37: 37 | AP37: TPO | AQ37: dB
AC38: 38 | AD38: ERP of Vpol | AG38: =AF43*AF24 ->  | AK38: 38 | AM38: TPO | AP38: =ROUND($AG$32,2) ->  | AQ38: =(CONCATENATE("(" & (ROUND(10*LOG(AP38),2)&" dBk)"))) ->  | AR38: =AP38 & " kW" -> 
B39: =IF(AT10,IF(AT9,"Combiner Input","Transmitter Output")," ") ->  | AC39: 39 | AD39: ERP of Vpol w/ T/L | AG39: =AF44*AF24 ->  | AK39: 39 | AM39: w/ TL | AP39: =ROUND($AG$32*$X$20,2) -> 
I40: =IF($AP$23<0,IF($AT$6,$I$21/$AQ$23,$X$25),"") ->  | K40: =IF(ISNUMBER(I40),10*LOG($I$40),"") ->  | AC40: 40 | AD40: ERP of Vpol w/ T/L & combiner | AG40: =AF45*AF24 ->  | AK40: 40 | AM40: w/ Other | AP40: =ROUND($AG$32*$X$36,2) -> 
B41: Transmitter filter losses not included | AK41: 41 | AM41: w/ TL & comb | AP41: =(ROUND($AG$32*$X$20*$X$33,2)) -> 
AD42: ERP from TPO | AK42: 42 | AM42: w/ TL & other | AP42: =(ROUND($AG$32*$X$36*$X$20,2)) -> 
AC43: 43 | AD43: Desired TPO | AF43: =ROUND($AG$32,2) ->  | AG43: =(CONCATENATE("(" & (ROUND(10*LOG(AF43),2)&" dBk)"))) ->  | AH43: =AF43 & " kW" ->  | AK43: 43 | AM43: w/ TL & other & comb | AP43: =(ROUND($AG$32*$X$20*$X$36*$X$33,2)) -> 
AC44: 44 | AD44: with TL Losses | AF44: =ROUND($AF$43*$X$20,2) ->  | AG44: =(CONCATENATE("(" & (ROUND(10*LOG(AF44),2)&" dBk)"))) ->  | AH44: =AF44 & " kW" ->  | AK44: 44
A45: This document contains proprietary and confidential information of Dielectric. It is to be used solely for the purpose for which it is provided. | AC45: 45 | AD45: with TL & Comb Losses | AF45: =(ROUND(AG32*$X$20*$X$33,2)) ->  | AG45: =(CONCATENATE("(" & (ROUND(10*LOG(AF45),2)&" dBk)"))) ->  | AH45: =AF45 & " kW" ->  | AK45: 45
A46: No disclosure, reproduction, or use of this document or any part of it may be made without the written permission of Dielectric. | AK46: 46
AK47: 47
Z48: 7/8 | AC48: 1-5/8 | AD48: 3 | AE48: 3 EHT | AF48: 4 | AG48: 4 EHT | AH48: 5 | AI48: 5 EHT | AJ48: 6" 75 | AK48: 6" 50 | AL48: 7" 75 ohm | AM48: 6" 75 EHT | AN48: 6" 50 EHT | AO48: 7" 75 EHT | AP48: 8" 75 | AQ48: 8" 75 EHT | AR48: 9" 75 | AS48: 9" 75EHT | AT48: 9" 50 | AU48: WR1800 | AV48: WR1500 | AW48: WR1150 | AX48: DTW1750A | AY48: DTW1500A | AZ48: DTW1350A | BA48: Flex 7/8 | BB48: Flex 1-5/8 | BC48: Flex 2-1/8 | BD48: Flex 3-1/8 | BE48: Flex 4-1/16 | BF48: Flex 5 | BG48: Flex 6-1/18
W49: Ch. Frq | X49: =P12 ->  | Y49: a | Z49: 47.290775 | AC49: 155.55655 | AD49: 523.73913 | AE49: 837.29246 | AF49: 835.586 | AG49: 1410.3192 | AH49: 1413.1216 | AI49: 2315.5501 | AJ49: 1511.6731 | AK49: 1759.2597 | AL49: 2418.2025 | AM49: 2550.5056 | AN49: 2878.6275 | AO49: 3454.3955 | AP49: 2537.034 | AQ49: 4371.084 | AR49: 3133.78 | AS49: 5437.258 | AT49: 3649.355 | BA49: 75.96032 | BB49: 153.9121 | BC49: 195.8956 | BD49: 399.4212 | BE49: 703.8064 | BF49: 1170.645 | BG49: 1525.262
Y50: b | Z50: -0.49750541 | AC50: -0.49960995 | AD50: -0.50019557 | AE50: -0.51903287 | AF50: -0.49999914 | AG50: -0.52862023 | AH50: -0.5412929 | AI50: -0.54987676 | AJ50: -0.50016004 | AK50: -0.49988895 | AL50: -0.5308834 | AM50: -0.5272823 | AN50: -0.524325 | AO50: -0.5324961 | AP50: -0.49989 | AQ50: -0.53034 | AR50: -0.49997 | AS50: -0.5304 | AT50: -0.50011 | BA50: -0.52315 | BB50: -0.50389 | BC50: -0.49856 | BD50: -0.51459 | BE50: -0.51181 | BF50: -0.52331 | BG50: -0.52038
Y52: a | Z52: 0.03435237 | AA52: 0.008897517 | AB52: 0.008897517 | AC52: 0.019411759 | AD52: 0.008897517 | AE52: 0.008897517 | AF52: 0.006280596 | AG52: 0.006280596 | AH52: 0.00515574 | AI52: 0.0051557424 | AJ52: 0.004164784 | AK52: 0.0048890857 | AL52: 0.00355057 | AM52: 0.0041648 | AN52: 0.0048891 | AO52: 0.0035506 | AP52: 0.003783 | AQ52: 0.003783 | AR52: 3.86e-06 | AS52: 3.86e-06 | AU52: 61356900 | AV52: 1650000000 | AW52: 68700000000000 | AX52: 1920000000 | AY52: 1550000000 | AZ52: 28500000000000 | BA52: 0.034249 | BB52: 0.013222 | BC52: 0.018434 | BD52: 0.011069 | BE52: 0.008238 | BF52: 0.003942 | BG52: 0.005698
Y53: b | Z53: 1.0000284 | AA53: 1.0001063 | AB53: 1.0001063 | AC53: 1.000053 | AD53: 1.0001063 | AE53: 1.0001063 | AF53: 0.9999803 | AG53: 0.9999803 | AH53: 1.0000324 | AI53: 1.0000324 | AJ53: 1.0000736 | AK53: 0.99994884 | AL53: 1.0000798 | AM53: 1.0000736 | AN53: 0.9999488 | AO53: 1.0000798 | AP53: 0.493575 | AQ53: 0.493575 | AR53: 0.997584 | AS53: 0.997584 | AU53: 1.005929 | AV53: 1.005635 | AW53: 1.006485 | AX53: 1.006464 | AY53: 1.005083 | AZ53: 1.006997 | BA53: 1.000007 | BB53: 0.999982 | BC53: 1.00002 | BD53: 1.000063 | BE53: 1.000066 | BF53: 0.999885 | BG53: 1.000027
Y54: c | Z54: 0.51772257 | AA54: 0.51590535 | AB54: 0.51590535 | AC54: 0.51117032 | AD54: 0.51590535 | AE54: 0.51590535 | AF54: 0.51295593 | AG54: 0.51295593 | AH54: 0.53260412 | AI54: 0.53260412 | AJ54: 0.51818736 | AK54: 0.51488769 | AL54: 0.5189502 | AM54: 0.51818736 | AN54: 0.51488769 | AO54: 0.5189502 | AR54: 1.773151 | AS54: 1.773151 | AU54: -3.8658656 | AV54: -4.2917627 | AW54: -5.91199 | AX54: -4.4249388 | AY54: -4.2096239 | AZ54: -5.880304 | BA54: 0.53016952 | BB54: 0.60199625 | BC54: 0.51163952 | BD54: 0.5181392 | BE54: 0.5290278 | BF54: 0.62544988 | BG54: 0.52825014
Y55: d
Y56: e
Y58: TV Channel | Z58: =P11 ->  | AE58: =X19 -> 0 | AF58: ft | AG58: leng/100 = | AH58: =AE58/100 -> 0
Y59: Use | Z59: =575 -> 575 | AA59: MHz | AG59: 11802.854
Y60: Size | Z60: Max | AC60: Max DTV | AD60: Max @15psi | AE60: Peak TV | AF60: Att. | AG60: Eff
X61: T/L | Y61: 0-7/8" | Z61: =Z$49*$X49^Z$50 ->  | AC61: =Z61*0.9 ->  | AD61: =Z61*1.21 ->  | AE61: =Z61/0.7 ->  | AF61: =Z$52*Z$53^$X$49*$X$49^Z$54*$AE$58/100 ->  | AG61: =10^(-AF61/10) -> 
Y62: 1-5/8" | Z62: =AC$49*$X$49^AC$50 ->  | AD62: =Z62*1.21 ->  | AF62: =AC$52*AC$53^$X$49*$X$49^AC$54*$AE$58/100 -> 
Y63: 3-1/8" | Z63: =AD$49*$X$49^AC$50 ->  | AD63: =Z63*1.21 ->  | AF63: =AD$52*AD$53^$X$49*$X$49^AD$54*$AE$58/100 -> 
Y64: 3-1/8" EHT | Z64: =AD64*0.885 ->  | AD64: =AE49*$X49^AE$50 ->  | AF64: =AE$52*AE$53^$X$49*$X$49^AE$54*$AE$58/100 -> 
Y65: 4-1/16" | Z65: =AF$49*$X$49^AF$50 ->  | AD65: =Z65*1.21 ->  | AF65: =AF$52*AF$53^$X$49*$X$49^AF$54*$AE$58/100 -> 
Y66: 4-1/16" EHT | Z66: =AD66*0.885 ->  | AD66: =AG49*$X49^AG$50 ->  | AF66: =AG$52*AG$53^$X$49*$X$49^AG$54*$AE$58/100 -> 
W67: 32 | Y67: 5" | Z67: =AH$49*$X$49^AH$50 ->  | AD67: =Z67*1.21 ->  | AF67: =AH$52*AH$53^$X$49*$X$49^AH$54*$AE$58/100 -> 
Y68: 5" EHT | Z68: =AD68*0.885 ->  | AD68: =AI$49*X49^AI$50 ->  | AF68: =AI$52*AI$53^$X$49*$X$49^AI$54*$AE$58/100 -> 
Y69: 6-1/8" 75 | Z69: =AJ$49*X49^AJ$50 ->  | AD69: =Z69*1.21 ->  | AF69: =AJ$52*AJ$53^$X$49*$X$49^AJ$54*$AE$58/100 -> 
Y70: 6-1/8" 75 EHT | Z70: =AD70*0.875 ->  | AD70: =AM$49*X49^AM$50 ->  | AF70: =AM52*AM53^$X49*$X49^AM54*$AE$58/100 -> 
Y71: 6-1/8" 50 | Z71: =AK$49*X49^AK$50 ->  | AD71: =Z71*1.21 ->  | AF71: =AK$52*AK$53^$X$49*$X$49^AK$54*$AE$58/100 -> 
Y72: 6-1/8" 50 EHT | Z72: =AD72*0.885 ->  | AD72: =AN$49*X49^AN$50 ->  | AF72: =AN$52*AN$53^$X$49*$X$49^AN$54*$AE$58/100 -> 
Y73: 7-3/16" 75 | Z73: =AL49*$X49^AL50 ->  | AD73: =Z73*1.22 ->  | AF73: =AL$52*AL$53^$X$49*$X$49^AL$54*$AE$58/100 -> 
Y74: 7-3/16" 75 EHT | Z74: =AD74*0.875 ->  | AD74: =AO$49*$X49^AO$50 ->  | AF74: =AO$52*AO$53^$X$49*$X$49^AO$54*$AE$58/100 -> 
Y75: 8-3/16" 75 | Z75: =IF(OR($X$49<=704,AND($X$49>$X$49,X$49<301)),AP$49*$X$49^AP$50,"N/A") -> N/A | AD75: 142.4130483 | AF75: =IF(OR(X$49<=704,AND($X$49>200,$X$49<301)),AP$52*$X$49^AP$53*$AE$58/100,"N/A") -> N/A
Y76: 8-3/16" 75 EHT | Z76: =AD76*0.875 ->  | AD76: =IF(OR(X49<=704,AND(X49>200,X49<301)),AQ$49*$X49^AQ$50,"N/A") -> N/A | AF76: =IF(OR(X$49<=704,AND($X$49>200,$X$49<301)),AQ$52*$X$49^AQ$53*$AE$58/100,"N/A") -> N/A
Y77: 9-3/16" 75 | Z77: =IF(OR($X$49<=620,AND(X49>200,X49<301)),AR$49*$X49^AR$50,"N/A") -> N/A | AD77: =Z77*1.21 ->  | AF77: =IF(OR(X$49<=704,AND($X$49>200,$X$49<301)),AR$52*AR53^X49*X49^AR54*$AE$58/100,"N/A") -> N/A
Y78: 9-3/16" 75 EHT | Z78: =AD78*0.875 ->  | AD78: =IF(OR($X$49<=620,AND(X49>200,X49<301)),AS$49*$X49^AS$50,"N/A") -> N/A | AF78: =IF(OR(X$49<=704,AND($X$49>200,$X$49<301)),AS$52*AS53^$X$49*$X$49^AS$54*$AE$58/100,"N/A") -> N/A
X80: Flexline Air | Y80: FlexLine Air 0-7/8" | Z80: =IF((2.781/($AF80/$AH$58)>90),90,2.781/($AF80/$AH$58)) ->  | AC80: =Z80*0.9 ->  | AE80: =Z80/0.7 ->  | AF80: =((0.035307*SQRT($X$49))+(0.000164*$X$49))*$AH$58 ->  | AG80: =10^(-AF80/10) ->  | AH80: az
Y81: FlexLine Air 1-5/8" | Z81: =IF((3.355/($AF$81/AH58)>305),305,3.355/($AF81/AH58)) ->  | AF81: =((0.01944*SQRT($X$49))+(0.000086*$X$49))*$AH$58 ->  | AH81: ba
Y82: FlexLine Air 2-1/4" | Z82: =IF((3.9042/($AF82/AH58)>425),425,3.9042/($AF82/AH58)) ->  | AF82: =((0.016104*SQRT(X49))+(0.00008*X49))*AH58 ->  | AH82: bb
Y83: FlexLine Air 3" | Z83: =IF((5.9953/($AF83/AH58)>640),640,5.9953/($AF83/AH58)) ->  | AF83: =((0.012434*SQRT(X49))+(0.00017*X49))*AH58 ->  | AH83: bc
Y84: FlexLine Air 4" 50 | Z84: =IF((7.4002/($AF84/AH58)>1100),1100,7.4002/($AF84/AH58)) ->  | AF84: =((0.010396*SQRT(X49))+(0.000105*X49))*AH58 ->  | AH84: bd
Y85: FlexLine Air 5" 50 | Z85: =IF((6.6668/($AF85/AH58)>1890),1890,6.6668/($AF85/AH58)) ->  | AF85: =((0.007374*SQRT(X49))+(0.000052*X49))*AH58 ->  | AH85: be
X87: Flexline Foam | Y87: FlexLine Foam 0-1/2" | Z87: =IF((2.325/($AF87/AH58)>40),40,2.325/($AF87/AH58)) ->  | AC87: =Z87*0.9 ->  | AE87: =Z87/0.7 ->  | AF87: =((0.065906*SQRT(X49))+(0.000254*X49))*AH58 ->  | AG87: =10^(-AF87/10) -> 
Y88: FlexLine Foam 0-7/8" | Z88: =IF((2.77/($AF88/AH58)>91),91,2.77/($AF88/AH58)) ->  | AC88: =Z88*0.9 ->  | AE88: =Z88/0.7 ->  | AF88: =((0.0351*SQRT(X49))+(0.000153*X49))*AH58 ->  | AG88: =10^(-AF88/10) -> 
Y89: FlexLineFoam 1-1/4" | Z89: =IF((3.455/($AF89/AH58)>205),205,3.455/($AF89/AH58)) ->  | AC89: =Z89*0.9 ->  | AE89: =Z89/0.7 ->  | AF89: =((0.02416*SQRT(X49))+(0.000139*X49))*AH58 ->  | AG89: =10^(-AF89/10) -> 
Y90: FlexLine Foam 1-5/8" | Z90: =IF((3.351/($AF90/AH58)>315),315,3.351/($AF90/AH58)) ->  | AC90: =Z90*0.9 ->  | AE90: =Z90/0.7 ->  | AF90: =((0.01931*SQRT(X49))+(0.000153*X49))*AH58 ->  | AG90: =10^(-AF90/10) -> 
Y91: FlexLine foam 2-1/4" | Z91: =IF((3.76/($AF91/AH58)>425),425,3.76/($AF91/AH58)) ->  | AC91: =Z91*0.9 ->  | AE91: =Z91/0.7 ->  | AF91: =((0.0165*SQRT(X49))+(0.00016*X49))*AH58 ->  | AG91: =10^(-AF91/10) -> 

Sheet Azimuth
B1: A | C1: A | D1: B | E1: B | F1: C | G1: C | H1: D | I1: D | J1: E | K1: E | L1: F | M1: F | N1: G | O1: G | P1: H | Q1: H | R1: I | S1: I | T1: J | U1: J | V1: M | W1: M | X1: N | Y1: N | Z1: O | AA1: O | AB1: W | AC1: W
B2: 1 | C2: 2 | D2: 3 | E2: 4 | F2: 5 | G2: 6 | H2: 7 | I2: 8 | J2: 9 | K2: 10 | L2: 11 | M2: 12 | N2: 13 | O2: 14 | P2: 15 | Q2: 16 | R2: 17 | S2: 18 | T2: 19 | U2: 20 | V2: 21 | W2: 22 | X2: 23 | Y2: 24 | Z2: 25 | AA2: 26 | AB2: 27 | AC2: 28
B3: Hpol | C3: Vpol | D3: Hpol | E3: Vpol | F3: Hpol | G3: Vpol | H3: Hpol | I3: Vpol | J3: Hpol | K3: Vpol | L3: Hpol | M3: Vpol | N3: Hpol | O3: Vpol | P3: Hpol | Q3: Vpol | R3: Hpol | S3: Vpol | T3: Hpol | U3: Vpol | V3: Hpol | W3: Vpol | X3: Hpol | Y3: Vpol | Z3: Hpol | AA3: Vpol | AB3: Hpol | AC3: Vpol
A4: 0 | B4: 0.9874367118 | C4: 0.9999998212 | D4: 1 | E4: 0.9999827743 | F4: 1 | G4: 0.9999864101 | H4: 1 | I4: 1 | J4: 1 | K4: 1 | L4: 1 | M4: 0.9998530149 | N4: 0.7884610891 | O4: 1 | P4: 1 | Q4: 1 | R4: 0.7810770068 | S4: 1 | T4: 0.5906880964 | U4: 0.9855108261 | V4: 0.8950722204 | W4: 0.9999936223 | X4: 0.932625711 | Y4: 1 | Z4: 0.5960769835 | AA4: 0.9994632006 | AB4: 0.9719303846 | AC4: 1
A5: 1 | B5: 0.9876164198 | C5: 0.9999771714 | D5: 0.9995852709 | E5: 0.9998760819 | F5: 0.9990267754 | G5: 0.9999015927 | H5: 0.9982258081 | I5: 0.9998629093 | J5: 0.9992799759 | K5: 0.9997748137 | L5: 0.9977707267 | M5: 0.9999943972 | N5: 0.7893413901 | O5: 0.9999603033 | P5: 0.9978960752 | Q5: 0.9999397993 | R5: 0.7804237852 | S5: 0.9999336004 | T5: 0.5883900487 | U5: 0.9855149984 | V5: 0.8966538531 | W5: 0.999966383 | X5: 0.9338755012 | Y5: 0.9999768734 | Z5: 0.5952735225 | AA5: 0.9994543195 | AB5: 0.9719331861 | AC5: 0.9999358058
A6: 2 | B6: 0.987798512 | C6: 0.9998841286 | D6: 0.9992269874 | E6: 0.9996787906 | F6: 0.9980971217 | G6: 0.9997454286 | H6: 0.9966170788 | I6: 0.9994729757 | J6: 0.9988585711 | K6: 0.9991173744 | L6: 0.9958214164 | M6: 1 | N6: 0.790183723 | O6: 0.9998474717 | P6: 0.9960296154 | Q6: 0.9997820258 | R6: 0.7798671848 | S6: 0.9997978806 | T6: 0.5861997089 | U6: 0.9855524898 | V6: 0.8981579985 | W6: 0.9999188781 | X6: 0.9352111816 | Y6: 0.9999064803 | Z6: 0.5944542653 | AA6: 0.9994543195 | AB6: 0.9719411731 | AC6: 0.9997444153
A7: 3 | B7: 0.9879825711 | C7: 0.9997215271 | D7: 0.998903513 | E7: 0.9993916154 | F7: 0.9971957207 | G7: 0.9995173812 | H7: 0.9951288104 | I7: 0.9988309741 | J7: 0.998639524 | K7: 0.9980294704 | L7: 0.9940897822 | M7: 0.9998680949 | N7: 0.7909942269 | O7: 0.9996612072 | P7: 0.9942917824 | Q7: 0.9995263815 | R7: 0.7793813367 | S7: 0.9995952845 | T7: 0.5840480534 | U7: 0.985622406 | V7: 0.8995928227 | W7: 0.9998489022 | X7: 0.9366269708 | Y7: 0.9997891188 | Z7: 0.5936254111 | AA7: 0.9994615912 | AB7: 0.9719544053 | AC7: 0.9994245172
A8: 4 | B8: 0.9881685972 | C8: 0.9994925857 | D8: 0.9985932112 | E8: 0.9990140796 | F8: 0.9963073134 | G8: 0.9992185235 | H8: 0.9937158227 | I8: 0.9979377985 | J8: 0.9985265732 | K8: 0.9965122938 | L8: 0.9925137162 | M8: 0.9995985031 | N8: 0.7917789221 | O8: 0.9994006753 | P8: 0.9925739169 | Q8: 0.9991732836 | R8: 0.7789403123 | S8: 0.9993262291 | T8: 0.5818659392 | U8: 0.9857258797 | V8: 0.9009667897 | W8: 0.999755919 | X8: 0.9381181002 | Y8: 0.9996243715 | Z8: 0.5927935169 | AA8: 0.9994770288 | AB8: 0.9719734788 | AC8: 0.9989762902
A9: 5 | B9: 0.9883561134 | C9: 0.9992002249 | D9: 0.9982740879 | E9: 0.9985464811 | F9: 0.9954165816 | G9: 0.998847425 | H9: 0.9923328161 | I9: 0.9967939258 | J9: 0.9984241128 | K9: 0.9945685863 | L9: 0.9910306931 | M9: 0.9991906285 | N9: 0.7925438881 | O9: 0.9990667105 | P9: 0.9907668233 | Q9: 0.9987223148 | R9: 0.7785183022 | S9: 0.9989926219 | T9: 0.579583985 | U9: 0.9858620763 | V9: 0.9022882442 | W9: 0.9996359944 | X9: 0.9396790266 | Y9: 0.9994105101 | Z9: 0.5919647223 | AA9: 0.9994981885 | AB9: 0.9719988704 | AC9: 0.9984002709
A10: 6 | B10: 0.9885450006 | C10: 0.9988499284 | D10: 0.9979243875 | E10: 0.9979882836 | F10: 0.9945083857 | G10: 0.9984033108 | H10: 0.9909352064 | I10: 0.9954003096 | J10: 0.9982355833 | K10: 0.9922021031 | L10: 0.9895786047 | M10: 0.9986417294 | N10: 0.7932952046 | O10: 0.9986593723 | P10: 0.9887620211 | Q10: 0.9981744289 | R10: 0.778089497 | S10: 0.9985963702 | T10: 0.5771333461 | U10: 0.986032784 | V10: 0.9035650542 | W10: 0.9994860888 | X10: 0.9413045049 | Y10: 0.9991468787 | Z10: 0.5911457036 | AA10: 0.9995244741 | AB10: 0.9720314741 | AC10: 0.9976965189
A11: 7 | B11: 0.9887347817 | C11: 0.9984450936 | D11: 0.9975224733 | E11: 0.9973397255 | F11: 0.9935672879 | G11: 0.9978864193 | H11: 0.989477694 | I11: 0.9937586188 | J11: 0.9978650212 | K11: 0.9894164205 | L11: 0.9880952835 | M11: 0.9979521036 | N11: 0.7940388918 | O11: 0.9981787801 | P11: 0.9864506125 | Q11: 0.9975275993 | R11: 0.7776277297 | S11: 0.9981412888 | T11: 0.5744566813 | U11: 0.9862365127 | V11: 0.9048056836 | W11: 0.9993023872 | X11: 0.9429895282 | Y11: 0.9988318086 | Z11: 0.5903422426 | AA11: 0.9995536804 | AB11: 0.972071588 | AC11: 0.9968646765
A12: 8 | B12: 0.9889256954 | C12: 0.9979931116 | D12: 0.997046411 | E12: 0.9966006875 | F12: 0.9925780892 | G12: 0.9972956181 | H12: 0.9879149795 | I12: 0.9918707013 | J12: 0.9972162843 | K12: 0.9862167835 | L12: 0.9865183234 | M12: 0.9971197844 | N12: 0.79478091 | O12: 0.9976242185 | P12: 0.9837232828 | Q12: 0.996784389 | R12: 0.777107489 | S12: 0.9976297021 | T12: 0.5717618964 | U12: 0.986474216 | V12: 0.9060184772 | W12: 0.9990807176 | X12: 0.9447283745 | Y12: 0.9984641075 | Z12: 0.5895610751 | AA12: 0.9995834231 | AB12: 0.9721217752 | AC12: 0.9959045053
A13: 9 | B13: 0.9891169071 | C13: 0.9975003004 | D13: 0.9964746237 | E13: 0.995770812 | F13: 0.9915254116 | G13: 0.9966297746 | H13: 0.9862022996 | I13: 0.9897375703 | J13: 0.9961932898 | K13: 0.9826084971 | L13: 0.9847856164 | M13: 0.9961435199 | N13: 0.7955272794 | O13: 0.9969962239 | P13: 0.9804741144 | Q13: 0.9959437847 | R13: 0.7765026675 | S13: 0.9970656037 | T13: 0.5695134408 | U13: 0.9867448807 | V13: 0.9072114222 | W13: 0.9988145828 | X13: 0.9465162158 | Y13: 0.9980412126 | Z13: 0.5888085196 | AA13: 0.9996116757 | AB13: 0.9721816778 | AC13: 0.99481529
A14: 10 | B14: 0.9893087745 | C14: 0.9969741702 | D14: 0.9957849979 | E14: 0.9948499203 | F14: 0.9903938174 | G14: 0.9958888888 | H14: 0.9842944741 | I14: 0.987362504 | J14: 0.9946998954 | K14: 0.9785969853 | L14: 0.9828345776 | M14: 0.9950218201 | N14: 0.7962840796 | O14: 0.9962943792 | P14: 0.976665616 | Q14: 0.9950050116 | R14: 0.7757874557 | S14: 0.9964526892 | T14: 0.5681810094 | U14: 0.987049818 | V14: 0.9083928038 | W14: 0.9984983206 | X14: 0.9483476281 | Y14: 0.9975618124 | Z14: 0.5880907754 | AA14: 0.9996358752 | AB14: 0.9722524881 | AC14: 0.9935985804
A15: 11 | B15: 0.9895005822 | C15: 0.996421814 | D15: 0.9949573874 | E15: 0.9938377142 | F15: 0.9891685247 | G15: 0.9950709939 | H15: 0.9821463823 | I15: 0.984747529 | J15: 0.9926400185 | K15: 0.9741901159 | L15: 0.9806032181 | M15: 0.9937533736 | N15: 0.797057271 | O15: 0.9955192804 | P15: 0.9723386765 | Q15: 0.9939696789 | R15: 0.7749362231 | S15: 0.9957957864 | T15: 0.567998496 | U15: 0.9873886704 | V15: 0.9095711454 | W15: 0.9981257915 | X15: 0.9502174258 | Y15: 0.9970231056 | Z15: 0.5873985436 | AA15: 0.9996520877 | AB15: 0.9723367095 | AC15: 0.9922528863
A16: 12 | B16: 0.9896922112 | C16: 0.9958512783 | D16: 0.9939860106 | E16: 0.9927340746 | F16: 0.9878383875 | G16: 0.9941753149 | H16: 0.9797127843 | I16: 0.9818943739 | J16: 0.9899194837 | K16: 0.9693952203 | L16: 0.9780293107 | M16: 0.9923353791 | N16: 0.7978531718 | O16: 0.9946696758 | P16: 0.967538476 | Q16: 0.9928361773 | R16: 0.7739227432 | S16: 0.9950988889 | T16: 0.5688780414 | U16: 0.9877604842 | V16: 0.9107543747 | W16: 0.997690022 | X16: 0.9521203041 | Y16: 0.9964221716 | Z16: 0.586678117 | AA16: 0.9996579289 | AB16: 0.9724351168 | AC16: 0.990778029
A17: 13 | B17: 0.9898836017 | C17: 0.9952700734 | D17: 0.9928737879 | E17: 0.9915388823 | F17: 0.9864026904 | G17: 0.9932010174 | H17: 0.9769489765 | I17: 0.9788066745 | J17: 0.9864999056 | K17: 0.9642196298 | L17: 0.975050509 | M17: 0.9907671809 | N17: 0.7986773849 | O17: 0.9937459826 | P17: 0.9623100162 | Q17: 0.9916067123 | R17: 0.7727213257 | S17: 0.9943674803 | T17: 0.5707083613 | U17: 0.9881646037 | V17: 0.9119507768 | W17: 0.9971817732 | X17: 0.9540510178 | Y17: 0.995757103 | Z17: 0.5858679799 | AA17: 0.9996492267 | AB17: 0.9725492001 | AC17: 0.9891738892
A18: 14 | B18: 0.9900745153 | C18: 0.9946869016 | D18: 0.9916236997 | E18: 0.9902513027 | F18: 0.9848607779 | G18: 0.9921460152 | H18: 0.9738156199 | I18: 0.9754878879 | J18: 0.9824057817 | K18: 0.9586722851 | L18: 0.9716044068 | M18: 0.989048183 | N18: 0.7995362878 | O18: 0.992749691 | P18: 0.9566982985 | Q18: 0.9902794957 | R18: 0.7713245795 | S18: 0.9936075211 | T18: 0.5733787674 | U18: 0.9886009097 | V18: 0.9131686965 | W18: 0.9965953827 | X18: 0.9560043216 | Y18: 0.9950243831 | Z18: 0.5849063779 | AA18: 0.9996228814 | AB18: 0.9726803899 | AC18: 0.9874411821
A19: 15 | B19: 0.9902644157 | C19: 0.9941092134 | D19: 0.9902387857 | E19: 0.9888715744 | F19: 0.9832127094 | G19: 0.991009295 | H19: 0.970310688 | I19: 0.9719396234 | J19: 0.9776647091 | K19: 0.9527626038 | L19: 0.9676290154 | M19: 0.9871745706 | N19: 0.8004357219 | O19: 0.9916781783 | P19: 0.9507486224 | Q19: 0.9888554215 | R19: 0.7697677317 | S19: 0.9928231239 | T19: 0.5767776178 | U19: 0.9890673757 | V19: 0.9144162402 | W19: 0.9959200025 | X19: 0.9579749703 | Y19: 0.9942209721 | Z19: 0.583732153 | AA19: 0.9995731711 | AB19: 0.9728311896 | AC19: 0.9855793715
A20: 16 | B20: 0.9904531837 | C20: 0.9935436845 | D20: 0.988722384 | E20: 0.9873992205 | F20: 0.9814584851 | G20: 0.989789784 | H20: 0.9664465785 | I20: 0.9681665897 | J20: 0.9723048806 | K20: 0.9464998841 | L20: 0.9630635977 | M20: 0.9851459265 | N20: 0.8013818264 | O20: 0.990532577 | P20: 0.9445058107 | Q20: 0.9873347282 | R20: 0.7680917316 | S20: 0.9920200706 | T20: 0.5807942242 | U20: 0.9895647168 | V20: 0.9157017525 | W20: 0.9951484799 | X20: 0.9599577785 | Y20: 0.9933437109 | Z20: 0.5822836103 | AA20: 0.9994968772 | AB20: 0.9730020761 | AC20: 0.9835882783
A21: 17 | B21: 0.9906406999 | C21: 0.992998898 | D21: 0.9870771766 | E21: 0.9858335853 | F21: 0.9795979261 | G21: 0.9884855747 | H21: 0.9622350931 | I21: 0.9641724825 | J21: 0.9663540125 | K21: 0.9398940802 | L21: 0.9578927755 | M21: 0.9829602838 | N21: 0.802380681 | O21: 0.9893131256 | P21: 0.9380148053 | Q21: 0.9857181907 | R21: 0.7663376478 | S21: 0.991204083 | T21: 0.5853174216 | U21: 0.990088284 | V21: 0.91703334 | W21: 0.9942718148 | X21: 0.9619475007 | Y21: 0.9923886061 | Z21: 0.5804994131 | AA21: 0.9993886948 | AB21: 0.9731959105 | AC21: 0.9814671278
A22: 18 | B22: 0.990826726 | C22: 0.9924806952 | D22: 0.9853069186 | E22: 0.9841746092 | F22: 0.9776309729 | G22: 0.9870951176 | H22: 0.9576888084 | I22: 0.9599604011 | J22: 0.9598399997 | K22: 0.9329565167 | L22: 0.9521471858 | M22: 0.9806159139 | N22: 0.803438127 | O22: 0.9880186915 | P22: 0.9313210845 | Q22: 0.9840052128 | R22: 0.7645469063 | S22: 0.9903801084 | T22: 0.5902359257 | U22: 0.9906374812 | V22: 0.9184195857 | W22: 0.9932790995 | X22: 0.9639387131 | Y22: 0.9913532138 | Z22: 0.5783231717 | AA22: 0.9992442131 | AB22: 0.973413229 | AC22: 0.9792169929
A23: 19 | B23: 0.9910107851 | C23: 0.9919946194 | D23: 0.9834138155 | E23: 0.9824218154 | F23: 0.9755573869 | G23: 0.985616684 | H23: 0.9528195262 | I23: 0.9555348158 | J23: 0.9527904987 | K23: 0.9256979227 | L23: 0.9458597898 | M23: 0.9781113863 | N23: 0.8045601845 | O23: 0.9866499901 | P23: 0.9244642854 | Q23: 0.9821959734 | R23: 0.7627603968 | S23: 0.9895551205 | T23: 0.5954388098 | U23: 0.991210103 | V23: 0.9198681788 | W23: 0.992161572 | X23: 0.9659261703 | Y23: 0.9902331233 | Z23: 0.5758929391 | AA23: 0.999057591 | AB23: 0.9736562967 | AC23: 0.9768372774
A24: 20 | B24: 0.9911928773 | C24: 0.9915462732 | D24: 0.9814013839 | E24: 0.9805747867 | F24: 0.9733772278 | G24: 0.9840490222 | H24: 0.947639823 | I24: 0.9508997798 | J24: 0.9452335835 | K24: 0.9181290269 | L24: 0.9390639067 | M24: 0.9754446149 | N24: 0.8057531714 | O24: 0.9852061272 | P24: 0.9174621105 | Q24: 0.9802920222 | R24: 0.7610192474 | S24: 0.9887325168 | T24: 0.6008203328 | U24: 0.9918007851 | V24: 0.9213878217 | W24: 0.9909108281 | X24: 0.967904985 | Y24: 0.9890241027 | Z24: 0.5735868111 | AA24: 0.9988238215 | AB24: 0.9739267826 | AC24: 0.9743288159
A25: 21 | B25: 0.9913728237 | C25: 0.9911401868 | D25: 0.9792727232 | E25: 0.978633523 | F25: 0.9710903168 | G25: 0.9823896885 | H25: 0.9421613812 | I25: 0.946059823 | J25: 0.9371970892 | K25: 0.9102625847 | L25: 0.9317920208 | M25: 0.9726142883 | N25: 0.8070229888 | O25: 0.983686924 | P25: 0.9103266001 | Q25: 0.9782932997 | R25: 0.7593645863 | S25: 0.9879174232 | T25: 0.6063477713 | U25: 0.9924070835 | V25: 0.9229865611 | W25: 0.9895153046 | X25: 0.9698696136 | Y25: 0.9877232909 | Z25: 0.5717979644 | AA25: 0.9985365868 | AB25: 0.9742261767 | AC25: 0.9716901183
A26: 22 | B26: 0.9915500879 | C26: 0.9907793999 | D26: 0.9770308733 | E26: 0.9765970111 | F26: 0.968696475 | G26: 0.9806377888 | H26: 0.9363967776 | I26: 0.9410188198 | J26: 0.9287087917 | K26: 0.9021100998 | L26: 0.9240776896 | M26: 0.9696192145 | N26: 0.8083735704 | O26: 0.9820926785 | P26: 0.9030702114 | Q26: 0.9761993885 | R26: 0.7578376011 | S26: 0.9871155024 | T26: 0.6120415699 | U26: 0.9930257797 | V26: 0.924672563 | W26: 0.9879661202 | X26: 0.971814692 | Y26: 0.9863253236 | Z26: 0.5709195161 | AA26: 0.998190999 | AB26: 0.9745553732 | AC26: 0.968921423
A27: 23 | B27: 0.9917246103 | C27: 0.9904667139 | D27: 0.974678874 | E27: 0.9744653106 | F27: 0.9661955237 | G27: 0.9787905216 | H27: 0.9303581715 | I27: 0.9357820749 | J27: 0.919796586 | K27: 0.8936833143 | L27: 0.9159532785 | M27: 0.9664570093 | N27: 0.8098021746 | O27: 0.9804227948 | P27: 0.8957049251 | Q27: 0.9740120173 | R27: 0.7564794199 | S27: 0.98633039 | T27: 0.6179238426 | U27: 0.9936510921 | V27: 0.9264541722 | W27: 0.9862530231 | X27: 0.9737352133 | Y27: 0.9848271012 | Z27: 0.5712103452 | AA27: 0.9977803826 | AB27: 0.9749162197 | AC27: 0.966023922
A28: 24 | B28: 0.9918960929 | C28: 0.9902033806 | D28: 0.9722198248 | E28: 0.972237587 | F28: 0.9635877013 | G28: 0.9768465757 | H28: 0.9240574837 | I28: 0.9303547144 | J28: 0.9104883075 | K28: 0.8849961758 | L28: 0.9074525237 | M28: 0.9631276131 | N28: 0.8113048077 | O28: 0.9786769152 | P28: 0.8882427216 | Q28: 0.9717311263 | R28: 0.7553311113 | S28: 0.985566318 | T28: 0.6240164646 | U28: 0.9942771196 | V28: 0.9283396142 | W28: 0.984367311 | X28: 0.9756256938 | Y28: 0.98322469 | Z28: 0.5726350445 | AA28: 0.9972990155 | AB28: 0.9753100872 | AC28: 0.9629958868
A29: 25 | B29: 0.992064178 | C29: 0.9899898171 | D29: 0.9696567059 | E29: 0.9699137807 | F29: 0.9608724713 | G29: 0.9748042822 | H29: 0.917507112 | I29: 0.9247406721 | J29: 0.9008117914 | K29: 0.876060605 | L29: 0.8986076117 | M29: 0.959627986 | N29: 0.8128771186 | O29: 0.9768537283 | P29: 0.8806958199 | Q29: 0.9693576097 | R29: 0.7544382142 | S29: 0.9848263264 | T29: 0.6303411922 | U29: 0.9948986769 | V29: 0.9303371742 | W29: 0.9822993279 | X29: 0.9774811864 | Y29: 0.9815139174 | Z29: 0.5751185074 | AA29: 0.99674052 | AB29: 0.9757366776 | AC29: 0.9598389864
A30: 26 | B30: 0.992229104 | C30: 0.9898260832 | D30: 0.9669926763 | E30: 0.9674931765 | F30: 0.9580500126 | G30: 0.9726611972 | H30: 0.9107189775 | I30: 0.9189456105 | J30: 0.8907948732 | K30: 0.8668894768 | L30: 0.8894519806 | M30: 0.9559592009 | N30: 0.8145148754 | O30: 0.9749546051 | P30: 0.8730763793 | Q30: 0.966891706 | R30: 0.7538564006 | S30: 0.9841136932 | T30: 0.6369199604 | U30: 0.995508194 | V30: 0.9324550777 | W30: 0.9800394773 | X30: 0.9792963266 | Y30: 0.9796895981 | Z30: 0.5785864022 | AA30: 0.99609828 | AB30: 0.9761987925 | AC30: 0.9565532804
A31: 27 | B31: 0.992389977 | C31: 0.989711225 | D31: 0.9642307758 | E31: 0.9649758935 | F31: 0.9551199079 | G31: 0.9704164267 | H31: 0.9037055969 | I31: 0.9129747152 | J31: 0.8804653883 | K31: 0.8574960828 | L31: 0.8800187111 | M31: 0.952118814 | N31: 0.8162137866 | O31: 0.9729779959 | P31: 0.8653967977 | Q31: 0.9643353224 | R31: 0.7536430113 | S31: 0.9834287167 | T31: 0.6437747637 | U31: 0.996099472 | V31: 0.9347011927 | W31: 0.9775791168 | X31: 0.9810655713 | Y31: 0.977748692 | Z31: 0.5829635628 | AA31: 0.9953662753 | AB31: 0.9766951799 | AC31: 0.9531388283
A32: 28 | B32: 0.992547214 | C32: 0.9896423817 | D32: 0.9613733292 | E32: 0.9623606205 | F32: 0.9520823956 | G32: 0.9680665731 | H32: 0.8964790106 | I32: 0.9068331718 | J32: 0.8698505759 | K32: 0.8478937745 | L32: 0.8703405857 | M32: 0.9481065273 | N32: 0.8179699779 | O32: 0.9709228277 | P32: 0.8576685786 | Q32: 0.9616883993 | R32: 0.7538552084 | S32: 0.9827749133 | T32: 0.6509274179 | U32: 0.9966639876 | V32: 0.9370844601 | W32: 0.9749094248 | X32: 0.9827842712 | Y32: 0.9756863713 | Z32: 0.5881754789 | AA32: 0.9945368171 | AB32: 0.9772276282 | AC32: 0.9495946169
A33: 29 | B33: 0.9926999211 | C33: 0.989616394 | D33: 0.9584214091 | E33: 0.9596477151 | F33: 0.9489371777 | G33: 0.9656116962 | H33: 0.8890510798 | I33: 0.9005262852 | J33: 0.8589696288 | K33: 0.8380954862 | L33: 0.8604508042 | M33: 0.9439206719 | N33: 0.8197789788 | O33: 0.9687901139 | P33: 0.849904418 | Q33: 0.9589517713 | R33: 0.7545506907 | S33: 0.9821513295 | T33: 0.6583999176 | U33: 0.9971929193 | V33: 0.9396125689 | W33: 0.9720231295 | X33: 0.9844465852 | Y33: 0.9734991789 | Z33: 0.5941472822 | AA33: 0.9936050773 | AB33: 0.9777953029 | AC33: 0.9459229708
A34: 30 | B34: 0.9928483963 | C34: 0.9896299243 | D34: 0.9553759098 | E34: 0.9568368196 | F34: 0.9456841946 | G34: 0.9630482793 | H34: 0.8814345002 | I34: 0.8940603733 | J34: 0.8478342891 | K34: 0.8281145096 | L34: 0.8503819704 | M34: 0.9395620227 | N34: 0.8216366768 | O34: 0.966578126 | P34: 0.8421162963 | Q34: 0.9561274052 | R34: 0.7557864412 | S34: 0.9815564752 | T34: 0.6662136615 | U34: 0.9976776838 | V34: 0.9422938042 | W34: 0.9689109921 | X34: 0.9860475063 | Y34: 0.9711833 | Z34: 0.6008038663 | AA34: 0.9925631881 | AB34: 0.9783987999 | AC34: 0.9421234727
A35: 31 | B35: 0.9929919839 | C35: 0.9896785021 | D35: 0.9522380829 | E35: 0.9539266825 | F35: 0.9423233867 | G35: 0.9603751898 | H35: 0.8736410737 | I35: 0.8874397278 | J35: 0.8364565969 | K35: 0.8179643154 | L35: 0.840167582 | M35: 0.9350289106 | N35: 0.8235387206 | O35: 0.9642866254 | P35: 0.8343163133 | Q35: 0.9532148838 | R35: 0.7576175955 | S35: 0.9809911251 | T35: 0.6743911804 | U35: 0.998108089 | V35: 0.9451336499 | W35: 0.9655665159 | X35: 0.9875817895 | Y35: 0.968734026 | Z35: 0.6080709592 | AA35: 0.9914044142 | AB35: 0.9790377021 | AC35: 0.9381963015
A36: 32 | B36: 0.9931309819 | C36: 0.9897571206 | D36: 0.949008882 | E36: 0.9509174228 | F36: 0.9388545156 | G36: 0.9575912952 | H36: 0.8656833172 | I36: 0.8806707859 | J36: 0.8248490095 | K36: 0.8076581955 | L36: 0.8298403025 | M36: 0.9303225279 | N36: 0.8254811168 | O36: 0.9619150758 | P36: 0.8265169859 | Q36: 0.9502171278 | R36: 0.7600460015 | S36: 0.9804518819 | T36: 0.6829540517 | U36: 0.9984744191 | V36: 0.948114403 | W36: 0.9619830251 | X36: 0.9890441895 | Y36: 0.9661477208 | Z36: 0.6158735139 | AA36: 0.9901220798 | AB36: 0.9797111154 | AC36: 0.9341418147
A37: 33 | B37: 0.9932652712 | C37: 0.9898605943 | D37: 0.9456893802 | E37: 0.9478089809 | F37: 0.9352775812 | G37: 0.9546942711 | H37: 0.8575726748 | I37: 0.8737587929 | J37: 0.8130233884 | K37: 0.7972080708 | L37: 0.8194277883 | M37: 0.9254412055 | N37: 0.8274595141 | O37: 0.9594612718 | P37: 0.8187664151 | Q37: 0.9471338987 | R37: 0.7630217093 | S37: 0.9799348116 | T37: 0.6919235549 | U37: 0.9987658858 | V37: 0.9512098372 | W37: 0.9581543803 | X37: 0.9904295802 | Y37: 0.9634206295 | Z37: 0.624136722 | AA37: 0.9887114167 | AB37: 0.9804189801 | AC37: 0.9299613237
A38: 34 | B38: 0.9933950901 | C38: 0.9899827838 | D38: 0.942280829 | E38: 0.9446002841 | F38: 0.9315922856 | G38: 0.9516826272 | H38: 0.849322319 | I38: 0.8667101264 | J38: 0.8009917736 | K38: 0.7866293788 | L38: 0.8089389205 | M38: 0.9203860164 | N38: 0.8294696212 | O38: 0.9569271803 | P38: 0.8111767173 | Q38: 0.943967402 | R38: 0.7664919676 | S38: 0.9794363976 | T38: 0.7012970672 | U38: 0.9989709854 | V38: 0.9543928915 | W38: 0.9540749192 | X38: 0.9917324781 | Y38: 0.960549593 | Z38: 0.6327858942 | AA38: 0.9871634841 | AB38: 0.9811581969 | AC38: 0.9256554246
A39: 35 | B39: 0.9935206771 | C39: 0.9901183844 | D39: 0.9387837052 | E39: 0.9412916899 | F39: 0.9277988076 | G39: 0.9485548735 | H39: 0.8409438133 | I39: 0.8595297933 | J39: 0.7887665033 | K39: 0.7759327888 | L39: 0.7983769178 | M39: 0.9151573181 | N39: 0.8315076232 | O39: 0.9543098211 | P39: 0.8038663864 | Q39: 0.9407179952 | R39: 0.7704046809 | S39: 0.9789506197 | T39: 0.7110450836 | U39: 0.9990789294 | V39: 0.9576367434 | W39: 0.9497392774 | X39: 0.9929475784 | Y39: 0.9575315118 | Z39: 0.6417460431 | AA39: 0.9854730964 | AB39: 0.9819294214 | AC39: 0.9212242961
A40: 36 | B40: 0.9936416745 | C40: 0.9902613759 | D40: 0.9351996183 | E40: 0.9378827214 | F40: 0.9238966107 | G40: 0.9453092217 | H40: 0.8324493766 | I40: 0.8522248268 | J40: 0.7763593197 | K40: 0.7651324272 | L40: 0.7877460122 | M40: 0.909755528 | N40: 0.8335689902 | O40: 0.9516093135 | P40: 0.7969540954 | Q40: 0.9373878241 | R40: 0.7747075747 | S40: 0.9784706235 | T40: 0.7211362515 | U40: 0.9990764856 | V40: 0.9609149877 | W40: 0.9451426268 | X40: 0.9940699935 | Y40: 0.9543619156 | Z40: 0.6509424796 | AA40: 0.9836338162 | AB40: 0.9827288985 | AC40: 0.9166691899
A41: 37 | B41: 0.9937586784 | C41: 0.9904062748 | D41: 0.9315292239 | E41: 0.9343727231 | F41: 0.9198843837 | G41: 0.9419443011 | H41: 0.8238503933 | I41: 0.8447995782 | J41: 0.7637825012 | K41: 0.7542403936 | L41: 0.7770500183 | M41: 0.9041815996 | N41: 0.8356494904 | O41: 0.9488238096 | P41: 0.7905585766 | Q41: 0.9339780211 | R41: 0.7793481362 | S41: 0.9779908061 | T41: 0.7315392777 | U41: 0.9989522099 | V41: 0.9642006231 | W41: 0.9402830005 | X41: 0.9950941205 | Y41: 0.9510384202 | Z41: 0.6603005143 | AA41: 0.9816393256 | AB41: 0.9835562706 | AC41: 0.911991477
A42: 38 | B42: 0.9938716888 | C42: 0.9905468225 | D42: 0.9277737141 | E42: 0.9307613969 | F42: 0.9157596231 | G42: 0.9384589791 | H42: 0.8151549101 | I42: 0.8372609019 | J42: 0.7510482073 | K42: 0.7432690263 | L42: 0.7662928104 | M42: 0.8984364867 | N42: 0.8377450705 | O42: 0.9459534287 | P42: 0.7847983241 | Q42: 0.9304900765 | R42: 0.7842741506 | S42: 0.977499783 | T42: 0.7422229288 | U42: 0.9986938834 | V42: 0.9674668271 | W42: 0.9351555109 | X42: 0.9960150123 | Y42: 0.9475572705 | Z42: 0.6697452792 | AA42: 0.9794837236 | AB42: 0.9844067097 | AC42: 0.9071909785
A43: 39 | B43: 0.9939808846 | C43: 0.9906790257 | D43: 0.9239342213 | E43: 0.9270489216 | F43: 0.9115198851 | G43: 0.9348515868 | H43: 0.8063703775 | I43: 0.8296144009 | J43: 0.73816818 | K43: 0.7322307825 | L43: 0.7554780841 | M43: 0.8925204873 | N43: 0.8398498893 | O43: 0.9429962039 | P43: 0.7797915936 | Q43: 0.9269255996 | R43: 0.7894332839 | S43: 0.9769890904 | T43: 0.7531555538 | U43: 0.9982885718 | V43: 0.9706871349 | W43: 0.9297590852 | X43: 0.9968271255 | Y43: 0.9439178109 | Z43: 0.6792176427 | AA43: 0.9771617055 | AB43: 0.9852797985 | AC43: 0.9022703767
A44: 40 | B44: 0.9940863252 | C44: 0.9907966852 | D44: 0.9200118184 | E44: 0.92323488 | F44: 0.9071629047 | G44: 0.9311211109 | H44: 0.7975050211 | I44: 0.8218662739 | J44: 0.7251548767 | K44: 0.7211374044 | L44: 0.7446098924 | M44: 0.886436522 | N44: 0.8419513702 | O44: 0.9399524927 | P44: 0.7756574154 | Q44: 0.9232850075 | R44: 0.7947730828 | S44: 0.9764487147 | T44: 0.7643063367 | U44: 0.9977223873 | V44: 0.9738343663 | W44: 0.9240913987 | X44: 0.9975252748 | Y44: 0.9401153922 | Z44: 0.6887050276 | AA44: 0.9746664762 | AB44: 0.9861701727 | AC44: 0.8972293735
A45: 41 | B45: 0.9941880703 | C45: 0.9908968806 | D45: 0.9160072803 | E45: 0.9193187952 | F45: 0.9026862979 | G45: 0.927267015 | H45: 0.7885658741 | I45: 0.8140220046 | J45: 0.7120200992 | K45: 0.710000813 | L45: 0.7336919904 | M45: 0.8801860213 | N45: 0.8440349102 | O45: 0.9368194938 | P45: 0.772501111 | Q45: 0.9195718765 | R45: 0.8002546247 | S45: 0.9758663774 | T45: 0.7756433881 | U45: 0.9969850183 | V45: 0.976882116 | W45: 0.9181519747 | X45: 0.9981042743 | Y45: 0.9361495972 | Z45: 0.6982036188 | AA45: 0.9719942808 | AB45: 0.9870764017 | AC45: 0.8920698166
A46: 42 | B46: 0.9942862988 | C46: 0.990975678 | D46: 0.9119217992 | E46: 0.9153007269 | F46: 0.8980876207 | G46: 0.9232878089 | H46: 0.7795609832 | I46: 0.8060879111 | J46: 0.6987761855 | K46: 0.6988319755 | L46: 0.7227283716 | M46: 0.8737701178 | N46: 0.8460860252 | O46: 0.9335973263 | P46: 0.7702724934 | Q46: 0.9157860875 | R46: 0.805868611 | S46: 0.9752302766 | T46: 0.7871355938 | U46: 0.9960609078 | V46: 0.9798035616 | W46: 0.9119408131 | X46: 0.9985591173 | Y46: 0.9320167899 | Z46: 0.7077100187 | AA46: 0.9691389203 | AB46: 0.9879919291 | AC46: 0.8867930174
A47: 43 | B47: 0.9943811297 | C47: 0.9910299778 | D47: 0.9077565074 | E47: 0.9111801982 | F47: 0.8933644295 | G47: 0.9191830754 | H47: 0.7704979181 | I47: 0.7980691791 | J47: 0.6854349971 | K47: 0.6876419187 | L47: 0.7117229104 | M47: 0.8671913743 | N47: 0.8480901122 | O47: 0.9302842021 | P47: 0.7688230872 | Q47: 0.9119303226 | R47: 0.811610154 | S47: 0.9745277762 | T47: 0.7987452829 | U47: 0.9949393868 | V47: 0.9825718211 | W47: 0.9054582715 | X47: 0.9988840818 | Y47: 0.9277157187 | Z47: 0.7172203528 | AA47: 0.96609658 | AB47: 0.988914609 | AC47: 0.8814011812
A48: 44 | B48: 0.9944726229 | C48: 0.991057694 | D48: 0.9035124183 | E48: 0.9069578052 | F48: 0.8885142803 | G48: 0.9149513245 | H48: 0.7613841295 | I48: 0.7899724841 | J48: 0.6720088124 | K48: 0.6764423251 | L48: 0.700679183 | M48: 0.8604524136 | N48: 0.8500326276 | O48: 0.9268788099 | P48: 0.7680017948 | Q48: 0.9080047011 | R48: 0.8174743064 | S48: 0.9737433791 | T48: 0.8104131473 | U48: 0.9936066866 | V48: 0.9851602506 | W48: 0.8987056017 | X48: 0.9990742803 | Y48: 0.9232454896 | Z48: 0.726730508 | AA48: 0.9628620744 | AB48: 0.9898386002 | AC48: 0.8758950233
A49: 45 | B49: 0.9945611954 | C49: 0.9910585284 | D49: 0.8991904259 | E49: 0.9026330709 | F49: 0.8835350871 | G49: 0.9105929136 | H49: 0.7522276044 | I49: 0.7818033099 | J49: 0.6585094929 | K49: 0.6652426124 | L49: 0.6896011829 | M49: 0.8535559177 | N49: 0.8518989086 | O49: 0.9233806133 | P49: 0.7676576972 | Q49: 0.9040113091 | R49: 0.823455823 | S49: 0.9728652239 | T49: 0.8220763029 | U49: 0.9920511842 | V49: 0.9875419683 | W49: 0.8916851878 | X49: 0.999124229 | Y49: 0.9186044931 | Z49: 0.7362373252 | AA49: 0.9594317079 | AB49: 0.9907594919 | AC49: 0.8702762723
A50: 46 | B50: 0.9946464896 | C50: 0.9910305738 | D50: 0.8947917223 | E50: 0.8982058764 | F50: 0.8784242272 | G50: 0.906106174 | H50: 0.7430356741 | I50: 0.7735667825 | J50: 0.6449490786 | K50: 0.6540536284 | L50: 0.6784930825 | M50: 0.8465051055 | N50: 0.8536748886 | O50: 0.9197875857 | P50: 0.7676404119 | Q50: 0.8999530077 | R50: 0.8295499352 | S50: 0.971875906 | T50: 0.8336714481 | U50: 0.9902607799 | V50: 0.9896903302 | W50: 0.8843994737 | X50: 0.9990286827 | Y50: 0.9137923717 | Z50: 0.7457363337 | AA50: 0.9558017254 | AB50: 0.9916729927 | AC50: 0.8645470142
A51: 47 | B51: 0.9947291017 | C51: 0.9909762144 | D51: 0.8903172016 | E51: 0.8936762214 | F51: 0.8731793165 | G51: 0.9014918208 | H51: 0.7338160872 | I51: 0.7652692795 | J51: 0.6313400269 | K51: 0.6428846121 | L51: 0.6673582792 | M51: 0.8393021822 | N51: 0.8553456068 | O51: 0.9160987735 | P51: 0.7677984834 | Q51: 0.8958296776 | R51: 0.8357516957 | S51: 0.9707599878 | T51: 0.8451351622 | U51: 0.9882242084 | V51: 0.9915786333 | W51: 0.876852572 | X51: 0.9987826943 | Y51: 0.9088072777 | Z51: 0.7552243742 | AA51: 0.9519677758 | AB51: 0.9925717711 | AC51: 0.8587089181
A52: 48 | B52: 0.9948089123 | C52: 0.9908955097 | D52: 0.8857679963 | E52: 0.8890442252 | F52: 0.8677976727 | G52: 0.8967490196 | H52: 0.7245764732 | I52: 0.7569165826 | J52: 0.6176941991 | K52: 0.6317451 | L52: 0.6562011242 | M52: 0.8319507837 | N52: 0.8568965793 | O52: 0.9123129845 | P52: 0.7679818869 | Q52: 0.8916429281 | R52: 0.8420559188 | S52: 0.969504714 | T52: 0.8564043224 | U52: 0.9859297276 | V52: 0.9931798761 | W52: 0.8690481782 | X52: 0.9983807206 | Y52: 0.903650403 | Z52: 0.7646975126 | AA52: 0.9479284883 | AB52: 0.9934508801 | AC52: 0.8527637124
A53: 49 | B53: 0.9948859811 | C53: 0.9907904267 | D53: 0.8811452985 | E53: 0.8843100071 | F53: 0.862277627 | G53: 0.8918778896 | H53: 0.7153245211 | I53: 0.7485138178 | J53: 0.6040235758 | K53: 0.6206445098 | L53: 0.6450247765 | M53: 0.8244554996 | N53: 0.8583135009 | O53: 0.9084293246 | P53: 0.7680934072 | Q53: 0.8873944879 | R53: 0.8484578362 | S53: 0.968092382 | T53: 0.867415985 | U53: 0.9833672047 | V53: 0.9944675939 | W53: 0.8609911203 | X53: 0.9978176951 | Y53: 0.8983209133 | Z53: 0.7741519937 | AA53: 0.9436802268 | AB53: 0.9943041205 | AC53: 0.8467137814
A54: 50 | B54: 0.9949607253 | C54: 0.9906647801 | D54: 0.8764497042 | E54: 0.8794736266 | F54: 0.8566163182 | G54: 0.8868787885 | H54: 0.7060679793 | I54: 0.7400658727 | J54: 0.5903401971 | K54: 0.6095908284 | L54: 0.6338338852 | M54: 0.816819787 | N54: 0.8595818281 | O54: 0.904446125 | P54: 0.768168509 | Q54: 0.8830850124 | R54: 0.8549517254 | S54: 0.9665068984 | T54: 0.8781095902 | U54: 0.9805269837 | V54: 0.9954149045 | W54: 0.8526871204 | X54: 0.9970880747 | Y54: 0.8928189278 | Z54: 0.7835839427 | AA54: 0.9392213821 | AB54: 0.9951245785 | AC54: 0.8405609131
A55: 51 | B55: 0.9950329065 | C55: 0.9905216098 | D55: 0.8716828823 | E55: 0.8745353222 | F55: 0.8508113027 | G55: 0.8817511797 | H55: 0.6968142986 | I55: 0.731579423 | J55: 0.5766564012 | K55: 0.5985931754 | L55: 0.6226295233 | M55: 0.8090468049 | N55: 0.8606867194 | O55: 0.9003610015 | P55: 0.7682638168 | Q55: 0.8787158728 | R55: 0.8615201222 | S55: 0.9647328258 | T55: 0.8884558119 | U55: 0.9773995876 | V55: 0.9959996943 | W55: 0.8441420197 | X55: 0.9961869121 | Y55: 0.8871452808 | Z55: 0.792989843 | AA55: 0.9345496893 | AB55: 0.9959070086 | AC55: 0.8343073726
A56: 52 | B56: 0.9951028824 | C56: 0.9903652072 | D56: 0.8668454289 | E56: 0.8694952726 | F56: 0.8448603749 | G56: 0.8764967918 | H56: 0.6875712872 | I56: 0.7230595946 | J56: 0.5629842281 | K56: 0.5876591206 | L56: 0.6114100814 | M56: 0.8011419177 | N56: 0.8616138101 | O56: 0.8961743712 | P56: 0.7684354186 | Q56: 0.8742889762 | R56: 0.868134177 | S56: 0.9627544284 | T56: 0.8984410601 | U56: 0.9739755988 | V56: 0.9962194003 | W56: 0.8353623748 | X56: 0.9951071143 | Y56: 0.8813009262 | Z56: 0.802365939 | AA56: 0.9296638966 | AB56: 0.9966433048 | AC56: 0.8279554248
A57: 53 | B57: 0.9951707125 | C57: 0.9902014732 | D57: 0.8619384766 | E57: 0.864353478 | F57: 0.8387610912 | G57: 0.8711143136 | H57: 0.6783462763 | I57: 0.7145105004 | J57: 0.5493357182 | K57: 0.5767961144 | L57: 0.6001737118 | M57: 0.7931088209 | N57: 0.8623486161 | O57: 0.8918842077 | P57: 0.7687395811 | Q57: 0.8698037267 | R57: 0.8747647428 | S57: 0.9605559707 | T57: 0.9080523405 | U57: 0.9702479839 | V57: 0.9960764067 | W57: 0.8263558745 | X57: 0.9938415289 | Y57: 0.8752877116 | Z57: 0.8117081179 | AA57: 0.9245635271 | AB57: 0.9973263144 | AC57: 0.8215072155
A58: 54 | B58: 0.995236516 | C58: 0.9900341034 | D58: 0.856963098 | E58: 0.8591108918 | F58: 0.8325110078 | G58: 0.8656051755 | H58: 0.6691473722 | I58: 0.705937922 | J58: 0.5357292891 | K58: 0.5660117269 | L58: 0.5889186263 | M58: 0.7849522829 | N58: 0.8628765941 | O58: 0.8874894977 | P58: 0.7692325115 | Q58: 0.865261972 | R58: 0.8813821952 | S58: 0.9581226707 | T58: 0.9172762418 | U58: 0.9662101865 | V58: 0.99557274 | W58: 0.8171300888 | X58: 0.992382884 | Y58: 0.8691055775 | Z58: 0.8210128628 | AA58: 0.919247508 | AB58: 0.9979493022 | AC58: 0.8149653077
A59: 55 | B59: 0.9953004122 | C59: 0.9898700118 | D59: 0.8519210815 | E59: 0.8537675142 | F59: 0.8261078 | G59: 0.8599706888 | H59: 0.6599819064 | I59: 0.6973472238 | J59: 0.5221924782 | K59: 0.5553122163 | L59: 0.5776427984 | M59: 0.7766782045 | N59: 0.8631833196 | O59: 0.8829889894 | P59: 0.769970715 | Q59: 0.8606638908 | R59: 0.8879577446 | S59: 0.9554408193 | T59: 0.9260998296 | U59: 0.9618548155 | V59: 0.9947104268 | W59: 0.8076934218 | X59: 0.9907237887 | Y59: 0.8627579808 | Z59: 0.8302767759 | AA59: 0.9137170911 | AB59: 0.9985045195 | AC59: 0.8083328009
A60: 56 | B60: 0.9953625202 | C60: 0.9897145033 | D60: 0.8468155861 | E60: 0.848323822 | F60: 0.8195490241 | G60: 0.8542112708 | H60: 0.6508576274 | I60: 0.6887431145 | J60: 0.5087531805 | K60: 0.5447044969 | L60: 0.5663444996 | M60: 0.7682909966 | N60: 0.8632540703 | O60: 0.8783807755 | P60: 0.7710099816 | Q60: 0.8560104966 | R60: 0.8944619457 | S60: 0.9524952173 | T60: 0.9345096329 | U60: 0.9571772814 | V60: 0.993491613 | W60: 0.7980546951 | X60: 0.9888569713 | Y60: 0.8562461734 | Z60: 0.8394951482 | AA60: 0.9079713821 | AB60: 0.9989854097 | AC60: 0.8016114235
A61: 57 | B61: 0.9954230189 | C61: 0.9895731807 | D61: 0.8416504264 | E61: 0.8427801132 | F61: 0.8128324151 | G61: 0.8483275771 | H61: 0.6417822242 | I61: 0.6801301241 | J61: 0.4954392016 | K61: 0.5341944098 | L61: 0.555021584 | M61: 0.7597957253 | N61: 0.8630797267 | O61: 0.8736646175 | P61: 0.7724068761 | Q61: 0.8513013721 | R61: 0.900865532 | S61: 0.9492719769 | T61: 0.9424927172 | U61: 0.9521728158 | V61: 0.9919184444 | W61: 0.7882230282 | X61: 0.9867749214 | Y61: 0.8495727777 | Z61: 0.8486605288 | AA61: 0.9020122886 | AB61: 0.9993829131 | AC61: 0.7948039174
A62: 58 | B62: 0.9954819083 | C62: 0.9894527197 | D62: 0.8364288807 | E62: 0.8371372819 | F62: 0.80595541 | G62: 0.8423212767 | H62: 0.632763207 | I62: 0.6715127826 | J62: 0.4822785854 | K62: 0.5237882137 | L62: 0.5436723828 | M62: 0.751198113 | N62: 0.862659812 | O62: 0.8688389063 | P62: 0.7742174268 | Q62: 0.8465380073 | R62: 0.9071393561 | S62: 0.9457604885 | T62: 0.9500359096 | U62: 0.9468380213 | V62: 0.9899932455 | W62: 0.7782084942 | X62: 0.9844706059 | Y62: 0.8427407742 | Z62: 0.8577610554 | AA62: 0.8958413005 | AB62: 0.9996896982 | AC62: 0.7879132032
A63: 59 | B63: 0.9955394864 | C63: 0.9893587828 | D63: 0.8311545253 | E63: 0.8313958049 | F63: 0.7989156246 | G63: 0.8361936808 | H63: 0.6238083243 | I63: 0.6628962755 | J63: 0.4692991972 | K63: 0.5134906173 | L63: 0.5322949886 | M63: 0.7425038218 | N63: 0.8619943857 | O63: 0.8639032245 | P63: 0.7764983177 | Q63: 0.841719389 | R63: 0.9132539728 | S63: 0.9419478774 | T63: 0.9571246663 | U63: 0.9411709905 | V63: 0.9877179238 | W63: 0.7680193186 | X63: 0.981936574 | Y63: 0.8357526064 | Z63: 0.8667854621 | AA63: 0.8894597292 | AB63: 0.9998980761 | AC63: 0.7809411883
A64: 60 | B64: 0.9955956936 | C64: 0.9892960191 | D64: 0.8258308768 | E64: 0.8255560994 | F64: 0.7917119861 | G64: 0.8299462199 | H64: 0.6149247885 | I64: 0.6542847157 | J64: 0.4565289915 | K64: 0.5033068061 | L64: 0.5208873749 | M64: 0.733718574 | N64: 0.8610838056 | O64: 0.8588557243 | P64: 0.7793015242 | Q64: 0.8368458748 | R64: 0.9191805923 | S64: 0.9378231168 | T64: 0.9637420591 | U64: 0.9351698756 | V64: 0.9850950422 | W64: 0.7576680183 | X64: 0.9791653156 | Y64: 0.8286116719 | Z64: 0.8757215889 | AA64: 0.8828698993 | AB64: 1 | AC64: 0.7738919258
A65: 61 | B65: 0.9956508875 | C65: 0.9892696738 | D65: 0.8204615712 | E65: 0.8196191788 | F65: 0.7843515873 | G65: 0.8235803843 | H65: 0.6061195731 | I65: 0.6456816196 | J65: 0.4439960122 | K65: 0.493241787 | L65: 0.5094478726 | M65: 0.7248482704 | N65: 0.8599278927 | O65: 0.8536958098 | P65: 0.7826250196 | Q65: 0.8319174051 | R65: 0.9249080086 | S65: 0.9333782196 | T65: 0.9698703255 | U65: 0.9288340211 | V65: 0.9821262102 | W65: 0.7471631765 | X65: 0.9761496186 | Y65: 0.8213226199 | Z65: 0.8845585274 | AA65: 0.8760753274 | AB65: 0.9999879003 | AC65: 0.7667670846
A66: 62 | B66: 0.9957050085 | C66: 0.989284575 | D66: 0.8150501251 | E66: 0.8135858774 | F66: 0.7768445015 | G66: 0.8170980811 | H66: 0.5973997712 | I66: 0.6370924115 | J66: 0.4317280948 | K66: 0.4832994938 | L66: 0.4979743063 | M66: 0.7158979177 | N66: 0.8585271239 | O66: 0.8484227061 | P66: 0.7864245176 | Q66: 0.8269324899 | R66: 0.9304513619 | S66: 0.9286025763 | T66: 0.9754914645 | U66: 0.9221639037 | V66: 0.9788139907 | W66: 0.7365174294 | X66: 0.972882092 | Y66: 0.8138874173 | Z66: 0.8932839983 | AA66: 0.8690788746 | AB66: 0.9998524189 | AC66: 0.7595704794
A67: 63 | B67: 0.9957582951 | C67: 0.9893453121 | D67: 0.8095998168 | E67: 0.8074572086 | F67: 0.769200623 | G67: 0.8105006814 | H67: 0.5887721777 | I67: 0.6285204291 | J67: 0.4197531044 | K67: 0.4734841883 | L67: 0.4864650965 | M67: 0.706874609 | N67: 0.8568816781 | O67: 0.8430358768 | P67: 0.7906547189 | Q67: 0.8218917251 | R67: 0.9358280569 | S67: 0.923488915 | T67: 0.980587475 | U67: 0.9151610732 | V67: 0.9751602316 | W67: 0.7257403135 | X67: 0.9693557024 | Y67: 0.8063117266 | Z67: 0.9018866163 | AA67: 0.8618838787 | AB67: 0.9995874763 | AC67: 0.7523041964
A68: 64 | B68: 0.9958106279 | C68: 0.9894530773 | D68: 0.8041145802 | E68: 0.8012335896 | F68: 0.7614300251 | G68: 0.8037906885 | H68: 0.5802438259 | I68: 0.6199697256 | J68: 0.4080992043 | K68: 0.4637993872 | L68: 0.4749181867 | M68: 0.6977844238 | N68: 0.8549916744 | O68: 0.8375343084 | P68: 0.7952696085 | Q68: 0.8167930841 | R68: 0.9410556774 | S68: 0.9180327058 | T68: 0.9851408331 | U68: 0.9078282714 | V68: 0.9711671382 | W68: 0.7148448229 | X68: 0.9655628204 | Y68: 0.7985985875 | Z68: 0.9103548771 | AA68: 0.8544949293 | AB68: 0.999183476 | AC68: 0.7449710965
A69: 65 | B69: 0.9958624244 | C69: 0.9896110296 | D69: 0.7985975742 | E69: 0.7949162126 | F69: 0.7535430193 | G69: 0.7969694734 | H69: 0.5718215108 | I69: 0.6114432216 | J69: 0.3967942894 | K69: 0.4542486072 | L69: 0.46333161 | M69: 0.6886339188 | N69: 0.8528571725 | O69: 0.8319175243 | P69: 0.8002241254 | Q69: 0.8116366863 | R69: 0.946151688 | S69: 0.9122273922 | T69: 0.9891335375 | U69: 0.900169611 | V69: 0.966837214 | W69: 0.7038396001 | X69: 0.9614961743 | Y69: 0.790753603 | Z69: 0.9186769783 | AA69: 0.8469163775 | AB69: 0.9986333847 | AC69: 0.7375745773
A70: 66 | B70: 0.9959136844 | C70: 0.9898210168 | D70: 0.7930526733 | E70: 0.7885059714 | F70: 0.7455495 | G70: 0.790040195 | H70: 0.5635123253 | I70: 0.6029450297 | J70: 0.3858659863 | K70: 0.44483459 | L70: 0.451703608 | M70: 0.6794282794 | N70: 0.8504787087 | O70: 0.82618469 | P70: 0.8054729104 | Q70: 0.8064213991 | R70: 0.951133732 | S70: 0.9060695767 | T70: 0.9925447264 | U70: 0.8921883702 | V70: 0.9621722471 | W70: 0.6927381754 | X70: 0.9571484923 | Y70: 0.7827802896 | Z70: 0.9268413557 | AA70: 0.839153111 | AB70: 0.9979293942 | AC70: 0.7301172018
A71: 67 | B71: 0.9959642887 | C71: 0.9900829792 | D71: 0.7874830961 | E71: 0.782004416 | F71: 0.7374597192 | G71: 0.7830045819 | H71: 0.5553231239 | I71: 0.5944787264 | J71: 0.3753426969 | K71: 0.435560286 | L71: 0.4400323033 | M71: 0.6701745987 | N71: 0.8478562236 | O71: 0.8203362226 | P71: 0.8109700084 | Q71: 0.801145196 | R71: 0.9560190355 | S71: 0.8995571136 | T71: 0.9953491863 | U71: 0.8838902712 | V71: 0.957174443 | W71: 0.6815513968 | X71: 0.9525123835 | Y71: 0.7746841908 | Z71: 0.9348364454 | AA71: 0.8312094212 | AB71: 0.9970644712 | AC71: 0.7226021886
A72: 68 | B72: 0.9960135221 | C72: 0.9903957844 | D72: 0.7818924785 | E72: 0.7754126787 | F72: 0.7292835712 | G72: 0.7758653164 | H72: 0.5472608805 | I72: 0.5860472918 | J72: 0.3652521074 | K72: 0.4264281988 | L72: 0.4283187091 | M72: 0.6608793736 | N72: 0.8449897766 | O72: 0.8143706918 | P72: 0.8166704178 | Q72: 0.7958068252 | R72: 0.960825242 | S72: 0.8926882744 | T72: 0.9975216443 | U72: 0.8752822876 | V72: 0.9518459474 | W72: 0.6702907085 | X72: 0.9475805759 | Y72: 0.7664706111 | Z72: 0.9426503853 | AA72: 0.823092103 | AB72: 0.9960291982 | AC72: 0.7150319219
A73: 69 | B73: 0.9960610271 | C73: 0.9907590747 | D73: 0.7762845159 | E73: 0.7687320113 | F73: 0.721031189 | G73: 0.7686241269 | H73: 0.5393326879 | I73: 0.5776535273 | J73: 0.3556221128 | K73: 0.4174404144 | L73: 0.4165871143 | M73: 0.6515492201 | N73: 0.8418800235 | O73: 0.8082885146 | P73: 0.8225284815 | Q73: 0.7904052138 | R73: 0.9655699351 | S73: 0.8854644895 | T73: 0.9990367679 | U73: 0.8663719893 | V73: 0.9461889657 | W73: 0.6589679122 | X73: 0.9423456788 | Y73: 0.7581443787 | Z73: 0.9502719095 | AA73: 0.814807415 | AB73: 0.9948177934 | AC73: 0.7074096203
A74: 70 | B74: 0.9961062074 | C74: 0.9911695123 | D74: 0.7706626058 | E74: 0.7619634271 | F74: 0.7127128243 | G74: 0.7612841725 | H74: 0.5315452218 | I74: 0.5693007112 | J74: 0.3464801908 | K74: 0.4085986018 | L74: 0.4048717916 | M74: 0.6421896219 | N74: 0.8385267258 | O74: 0.8020896912 | P74: 0.8284988999 | Q74: 0.7849379778 | R74: 0.9702688508 | S74: 0.8778846264 | T74: 0.9998691649 | U74: 0.8571668267 | V74: 0.9402057034 | W74: 0.6475942135 | X74: 0.9368005991 | Y74: 0.7497106791 | Z74: 0.9576808702 | AA74: 0.8063600063 | AB74: 0.9934219718 | AC74: 0.6997379065
A75: 71 | B75: 0.9961485863 | C75: 0.9916235209 | D75: 0.765030086 | E75: 0.7551090717 | F75: 0.7043383718 | G75: 0.7538477182 | H75: 0.5239055753 | I75: 0.5609911084 | J75: 0.3378295004 | K75: 0.3999047875 | L75: 0.3932079077 | M75: 0.6328070164 | N75: 0.8349298239 | O75: 0.795774281 | P75: 0.834536016 | Q75: 0.7794036865 | R75: 0.9748939148 | S75: 0.8699538708 | T75: 1 | U75: 0.8476756215 | V75: 0.9338993196 | W75: 0.6361820102 | X75: 0.9309375286 | Y75: 0.7411754131 | Z75: 0.9648033532 | AA75: 0.7977576256 | AB75: 0.9918351173 | AC75: 0.6920198798
A76: 72 | B76: 0.9961876869 | C76: 0.9921169877 | D76: 0.7593908906 | E76: 0.748169601 | F76: 0.6959180832 | G76: 0.7463179827 | H76: 0.5164207816 | I76: 0.5527278781 | J76: 0.329643786 | K76: 0.3913598955 | L76: 0.3816297054 | M76: 0.6234089136 | N76: 0.831083715 | O76: 0.7893428206 | P76: 0.8405944109 | Q76: 0.7738007903 | R76: 0.9793676393 | S76: 0.8616753817 | T76: 0.9994517445 | U76: 0.8379089832 | V76: 0.9272823313 | W76: 0.6247413754 | X76: 0.9247493744 | Y76: 0.7325435877 | Z76: 0.9715418392 | AA76: 0.7890064716 | AB76: 0.9900510907 | AC76: 0.6842584014
A77: 73 | B77: 0.9962227941 | C77: 0.9926450253 | D77: 0.7537481189 | E77: 0.7411471009 | F77: 0.6874619722 | G77: 0.7386972904 | H77: 0.5090975761 | I77: 0.5445128083 | J77: 0.3218945861 | K77: 0.3829652965 | L77: 0.3701722026 | M77: 0.6140000224 | N77: 0.8269791007 | O77: 0.7827944756 | P77: 0.8466284871 | Q77: 0.7681257129 | R77: 0.9836086025 | S77: 0.853054285 | T77: 0.9982639171 | U77: 0.8278772831 | V77: 0.9203725012 | W77: 0.6132841706 | X77: 0.9182291031 | Y77: 0.7238212228 | Z77: 0.9777998223 | AA77: 0.7801141143 | AB77: 0.9880617857 | AC77: 0.676455915
A78: 74 | B78: 0.9962537289 | C78: 0.993201077 | D78: 0.7481055856 | E78: 0.7340431809 | F78: 0.6789801121 | G78: 0.7309895158 | H78: 0.5019431114 | I78: 0.5363479853 | J78: 0.3145535886 | K78: 0.3747217059 | L78: 0.3588699102 | M78: 0.6045877934 | N78: 0.8226071 | O78: 0.7761303782 | P78: 0.852594614 | Q78: 0.7623782754 | R78: 0.9875362769 | S78: 0.8440970778 | T78: 0.9964756195 | U78: 0.8175920248 | V78: 0.9131875915 | W78: 0.6018214822 | X78: 0.9113690853 | Y78: 0.7150142193 | Z78: 0.9834802004 | AA78: 0.7710869908 | AB78: 0.9858611822 | AC78: 0.668615818
A79: 75 | B79: 0.9962795973 | C79: 0.9937791228 | D79: 0.7424669266 | E79: 0.7268596888 | F79: 0.6704825163 | G79: 0.7231963277 | H79: 0.4949642122 | I79: 0.5282363892 | J79: 0.3075926006 | K79: 0.3666296899 | L79: 0.3477574885 | M79: 0.5951780081 | N79: 0.8179584146 | O79: 0.7693508863 | P79: 0.8584563136 | Q79: 0.7565541863 | R79: 0.991069956 | S79: 0.8348112702 | T79: 0.9941260722 | U79: 0.807064712 | V79: 0.9057448879 | W79: 0.5903645754 | X79: 0.9041618705 | Y79: 0.7061281204 | Z79: 0.9884859311 | AA79: 0.761932373 | AB79: 0.9834432006 | AC79: 0.6607397795
A80: 76 | B80: 0.9962999821 | C80: 0.994371295 | D80: 0.7368353009 | E80: 0.7195984125 | F80: 0.6619793773 | G80: 0.7153208852 | H80: 0.4881677926 | I80: 0.5201789141 | J80: 0.3009831905 | K80: 0.3586898148 | L80: 0.3368696868 | M80: 0.5857766271 | N80: 0.8130239248 | O80: 0.7624567747 | P80: 0.8641803861 | Q80: 0.7506526709 | R80: 0.9941287545 | S80: 0.825206995 | T80: 0.9912545556 | U80: 0.7963088155 | V80: 0.8980624509 | W80: 0.5789238811 | X80: 0.8966004252 | Y80: 0.6971682906 | Z80: 0.9927198529 | AA80: 0.7526590824 | AB80: 0.9808021784 | AC80: 0.6528314948
A81: 77 | B81: 0.9963145256 | C81: 0.9949706197 | D81: 0.7312145233 | E81: 0.7122612 | F81: 0.6534808278 | G81: 0.7073668838 | H81: 0.4815608859 | I81: 0.5121778846 | J81: 0.2946971059 | K81: 0.3509021997 | L81: 0.3262413144 | M81: 0.5763890743 | N81: 0.8077945113 | O81: 0.7554488182 | P81: 0.869732976 | Q81: 0.7446708083 | R81: 0.9966319063 | S81: 0.8152927756 | T81: 0.9879005289 | U81: 0.7853369117 | V81: 0.8901576852 | W81: 0.5675097108 | X81: 0.8886771798 | Y81: 0.6881411076 | Z81: 0.996085281 | AA81: 0.7432740927 | AB81: 0.9779317975 | AC81: 0.6448928714
A82: 78 | B82: 0.9963225126 | C82: 0.9955692291 | D82: 0.725607872 | E82: 0.7048500776 | F82: 0.6449968219 | G82: 0.6993368268 | H82: 0.4751504064 | I82: 0.5042340755 | J82: 0.288706094 | K82: 0.3432663977 | L82: 0.3159069121 | M82: 0.5670214891 | N82: 0.8022608161 | O82: 0.7483282089 | P82: 0.8750811815 | Q82: 0.7386062741 | R82: 0.9984985262 | S82: 0.8050805926 | T82: 0.9841032127 | U82: 0.7741634846 | V82: 0.882048115 | W82: 0.5561333895 | X82: 0.8803849816 | Y82: 0.6790524125 | Z82: 0.9984850537 | AA82: 0.733784914 | AB82: 0.9748275876 | AC82: 0.6369264126
A83: 79 | B83: 0.9963235855 | C83: 0.9961584806 | D83: 0.7200192213 | E83: 0.6973674893 | F83: 0.6365373731 | G83: 0.6912338734 | H83: 0.4689432979 | I83: 0.4963496029 | J83: 0.2829816043 | K83: 0.3357827067 | L83: 0.3059011996 | M83: 0.5576806068 | N83: 0.7964138985 | O83: 0.7410960197 | P83: 0.8801912069 | Q83: 0.7324569821 | R83: 0.9996478481 | S83: 0.7945827842 | T83: 0.979901947 | U83: 0.762802422 | V83: 0.8737517411 | W83: 0.5448049903 | X83: 0.8717163205 | Y83: 0.6699072719 | Z83: 0.9998224267 | AA83: 0.7241994143 | AB83: 0.9714838862 | AC83: 0.6289350986
A84: 80 | B84: 0.9963169098 | C84: 0.9967309833 | D84: 0.7144517899 | E84: 0.6898152232 | F84: 0.6281129122 | G84: 0.6830615997 | H84: 0.4629465044 | I84: 0.4885253012 | J84: 0.277495712 | K84: 0.3284504116 | L84: 0.296258986 | M84: 0.5483698249 | N84: 0.7902445197 | O84: 0.7337530851 | P84: 0.8850296736 | Q84: 0.7262204289 | R84: 1 | S84: 0.7838115096 | T84: 0.9753357141 | U84: 0.7512692213 | V84: 0.8652857894 | W84: 0.5335336924 | X84: 0.8626642227 | Y84: 0.6607121229 | Z84: 1 | AA84: 0.7145255208 | AB84: 0.9678959846 | AC84: 0.6209210753
A85: 81 | B85: 0.9963023067 | C85: 0.9972782731 | D85: 0.7089092731 | E85: 0.682195425 | F85: 0.6197332144 | G85: 0.6748223901 | H85: 0.4571669996 | I85: 0.4807623923 | J85: 0.2722196877 | K85: 0.3212687075 | L85: 0.287014693 | M85: 0.539096117 | N85: 0.7837433815 | O85: 0.726300478 | P85: 0.8895630836 | Q85: 0.7198945284 | R85: 0.999520947 | S85: 0.7727817297 | T85: 0.9704442115 | U85: 0.7395768166 | V85: 0.8566683801 | W85: 0.5223289728 | X85: 0.85322088 | Y85: 0.6514719129 | Z85: 0.9989512506 | AA85: 0.7047709823 | AB85: 0.9640591145 | AC85: 0.6128863096
A86: 82 | B86: 0.9962791204 | C86: 0.9977930784 | D86: 0.7033951879 | E86: 0.6745110154 | F86: 0.611407876 | G86: 0.6665201783 | H86: 0.4516116977 | I86: 0.4730617106 | J86: 0.2671253979 | K86: 0.3142367899 | L86: 0.2782031894 | M86: 0.5298643112 | N86: 0.776901722 | O86: 0.7187402248 | P86: 0.8937581182 | Q86: 0.7134761214 | R86: 0.9982442472 | S86: 0.7615057826 | T86: 0.9652665408 | U86: 0.7277433872 | V86: 0.8479167392 | W86: 0.5112009048 | X86: 0.8433793187 | Y86: 0.6421933174 | Z86: 0.9966951936 | AA86: 0.6949443221 | AB86: 0.9599696994 | AC86: 0.6048340797
A87: 83 | B87: 0.9962468147 | C87: 0.9982678294 | D87: 0.6979141235 | E87: 0.6667643785 | F87: 0.6031420231 | G87: 0.6581575274 | H87: 0.4462875128 | I87: 0.4654237032 | J87: 0.2621867955 | K87: 0.3073539138 | L87: 0.2698591948 | M87: 0.520678103 | N87: 0.7697098255 | O87: 0.7110738158 | P87: 0.8975812197 | Q87: 0.706964314 | R87: 0.9962094789 | S87: 0.7500033975 | T87: 0.9598419226 | U87: 0.7157834172 | V87: 0.839048629 | W87: 0.5001580715 | X87: 0.8331320286 | Y87: 0.6328806877 | Z87: 0.9932665211 | AA87: 0.6850520968 | AB87: 0.9556246996 | AC87: 0.5967652798
A88: 84 | B88: 0.9962049723 | C88: 0.99869591 | D88: 0.6924718022 | E88: 0.6589577794 | F88: 0.5949382782 | G88: 0.6497380733 | H88: 0.4412013888 | I88: 0.4578490853 | J88: 0.2573919892 | K88: 0.3006185889 | L88: 0.2619994879 | M88: 0.5115433931 | N88: 0.7621588707 | O88: 0.7033026814 | P88: 0.9009990096 | Q88: 0.7003567219 | R88: 0.9934557437 | S88: 0.7382875085 | T88: 0.9542096969 | U88: 0.7037116885 | V88: 0.8300817526 | W88: 0.4892095923 | X88: 0.8224716187 | Y88: 0.6235402226 | Z88: 0.9886992098 | AA88: 0.6751030087 | AB88: 0.9510186911 | AC88: 0.5886827707
A89: 85 | B89: 0.9961528182 | C89: 0.9990714192 | D89: 0.6870738864 | E89: 0.6510940194 | F89: 0.5867995024 | G89: 0.6412649155 | H89: 0.4363569021 | I89: 0.4503385127 | J89: 0.2527342141 | K89: 0.2940290868 | L89: 0.2545875907 | M89: 0.5024647713 | N89: 0.7542396784 | O89: 0.6954292059 | P89: 0.9039794207 | Q89: 0.6936510801 | R89: 0.9900225603 | S89: 0.7263755202 | T89: 0.9484090248 | U89: 0.6915460825 | V89: 0.8210337529 | W89: 0.4783636928 | X89: 0.8113911152 | Y89: 0.6141765118 | Z89: 0.9830279518 | AA89: 0.6651046872 | AB89: 0.9461506009 | AC89: 0.5805882215
A90: 86 | B90: 0.9960899949 | C90: 0.999388814 | D90: 0.6817265749 | E90: 0.643176198 | F90: 0.5787283778 | G90: 0.6327416897 | H90: 0.431732893 | I90: 0.4428921938 | J90: 0.2482067943 | K90: 0.2875841856 | L90: 0.2475765049 | M90: 0.493445605 | N90: 0.7459431291 | O90: 0.6874551773 | P90: 0.9064930081 | Q90: 0.6868454814 | R90: 0.9859489705 | S90: 0.7142860293 | T90: 0.9424796039 | U90: 0.6793022752 | V90: 0.8119222734 | W90: 0.4676286876 | X90: 0.79988271 | Y90: 0.6047949195 | Z90: 0.9762870219 | AA90: 0.6550636888 | AB90: 0.941016078 | AC90: 0.572484374
A91: 87 | B91: 0.9960160255 | C91: 0.9996433854 | D91: 0.6764351726 | E91: 0.6352068186 | F91: 0.5707278252 | G91: 0.6241707802 | H91: 0.4272974133 | I91: 0.4355101883 | J91: 0.2438030988 | K91: 0.2812818885 | L91: 0.2409193963 | M91: 0.4844905138 | N91: 0.7372812033 | O91: 0.6793823838 | P91: 0.908510685 | Q91: 0.6799383759 | R91: 0.981274672 | S91: 0.7020363212 | T91: 0.9364566016 | U91: 0.6669967175 | V91: 0.8027649573 | W91: 0.4570117891 | X91: 0.7879394889 | Y91: 0.5954008102 | Z91: 0.9685108736 | AA91: 0.6449884772 | AB91: 0.9356147051 | AC91: 0.5643725991
A92: 88 | B92: 0.9959303141 | C92: 0.9998313785 | D92: 0.6712058783 | E92: 0.6271890998 | F92: 0.5628005862 | G92: 0.6155558825 | H92: 0.4230186939 | I92: 0.4281922877 | J92: 0.2395163029 | K92: 0.2751207054 | L92: 0.2345694005 | M92: 0.4756026864 | N92: 0.7283086181 | O92: 0.6712136269 | P92: 0.9100034237 | Q92: 0.6729285121 | R92: 0.9760385279 | S92: 0.6896455884 | T92: 0.9303405544 | U92: 0.6546438932 | V92: 0.7935794477 | W92: 0.4465211928 | X92: 0.7755538225 | Y92: 0.5859981179 | Z92: 0.9597340204 | AA92: 0.6348853707 | AB92: 0.9299436808 | AC92: 0.5562540889
A93: 89 | B93: 0.9958322048 | C93: 0.9999511242 | D93: 0.6660441756 | E93: 0.6191257834 | F93: 0.5549492836 | G93: 0.6069008708 | H93: 0.4188649058 | I93: 0.4209390879 | J93: 0.2353398055 | K93: 0.2690983117 | L93: 0.228479594 | M93: 0.4667856991 | N93: 0.7190849781 | O93: 0.6629511118 | P93: 0.9109416008 | Q93: 0.6658139229 | R93: 0.9702802356 | S93: 0.6771308184 | T93: 0.9241100042 | U93: 0.6422619224 | V93: 0.7843832688 | W93: 0.436163187 | X93: 0.7627186179 | Y93: 0.5765920281 | Z93: 0.9499907369 | AA93: 0.6247612238 | AB93: 0.9240013957 | AC93: 0.5481315851
A94: 90 | B94: 0.995721519 | C94: 0.9999995232 | D94: 0.6609563231 | E94: 0.6110205054 | F94: 0.5471770167 | G94: 0.5982081294 | H94: 0.4148043096 | I94: 0.4137496948 | J94: 0.2312670052 | K94: 0.2632119954 | L94: 0.2226033062 | M94: 0.458042711 | N94: 0.7096701264 | O94: 0.6545969844 | P94: 0.9112964272 | Q94: 0.6585943103 | R94: 0.9640387179 | S94: 0.6645119786 | T94: 0.9177440889 | U94: 0.6298658848 | V94: 0.7751940637 | W94: 0.4259451926 | X94: 0.7494264245 | Y94: 0.5671874285 | Z94: 0.9393155363 | AA94: 0.6146234274 | AB94: 0.917787075 | AC94: 0.5400062203
A95: 91 | B95: 0.9955977798 | C95: 0.9999771714 | D95: 0.6559476256 | E95: 0.6028763056 | F95: 0.5394862294 | G95: 0.5894814134 | H95: 0.4108048081 | I95: 0.4066242874 | J95: 0.2272911072 | K95: 0.2574597895 | L95: 0.2168934941 | M95: 0.4493766129 | N95: 0.7001243234 | O95: 0.6461541057 | P95: 0.9110385776 | Q95: 0.6512678266 | R95: 0.9573535531 | S95: 0.6518092155 | T95: 0.9112214099 | U95: 0.6174712777 | V95: 0.7660264954 | W95: 0.4158731997 | X95: 0.7356783152 | Y95: 0.5577880144 | Z95: 0.9277427532 | AA95: 0.6044775844 | AB95: 0.9112997055 | AC95: 0.5318806171
A96: 92 | B96: 0.9954618812 | C96: 0.9998841286 | D96: 0.651024282 | E96: 0.5946967006 | F96: 0.5318799019 | G96: 0.5807238817 | H96: 0.406834811 | I96: 0.3995622098 | J96: 0.2234054953 | K96: 0.2518394887 | L96: 0.211303398 | M96: 0.4407902956 | N96: 0.6905071139 | O96: 0.6376256943 | P96: 0.9101455808 | Q96: 0.6438347101 | R96: 0.9502639024 | S96: 0.6390401125 | T96: 0.9045208668 | U96: 0.6050934196 | V96: 0.7568811599 | W96: 0.4059529901 | X96: 0.7215086818 | Y96: 0.5483978987 | Z96: 0.9153067815 | AA96: 0.5943307281 | AB96: 0.9045397043 | AC96: 0.5237551928
A97: 93 | B97: 0.9953144789 | C97: 0.9997218251 | D97: 0.6461917758 | E97: 0.5864853859 | F97: 0.5243607163 | G97: 0.5719388127 | H97: 0.4028623104 | I97: 0.3925626874 | J97: 0.2196034938 | K97: 0.2463479936 | L97: 0.2057860941 | M97: 0.4322853982 | N97: 0.6808779836 | O97: 0.6290147901 | P97: 0.9086145759 | Q97: 0.6362937093 | R97: 0.9428088075 | S97: 0.6262251139 | T97: 0.8976214187 | U97: 0.5927482247 | V97: 0.7477550771 | W97: 0.3961910009 | X97: 0.7069609165 | Y97: 0.5390210152 | Z97: 0.9020419557 | AA97: 0.5841879249 | AB97: 0.8975067735 | AC97: 0.5156319141
A98: 94 | B98: 0.9951567054 | C98: 0.9994925857 | D98: 0.6414561272 | E98: 0.5782459974 | F98: 0.5169314146 | G98: 0.5631297827 | H98: 0.3988555968 | I98: 0.3856258094 | J98: 0.2158782929 | K98: 0.2409822047 | L98: 0.2002947032 | M98: 0.4238640964 | N98: 0.6712974906 | O98: 0.6203234792 | P98: 0.9064462781 | Q98: 0.6286445856 | R98: 0.9350125283 | S98: 0.6133831739 | T98: 0.8905016073 | U98: 0.5804497004 | V98: 0.7386454454 | W98: 0.3865912855 | X98: 0.6920775771 | Y98: 0.529661119 | Z98: 0.8879829677 | AA98: 0.5740553737 | AB98: 0.8902022243 | AC98: 0.5075129867
A99: 95 | B99: 0.9949889779 | C99: 0.9992005229 | D99: 0.6368231773 | E99: 0.5699818134 | F99: 0.5095947981 | G99: 0.5543000102 | H99: 0.3947826922 | I99: 0.3787505925 | J99: 0.2122233957 | K99: 0.235740006 | L99: 0.1947824955 | M99: 0.415528506 | N99: 0.6618251204 | O99: 0.6115556955 | P99: 0.9036414027 | Q99: 0.6208881736 | R99: 0.9268805483 | S99: 0.6005331874 | T99: 0.8831403919 | U99: 0.5682123899 | V99: 0.7295489864 | W99: 0.3771590889 | X99: 0.6769018769 | Y99: 0.5203217268 | Z99: 0.8731638541 | AA99: 0.5639379025 | AB99: 0.882625699 | AC99: 0.4993979931
A100: 96 | B100: 0.9948124886 | C100: 0.9988495111 | D100: 0.6322985888 | E100: 0.5616971254 | F100: 0.5023537278 | G100: 0.5454521775 | H100: 0.3906117976 | I100: 0.3719362915 | J100: 0.2086320966 | K100: 0.2306174934 | L100: 0.1892025024 | M100: 0.4072790146 | N100: 0.652520597 | O100: 0.602714479 | P100: 0.9002004862 | Q100: 0.6130238771 | R100: 0.9184178149 | S100: 0.5876945257 | T100: 0.8755166718 | U100: 0.5560498238 | V100: 0.7204630777 | W100: 0.367898792 | X100: 0.6614767909 | Y100: 0.5110058188 | Z100: 0.8576291421 | AA100: 0.553841114 | AB100: 0.87477988 | AC100: 0.4912906885
A101: 97 | B101: 0.994627893 | C101: 0.9984450936 | D101: 0.6278882027 | E101: 0.5533961058 | F101: 0.495210886 | G101: 0.5365909934 | H101: 0.3863111138 | I101: 0.3651823997 | J101: 0.2050976008 | K101: 0.225612402 | L101: 0.1835079044 | M101: 0.3991174102 | N101: 0.6434440017 | O101: 0.5938032866 | P101: 0.8961244226 | Q101: 0.6050527096 | R101: 0.9096286794 | S101: 0.574886024 | T101: 0.8676091082 | U101: 0.5439751744 | V101: 0.7113847389 | W101: 0.3588139117 | X101: 0.6458451152 | Y101: 0.501717329 | Z101: 0.8414497658 | AA101: 0.5437685251 | AB101: 0.8666660786 | AC101: 0.4831913114
A102: 98 | B102: 0.9944360256 | C102: 0.9979932904 | D102: 0.6235979199 | E102: 0.5450825095 | F102: 0.4881691933 | G102: 0.5277191997 | H102: 0.3818486929 | I102: 0.3584879935 | J102: 0.201613307 | K102: 0.2207206935 | L102: 0.1776541024 | M102: 0.3910441995 | N102: 0.6346549988 | O102: 0.5848261714 | P102: 0.8914136887 | Q102: 0.5969753861 | R102: 0.9005179101 | S102: 0.5621250868 | T102: 0.8593964218 | U102: 0.5320019126 | V102: 0.7023108705 | W102: 0.3499084115 | X102: 0.6300498247 | Y102: 0.4924583137 | Z102: 0.8247011893 | AA102: 0.5337259173 | AB102: 0.858287394 | AC102: 0.4751011133
A103: 99 | B103: 0.994237721 | C103: 0.9975004196 | D103: 0.619433403 | E103: 0.5367606878 | F103: 0.481231302 | G103: 0.5188400149 | H103: 0.3771927059 | I103: 0.3518520892 | J103: 0.1981724948 | K103: 0.2159388959 | L103: 0.1716341972 | M103: 0.3830603957 | N103: 0.6262136102 | O103: 0.5757861733 | P103: 0.8860689998 | Q103: 0.5887935162 | R103: 0.8910900968 | S103: 0.5494297743 | T103: 0.8508576313 | U103: 0.5201405883 | V103: 0.6932387306 | W103: 0.3411847949 | X103: 0.6141338944 | Y103: 0.4832316041 | Z103: 0.8074592344 | AA103: 0.5237159133 | AB103: 0.8496457934 | AC103: 0.4670223892
A104: 100 | B104: 0.9940338135 | C104: 0.9969744086 | D104: 0.6154006124 | E104: 0.5284351707 | F104: 0.4744003117 | G104: 0.5099573135 | H104: 0.3723115027 | I104: 0.3452740908 | J104: 0.1947685927 | K104: 0.2112639993 | L104: 0.1654718071 | M104: 0.3751653135 | N104: 0.6181793809 | O104: 0.5666875243 | P104: 0.8800910115 | Q104: 0.5805081725 | R104: 0.8813496503 | S104: 0.5368179083 | T104: 0.841971636 | U104: 0.5084033012 | V104: 0.6841653391 | W104: 0.3326457143 | X104: 0.5981404185 | Y104: 0.4740402997 | Z104: 0.7897996635 | AA104: 0.5137432814 | AB104: 0.8407452106 | AC104: 0.4589552879
A105: 101 | B105: 0.9938250184 | C105: 0.996421814 | D105: 0.6115052104 | E105: 0.5201104283 | F105: 0.4676840007 | G105: 0.5010746121 | H105: 0.3671917021 | I105: 0.3387531936 | J105: 0.1913948059 | K105: 0.2066922933 | L105: 0.1591916978 | M105: 0.3673593998 | N105: 0.6106125116 | O105: 0.5575343966 | P105: 0.8734804988 | Q105: 0.5721210837 | R105: 0.8713014583 | S105: 0.5243058801 | T105: 0.8327167992 | U105: 0.4968000054 | V105: 0.6750876559 | W105: 0.3242926896 | X105: 0.5821120739 | Y105: 0.4648861885 | Z105: 0.7717977021 | AA105: 0.5038104057 | AB105: 0.8315883279 | AC105: 0.4509030879
A106: 102 | B106: 0.9936124086 | C106: 0.9958512187 | D106: 0.6077532172 | E106: 0.511790812 | F106: 0.4610948861 | G106: 0.4921953082 | H106: 0.3618823886 | I106: 0.3322888911 | J106: 0.188044399 | K106: 0.2022202015 | L106: 0.152818501 | M106: 0.3596422076 | N106: 0.6035727262 | O106: 0.5483310819 | P106: 0.8662381172 | Q106: 0.5636349916 | R106: 0.8609499317 | S106: 0.5119088888 | T106: 0.8230723779 | U106: 0.4853400886 | V106: 0.6660028201 | W106: 0.3161276877 | X106: 0.5660921931 | Y106: 0.4557720125 | Z106: 0.7535291722 | AA106: 0.4939213097 | AB106: 0.8221806288 | AC106: 0.4428654909
A107: 103 | B107: 0.9933965802 | C107: 0.9952703714 | D107: 0.6041501164 | E107: 0.5034809709 | F107: 0.4546453953 | G107: 0.4833233953 | H107: 0.3564454913 | I107: 0.3258799016 | J107: 0.1847108006 | K107: 0.1978437006 | L107: 0.1463768929 | M107: 0.3520129919 | N107: 0.5971192718 | O107: 0.5390812755 | P107: 0.858364284 | Q107: 0.5550516248 | R107: 0.8502997792 | S107: 0.4996433854 | T107: 0.813016914 | U107: 0.4740327001 | V107: 0.6569077917 | W107: 0.3081513047 | X107: 0.5501235127 | Y107: 0.4466995001 | Z107: 0.7350699552 | AA107: 0.4840781093 | AB107: 0.8125258088 | AC107: 0.4348447025
A108: 104 | B108: 0.9931784868 | C108: 0.9946869016 | D108: 0.6007006168 | E108: 0.4951865077 | F108: 0.4483479857 | G108: 0.4744623899 | H108: 0.3509429097 | I108: 0.3195258081 | J108: 0.1813905984 | K108: 0.1935594976 | L108: 0.1398915052 | M108: 0.3444716036 | N108: 0.591283381 | O108: 0.5297896862 | P108: 0.8498610854 | Q108: 0.5463737845 | R108: 0.8393555906 | S108: 0.4875222147 | T108: 0.8025294261 | U108: 0.4628849924 | V108: 0.6477997693 | W108: 0.3003636003 | X108: 0.5342488885 | Y108: 0.4376705885 | Z108: 0.7164952768 | AA108: 0.4742830098 | AB108: 0.8026297092 | AC108: 0.4268434048
A109: 105 | B109: 0.9929590225 | C109: 0.9941089749 | D109: 0.5974081755 | E109: 0.4869113863 | F109: 0.4422149956 | G109: 0.465616405 | H109: 0.3454361856 | I109: 0.3132258058 | J109: 0.1780903935 | K109: 0.1893634051 | L109: 0.1333868951 | M109: 0.3370159864 | N109: 0.5860437751 | O109: 0.5204616189 | P109: 0.8407583237 | Q109: 0.537605226 | R109: 0.8281218362 | S109: 0.4755595028 | T109: 0.7915985892 | U109: 0.4519037902 | V109: 0.6386756534 | W109: 0.2927645147 | X109: 0.5185114741 | Y109: 0.4286876917 | Z109: 0.6978810184 | AA109: 0.4645386934 | AB109: 0.7924965024 | AC109: 0.4188618064
A110: 106 | B110: 0.9927387834 | C110: 0.9935442209 | D110: 0.5942764878 | E110: 0.4786618948 | F110: 0.4362589121 | G110: 0.4567889869 | H110: 0.3399874866 | I110: 0.3069795072 | J110: 0.1748183966 | K110: 0.1852519959 | L110: 0.1268879026 | M110: 0.3296459913 | N110: 0.5813745856 | O110: 0.5111014247 | P110: 0.8311184049 | Q110: 0.5287492275 | R110: 0.8166040596 | S110: 0.4637666047 | T110: 0.7802476496 | U110: 0.4410949945 | V110: 0.629532583 | W110: 0.285353303 | X110: 0.502954185 | Y110: 0.4197522104 | Z110: 0.6793025846 | AA110: 0.4548471868 | AB110: 0.7821338177 | AC110: 0.4109019935
A111: 107 | B111: 0.9925187826 | C111: 0.992998898 | D111: 0.5913090706 | E111: 0.4704420865 | F111: 0.4304921925 | G111: 0.4479844868 | H111: 0.3346587121 | I111: 0.3007864058 | J111: 0.1715832949 | K111: 0.1812213063 | L111: 0.1204190999 | M111: 0.3223595023 | N111: 0.577249527 | O111: 0.5017135739 | P111: 0.8210055232 | Q111: 0.5198091865 | R111: 0.8048175197 | S111: 0.4521554112 | T111: 0.7685081388 | U111: 0.4304628074 | V111: 0.6203677566 | W111: 0.2781285048 | X111: 0.4876199961 | Y111: 0.4108653963 | Z111: 0.6608357377 | AA111: 0.4452100098 | AB111: 0.7715467811 | AC111: 0.4029662013
A112: 108 | B112: 0.9922999144 | C112: 0.9924806952 | D112: 0.5885093212 | E112: 0.4622581005 | F112: 0.4249272943 | G112: 0.4392069876 | H112: 0.3295116127 | I112: 0.2946459055 | J112: 0.1683934033 | K112: 0.1772672981 | L112: 0.1140051037 | M112: 0.3151552081 | N112: 0.5736423731 | O112: 0.4923036098 | P112: 0.8104838133 | Q112: 0.5107898116 | R112: 0.7927860589 | S112: 0.4407345951 | T112: 0.7564107539 | U112: 0.4200108945 | V112: 0.611178015 | W112: 0.2710874975 | X112: 0.4725519121 | Y112: 0.4020296037 | Z112: 0.6425562995 | AA112: 0.435628593 | AB112: 0.7607429028 | AC112: 0.3950563073
A113: 109 | B113: 0.992082715 | C113: 0.9919946194 | D113: 0.5858808756 | E113: 0.454115212 | F113: 0.4195767045 | G113: 0.430460602 | H113: 0.3246077895 | I113: 0.2885577083 | J113: 0.1652572006 | K113: 0.1733864993 | L113: 0.1076695025 | M113: 0.308031708 | N113: 0.5705267191 | O113: 0.4828776121 | P113: 0.7996174097 | Q113: 0.5016949177 | R113: 0.7805328641 | S113: 0.4295133948 | T113: 0.743986788 | U113: 0.4097416997 | V113: 0.6019606165 | W113: 0.2642279863 | X113: 0.4577926993 | Y113: 0.3932465017 | Z113: 0.6245346674 | AA113: 0.4261035919 | AB113: 0.7497292757 | AC113: 0.3871741891
A114: 110 | B114: 0.9918680787 | C114: 0.9915463924 | D114: 0.5834270716 | E114: 0.4460189044 | F114: 0.4144529104 | G114: 0.4217498899 | H114: 0.3200095892 | I114: 0.2825219929 | J114: 0.1621831954 | K114: 0.1695750952 | L114: 0.1014325991 | M114: 0.3009870052 | N114: 0.5678766966 | O114: 0.4734399021 | P114: 0.7884706259 | Q114: 0.4925299883 | R114: 0.7680818967 | S114: 0.4184984863 | T114: 0.7312672958 | U114: 0.3996565938 | V114: 0.5927124615 | W114: 0.2575463951 | X114: 0.4433853924 | Y114: 0.3845168054 | Z114: 0.6068009436 | AA114: 0.4166378081 | AB114: 0.7385135889 | AC114: 0.3793222904
A115: 111 | B115: 0.9916570783 | C115: 0.9911398888 | D115: 0.5811517239 | E115: 0.4379754066 | F115: 0.4095681012 | G115: 0.4130794108 | H115: 0.3157786131 | I115: 0.2765384018 | J115: 0.1591795981 | K115: 0.1658291966 | L115: 0.09531421959 | M115: 0.2940194905 | N115: 0.5656660199 | O115: 0.4639967084 | P115: 0.7771071792 | Q115: 0.483300209 | R115: 0.7554567011 | S115: 0.407695502 | T115: 0.7182836896 | U115: 0.3897562027 | V115: 0.5834294969 | W115: 0.2510387003 | X115: 0.4293729961 | Y115: 0.3758431971 | Z115: 0.5893640695 | AA115: 0.407231003 | AB115: 0.7271047235 | AC115: 0.3715027869
A116: 112 | B116: 0.9914503098 | C116: 0.9907795787 | D116: 0.5790581107 | E116: 0.4299901128 | F116: 0.4049350023 | G116: 0.4044539034 | H116: 0.31196329 | I116: 0.2706072927 | J116: 0.1562550962 | K116: 0.1621454954 | L116: 0.08933427185 | M116: 0.2871272862 | N116: 0.5638684034 | O116: 0.4545547068 | P116: 0.7655919194 | Q116: 0.4740109146 | R116: 0.7426809409 | S116: 0.3971095085 | T116: 0.7050668454 | U116: 0.3800395131 | V116: 0.5741060602 | W116: 0.2447008044 | X116: 0.4157984853 | Y116: 0.3672268987 | Z116: 0.5722326285 | AA116: 0.3978844881 | AB116: 0.7155107856 | AC116: 0.3637183905
A117: 113 | B117: 0.9912487864 | C117: 0.9904665947 | D117: 0.5771489739 | E117: 0.4220691919 | F117: 0.4005660117 | G117: 0.3958779871 | H117: 0.3085590899 | I117: 0.2647291124 | J117: 0.1534180045 | K117: 0.1585199982 | L117: 0.08351258934 | M117: 0.2803083956 | N117: 0.5624576807 | O117: 0.4451184869 | P117: 0.7539883852 | Q117: 0.4646680951 | R117: 0.7297783392 | S117: 0.3867419958 | T117: 0.6916478178 | U117: 0.3705042005 | V117: 0.5647357735 | W117: 0.2385264933 | X117: 0.4027048051 | Y117: 0.3586694896 | Z117: 0.5554159793 | AA117: 0.3885994852 | AB117: 0.7037407756 | AC117: 0.3559718132
A118: 114 | B118: 0.9910532236 | C118: 0.990203023 | D118: 0.5754231215 | E118: 0.4142188132 | F118: 0.3964734077 | G118: 0.3873569071 | H118: 0.3055486083 | I118: 0.258903414 | J118: 0.1506769061 | K118: 0.1549499035 | L118: 0.0778690502 | M118: 0.2735615075 | N118: 0.5614076257 | O118: 0.4356952906 | P118: 0.7423527241 | Q118: 0.4552777112 | R118: 0.7167725 | S118: 0.3765946925 | T118: 0.6780579595 | U118: 0.3611479104 | V118: 0.5553120802 | W118: 0.2325108051 | X118: 0.3901349008 | Y118: 0.3501729965 | Z118: 0.5389222285 | AA118: 0.3793764114 | AB118: 0.6918048859 | AC118: 0.3482658863
A119: 115 | B119: 0.9908645153 | C119: 0.9899898171 | D119: 0.5738782287 | E119: 0.4064449966 | F119: 0.3926697969 | G119: 0.3788957894 | H119: 0.3029142022 | I119: 0.2531321943 | J119: 0.1480399966 | K119: 0.1514313072 | L119: 0.07242351025 | M119: 0.2668842077 | N119: 0.5606920719 | O119: 0.4262919128 | P119: 0.7307044268 | Q119: 0.4458472133 | R119: 0.7036869677 | S119: 0.3666672111 | T119: 0.6643282061 | U119: 0.3519667983 | V119: 0.5458290795 | W119: 0.2266469002 | X119: 0.3781316876 | Y119: 0.3417395949 | Z119: 0.5227609135 | AA119: 0.370216608 | AB119: 0.6797127724 | AC119: 0.3406035006
A120: 116 | B120: 0.990683198 | C120: 0.9898263216 | D120: 0.5725122094 | E120: 0.3987542093 | F120: 0.3891676068 | G120: 0.370500505 | H120: 0.3006384075 | I120: 0.2474153936 | J120: 0.1455159038 | K120: 0.1479616016 | L120: 0.06719581783 | M120: 0.2602756023 | N120: 0.5602846742 | O120: 0.4169138074 | P120: 0.7190517187 | Q120: 0.436383009 | R120: 0.6905455846 | S120: 0.3569580019 | T120: 0.6504898506 | U120: 0.3429555893 | V120: 0.5362800358 | W120: 0.2209282964 | X120: 0.3667382896 | Y120: 0.3333714902 | Z120: 0.5069404391 | AA120: 0.3611210883 | AB120: 0.6674749851 | AC120: 0.3329885006
A121: 117 | B121: 0.9905105233 | C121: 0.9897109866 | D121: 0.5713226795 | E121: 0.3911530077 | F121: 0.3859792054 | G121: 0.3621760905 | H121: 0.2987037897 | I121: 0.2417549044 | J121: 0.1431130022 | K121: 0.1445372999 | L121: 0.06220582873 | M121: 0.2537338138 | N121: 0.5601596236 | O121: 0.4075694084 | P121: 0.7074037194 | Q121: 0.4268920124 | R121: 0.6773720143 | S121: 0.3474633098 | T121: 0.6365700138 | U121: 0.3341087103 | V121: 0.5266589887 | W121: 0.2153470069 | X121: 0.3559974134 | Y121: 0.325070709 | Z121: 0.4914697763 | AA121: 0.3520906866 | AB121: 0.6551023722 | AC121: 0.3254239857
A122: 118 | B122: 0.9903470874 | C122: 0.989642024 | D122: 0.570307672 | E122: 0.3836475015 | F122: 0.3831171095 | G122: 0.3539286852 | H122: 0.2970929146 | I122: 0.2361513972 | J122: 0.1408398002 | K122: 0.1411561072 | L122: 0.05747340992 | M122: 0.2472577989 | N122: 0.560290277 | O122: 0.3982653916 | P122: 0.6957690716 | Q122: 0.4173826873 | R122: 0.6641897415 | S122: 0.3381788135 | T122: 0.6225688149 | U122: 0.3254201114 | V122: 0.5169595603 | W122: 0.2098955959 | X122: 0.3459522128 | Y122: 0.3168399036 | Z122: 0.4763578366 | AA122: 0.3431273103 | AB122: 0.6426066756 | AC122: 0.3179135025
A123: 119 | B123: 0.9901936054 | C123: 0.989616394 | D123: 0.569464922 | E123: 0.3762448132 | F123: 0.3805938065 | G123: 0.345764488 | H123: 0.2957879901 | I123: 0.230607301 | J123: 0.1387045979 | K123: 0.1378148049 | L123: 0.05301842839 | M123: 0.2408462018 | N123: 0.5606632233 | O123: 0.3890093863 | P123: 0.6841568947 | Q123: 0.4078629017 | R123: 0.6510202244 | S123: 0.329098314 | T123: 0.6084743923 | U123: 0.3168823123 | V123: 0.5071753728 | W123: 0.2045657039 | X123: 0.3366456032 | Y123: 0.3086821139 | Z123: 0.4616133228 | AA123: 0.3342317939 | AB123: 0.6299995184 | AC123: 0.3104617
A124: 120 | B124: 0.9900513291 | C124: 0.9896299243 | D124: 0.5687919855 | E124: 0.368951112 | F124: 0.3784216046 | G124: 0.3376897871 | H124: 0.2947717905 | I124: 0.2251241058 | J124: 0.1367159933 | K124: 0.1345116049 | L124: 0.04886072874 | M124: 0.2344985008 | N124: 0.5612983108 | O124: 0.3798086941 | P124: 0.6725757122 | Q124: 0.3983409107 | R124: 0.6378713309 | S124: 0.3202140033 | T124: 0.5942750036 | U124: 0.3084881902 | V124: 0.4973002571 | W124: 0.1993488073 | X124: 0.3281204998 | Y124: 0.3006001115 | Z124: 0.4472451165 | AA124: 0.3254063129 | AB124: 0.617292583 | AC124: 0.3030725121
A125: 121 | B125: 0.9899206161 | C125: 0.9896783829 | D125: 0.5682868958 | E125: 0.3617734909 | F125: 0.3766131103 | G125: 0.3297109902 | H125: 0.2940289974 | I125: 0.2197038978 | J125: 0.1348824054 | K125: 0.1312443018 | L125: 0.04501654953 | M125: 0.2282139063 | N125: 0.5622220039 | O125: 0.3706718087 | P125: 0.6610344052 | Q125: 0.3888253868 | R125: 0.6247428823 | S125: 0.3115180135 | T125: 0.5799586084 | U125: 0.3002286851 | V125: 0.487327895 | W125: 0.1942360997 | X125: 0.3204197884 | Y125: 0.2925977111 | Z125: 0.433262159 | AA125: 0.316652894 | AB125: 0.6044998765 | AC125: 0.2957507968
A126: 122 | B126: 0.9898024797 | C126: 0.9897568822 | D126: 0.5679464936 | E126: 0.3547186852 | F126: 0.3751806915 | G126: 0.3218351007 | H126: 0.2935489118 | I126: 0.2143494934 | J126: 0.1332121044 | K126: 0.1280110031 | L126: 0.04148244858 | M126: 0.2219928056 | N126: 0.5634604096 | O126: 0.3616065979 | P126: 0.6495419145 | Q126: 0.3793253899 | R126: 0.6116355938 | S126: 0.3030005991 | T126: 0.5655130472 | U126: 0.292095989 | V126: 0.4772519683 | W126: 0.1892185956 | X126: 0.3135867119 | Y126: 0.2846783996 | Z126: 0.4196731233 | AA126: 0.3079738021 | AB126: 0.5916330814 | AC126: 0.2885011137
A127: 123 | B127: 0.9896978736 | C127: 0.9898605943 | D127: 0.567767024 | E127: 0.3477934897 | F127: 0.3741368055 | G127: 0.3140690029 | H127: 0.2933216095 | I127: 0.2090636045 | J127: 0.1317137927 | K127: 0.1248098016 | L127: 0.03824833035 | M127: 0.2158346027 | N127: 0.5650393963 | O127: 0.3526220918 | P127: 0.638106823 | Q127: 0.3698506951 | R127: 0.5985494654 | S127: 0.2946515977 | T127: 0.5509267563 | U127: 0.2840811014 | V127: 0.4670662184 | W127: 0.1842873991 | X127: 0.3076638877 | Y127: 0.2768467069 | Z127: 0.406486891 | AA127: 0.2993721962 | AB127: 0.5787066817 | AC127: 0.2813288867
A128: 124 | B128: 0.9896073937 | C128: 0.9899824262 | D128: 0.5677446723 | E128: 0.3410044909 | F128: 0.3734939098 | G128: 0.306420505 | H128: 0.2933368981 | I128: 0.2038495988 | J128: 0.1303956956 | K128: 0.1216399968 | L128: 0.03530408815 | M128: 0.2097405046 | N128: 0.5669854283 | O128: 0.3437263966 | P128: 0.6267380714 | Q128: 0.3604108095 | R128: 0.5854853316 | S128: 0.2864592075 | T128: 0.5361878145 | U128: 0.2761752009 | V128: 0.4567642377 | W128: 0.1794334054 | X128: 0.3026944995 | Y128: 0.2691068947 | Z128: 0.3937177087 | AA128: 0.2908504903 | AB128: 0.5657343864 | AC128: 0.2742395103
A129: 125 | B129: 0.9895321131 | C129: 0.9901183844 | D129: 0.5678756833 | E129: 0.3343588114 | F129: 0.3732643127 | G129: 0.2988967001 | H129: 0.2935847938 | I129: 0.1987106055 | J129: 0.1292663068 | K129: 0.1185003966 | L129: 0.03263963014 | M129: 0.2037114054 | N129: 0.5693243742 | O129: 0.3349289894 | P129: 0.6154444814 | Q129: 0.3510161042 | R129: 0.5724433116 | S129: 0.2784124911 | T129: 0.5212841219 | U129: 0.2683689892 | V129: 0.4463398869 | W129: 0.1746474057 | X129: 0.2987213135 | Y129: 0.2614639997 | Z129: 0.381416124 | AA129: 0.2824133039 | AB129: 0.5527306795 | AC129: 0.2672390044
A130: 126 | B130: 0.9894726276 | C130: 0.9902613163 | D130: 0.5681561232 | E130: 0.3278628886 | F130: 0.3734501898 | G130: 0.2915062904 | H130: 0.2940553129 | I130: 0.1936510056 | J130: 0.1283341944 | K130: 0.1153905988 | L130: 0.03024484962 | M130: 0.1977486014 | N130: 0.5720824003 | O130: 0.3262394965 | P130: 0.6042348146 | Q130: 0.3416765034 | R130: 0.5594240611 | S130: 0.2704991996 | T130: 0.5062037573 | U130: 0.2606540918 | V130: 0.4357867286 | W130: 0.1699211001 | X130: 0.2957651019 | Y130: 0.2539238036 | Z130: 0.3696480043 | AA130: 0.2740646005 | AB130: 0.5397105813 | AC130: 0.2603330016
A131: 127 | B131: 0.9894297719 | C131: 0.9904062748 | D131: 0.5685819983 | E131: 0.3215234876 | F131: 0.374033004 | G131: 0.2842566073 | H131: 0.2947385013 | I131: 0.1886747032 | J131: 0.1276075989 | K131: 0.1123104021 | L131: 0.0281096492 | M131: 0.1918547004 | N131: 0.5752856731 | O131: 0.3176670074 | P131: 0.5931177735 | Q131: 0.3324038982 | R131: 0.5464276397 | S131: 0.2627069056 | T131: 0.4909350379 | U131: 0.2530224025 | V131: 0.4250986829 | W131: 0.1652456969 | X131: 0.2937974036 | Y131: 0.2464925051 | Z131: 0.3584789188 | AA131: 0.2658089995 | AB131: 0.5266895294 | AC131: 0.253528595
A132: 128 | B132: 0.9894046187 | C132: 0.9905471206 | D132: 0.5691496134 | E132: 0.3153477013 | F132: 0.3749915063 | G132: 0.2771565914 | H132: 0.2956241071 | I132: 0.1837860048 | J132: 0.1270951033 | K132: 0.1092602015 | L132: 0.0262239296 | M132: 0.1860321015 | N132: 0.5789604783 | O132: 0.3092220128 | P132: 0.5821022987 | Q132: 0.3232086897 | R132: 0.5334545838 | S132: 0.2550235987 | T132: 0.4754658935 | U132: 0.2454653978 | V132: 0.4142692231 | W132: 0.1606134027 | X132: 0.2927832901 | Y132: 0.2391763926 | Z132: 0.3479746452 | AA132: 0.2576524913 | AB132: 0.513682723 | AC132: 0.2468319982
A133: 129 | B133: 0.9893968105 | C133: 0.9906787872 | D133: 0.5698552728 | E133: 0.3093406856 | F133: 0.3763046861 | G133: 0.2702145875 | H133: 0.2967024148 | I133: 0.1789903939 | J133: 0.1268050969 | K133: 0.1062405035 | L133: 0.02457758971 | M133: 0.1802846044 | N133: 0.5831326842 | O133: 0.3009139001 | P133: 0.5711988807 | Q133: 0.3141027093 | R133: 0.5205053106 | S133: 0.2474374026 | T133: 0.4597959665 | U133: 0.237975806 | V133: 0.4032922695 | W133: 0.1560162008 | X133: 0.2926878035 | Y133: 0.2319826931 | Z133: 0.3382010509 | AA133: 0.2496004999 | AB133: 0.5007060766 | AC133: 0.2402507961
A134: 130 | B134: 0.9894062877 | C134: 0.9907969236 | D134: 0.5706949234 | E134: 0.3035100996 | F134: 0.3779512942 | G134: 0.2634396851 | H134: 0.2979629934 | I134: 0.1742929071 | J134: 0.1267461032 | K134: 0.103252098 | L134: 0.02316053025 | M134: 0.1746156067 | N134: 0.5878286958 | O134: 0.2927539945 | P134: 0.5604326725 | Q134: 0.3050982058 | R134: 0.5075823237 | S134: 0.2399363071 | T134: 0.444016126 | U134: 0.230546996 | V134: 0.3921616826 | W134: 0.1514474005 | X134: 0.2934758067 | Y134: 0.2249197066 | Z134: 0.3292238837 | AA134: 0.2416605055 | AB134: 0.48777771 | AC134: 0.2337923944
A135: 131 | B135: 0.9894322753 | C135: 0.9908971786 | D135: 0.571664691 | E135: 0.2978611887 | F135: 0.3799102902 | G135: 0.2568404078 | H135: 0.2993960977 | I135: 0.1696992069 | J135: 0.1269264072 | K135: 0.1002971008 | L135: 0.02196264081 | M135: 0.1690302044 | N135: 0.5930745006 | O135: 0.2847526073 | P135: 0.5498350859 | Q135: 0.2962065935 | R135: 0.4947358112 | S135: 0.2325100005 | T135: 0.4282604558 | U135: 0.2231733948 | V135: 0.3808908439 | W135: 0.1469002962 | X135: 0.2951123118 | Y135: 0.2179957926 | Z135: 0.3211088918 | AA135: 0.2338401973 | AB135: 0.474912703 | AC135: 0.2274644971
A136: 132 | B136: 0.9894744754 | C136: 0.990975678 | D136: 0.57276088 | E136: 0.2923999131 | F136: 0.3821605146 | G136: 0.2504267097 | H136: 0.300991714 | I136: 0.1652152985 | J136: 0.1273545027 | K136: 0.09737742692 | L136: 0.02097382955 | M136: 0.1635338068 | N136: 0.5988960862 | O136: 0.2769207954 | P136: 0.5394383073 | Q136: 0.2874416113 | R136: 0.4820620368 | S136: 0.2251477987 | T136: 0.4126632182 | U136: 0.2158495039 | V136: 0.369520762 | W136: 0.1423697025 | X136: 0.2975625098 | Y136: 0.2112199962 | Z136: 0.3139218232 | AA136: 0.2261483967 | AB136: 0.4621300995 | AC136: 0.2212754041
A137: 133 | B137: 0.9895321727 | C137: 0.9910299182 | D137: 0.5739796162 | E137: 0.2871313989 | F137: 0.384680897 | G137: 0.2442070991 | H137: 0.3027395904 | I137: 0.1608479023 | J137: 0.1280345023 | K137: 0.09449593723 | L137: 0.02018399909 | M137: 0.1581331044 | N137: 0.6053199172 | O137: 0.2692700028 | P137: 0.529274106 | Q137: 0.2788152993 | R137: 0.469658784 | S137: 0.2178404927 | T137: 0.3973587054 | U137: 0.2085714042 | V137: 0.3580945913 | W137: 0.1378514022 | X137: 0.3007911146 | Y137: 0.2046021968 | Z137: 0.3077283364 | AA137: 0.2185938954 | AB137: 0.4494468868 | AC137: 0.2152335048
A138: 134 | B138: 0.9896050096 | C138: 0.9910578728 | D138: 0.5753170252 | E138: 0.2820610106 | F138: 0.3874501884 | G138: 0.2381909937 | H138: 0.3046298921 | I138: 0.1566033065 | J138: 0.1289560944 | K138: 0.0916551128 | L138: 0.01958305016 | M138: 0.1528349072 | N138: 0.6123718023 | O138: 0.2618108094 | P138: 0.5193741918 | Q138: 0.2703414857 | R138: 0.4576242237 | S138: 0.2105800956 | T138: 0.3824810607 | U138: 0.201336503 | V138: 0.3466556353 | W138: 0.1333407015 | X138: 0.3047634065 | Y138: 0.1981534064 | Z138: 0.30256822 | AA138: 0.2111877054 | AB138: 0.4368816018 | AC138: 0.2093476057
A139: 135 | B139: 0.9896922708 | C139: 0.9910581708 | D139: 0.5767691731 | E139: 0.2771933079 | F139: 0.3904472888 | G139: 0.232387796 | H139: 0.3066524863 | I139: 0.1524884999 | J139: 0.1301065981 | K139: 0.0888595432 | L139: 0.01916087046 | M139: 0.1476476043 | N139: 0.620077908 | O139: 0.2545557022 | P139: 0.5097705126 | Q139: 0.2620334923 | R139: 0.4460564675 | S139: 0.2033603042 | T139: 0.3681647549 | U139: 0.1941439062 | V139: 0.3352468694 | W139: 0.128835693 | X139: 0.3094440997 | Y139: 0.1918842047 | Z139: 0.2983680663 | AA139: 0.2039411962 | AB139: 0.4244526029 | AC139: 0.2036262006
A140: 136 | B140: 0.9897937775 | C140: 0.9910311103 | D140: 0.5783324242 | E140: 0.2725327015 | F140: 0.3936511874 | G140: 0.2268068045 | H140: 0.3087973893 | I140: 0.1485106051 | J140: 0.1314730048 | K140: 0.08611311764 | L140: 0.01890737005 | M140: 0.1425801069 | N140: 0.6284617186 | O140: 0.2475157976 | P140: 0.5004948974 | Q140: 0.2539057136 | R140: 0.4350533285 | S140: 0.1961749047 | T140: 0.3545440506 | U140: 0.1869931966 | V140: 0.323911776 | W140: 0.1243349016 | X140: 0.3147985041 | Y140: 0.185806796 | Z140: 0.2950242463 | AA140: 0.196866706 | AB140: 0.4121795893 | AC140: 0.1980790943
A141: 137 | B141: 0.9899088144 | C141: 0.9909762144 | D141: 0.5800017715 | E141: 0.2680819929 | F141: 0.397040695 | G141: 0.2214560062 | H141: 0.311054498 | I141: 0.1446774006 | J141: 0.1330424994 | K141: 0.08342084289 | L141: 0.01881244034 | M141: 0.1376426071 | N141: 0.6375017166 | O141: 0.2407025993 | P141: 0.4915792048 | Q141: 0.2459719926 | R141: 0.4247131866 | S141: 0.1890209019 | T141: 0.341753061 | U141: 0.179886207 | V141: 0.3126935093 | W141: 0.1198384017 | X141: 0.3207913935 | Y141: 0.1799340993 | Z141: 0.2924333096 | AA141: 0.1899780035 | AB141: 0.4000818133 | AC141: 0.1927148998
A142: 138 | B142: 0.9900367856 | C142: 0.9908950925 | D142: 0.5817689896 | E142: 0.2638447881 | F142: 0.4005945921 | G142: 0.216344893 | H142: 0.3134138882 | I142: 0.1409958005 | J142: 0.134802103 | K142: 0.08078824729 | L142: 0.0188660007 | M142: 0.1328459978 | N142: 0.6471415162 | O142: 0.234127596 | P142: 0.4830552936 | Q142: 0.2382465005 | R142: 0.4151337954 | S142: 0.1818961054 | T142: 0.3299185085 | U142: 0.172826305 | V142: 0.3016350451 | W142: 0.1153474972 | X142: 0.3273878992 | Y142: 0.1742787957 | Z142: 0.2904913886 | AA142: 0.1832897961 | AB142: 0.3881789148 | AC142: 0.1875433028
A143: 139 | B143: 0.9901775122 | C143: 0.9907906055 | D143: 0.5836244226 | E143: 0.2598232031 | F143: 0.404291898 | G143: 0.2114807963 | H143: 0.3158654869 | I143: 0.1374733001 | J143: 0.1367388964 | K143: 0.07822126895 | L143: 0.0190579202 | M143: 0.1282020956 | N143: 0.6573237777 | O143: 0.2278023958 | P143: 0.4749554992 | Q143: 0.230744198 | R143: 0.4064132961 | S143: 0.1748010069 | T143: 0.3190576788 | U143: 0.1658183932 | V143: 0.2907799848 | W143: 0.1108653992 | X143: 0.3345529139 | Y143: 0.1688545048 | Z143: 0.2890950033 | AA143: 0.1768175066 | AB143: 0.376491189 | AC143: 0.1825736016
A144: 140 | B144: 0.9903302193 | C144: 0.9906647801 | D144: 0.5855584145 | E144: 0.2560186982 | F144: 0.4081113935 | G144: 0.206871599 | H144: 0.3183993101 | I144: 0.1341173053 | J144: 0.1388400048 | K144: 0.07572714239 | L144: 0.01937812939 | M144: 0.1237241998 | N144: 0.6679916978 | O144: 0.2217376977 | P144: 0.4673309922 | Q144: 0.2234795988 | R144: 0.3986396075 | S144: 0.1677366942 | T144: 0.3091061677 | U144: 0.1588699967 | V144: 0.2801711549 | W144: 0.1063966006 | X144: 0.3422513902 | Y144: 0.1636753976 | Z144: 0.2881437434 | AA144: 0.1705777049 | AB144: 0.3650391102 | AC144: 0.1778147966
A145: 141 | B145: 0.9904943705 | C145: 0.990521729 | D145: 0.5875614285 | E145: 0.2524326146 | F145: 0.412031889 | G145: 0.202523604 | H145: 0.3210051954 | I145: 0.1309351027 | J145: 0.1410925984 | K145: 0.07331264764 | L145: 0.01981724054 | M145: 0.1194256991 | N145: 0.6790875196 | O145: 0.2159444988 | P145: 0.4602586031 | Q145: 0.216467604 | R145: 0.3917880825 | S145: 0.1607079953 | T145: 0.2999978721 | U145: 0.1519903988 | V145: 0.269851978 | W145: 0.1019480005 | X145: 0.3504484892 | Y145: 0.1587553024 | Z145: 0.2876067913 | AA145: 0.1645884067 | AB145: 0.3538432121 | AC145: 0.1732756048
A146: 142 | B146: 0.9906696081 | C146: 0.9903652072 | D146: 0.5896239281 | E146: 0.2490645051 | F146: 0.4160324037 | G146: 0.1984428018 | H146: 0.3236731887 | I146: 0.1279329956 | J146: 0.1434838027 | K146: 0.0709862113 | L146: 0.02036966942 | M146: 0.1153213978 | N146: 0.6905542016 | O146: 0.2104319036 | P146: 0.4538167119 | Q146: 0.2097223997 | R146: 0.3857640371 | S146: 0.1537214965 | T146: 0.2916665698 | U146: 0.1451909989 | V146: 0.2598656384 | W146: 0.09752839804 | X146: 0.3591091931 | Y146: 0.1541078985 | Z146: 0.2875176769 | AA146: 0.1588679999 | AB146: 0.3429245055 | AC146: 0.1689646989
A147: 143 | B147: 0.9908552766 | C147: 0.9902012944 | D147: 0.5917363763 | E147: 0.245913893 | F147: 0.4200916886 | G147: 0.1946337968 | H147: 0.326393187 | I147: 0.125118196 | J147: 0.1460005939 | K147: 0.06875613332 | L147: 0.02103096992 | M147: 0.1114263013 | N147: 0.7023345232 | O147: 0.2052101046 | P147: 0.4480839074 | Q147: 0.2032583952 | R147: 0.3804720124 | S147: 0.146786198 | T147: 0.2840461281 | U147: 0.1384859979 | V147: 0.2502552905 | W147: 0.09314870089 | X147: 0.3681983948 | Y147: 0.1497472972 | Z147: 0.2879120159 | AA147: 0.1534346938 | AB147: 0.3323039114 | AC147: 0.1648896933
A148: 144 | B148: 0.9910510778 | C148: 0.9900342822 | D148: 0.5938891768 | E148: 0.2429791987 | F148: 0.4241887927 | G148: 0.1911001056 | H148: 0.3291553855 | I148: 0.1224950999 | J148: 0.1486302018 | K148: 0.06663113832 | L148: 0.0217967499 | M148: 0.1077561006 | N148: 0.7143710256 | O148: 0.2002868056 | P148: 0.4431385994 | Q148: 0.1970891953 | R148: 0.3758168176 | S148: 0.1399137974 | T148: 0.2770703545 | U148: 0.1318926066 | V148: 0.2410641631 | W148: 0.08882252127 | X148: 0.3776811063 | Y148: 0.1456860006 | Z148: 0.288825663 | AA148: 0.1483090073 | AB148: 0.3220019042 | AC148: 0.1610580981
A149: 145 | B149: 0.9912564754 | C149: 0.9898700118 | D149: 0.5960729122 | E149: 0.2402579039 | F149: 0.4283032119 | G149: 0.1878436953 | H149: 0.3319495022 | I149: 0.1200693026 | J149: 0.1513597071 | K149: 0.06462050229 | L149: 0.0226625707 | M149: 0.1043260023 | N149: 0.7266067863 | O149: 0.195669204 | P149: 0.4390555024 | Q149: 0.191228196 | R149: 0.3717023381 | S149: 0.1331191957 | T149: 0.2706732355 | U149: 0.1254304945 | V149: 0.2323354405 | W149: 0.08456622809 | X149: 0.3875224888 | Y149: 0.1419356018 | Z149: 0.2902946512 | AA149: 0.1435088962 | AB149: 0.3120394051 | AC149: 0.157475695
A150: 146 | B150: 0.9914708734 | C150: 0.9897143841 | D150: 0.5982778072 | E150: 0.237746805 | F150: 0.4324231148 | G150: 0.1848652065 | H150: 0.3347654939 | I150: 0.1178440973 | J150: 0.1541761011 | K150: 0.0627329424 | L150: 0.02362403087 | M150: 0.1011513993 | N150: 0.7389842272 | O150: 0.1913630962 | P150: 0.4358358085 | Q150: 0.1856877059 | R150: 0.3680397612 | S150: 0.1264203042 | T150: 0.2648484826 | U150: 0.1191233024 | V150: 0.2241124111 | W150: 0.08039976656 | X150: 0.3976872861 | Y150: 0.1385069937 | Z150: 0.2923544775 | AA150: 0.1390534937 | AB150: 0.3024367988 | AC150: 0.1541475058
A151: 147 | B151: 0.9916936159 | C151: 0.9895734787 | D151: 0.600494504 | E151: 0.2354415953 | F151: 0.4365414083 | G151: 0.1821638048 | H151: 0.3375937045 | I151: 0.1158223003 | J151: 0.1570670009 | K151: 0.06097812951 | L151: 0.02467669919 | M151: 0.0982465893 | N151: 0.7514461875 | O151: 0.187371999 | P151: 0.4334171116 | Q151: 0.1804786026 | R151: 0.3648345705 | S151: 0.1198387966 | T151: 0.2597410873 | U151: 0.1129977033 | V151: 0.216438304 | W151: 0.07634591311 | X151: 0.4081406891 | Y151: 0.1354079992 | Z151: 0.2950396551 | AA151: 0.1349602938 | AB151: 0.2932134867 | AC151: 0.151077196
A152: 148 | B152: 0.9919245839 | C152: 0.9894527793 | D152: 0.6027132273 | E152: 0.2333374023 | F152: 0.440651089 | G152: 0.1797363013 | H152: 0.3404250145 | I152: 0.1140047014 | J152: 0.1600224972 | K152: 0.05936415866 | L152: 0.02581615932 | M152: 0.09562438726 | N152: 0.7639356256 | O152: 0.1836988032 | P152: 0.4317347109 | Q152: 0.1756107062 | R152: 0.3621672341 | S152: 0.1133998036 | T152: 0.255519794 | U152: 0.1070848033 | V152: 0.2093560946 | W152: 0.07243186235 | X152: 0.4188477099 | Y152: 0.1326449066 | Z152: 0.2983661589 | AA152: 0.1312447935 | AB152: 0.2843886912 | AC152: 0.1482672989
A153: 149 | B153: 0.9921628833 | C153: 0.989358604 | D153: 0.6049246788 | E153: 0.2314283997 | F153: 0.4447453916 | G153: 0.1775788963 | H153: 0.3432517052 | I153: 0.1123915985 | J153: 0.163034603 | K153: 0.05789957941 | L153: 0.02703800984 | M153: 0.09329605103 | N153: 0.7763949037 | O153: 0.1803438067 | P153: 0.4307237864 | Q153: 0.1710916013 | R153: 0.3601197698 | S153: 0.1071330011 | T153: 0.2523531087 | U153: 0.1014193967 | V153: 0.2029092951 | W153: 0.06868846714 | X153: 0.4297732115 | Y153: 0.1302210987 | Z153: 0.302337327 | AA153: 0.1279200017 | AB153: 0.2759797871 | AC153: 0.145718202
A154: 150 | B154: 0.992408216 | C154: 0.9892960191 | D154: 0.6071192026 | E154: 0.2297078073 | F154: 0.4488170147 | G154: 0.1756848991 | H154: 0.3460657895 | I154: 0.110980697 | J154: 0.1660953015 | K154: 0.05659103021 | L154: 0.02833781019 | M154: 0.09126927704 | N154: 0.7887669802 | O154: 0.1773051023 | P154: 0.4303207099 | Q154: 0.1669272929 | R154: 0.3587746424 | S154: 0.1010728031 | T154: 0.2504095674 | U154: 0.09604098648 | V154: 0.1971408213 | W154: 0.06515098363 | X154: 0.440882206 | Y154: 0.1281359941 | Z154: 0.3069561101 | AA154: 0.124995701 | AB154: 0.2680037022 | AC154: 0.1434284002
A155: 151 | B155: 0.9926599264 | C155: 0.9892702103 | D155: 0.6092870831 | E155: 0.2281690985 | F155: 0.4528591931 | G155: 0.1740469038 | H155: 0.3488593102 | I155: 0.1097690016 | J155: 0.1691965014 | K155: 0.05544450879 | L155: 0.02971114963 | M155: 0.08954927325 | N155: 0.800994575 | O155: 0.1745790988 | P155: 0.4304774106 | Q155: 0.1631211936 | R155: 0.3582093395 | S155: 0.0952584818 | T155: 0.2498362625 | U155: 0.09099333733 | V155: 0.1920941406 | W155: 0.06185851991 | X155: 0.4521397948 | Y155: 0.1263868064 | Z155: 0.3122257271 | AA155: 0.1224777997 | AB155: 0.260474205 | AC155: 0.1413951963
A156: 152 | B156: 0.9929177761 | C156: 0.989284873 | D156: 0.6114192009 | E156: 0.2268034071 | F156: 0.456864804 | G156: 0.1726550013 | H156: 0.3516243994 | I156: 0.1087512001 | J156: 0.1723302007 | K156: 0.05446353182 | L156: 0.03115361929 | M156: 0.08813721687 | N156: 0.813020587 | O156: 0.172159493 | P156: 0.4311603904 | Q156: 0.1596740037 | R156: 0.3584249343 | S156: 0.08973508328 | T156: 0.2505787887 | U156: 0.08632332087 | V156: 0.1878123777 | W156: 0.05885403976 | X156: 0.4635109007 | Y156: 0.124966301 | Z156: 0.31814889 | AA156: 0.1203669012 | AB156: 0.2534045875 | AC156: 0.1396131963
A157: 153 | B157: 0.9931809902 | C157: 0.9893453121 | D157: 0.6135088205 | E157: 0.2256031036 | F157: 0.4608269036 | G157: 0.1714982986 | H157: 0.3543531895 | I157: 0.1079206988 | J157: 0.1754882932 | K157: 0.05365021154 | L157: 0.03266078979 | M157: 0.08702983707 | N157: 0.8247944713 | O157: 0.1700379997 | P157: 0.4323365986 | Q157: 0.1565836072 | R157: 0.3593595555 | S157: 0.08455242217 | T157: 0.2524719332 | U157: 0.08208093047 | V157: 0.1843386272 | W157: 0.05618168041 | X157: 0.474960506 | Y157: 0.1238645986 | Z157: 0.3247289072 | AA157: 0.1186594963 | AB157: 0.2468044013 | AC157: 0.138075605
A158: 154 | B158: 0.9934492707 | C158: 0.9894530773 | D158: 0.6155536175 | E158: 0.2245592028 | F158: 0.4647386074 | G158: 0.1705642045 | H158: 0.3570376933 | I158: 0.1072695032 | J158: 0.1786627024 | K158: 0.05300426111 | L158: 0.03422823921 | M158: 0.08621957898 | N158: 0.8362954855 | O158: 0.1682038009 | P158: 0.4339728951 | Q158: 0.153844595 | R158: 0.3609493952 | S158: 0.07976584136 | T158: 0.2553497978 | U158: 0.07831604779 | V158: 0.1817161927 | W158: 0.05388655886 | X158: 0.486453712 | Y158: 0.1230674013 | Z158: 0.3319686696 | AA158: 0.117345497 | AB158: 0.2406803966 | AC158: 0.1367737055
A159: 155 | B159: 0.9937220216 | C159: 0.9896115065 | D159: 0.6175510287 | E159: 0.2236623019 | F159: 0.4685927927 | G159: 0.1698396057 | H159: 0.3596701026 | I159: 0.1067876965 | J159: 0.1818453968 | K159: 0.05252277106 | L159: 0.03585157171 | M159: 0.08569475263 | N159: 0.8475106955 | O159: 0.1666450948 | P159: 0.4360362887 | Q159: 0.1514489949 | R159: 0.3631306451 | S159: 0.07543397695 | T159: 0.2590460521 | U159: 0.07507675141 | V159: 0.179988154 | W159: 0.05200881884 | X159: 0.4979555011 | Y159: 0.1225577965 | Z159: 0.3398713366 | AA159: 0.1164107025 | AB159: 0.235036701 | AC159: 0.1356963068
A160: 156 | B160: 0.9939985871 | C160: 0.9898210764 | D160: 0.6194986105 | E160: 0.2229025066 | F160: 0.4723824859 | G160: 0.1693097055 | H160: 0.3622424006 | I160: 0.1064648032 | J160: 0.1850282997 | K160: 0.05220096931 | L160: 0.03752633929 | M160: 0.08543934673 | N160: 0.8584268093 | O160: 0.1653468013 | P160: 0.4384934902 | Q160: 0.149385795 | R160: 0.3658397951 | S160: 0.07161728293 | T160: 0.2633947531 | U160: 0.0724042207 | V160: 0.1791729441 | W160: 0.05058234185 | X160: 0.5094308853 | Y160: 0.1223165989 | Z160: 0.3484397692 | AA160: 0.1158351973 | AB160: 0.2298735976 | AC160: 0.1348318011
A161: 157 | B161: 0.994278729 | C161: 0.9900829792 | D161: 0.621393919 | E161: 0.222270295 | F161: 0.476100713 | G161: 0.1689586937 | H161: 0.3647466004 | I161: 0.1062889993 | J161: 0.1882034987 | K161: 0.05203088 | L161: 0.03924814984 | M161: 0.08543408662 | N161: 0.8690308928 | O161: 0.1642934978 | P161: 0.4413115978 | Q161: 0.1476400942 | R161: 0.3690128581 | S161: 0.06837230176 | T161: 0.268229779 | U161: 0.07032925636 | V161: 0.1792142508 | W161: 0.04962772876 | X161: 0.520844698 | Y161: 0.1223213002 | Z161: 0.357677246 | AA161: 0.1155942976 | AB161: 0.2251866013 | AC161: 0.1341661066
A162: 158 | B162: 0.9945617914 | C162: 0.9903962016 | D162: 0.6232345104 | E162: 0.2217555046 | F162: 0.4797405899 | G162: 0.168771103 | H162: 0.3671750128 | I162: 0.1062474996 | J162: 0.1913626939 | K162: 0.05200307071 | L162: 0.04101257026 | M162: 0.08565624058 | N162: 0.8793094158 | O162: 0.1634676009 | P162: 0.4444574118 | Q162: 0.1461953968 | R162: 0.3725861453 | S162: 0.06574845314 | T162: 0.2733849783 | U162: 0.06886606663 | V162: 0.1800427676 | W162: 0.04915031046 | X162: 0.5321620703 | Y162: 0.1225484014 | Z162: 0.3675864792 | AA162: 0.1156599969 | AB162: 0.2209690064 | AC162: 0.1336846948
A163: 159 | B163: 0.9948471189 | C163: 0.9907590747 | D163: 0.6250178218 | E163: 0.2213483006 | F163: 0.4832949936 | G163: 0.1687301993 | H163: 0.3695195019 | I163: 0.1063269004 | J163: 0.1944980025 | K163: 0.05210575834 | L163: 0.04281517863 | M163: 0.0860812664 | N163: 0.8892496228 | O163: 0.1628506035 | P163: 0.4478979111 | Q163: 0.1450324953 | R163: 0.3764959379 | S163: 0.06377995014 | T163: 0.2786941994 | U163: 0.06801035255 | V163: 0.1815887859 | W163: 0.04913717881 | X163: 0.5433480144 | Y163: 0.1229728013 | Z163: 0.3781707472 | AA163: 0.1160015017 | AB163: 0.2172084004 | AC163: 0.1333716959
A164: 160 | B164: 0.9951338172 | C164: 0.9911693931 | D164: 0.6267414093 | E164: 0.2210386992 | F164: 0.4867570996 | G164: 0.1688199043 | H164: 0.3717722893 | I164: 0.1065135002 | J164: 0.1976011992 | K164: 0.05232632905 | L164: 0.04465157166 | M164: 0.08668284863 | N164: 0.898838222 | O164: 0.1624237001 | P164: 0.451599896 | Q164: 0.1441300064 | R164: 0.3806785172 | S164: 0.06247971952 | T164: 0.284055516 | U164: 0.06773799658 | V164: 0.183782612 | W164: 0.04955831915 | X164: 0.5543674827 | Y164: 0.1235691011 | Z164: 0.389432941 | AA164: 0.1165859029 | AB164: 0.2138894945 | AC164: 0.1332107037
A165: 161 | B165: 0.9954203963 | C165: 0.9916235209 | D165: 0.6284028888 | E165: 0.2208164036 | F165: 0.4901196957 | G165: 0.1690230072 | H165: 0.3739255071 | I165: 0.1067937016 | J165: 0.2006645054 | K165: 0.0526503697 | L165: 0.04651731998 | M165: 0.08743426949 | N165: 0.9080619812 | O165: 0.1621668935 | P165: 0.4555304945 | Q165: 0.1434649974 | R165: 0.3850701344 | S165: 0.06183597073 | T165: 0.2895439424 | U165: 0.06800418347 | V165: 0.1865549544 | W165: 0.05036925897 | X165: 0.5651854873 | Y165: 0.1243112981 | Z165: 0.4013762794 | AA165: 0.1173788011 | AB165: 0.2109926045 | AC165: 0.1331848949
A166: 162 | B166: 0.9957063198 | C166: 0.9921175241 | D166: 0.6299998164 | E166: 0.2206721008 | F166: 0.4933759868 | G166: 0.1693239063 | H166: 0.3759711087 | I166: 0.1071531028 | J166: 0.2036796957 | K166: 0.05306312814 | L166: 0.04840802029 | M166: 0.08830852807 | N166: 0.9169082046 | O166: 0.1620603949 | P166: 0.4596565068 | Q166: 0.1430138052 | R166: 0.3896070114 | S166: 0.06180975959 | T166: 0.2952650703 | U166: 0.06874939054 | V166: 0.1898360002 | W166: 0.05151459947 | X166: 0.5757669806 | Y166: 0.1251740009 | Z166: 0.4140035641 | AA166: 0.1183459014 | AB166: 0.2084949017 | AC166: 0.133277595
A167: 163 | B167: 0.9959899187 | C167: 0.9926453829 | D167: 0.6315296888 | E167: 0.2205958962 | F167: 0.4965189099 | G167: 0.1697057933 | H167: 0.3779012859 | I167: 0.1075783968 | J167: 0.2066386044 | K167: 0.05354955047 | L167: 0.05031922832 | M167: 0.08927903324 | N167: 0.9253633022 | O167: 0.1620842963 | P167: 0.4639435112 | Q167: 0.1427520066 | R167: 0.3942255187 | S167: 0.06233948097 | T167: 0.3013245813 | U167: 0.06990326941 | V167: 0.1935561598 | W167: 0.05293463916 | X167: 0.5860772133 | Y167: 0.1261323988 | Z167: 0.427314497 | AA167: 0.1194538027 | AB167: 0.206370607 | AC167: 0.1334713995
A168: 164 | B168: 0.9962704778 | C168: 0.993201375 | D168: 0.6329901218 | E168: 0.220578894 | F168: 0.4995414913 | G168: 0.170154199 | H168: 0.3797084093 | I168: 0.1080557033 | J168: 0.2095333934 | K168: 0.05409460887 | L168: 0.05224654824 | M168: 0.09032034874 | N168: 0.9334142804 | O168: 0.1622194946 | P168: 0.4683501124 | Q168: 0.1426545978 | R168: 0.398861729 | S168: 0.06334623694 | T168: 0.3078282459 | U168: 0.07139003277 | V168: 0.1976460228 | W168: 0.05456762016 | X168: 0.59608078 | Y168: 0.1271622926 | Z168: 0.4412136452 | AA168: 0.1206697002 | AB168: 0.2045913935 | AC168: 0.1337502003
A169: 165 | B169: 0.9965466857 | C169: 0.9937794209 | D169: 0.634378612 | E169: 0.2206120044 | F169: 0.5024368167 | G169: 0.1706537008 | H169: 0.3813906014 | I169: 0.1085724011 | J169: 0.2123558968 | K169: 0.05468324944 | L169: 0.05418556184 | M169: 0.09140793979 | N169: 0.9410480857 | O169: 0.1624469012 | P169: 0.4728316963 | Q169: 0.1426973045 | R169: 0.4034537117 | S169: 0.06474153697 | T169: 0.3148812986 | U169: 0.0731330514 | V169: 0.202035791 | W169: 0.05635455996 | X169: 0.6057431102 | Y169: 0.1282413006 | Z169: 0.4554996515 | AA169: 0.1219616979 | AB169: 0.203126803 | AC169: 0.1340975016
A170: 166 | B170: 0.9968175888 | C170: 0.9943714738 | D170: 0.6356925964 | E170: 0.2206867933 | F170: 0.5051975846 | G170: 0.171190396 | H170: 0.3829500079 | I170: 0.1091156974 | J170: 0.2150979936 | K170: 0.05530162901 | L170: 0.05613183975 | M170: 0.09251932055 | N170: 0.9482514858 | O170: 0.1627480984 | P170: 0.4773437083 | Q170: 0.1428561956 | R170: 0.4079538118 | S170: 0.06643482298 | T170: 0.3225896591 | U170: 0.07505954802 | V170: 0.2066560537 | W170: 0.05824017897 | X170: 0.6150286794 | Y170: 0.1293475926 | Z170: 0.469966152 | AA170: 0.1233012974 | AB170: 0.2019454986 | AC170: 0.1344977021
A171: 167 | B171: 0.997081995 | C171: 0.9949709773 | D171: 0.63692981 | E171: 0.220795095 | F171: 0.507817328 | G171: 0.1717507988 | H171: 0.3843888044 | I171: 0.1096739992 | J171: 0.217751801 | K171: 0.05593571067 | L171: 0.05808096007 | M171: 0.09363298863 | N171: 0.9550116062 | O171: 0.1631059051 | P171: 0.481841594 | Q171: 0.1431083977 | R171: 0.4123197091 | S171: 0.06833846867 | T171: 0.3310589492 | U171: 0.07710160315 | V171: 0.2114372216 | W171: 0.06017484143 | X171: 0.6239029169 | Y171: 0.1304610968 | Z171: 0.484406544 | AA171: 0.1246604994 | AB171: 0.2010158002 | AC171: 0.1349364072
A172: 168 | B172: 0.997338593 | C172: 0.9955692887 | D172: 0.6380875707 | E172: 0.2209292054 | F172: 0.5102887154 | G172: 0.172322005 | H172: 0.3857091069 | I172: 0.1102361977 | J172: 0.2203090936 | K172: 0.05657353997 | L172: 0.06002850831 | M172: 0.09472958744 | N172: 0.9613150954 | O172: 0.1635041982 | P172: 0.4862810075 | Q172: 0.1434320062 | R172: 0.4165097093 | S172: 0.0703715831 | T172: 0.3403947607 | U172: 0.07919769734 | V172: 0.2163096008 | W172: 0.06211413071 | X172: 0.6323307157 | Y172: 0.1315634996 | Z172: 0.4986143144 | AA172: 0.1260143965 | AB172: 0.2003051937 | AC172: 0.1353995055
A173: 169 | B173: 0.9975867271 | C173: 0.9961584806 | D173: 0.6391636729 | E173: 0.2210824043 | F173: 0.5126072764 | G173: 0.1728927046 | H173: 0.3869132996 | I173: 0.1107916981 | J173: 0.2227618992 | K173: 0.0572027415 | L173: 0.06197007 | M173: 0.09579160064 | N173: 0.9671487808 | O173: 0.1639273018 | P173: 0.490617305 | Q173: 0.1438066959 | R173: 0.4204817007 | S173: 0.07246223092 | T173: 0.3505571577 | U173: 0.08129426837 | V173: 0.2212036764 | W173: 0.06401912868 | X173: 0.6402770281 | Y173: 0.1326379031 | Z173: 0.5123828606 | AA173: 0.1273398995 | AB173: 0.1997825056 | AC173: 0.1358737051
A174: 170 | B174: 0.9978247881 | C174: 0.9967308044 | D174: 0.6401565075 | E174: 0.2212475985 | F174: 0.514770329 | G174: 0.1734521985 | H174: 0.3880034089 | I174: 0.111331597 | J174: 0.2251022011 | K174: 0.05781251937 | L174: 0.06390047073 | M174: 0.09680274874 | N174: 0.9725053906 | O174: 0.1643610001 | P174: 0.4948059916 | Q174: 0.1442129016 | R174: 0.4241937804 | S174: 0.07454714924 | T174: 0.3609696016 | U174: 0.08334345371 | V174: 0.226049844 | W174: 0.06585609913 | X174: 0.6477069259 | Y174: 0.1336686015 | Z174: 0.5255056994 | AA174: 0.1286163032 | AB174: 0.1994169056 | AC174: 0.1363471001
A175: 171 | B175: 0.998052001 | C175: 0.9972782731 | D175: 0.6410645247 | E175: 0.221419096 | F175: 0.5167748928 | G175: 0.173990503 | H175: 0.3889817894 | I175: 0.1118464991 | J175: 0.227321893 | K175: 0.05839344114 | L175: 0.06580305099 | M175: 0.09774868935 | N175: 0.9773845077 | O175: 0.1647928059 | P175: 0.4988025129 | Q175: 0.1446336955 | R175: 0.4276039559 | S175: 0.07657235861 | T175: 0.3709313054 | U175: 0.08530463278 | V175: 0.2307785143 | W175: 0.06759569794 | X175: 0.6545851827 | Y175: 0.1346416026 | Z175: 0.5377762579 | AA175: 0.1298248023 | AB175: 0.1991795003 | AC175: 0.1368087977
A176: 172 | B176: 0.9982671142 | C176: 0.9977927208 | D176: 0.6418864727 | E176: 0.2215908021 | F176: 0.5186187029 | G176: 0.1744990051 | H176: 0.3898505867 | I176: 0.1123287007 | J176: 0.2294128984 | K176: 0.05893640965 | L176: 0.06765244156 | M176: 0.09861704707 | N176: 0.9817864895 | O176: 0.1652103961 | P176: 0.5025625229 | Q176: 0.1450525969 | R176: 0.4306704137 | S176: 0.07849158347 | T176: 0.3797410944 | U176: 0.08714204282 | V176: 0.2353201723 | W176: 0.06921272725 | X176: 0.6608772278 | Y176: 0.1355444044 | Z176: 0.5489880528 | AA176: 0.1309486926 | AB176: 0.1990437955 | AC176: 0.1372485012
A177: 173 | B177: 0.9984691739 | C177: 0.9982678294 | D177: 0.6426212788 | E177: 0.221758604 | F177: 0.5202988982 | G177: 0.1749693006 | H177: 0.3906120062 | I177: 0.1127711982 | J177: 0.2313672006 | K177: 0.05943382159 | L177: 0.06942304969 | M177: 0.0993963331 | N177: 0.9857118726 | O177: 0.1656038016 | P177: 0.5060427785 | Q177: 0.1454562992 | R177: 0.4333509827 | S177: 0.08026608825 | T177: 0.386849372 | U177: 0.08882699907 | V177: 0.239605139 | W177: 0.07068599761 | X177: 0.6665475965 | Y177: 0.1363663971 | Z177: 0.5589566559 | AA177: 0.1319739968 | AB177: 0.1989845037 | AC177: 0.1376574934
A178: 174 | B178: 0.9986569285 | C178: 0.99869591 | D178: 0.6432673931 | E178: 0.2219173014 | F178: 0.5218129754 | G178: 0.1753948033 | H178: 0.3912681937 | I178: 0.1131678 | J178: 0.2331766933 | K178: 0.05987888947 | L178: 0.07108925283 | M178: 0.1000773981 | N178: 0.9891610146 | O178: 0.165963605 | P178: 0.5092173815 | Q178: 0.1458317041 | R178: 0.4356040279 | S178: 0.08186400682 | T178: 0.3923095749 | U178: 0.09033405036 | V178: 0.2435638996 | W178: 0.07199721038 | X178: 0.6715615988 | Y178: 0.1370978057 | Z178: 0.5676201937 | AA178: 0.1328874975 | AB178: 0.1989793032 | AC178: 0.1380279064
A179: 175 | B179: 0.998829186 | C179: 0.9990714788 | D179: 0.6438236237 | E179: 0.2220634967 | F179: 0.5231580734 | G179: 0.1757692993 | H179: 0.391821593 | I179: 0.1135132015 | J179: 0.2348331064 | K179: 0.06026538089 | L179: 0.07262545824 | M179: 0.1006518006 | N179: 0.9921342134 | O179: 0.1662815064 | P179: 0.512070179 | Q179: 0.1461683959 | R179: 0.4374037699 | S179: 0.08325832337 | T179: 0.3963262708 | U179: 0.09164234996 | V179: 0.2471268497 | W179: 0.07313127071 | X179: 0.6758841276 | Y179: 0.1377301961 | Z179: 0.5749582801 | AA179: 0.1336788982 | AB179: 0.1990087926 | AC179: 0.1383526027
A180: 176 | B180: 0.9989851117 | C180: 0.9993886948 | D180: 0.6442884803 | E180: 0.2221940011 | F180: 0.5243316293 | G180: 0.1760877073 | H180: 0.3922741115 | I180: 0.1138027981 | J180: 0.2363162041 | K180: 0.060588561 | L180: 0.07400607318 | M180: 0.1011132002 | N180: 0.9946318269 | O180: 0.1665510982 | P180: 0.5145856738 | Q180: 0.1464571953 | R180: 0.438785406 | S180: 0.08442798257 | T180: 0.3991044445 | U180: 0.09273512661 | V180: 0.250224385 | W180: 0.07407546788 | X180: 0.6794800758 | Y180: 0.1382566988 | Z180: 0.5809502311 | AA180: 0.1343393028 | AB180: 0.1990562975 | AC180: 0.1386263967
A181: 177 | B181: 0.9991232753 | C181: 0.9996433258 | D181: 0.6446608901 | E181: 0.2223061025 | F181: 0.5253309011 | G181: 0.176345706 | H181: 0.3926280141 | I181: 0.1140329018 | J181: 0.2375862002 | K181: 0.06084480137 | L181: 0.07520546764 | M181: 0.1014560014 | N181: 0.9966542125 | O181: 0.1667668074 | P181: 0.5167477131 | Q181: 0.1466908008 | R181: 0.4397974256 | S181: 0.08535628021 | T181: 0.4008484549 | U181: 0.09359905869 | V181: 0.2527870352 | W181: 0.07482021302 | X181: 0.6823146939 | Y181: 0.1386719942 | Z181: 0.5855760182 | AA181: 0.134860903 | AB181: 0.1991074979 | AC181: 0.1388442069
A182: 178 | B182: 0.999243021 | C182: 0.9998320937 | D182: 0.6449394226 | E182: 0.2223978043 | F182: 0.5261533856 | G182: 0.1765404046 | H182: 0.3928855956 | I182: 0.1142006963 | J182: 0.2386015952 | K182: 0.06103048101 | L182: 0.07619807124 | M182: 0.101676397 | N182: 0.9982017279 | O182: 0.1669244021 | P182: 0.5185406804 | Q182: 0.1468635052 | R182: 0.4404887354 | S182: 0.08603048325 | T182: 0.4017630784 | U182: 0.0942241922 | V182: 0.2547450767 | W182: 0.07535790652 | X182: 0.6843528152 | Y182: 0.1389719993 | Z182: 0.5888152554 | AA182: 0.1352387071 | AB182: 0.1991520971 | AC182: 0.1390020996
A183: 179 | B183: 0.9993426204 | C183: 0.999951005 | D183: 0.6451228857 | E183: 0.2224673927 | F183: 0.5267964005 | G183: 0.1766692996 | H183: 0.3930490017 | I183: 0.1143039986 | J183: 0.2393209934 | K183: 0.06114362925 | L183: 0.07695827633 | M183: 0.1017716005 | N183: 0.9992747903 | O183: 0.1670207977 | P183: 0.5199487805 | Q183: 0.1469711065 | R183: 0.440907944 | S183: 0.08644180745 | T183: 0.4020530911 | U183: 0.09460288286 | V183: 0.2560289797 | W183: 0.07568305731 | X183: 0.6855595112 | Y183: 0.1391528994 | Z183: 0.5906473777 | AA183: 0.1354684979 | AB183: 0.1991818994 | AC183: 0.1390980035
A184: 180 | B184: 0.9994214773 | C184: 1 | D184: 0.6452100277 | E184: 0.2225144058 | F184: 0.5272572041 | G184: 0.176731199 | H184: 0.3931205869 | I184: 0.1143416986 | J184: 0.2397028953 | K184: 0.06118302047 | L184: 0.07746917754 | M184: 0.1017401963 | N184: 0.9998738766 | O184: 0.1670541018 | P184: 0.5209562778 | Q184: 0.147011593 | R184: 0.441103541 | S184: 0.08658491075 | T184: 0.4019171896 | U184: 0.09473142028 | V184: 0.2565690952 | W184: 0.075792633 | X184: 0.6858996153 | Y184: 0.1392133981 | Z184: 0.5910524761 | AA184: 0.1355482042 | AB184: 0.1991925985 | AC184: 0.1391301006
A185: 181 | B185: 0.999478519 | C185: 0.9999774098 | D185: 0.645201087 | E185: 0.222538799 | F185: 0.527533114 | G185: 0.1767258048 | H185: 0.3931021988 | I185: 0.1143134013 | J185: 0.2397063971 | K185: 0.06114830822 | L185: 0.07773731649 | M185: 0.1015821025 | N185: 1 | O185: 0.1670237035 | P185: 0.5215486884 | Q185: 0.146983698 | R185: 0.4411016634 | S185: 0.08645866066 | T185: 0.4014319673 | U185: 0.09460829198 | V185: 0.2563030757 | W185: 0.07568571717 | X185: 0.6853526831 | Y185: 0.1391530037 | Z185: 0.590049804 | AA185: 0.1354770064 | AB185: 0.1991818994 | AC185: 0.1390980035
A186: 182 | B186: 0.999514699 | C186: 0.9998841286 | D186: 0.6450989842 | E186: 0.2225407064 | F186: 0.5276216269 | G186: 0.1766529977 | H186: 0.3929946125 | I186: 0.1142193973 | J186: 0.239319697 | K186: 0.06103954837 | L186: 0.07777319849 | M186: 0.1012985036 | N186: 0.9996566176 | O186: 0.1669304073 | P186: 0.5217313766 | Q186: 0.1468884051 | R186: 0.4408886317 | S186: 0.08606476337 | T186: 0.4005583528 | U186: 0.09423492849 | V186: 0.2552498759 | W186: 0.07536313683 | X186: 0.6839448214 | Y186: 0.1389718056 | Z186: 0.587719475 | AA186: 0.1352553964 | AB186: 0.1991520971 | AC186: 0.1390020996
A187: 183 | B187: 0.9995304942 | C187: 0.9997218251 | D187: 0.6449071765 | E187: 0.2225207984 | F187: 0.5275198221 | G187: 0.1765148044 | H187: 0.3927974999 | I187: 0.114060998 | J187: 0.2385749072 | K187: 0.06085835025 | L187: 0.0775872767 | M187: 0.1008917987 | N187: 0.9988468289 | O187: 0.1667757928 | P187: 0.5215235949 | Q187: 0.146728307 | R187: 0.440446445 | S187: 0.08540844172 | T187: 0.3992533401 | U187: 0.09361574799 | V187: 0.253480158 | W187: 0.07482834905 | X187: 0.6817107797 | Y187: 0.1386720985 | Z187: 0.5841470271 | AA187: 0.1348862052 | AB187: 0.1991071999 | AC187: 0.1388441026
A188: 184 | B188: 0.9995265007 | C188: 0.9994927049 | D188: 0.6446279883 | E188: 0.2224812061 | F188: 0.5272256136 | G188: 0.1763134003 | H188: 0.3925105929 | I188: 0.1138402969 | J188: 0.2375081033 | K188: 0.06060672179 | L188: 0.07719007134 | M188: 0.1003656983 | N188: 0.9975739717 | O188: 0.166563198 | P188: 0.5209441781 | Q188: 0.1465076953 | R188: 0.439756834 | S188: 0.08449921012 | T188: 0.3974733873 | U188: 0.09275768697 | V188: 0.251065419 | W188: 0.0740866363 | X188: 0.6786857843 | Y188: 0.1382568926 | Z188: 0.5794181772 | AA188: 0.1343730986 | AB188: 0.1990558952 | AC188: 0.1386263967
A189: 185 | B189: 0.9995040298 | C189: 0.9992007017 | D189: 0.6442648768 | E189: 0.2224237025 | F189: 0.5267400146 | G189: 0.1760516018 | H189: 0.3921335042 | I189: 0.1135599986 | J189: 0.2361550033 | K189: 0.06028810143 | L189: 0.07659202814 | M189: 0.09972537309 | N189: 0.995841682 | O189: 0.166296497 | P189: 0.5200129747 | Q189: 0.146231696 | R189: 0.4388018871 | S189: 0.08334962279 | T189: 0.3951753395 | U189: 0.09167095274 | V189: 0.2480774685 | W189: 0.07314553112 | X189: 0.6749051213 | Y189: 0.1377301961 | Z189: 0.5736184035 | AA189: 0.1337220073 | AB189: 0.1990081072 | AC189: 0.138352707
A190: 186 | B190: 0.9994630814 | C190: 0.9988499284 | D190: 0.643820703 | E190: 0.2223512977 | F190: 0.5260679126 | G190: 0.1757344007 | H190: 0.3916662037 | I190: 0.1132242009 | J190: 0.234551698 | K190: 0.05990625918 | L190: 0.0758036375 | M190: 0.09897709638 | N190: 0.9936528802 | O190: 0.1659817994 | P190: 0.5187491179 | Q190: 0.1459085047 | R190: 0.4375636629 | S190: 0.08197701722 | T190: 0.3923158932 | U190: 0.09036938846 | V190: 0.2445876096 | W190: 0.07201520354 | X190: 0.6704037786 | Y190: 0.1370977014 | Z190: 0.5668332442 | AA190: 0.1329398006 | AB190: 0.1989786029 | AC190: 0.1380279064
A191: 187 | B191: 0.9994050264 | C191: 0.9984450936 | D191: 0.6432985067 | E191: 0.2222671956 | F191: 0.525214076 | G191: 0.1753666997 | H191: 0.3911082149 | I191: 0.1128370017 | J191: 0.2327339947 | K191: 0.05946584046 | L191: 0.0748353973 | M191: 0.09812883288 | N191: 0.9910110831 | O191: 0.1656251997 | P191: 0.5171719193 | Q191: 0.1455466002 | R191: 0.4360240412 | S191: 0.08040340245 | T191: 0.388851506 | U191: 0.08886998147 | V191: 0.2406674585 | W191: 0.07070805877 | X191: 0.6652171016 | Y191: 0.1363666952 | Z191: 0.5591484756 | AA191: 0.1320358962 | AB191: 0.1989836991 | AC191: 0.1376574934
A192: 188 | B192: 0.9993304014 | C192: 0.9979934096 | D192: 0.6427013874 | E192: 0.2221755981 | F192: 0.5241833925 | G192: 0.1749541014 | H192: 0.3904593885 | I192: 0.1124038994 | J192: 0.2307370007 | K192: 0.05897330865 | L192: 0.0736977905 | M192: 0.09718994051 | N192: 0.9879196286 | O192: 0.1652354002 | P192: 0.5153005719 | Q192: 0.1451569945 | R192: 0.4341649913 | S192: 0.07865521312 | T192: 0.3847391128 | U192: 0.08719283342 | V192: 0.2363886907 | W192: 0.06923927367 | X192: 0.6593800187 | Y192: 0.1355447024 | Z192: 0.5506494569 | AA192: 0.1310205013 | AB192: 0.1990429014 | AC192: 0.1372485012
A193: 189 | B193: 0.9992398024 | C193: 0.9975004792 | D193: 0.6420322061 | E193: 0.222080797 | F193: 0.522980392 | G193: 0.1745041013 | H193: 0.3897193074 | I193: 0.1119311973 | J193: 0.2285822034 | K193: 0.05843507126 | L193: 0.07240129262 | M193: 0.09617114812 | N193: 0.9843819141 | O193: 0.1648209989 | P193: 0.5131546259 | Q193: 0.1447523981 | R193: 0.4319685419 | S193: 0.0767654106 | T193: 0.3799352012 | U193: 0.08536402881 | V193: 0.2318229224 | W193: 0.06762742251 | X193: 0.6529278159 | Y193: 0.1346417964 | Z193: 0.5414219644 | AA193: 0.1299066991 | AB193: 0.1991782933 | AC193: 0.1368086934
A194: 190 | B194: 0.9991341829 | C194: 0.9969745278 | D194: 0.6412941217 | E194: 0.2219880968 | F194: 0.5216103196 | G194: 0.1740244031 | H194: 0.3888877928 | I194: 0.1114258021 | J194: 0.2262797058 | K194: 0.05785898119 | L194: 0.07095638663 | M194: 0.09508518875 | N194: 0.9804009795 | O194: 0.1643926054 | P194: 0.5107532144 | Q194: 0.1443465054 | R194: 0.4294164834 | S194: 0.0747730583 | T194: 0.3744006994 | U194: 0.08341296762 | V194: 0.2270414565 | W194: 0.06589350104 | X194: 0.6458954215 | Y194: 0.1336686015 | Z194: 0.5315515959 | AA194: 0.1287093014 | AB194: 0.1994156986 | AC194: 0.1363472044
A195: 191 | B195: 0.999014318 | C195: 0.9964221716 | D195: 0.6404901743 | E195: 0.2219026983 | F195: 0.5200775266 | G195: 0.1735243946 | H195: 0.3879644871 | I195: 0.1108959019 | J195: 0.2238388956 | K195: 0.05725410953 | L195: 0.06937357783 | M195: 0.09394610673 | N195: 0.9759805202 | O195: 0.1639624983 | P195: 0.5081158876 | Q195: 0.143955797 | R195: 0.4264910234 | S195: 0.07272473723 | T195: 0.3681730401 | U195: 0.08137466758 | V195: 0.222116088 | W195: 0.0640630275 | X195: 0.638318181 | Y195: 0.1326382011 | Z195: 0.5211236509 | AA195: 0.1274444014 | AB195: 0.1997811943 | AC195: 0.1358736008
A196: 192 | B196: 0.9988806844 | C196: 0.9958512187 | D196: 0.6396232247 | E196: 0.2218313068 | F196: 0.5183870196 | G196: 0.1730131954 | H196: 0.3869492114 | I196: 0.1103497967 | J196: 0.2212695032 | K196: 0.05662985146 | L196: 0.06766329706 | M196: 0.09276997298 | N196: 0.9711235762 | O196: 0.1635431051 | P196: 0.5052636862 | Q196: 0.1435970962 | R196: 0.423179764 | S196: 0.07067476958 | T196: 0.3613581132 | U196: 0.07929059863 | V196: 0.2171183136 | W196: 0.06216586009 | X196: 0.6302310824 | Y196: 0.1315640062 | Z196: 0.5102240249 | AA196: 0.1261309981 | AB196: 0.200303793 | AC196: 0.1353995055
A197: 193 | B197: 0.9987344146 | C197: 0.9952703714 | D197: 0.6386963725 | E197: 0.2217804044 | F197: 0.5165436268 | G197: 0.1725021005 | H197: 0.3858416975 | I197: 0.1097975001 | J197: 0.2185811996 | K197: 0.05599734932 | L197: 0.06583608687 | M197: 0.09157390893 | N197: 0.9658337235 | O197: 0.1631487012 | P197: 0.5022194982 | Q197: 0.1432901025 | R197: 0.4195187666 | S197: 0.06868684292 | T197: 0.3540640438 | U197: 0.07720757276 | V197: 0.2121197346 | W197: 0.06023500115 | X197: 0.6216694117 | Y197: 0.1304613948 | Z197: 0.4989380474 | AA197: 0.1247897968 | AB197: 0.2010139972 | AC197: 0.1349364966
A198: 194 | B198: 0.9985759258 | C198: 0.9946867228 | D198: 0.6377127171 | E198: 0.2217575014 | F198: 0.5145521164 | G198: 0.1720025986 | H198: 0.3846415877 | I198: 0.1092486978 | J198: 0.2157835066 | K198: 0.05536799133 | L198: 0.06390239298 | M198: 0.0903781727 | N198: 0.9601140022 | O198: 0.1627946943 | P198: 0.4990066886 | Q198: 0.1430547982 | R198: 0.4155682035 | S198: 0.06683286279 | T198: 0.3463988679 | U198: 0.07518044114 | V198: 0.2071918627 | W198: 0.05831009895 | X198: 0.6126682758 | Y198: 0.1293479055 | Z198: 0.4873436264 | AA198: 0.1234439015 | AB198: 0.2019437999 | AC198: 0.1344980001
A199: 195 | B199: 0.998405993 | C199: 0.9941089749 | D199: 0.6366751194 | E199: 0.2217697054 | F199: 0.5124173164 | G199: 0.1715271026 | H199: 0.383348614 | I199: 0.1087151989 | J199: 0.212886095 | K199: 0.05475500971 | L199: 0.06187270954 | M199: 0.08920353651 | N199: 0.9539679289 | O199: 0.1624975055 | P199: 0.4956484139 | Q199: 0.1429135948 | R199: 0.4113881874 | S199: 0.0651936084 | T199: 0.3384707999 | U199: 0.07327024639 | V199: 0.2024062989 | W199: 0.05643516034 | X199: 0.6032627225 | Y199: 0.1282414049 | Z199: 0.4755074042 | AA199: 0.1221188009 | AB199: 0.2031248063 | AC199: 0.1340973973
A200: 196 | B200: 0.9982256889 | C200: 0.9935442209 | D200: 0.6355865002 | E200: 0.2218257934 | F200: 0.5101438761 | G200: 0.1710893959 | H200: 0.3819625974 | I200: 0.1082085967 | J200: 0.2098985016 | K200: 0.05417148024 | L200: 0.05975751951 | M200: 0.08807341754 | N200: 0.9473999739 | O200: 0.1622743011 | P200: 0.492167592 | Q200: 0.1428890973 | R200: 0.4070390095 | S200: 0.06385546178 | T200: 0.3303879352 | U200: 0.07154487073 | V200: 0.1978345253 | W200: 0.05466037989 | X200: 0.593487978 | Y200: 0.1271629035 | Z200: 0.4634948306 | AA200: 0.1208416969 | AB200: 0.2045893073 | AC200: 0.1337500066
... 163 more rows

Sheet High
B1: =(B3*1000)+(B4*100) -> 4000 | C1: 4050 | D1: 4075 | E1: 4100 | F1: 4125 | G1: 4150 | H1: 4200 | I1: 4250 | J1: 4300 | K1: 4400 | L1: 4500 | M1: 6000 | N1: 6050 | O1: 6075 | P1: 6100 | Q1: 6125 | R1: 6150 | S1: 6200 | T1: 6250 | U1: 6300 | V1: 6400 | W1: 6500 | X1: 8000 | Y1: 8050 | Z1: 8075 | AA1: 8100 | AB1: 8125 | AC1: 8150 | AD1: 8200 | AE1: 8250 | AF1: 8300 | AG1: 8400 | AH1: 8500 | AI1: 10000 | AJ1: 10050 | AK1: 10075 | AL1: 10100 | AM1: 10125 | AN1: 10150 | AO1: 10200 | AP1: 10250 | AQ1: 10300 | AR1: 10400 | AS1: 10500 | AT1: 12000 | AU1: 12050 | AV1: 12075 | AW1: 12100 | AX1: 12125 | AY1: 12150 | AZ1: 12200 | BA1: 12250 | BB1: 12300 | BC1: 12400 | BD1: 12500 | BE1: 16000 | BF1: 16050 | BG1: 16075 | BH1: 16100 | BI1: 16125 | BJ1: 16150 | BK1: 16200 | BL1: 16250 | BM1: 16300 | BN1: =(BN3*1000)+(BN4*100) -> 16400 | BO1: =(BO3*1000)+(BO4*100) -> 16500
A2: 1 | B2: 2 | C2: 3 | D2: 4 | E2: 5 | F2: 6 | G2: 7 | H2: 8 | I2: 9 | J2: 10 | K2: 11 | L2: 12 | M2: 13 | N2: 14 | O2: 15 | P2: 16 | Q2: 17 | R2: 18 | S2: 19 | T2: 20 | U2: 21 | V2: 22 | W2: 23 | X2: 24 | Y2: 25 | Z2: 26 | AA2: 27 | AB2: 28 | AC2: 29 | AD2: 30 | AE2: 31 | AF2: 32 | AG2: 33 | AH2: 34 | AI2: 35 | AJ2: 36 | AK2: 37 | AL2: 38 | AM2: 39 | AN2: 40 | AO2: 41 | AP2: 42 | AQ2: 43 | AR2: 44 | AS2: 45 | AT2: 46 | AU2: 47 | AV2: 48 | AW2: 49 | AX2: 50 | AY2: 51 | AZ2: 52 | BA2: 53 | BB2: 54 | BC2: 55 | BD2: 56 | BE2: 57 | BF2: 58 | BG2: 59 | BH2: 60 | BI2: 61 | BJ2: 62 | BK2: 63 | BL2: 64 | BM2: 65 | BN2: 66 | BO2: 67
A3: Low | B3: 4 | C3: 4 | D3: 4 | E3: 4 | F3: 4 | G3: 4 | H3: 4 | I3: 4 | J3: 4 | K3: 4 | L3: 4 | M3: 6 | N3: 6 | O3: 6 | P3: 6 | Q3: 6 | R3: 6 | S3: 6 | T3: 6 | U3: 6 | V3: 6 | W3: 6 | X3: 8 | Y3: 8 | Z3: 8 | AA3: 8 | AB3: 8 | AC3: 8 | AD3: 8 | AE3: 8 | AF3: 8 | AG3: 8 | AH3: 8 | AI3: 10 | AJ3: 10 | AK3: 10 | AL3: 10 | AM3: 10 | AN3: 10 | AO3: 10 | AP3: 10 | AQ3: 10 | AR3: 10 | AS3: 10 | AT3: 12 | AU3: 12 | AV3: 12 | AW3: 12 | AX3: 12 | AY3: 12 | AZ3: 12 | BA3: 12 | BB3: 12 | BC3: 12 | BD3: 12 | BE3: 16 | BF3: 16 | BG3: 16 | BH3: 16 | BI3: 16 | BJ3: 16 | BK3: 16 | BL3: 16 | BM3: 16 | BN3: 16 | BO3: 16
A4: Tilt | B4: 0 | C4: 0.5 | D4: 0.75 | E4: 1 | F4: 1.25 | G4: 1.5 | H4: 2 | I4: 2.5 | J4: 3 | K4: 4 | L4: 5 | M4: 0 | N4: 0.5 | O4: 0.75 | P4: 1 | Q4: 1.25 | R4: 1.5 | S4: 2 | T4: 2.5 | U4: 3 | V4: 4 | W4: 5 | X4: 0 | Y4: 0.5 | Z4: 0.75 | AA4: 1 | AB4: 1.25 | AC4: 1.5 | AD4: 2 | AE4: 2.5 | AF4: 3 | AG4: 4 | AH4: 5 | AI4: 0 | AJ4: 0.5 | AK4: 0.75 | AL4: 1 | AM4: 1.25 | AN4: 1.5 | AO4: 2 | AP4: 2.5 | AQ4: 3 | AR4: 4 | AS4: 5 | AT4: 0 | AU4: 0.5 | AV4: 0.75 | AW4: 1 | AX4: 1.25 | AY4: 1.5 | AZ4: 2 | BA4: 2.5 | BB4: 3 | BC4: 4 | BD4: 5 | BE4: 0 | BF4: 0.5 | BG4: 0.75 | BH4: 1 | BI4: 1.25 | BJ4: 1.5 | BK4: 2 | BL4: 2.5 | BM4: 3 | BN4: 4 | BO4: 5
A5: Gain | B5: 3.65 | C5: 3.67 | D5: 3.765 | E5: 3.46 | F5: 3.49 | G5: 3.58 | H5: 3.57 | I5: 3.62 | J5: 3.64 | K5: 3.84 | L5: 3.81 | M5: 5.9 | N5: 5.9 | O5: 5.89 | P5: 5.87 | Q5: 5.84 | R5: 5.82 | S5: 5.72 | X5: 8 | Y5: 8 | Z5: 8.06 | AA5: 8.02 | AC5: 8.05 | AD5: 7.95 | AI5: 10.13 | AJ5: 10.09 | AK5: 10.12 | AL5: 10.02 | AM5: 10.05 | AN5: 9.98 | AO5: 9.78 | AT5: 12.18 | AU5: 12.23 | AV5: 12.08 | AW5: 12 | AX5: 12.04 | AY5: 11.89 | AZ5: 11.43 | BE5: 15.48 | BF5: 15.03 | BG5: 15.03 | BH5: 14.49 | BI5: 14.46 | BJ5: 14.38 | BK5: 14.02
A6: Dwg No | B6: 04L036000 | C6: 04L037050 | D6: 04L038075 | E6: 04L035100 | F6: 04L035125 | G6: 04L036150 | H6: 04L036200 | I6: 04L036250 | J6: 04L036300 | K6: 04L038400 | L6: 04L038500 | M6: 06L059000 | N6: 06L059050 | O6: 06L059075 | P6: 06L059100 | Q6: 06L058125 | R6: 06L058150 | S6: 06L057200 | X6: 08L080000 | Y6: 08L080050 | Z6: 08L081075 | AA6: 08L080100 | AC6: 08L085150 | AD6: 08L080200 | AI6: 10L103000 | AJ6: 10L101050 | AK6: 10L101075 | AL6: 10L100100 | AM6: 10L100125 | AN6: 10L099150 | AO6: 10L098200 | AT6: 12L122000 | AU6: 12L122050 | AV6: 12L121075 | AW6: 12L120100 | AX6: 12L119125 | AY6: 12L119150 | AZ6: 12L114200 | BE6: 16L155000 | BF6: 16L150050 | BG6: 16L150075 | BH6: 16L145100 | BI6: 16L145125 | BJ6: 16L144150 | BK6: 16L140200
A7: -10 | B7: 0.2049999982 | C7: 0.1490000039 | D7: 0.1480000019 | E7: 0.2509999871 | F7: 0.2280000001 | G7: 0.2230000049 | H7: 0.2380000055 | I7: 0.2689999938 | J7: 0.3079999983 | K7: 0.4909999967 | L7: 0.5770000219 | M7: 0.1850000024 | N7: 0.2370000035 | O7: 0.2689999938 | P7: 0.3019999862 | Q7: 0.3350000083 | R7: 0.3700000048 | S7: 0.4589999914 | X7: 0.3160000145 | Y7: 0.3030000031 | Z7: 0.3000000119 | AA7: 0.3070000112 | AC7: 0.2879999876 | AD7: 0.2969999909 | AI7: 0.1560000032 | AJ7: 0.1790000051 | AK7: 0.1679999977 | AL7: 0.175999999 | AM7: 0.1679999977 | AN7: 0.1519999951 | AO7: 0.1640000045 | AT7: 0.126000002 | AU7: 0.1289999932 | AV7: 0.1350000054 | AW7: 0.1519999951 | AX7: 0.1410000026 | AY7: 0.1430000067 | AZ7: 0.1480000019 | BE7: 0.2300000042 | BF7: 0.273999989 | BG7: 0.3050000072 | BH7: 0.3310000002 | BI7: 0.3600000143 | BJ7: 0.3840000033 | BK7: 0.4140000045
A8: -9.9 | B8: 0.202000007 | C8: 0.1449999958 | D8: 0.1379999965 | E8: 0.2450000048 | F8: 0.2220000029 | G8: 0.2169999927 | H8: 0.2319999933 | I8: 0.2619999945 | J8: 0.3019999862 | K8: 0.4839999974 | L8: 0.5720000267 | M8: 0.1780000031 | N8: 0.2300000042 | O8: 0.2619999945 | P8: 0.2949999869 | Q8: 0.3289999962 | R8: 0.3639999926 | S8: 0.4539999962 | X8: 0.3179999888 | Y8: 0.3070000112 | Z8: 0.3050000072 | AA8: 0.3120000064 | AC8: 0.2949999869 | AD8: 0.3050000072 | AI8: 0.1640000045 | AJ8: 0.1860000044 | AK8: 0.174999997 | AL8: 0.1829999983 | AM8: 0.174999997 | AN8: 0.1560000032 | AO8: 0.1669999957 | AT8: 0.1230000034 | AU8: 0.1289999932 | AV8: 0.1350000054 | AW8: 0.1529999971 | AX8: 0.1430000067 | AY8: 0.1459999979 | AZ8: 0.1509999931 | BE8: 0.2259999961 | BF8: 0.2689999938 | BG8: 0.3000000119 | BH8: 0.3280000091 | BI8: 0.3589999974 | BJ8: 0.3860000074 | BK8: 0.4219999909
A9: -9.8 | B9: 0.201000005 | C9: 0.1410000026 | D9: 0.1280000061 | E9: 0.2399999946 | F9: 0.2169999927 | G9: 0.2109999955 | H9: 0.2259999961 | I9: 0.2560000122 | J9: 0.2960000038 | K9: 0.476000011 | L9: 0.5669999719 | M9: 0.1720000058 | N9: 0.2230000049 | O9: 0.2549999952 | P9: 0.2879999876 | Q9: 0.3219999969 | R9: 0.3569999933 | S9: 0.4480000138 | X9: 0.3190000057 | Y9: 0.3100000024 | Z9: 0.3089999855 | AA9: 0.3170000017 | AC9: 0.3019999862 | AD9: 0.3140000105 | AI9: 0.1720000058 | AJ9: 0.1940000057 | AK9: 0.1829999983 | AL9: 0.1909999996 | AM9: 0.1819999963 | AN9: 0.1609999985 | AO9: 0.1720000058 | AT9: 0.1209999993 | AU9: 0.1280000061 | AV9: 0.1360000074 | AW9: 0.1539999992 | AX9: 0.1449999958 | AY9: 0.1480000019 | AZ9: 0.1550000012 | BE9: 0.2220000029 | BF9: 0.2630000114 | BG9: 0.2949999869 | BH9: 0.324000001 | BI9: 0.3560000062 | BJ9: 0.3860000074 | BK9: 0.4280000031
A10: -9.7 | B10: 0.200000003 | C10: 0.1379999965 | D10: 0.1190000027 | E10: 0.2360000014 | F10: 0.2119999975 | G10: 0.2049999982 | H10: 0.2199999988 | I10: 0.248999998 | J10: 0.2890000045 | K10: 0.4690000117 | L10: 0.5609999895 | M10: 0.1650000066 | N10: 0.2160000056 | O10: 0.2469999939 | P10: 0.2800000012 | Q10: 0.3149999976 | R10: 0.351000011 | S10: 0.4420000017 | X10: 0.3199999928 | Y10: 0.3129999936 | Z10: 0.3129999936 | AA10: 0.3219999969 | AC10: 0.3079999983 | AD10: 0.3210000098 | AI10: 0.1790000051 | AJ10: 0.202000007 | AK10: 0.1909999996 | AL10: 0.199000001 | AM10: 0.1899999976 | AN10: 0.1659999937 | AO10: 0.175999999 | AT10: 0.1190000027 | AU10: 0.1280000061 | AV10: 0.1360000074 | AW10: 0.1550000012 | AX10: 0.1469999999 | AY10: 0.1509999931 | AZ10: 0.1580000073 | BE10: 0.2169999927 | BF10: 0.2569999993 | BG10: 0.2890000045 | BH10: 0.3190000057 | BI10: 0.3529999852 | BJ10: 0.3849999905 | BK10: 0.4320000112
A11: -9.6 | B11: 0.200000003 | C11: 0.1360000074 | D11: 0.1099999994 | E11: 0.2319999933 | F11: 0.2070000023 | G11: 0.199000001 | H11: 0.2140000015 | I11: 0.2430000007 | J11: 0.2820000052 | K11: 0.4609999955 | L11: 0.5550000072 | M11: 0.1589999944 | N11: 0.2080000043 | O11: 0.2389999926 | P11: 0.2730000019 | Q11: 0.3079999983 | R11: 0.3440000117 | S11: 0.4359999895 | X11: 0.3199999928 | Y11: 0.3160000145 | Z11: 0.3160000145 | AA11: 0.326000005 | AC11: 0.3149999976 | AD11: 0.3289999962 | AI11: 0.1870000064 | AJ11: 0.2109999955 | AK11: 0.199000001 | AL11: 0.2070000023 | AM11: 0.1979999989 | AN11: 0.1710000038 | AO11: 0.1819999963 | AT11: 0.1180000007 | AU11: 0.1280000061 | AV11: 0.1369999945 | AW11: 0.1550000012 | AX11: 0.1480000019 | AY11: 0.1529999971 | AZ11: 0.1609999985 | BE11: 0.2129999995 | BF11: 0.2509999871 | BG11: 0.2829999924 | BH11: 0.3140000105 | BI11: 0.3490000069 | BJ11: 0.3829999864 | BK11: 0.4359999895
A12: -9.5 | B12: 0.201000005 | C12: 0.1360000074 | D12: 0.1019999981 | E12: 0.2280000001 | F12: 0.2029999942 | G12: 0.1940000057 | H12: 0.2090000063 | I12: 0.2360000014 | J12: 0.2759999931 | K12: 0.4530000091 | L12: 0.5490000248 | M12: 0.1529999971 | N12: 0.200000003 | O12: 0.2310000062 | P12: 0.2649999857 | Q12: 0.300999999 | R12: 0.3370000124 | S12: 0.4300000072 | X12: 0.3199999928 | Y12: 0.3179999888 | Z12: 0.3190000057 | AA12: 0.3300000131 | AC12: 0.3210000098 | AD12: 0.3359999955 | AI12: 0.1949999928 | AJ12: 0.2189999968 | AK12: 0.2070000023 | AL12: 0.2150000036 | AM12: 0.2070000023 | AN12: 0.1770000011 | AO12: 0.1870000064 | AT12: 0.1169999987 | AU12: 0.1289999932 | AV12: 0.1379999965 | AW12: 0.1550000012 | AX12: 0.1490000039 | AY12: 0.1550000012 | AZ12: 0.1650000066 | BE12: 0.2090000063 | BF12: 0.2440000027 | BG12: 0.2759999931 | BH12: 0.3070000112 | BI12: 0.3440000117 | BJ12: 0.3799999952 | BK12: 0.4379999936
A13: -9.4 | B13: 0.202000007 | C13: 0.1360000074 | D13: 0.09499999881 | E13: 0.224999994 | F13: 0.199000001 | G13: 0.1889999956 | H13: 0.2029999942 | I13: 0.2290000021 | J13: 0.2689999938 | K13: 0.4449999928 | L13: 0.5429999828 | M13: 0.1469999999 | N13: 0.1930000037 | O13: 0.2230000049 | P13: 0.2569999993 | Q13: 0.2930000126 | R13: 0.3289999962 | S13: 0.4230000079 | X13: 0.3190000057 | Y13: 0.3199999928 | Z13: 0.3219999969 | AA13: 0.3339999914 | AC13: 0.326000005 | AD13: 0.3429999948 | AI13: 0.202000007 | AJ13: 0.2269999981 | AK13: 0.2150000036 | AL13: 0.2240000069 | AM13: 0.2150000036 | AN13: 0.1840000004 | AO13: 0.1940000057 | AT13: 0.1169999987 | AU13: 0.1299999952 | AV13: 0.1400000006 | AW13: 0.1550000012 | AX13: 0.150000006 | AY13: 0.1560000032 | AZ13: 0.1679999977 | BE13: 0.2060000002 | BF13: 0.2380000055 | BG13: 0.2680000067 | BH13: 0.300999999 | BI13: 0.3379999995 | BJ13: 0.375 | BK13: 0.4390000105
A14: -9.3 | B14: 0.2049999982 | C14: 0.1379999965 | D14: 0.08900000155 | E14: 0.2220000029 | F14: 0.1949999928 | G14: 0.1840000004 | H14: 0.1979999989 | I14: 0.2230000049 | J14: 0.2619999945 | K14: 0.4359999895 | L14: 0.5360000134 | M14: 0.1420000046 | N14: 0.1850000024 | O14: 0.2150000036 | P14: 0.248999998 | Q14: 0.2849999964 | R14: 0.3210000098 | S14: 0.4160000086 | X14: 0.3179999888 | Y14: 0.3210000098 | Z14: 0.324000001 | AA14: 0.3370000124 | AC14: 0.3310000002 | AD14: 0.349999994 | AI14: 0.2090000063 | AJ14: 0.2349999994 | AK14: 0.2240000069 | AL14: 0.2319999933 | AM14: 0.2240000069 | AN14: 0.1909999996 | AO14: 0.200000003 | AT14: 0.1169999987 | AU14: 0.1319999993 | AV14: 0.1420000046 | AW14: 0.1550000012 | AX14: 0.150000006 | AY14: 0.1580000073 | AZ14: 0.1710000038 | BE14: 0.2029999942 | BF14: 0.2310000062 | BG14: 0.2610000074 | BH14: 0.2930000126 | BI14: 0.3310000002 | BJ14: 0.3700000048 | BK14: 0.4379999936
A15: -9.2 | B15: 0.2080000043 | C15: 0.1410000026 | D15: 0.08600000292 | E15: 0.2189999968 | F15: 0.1920000017 | G15: 0.1800000072 | H15: 0.1920000017 | I15: 0.2160000056 | J15: 0.2549999952 | K15: 0.4280000031 | L15: 0.5289999843 | M15: 0.1379999965 | N15: 0.1770000011 | O15: 0.2070000023 | P15: 0.2399999946 | Q15: 0.27700001 | R15: 0.3129999936 | S15: 0.4079999924 | X15: 0.3160000145 | Y15: 0.3219999969 | Z15: 0.326000005 | AA15: 0.3400000036 | AC15: 0.3359999955 | AD15: 0.3560000062 | AI15: 0.2169999927 | AJ15: 0.2440000027 | AK15: 0.2319999933 | AL15: 0.2409999967 | AM15: 0.2329999954 | AN15: 0.1979999989 | AO15: 0.2080000043 | AT15: 0.1180000007 | AU15: 0.1340000033 | AV15: 0.1439999938 | AW15: 0.1539999992 | AX15: 0.1509999931 | AY15: 0.1589999944 | AZ15: 0.173999995 | BE15: 0.200000003 | BF15: 0.224999994 | BG15: 0.2540000081 | BH15: 0.2849999964 | BI15: 0.3230000138 | BJ15: 0.3639999926 | BK15: 0.4359999895
A16: -9.1 | B16: 0.2129999995 | C16: 0.1449999958 | D16: 0.08399999887 | E16: 0.2179999948 | F16: 0.1899999976 | G16: 0.1770000011 | H16: 0.1879999936 | I16: 0.2099999934 | J16: 0.2469999939 | K16: 0.4189999998 | L16: 0.5220000148 | M16: 0.1340000033 | N16: 0.1689999998 | O16: 0.199000001 | P16: 0.2319999933 | Q16: 0.2680000067 | R16: 0.3050000072 | S16: 0.400000006 | X16: 0.3140000105 | Y16: 0.3230000138 | Z16: 0.3269999921 | AA16: 0.3420000076 | AC16: 0.3400000036 | AD16: 0.3619999886 | AI16: 0.2230000049 | AJ16: 0.2520000041 | AK16: 0.2399999946 | AL16: 0.25 | AM16: 0.2419999987 | AN16: 0.2060000002 | AO16: 0.2150000036 | AT16: 0.1209999993 | AU16: 0.1369999945 | AV16: 0.1469999999 | AW16: 0.1539999992 | AX16: 0.1509999931 | AY16: 0.1599999964 | AZ16: 0.175999999 | BE16: 0.1969999969 | BF16: 0.2189999968 | BG16: 0.2460000068 | BH16: 0.2779999971 | BI16: 0.3149999976 | BJ16: 0.3560000062 | BK16: 0.4329999983
A17: -9 | B17: 0.2179999948 | C17: 0.150000006 | D17: 0.08399999887 | E17: 0.2169999927 | F17: 0.1879999936 | G17: 0.173999995 | H17: 0.1829999983 | I17: 0.2029999942 | J17: 0.2399999946 | K17: 0.4099999964 | L17: 0.5149999857 | M17: 0.1299999952 | N17: 0.1620000005 | O17: 0.1899999976 | P17: 0.2230000049 | Q17: 0.2599999905 | R17: 0.2960000038 | S17: 0.3919999897 | X17: 0.3109999895 | Y17: 0.3230000138 | Z17: 0.3280000091 | AA17: 0.3440000117 | AC17: 0.3440000117 | AD17: 0.3680000007 | AI17: 0.2300000042 | AJ17: 0.2590000033 | AK17: 0.248999998 | AL17: 0.2579999864 | AM17: 0.2509999871 | AN17: 0.2140000015 | AO17: 0.2230000049 | AT17: 0.123999998 | AU17: 0.1410000026 | AV17: 0.1509999931 | AW17: 0.1539999992 | AX17: 0.1519999951 | AY17: 0.1620000005 | AZ17: 0.1790000051 | BE17: 0.1949999928 | BF17: 0.2140000015 | BG17: 0.2389999926 | BH17: 0.2689999938 | BI17: 0.3070000112 | BJ17: 0.34799999 | BK17: 0.4280000031
A18: -8.9 | B18: 0.2240000069 | C18: 0.1560000032 | D18: 0.0869999975 | E18: 0.2160000056 | F18: 0.1870000064 | G18: 0.1710000038 | H18: 0.1790000051 | I18: 0.1969999969 | J18: 0.2329999954 | K18: 0.400000006 | L18: 0.5070000291 | M18: 0.1280000061 | N18: 0.1550000012 | O18: 0.1819999963 | P18: 0.2140000015 | Q18: 0.2509999871 | R18: 0.2870000005 | S18: 0.3840000033 | X18: 0.3079999983 | Y18: 0.3219999969 | Z18: 0.3280000091 | AA18: 0.3449999988 | AC18: 0.34799999 | AD18: 0.3729999959 | AI18: 0.2360000014 | AJ18: 0.2669999897 | AK18: 0.2569999993 | AL18: 0.2669999897 | AM18: 0.2599999905 | AN18: 0.2220000029 | AO18: 0.2310000062 | AT18: 0.1280000061 | AU18: 0.1459999979 | AV18: 0.1560000032 | AW18: 0.1529999971 | AX18: 0.1519999951 | AY18: 0.1630000025 | AZ18: 0.1819999963 | BE18: 0.1940000057 | BF18: 0.2090000063 | BG18: 0.2319999933 | BH18: 0.2610000074 | BI18: 0.2980000079 | BJ18: 0.3389999866 | BK18: 0.4219999909
A19: -8.8 | B19: 0.2300000042 | C19: 0.1630000025 | D19: 0.09099999815 | E19: 0.2169999927 | F19: 0.1870000064 | G19: 0.1700000018 | H19: 0.174999997 | I19: 0.1909999996 | J19: 0.2259999961 | K19: 0.3910000026 | L19: 0.4990000129 | M19: 0.1270000041 | N19: 0.1480000019 | O19: 0.172999993 | P19: 0.2049999982 | Q19: 0.2419999987 | R19: 0.2779999971 | S19: 0.375 | X19: 0.3050000072 | Y19: 0.3210000098 | Z19: 0.3280000091 | AA19: 0.3459999859 | AC19: 0.351000011 | AD19: 0.3779999912 | AI19: 0.2419999987 | AJ19: 0.273999989 | AK19: 0.2649999857 | AL19: 0.2759999931 | AM19: 0.2689999938 | AN19: 0.2300000042 | AO19: 0.2399999946 | AT19: 0.1330000013 | AU19: 0.1509999931 | AV19: 0.1609999985 | AW19: 0.1529999971 | AX19: 0.1529999971 | AY19: 0.1640000045 | AZ19: 0.1850000024 | BE19: 0.1930000037 | BF19: 0.2039999962 | BG19: 0.224999994 | BH19: 0.2529999912 | BI19: 0.2890000045 | BJ19: 0.3300000131 | BK19: 0.4149999917
A20: -8.7 | B20: 0.2380000055 | C20: 0.1700000018 | D20: 0.09700000286 | E20: 0.2179999948 | F20: 0.1879999936 | G20: 0.1689999998 | H20: 0.1720000058 | I20: 0.1850000024 | J20: 0.2189999968 | K20: 0.3810000122 | L20: 0.4909999967 | M20: 0.1270000041 | N20: 0.1410000026 | O20: 0.1650000066 | P20: 0.1959999949 | Q20: 0.2319999933 | R20: 0.2680000067 | S20: 0.3659999967 | X20: 0.300999999 | Y20: 0.3190000057 | Z20: 0.3269999921 | AA20: 0.3459999859 | AC20: 0.3540000021 | AD20: 0.3829999864 | AI20: 0.2469999939 | AJ20: 0.2809999883 | AK20: 0.2730000019 | AL20: 0.2840000093 | AM20: 0.2779999971 | AN20: 0.2380000055 | AO20: 0.2479999959 | AT20: 0.1379999965 | AU20: 0.1570000052 | AV20: 0.1669999957 | AW20: 0.1529999971 | AX20: 0.1539999992 | AY20: 0.1659999937 | AZ20: 0.1870000064 | BE20: 0.1920000017 | BF20: 0.200000003 | BG20: 0.2189999968 | BH20: 0.2460000068 | BI20: 0.2800000012 | BJ20: 0.3199999928 | BK20: 0.4070000052
A21: -8.6 | B21: 0.2450000048 | C21: 0.1790000051 | D21: 0.1049999967 | E21: 0.2189999968 | F21: 0.1889999956 | G21: 0.1689999998 | H21: 0.1700000018 | I21: 0.1790000051 | J21: 0.2119999975 | K21: 0.3709999919 | L21: 0.4830000103 | M21: 0.1280000061 | N21: 0.1350000054 | O21: 0.1570000052 | P21: 0.1870000064 | Q21: 0.2230000049 | R21: 0.2590000033 | S21: 0.3560000062 | X21: 0.2960000038 | Y21: 0.3170000017 | Z21: 0.326000005 | AA21: 0.3459999859 | AC21: 0.3560000062 | AD21: 0.3869999945 | AI21: 0.2520000041 | AJ21: 0.2879999876 | AK21: 0.2800000012 | AL21: 0.2919999957 | AM21: 0.2870000005 | AN21: 0.2469999939 | AO21: 0.2569999993 | AT21: 0.1439999938 | AU21: 0.1640000045 | AV21: 0.173999995 | AW21: 0.1539999992 | AX21: 0.1550000012 | AY21: 0.1669999957 | AZ21: 0.1899999976 | BE21: 0.1909999996 | BF21: 0.1959999949 | BG21: 0.2140000015 | BH21: 0.2380000055 | BI21: 0.2700000107 | BJ21: 0.3100000024 | BK21: 0.3980000019
A22: -8.5 | B22: 0.2540000081 | C22: 0.1879999936 | D22: 0.1140000001 | E22: 0.2220000029 | F22: 0.1920000017 | G22: 0.1689999998 | H22: 0.1679999977 | I22: 0.173999995 | J22: 0.2039999962 | K22: 0.3610000014 | L22: 0.474999994 | M22: 0.1299999952 | N22: 0.1299999952 | O22: 0.1490000039 | P22: 0.1770000011 | Q22: 0.2129999995 | R22: 0.248999998 | S22: 0.3470000029 | X22: 0.2910000086 | Y22: 0.3149999976 | Z22: 0.324000001 | AA22: 0.3449999988 | AC22: 0.3569999933 | AD22: 0.3910000026 | AI22: 0.2569999993 | AJ22: 0.2939999998 | AK22: 0.2870000005 | AL22: 0.3000000119 | AM22: 0.2960000038 | AN22: 0.2549999952 | AO22: 0.2660000026 | AT22: 0.1509999931 | AU22: 0.1710000038 | AV22: 0.1809999943 | AW22: 0.1550000012 | AX22: 0.1560000032 | AY22: 0.1689999998 | AZ22: 0.1930000037 | BE22: 0.1899999976 | BF22: 0.1930000037 | BG22: 0.2090000063 | BH22: 0.2310000062 | BI22: 0.2610000074 | BJ22: 0.298999995 | BK22: 0.3880000114
A23: -8.4 | B23: 0.2630000114 | C23: 0.1969999969 | D23: 0.123999998 | E23: 0.224999994 | F23: 0.1940000057 | G23: 0.1710000038 | H23: 0.1659999937 | I23: 0.1689999998 | J23: 0.1979999989 | K23: 0.351000011 | L23: 0.4659999907 | M23: 0.1330000013 | N23: 0.125 | O23: 0.1410000026 | P23: 0.1679999977 | Q23: 0.2039999962 | R23: 0.2389999926 | S23: 0.3370000124 | X23: 0.2860000134 | Y23: 0.3109999895 | Z23: 0.3219999969 | AA23: 0.3440000117 | AC23: 0.3589999974 | AD23: 0.3939999938 | AI23: 0.2610000074 | AJ23: 0.3000000119 | AK23: 0.2939999998 | AL23: 0.3079999983 | AM23: 0.3039999902 | AN23: 0.2639999986 | AO23: 0.275000006 | AT23: 0.1580000073 | AU23: 0.1790000051 | AV23: 0.1889999956 | AW23: 0.1560000032 | AX23: 0.1580000073 | AY23: 0.1710000038 | AZ23: 0.1969999969 | BE23: 0.1889999956 | BF23: 0.1899999976 | BG23: 0.2049999982 | BH23: 0.224999994 | BI23: 0.2529999912 | BJ23: 0.2890000045 | BK23: 0.3779999912
A24: -8.3 | B24: 0.2720000148 | C24: 0.2070000023 | D24: 0.1350000054 | E24: 0.2290000021 | F24: 0.1979999989 | G24: 0.172999993 | H24: 0.1659999937 | I24: 0.1650000066 | J24: 0.1909999996 | K24: 0.3409999907 | L24: 0.4569999874 | M24: 0.1379999965 | N24: 0.1220000014 | O24: 0.1340000033 | P24: 0.1589999944 | Q24: 0.1940000057 | R24: 0.2280000001 | S24: 0.326000005 | X24: 0.2800000012 | Y24: 0.3079999983 | Z24: 0.3190000057 | AA24: 0.3420000076 | AC24: 0.3589999974 | AD24: 0.3970000148 | AI24: 0.2639999986 | AJ24: 0.3050000072 | AK24: 0.300999999 | AL24: 0.3149999976 | AM24: 0.3120000064 | AN24: 0.2720000148 | AO24: 0.2849999964 | AT24: 0.1650000066 | AU24: 0.1870000064 | AV24: 0.1969999969 | AW24: 0.1580000073 | AX24: 0.1599999964 | AY24: 0.173999995 | AZ24: 0.200000003 | BE24: 0.1879999936 | BF24: 0.1870000064 | BG24: 0.201000005 | BH24: 0.2189999968 | BI24: 0.2450000048 | BJ24: 0.2790000141 | BK24: 0.3670000136
A25: -8.2 | B25: 0.2820000052 | C25: 0.2179999948 | D25: 0.1469999999 | E25: 0.2329999954 | F25: 0.2029999942 | G25: 0.1770000011 | H25: 0.1659999937 | I25: 0.1609999985 | J25: 0.1840000004 | K25: 0.3300000131 | L25: 0.4480000138 | M25: 0.1439999938 | N25: 0.1190000027 | O25: 0.1280000061 | P25: 0.1509999931 | Q25: 0.1840000004 | R25: 0.2179999948 | S25: 0.3160000145 | X25: 0.273999989 | Y25: 0.3039999902 | Z25: 0.3160000145 | AA25: 0.3400000036 | AC25: 0.3600000143 | AD25: 0.398999989 | AI25: 0.2669999897 | AJ25: 0.3100000024 | AK25: 0.3070000112 | AL25: 0.3219999969 | AM25: 0.3199999928 | AN25: 0.2800000012 | AO25: 0.2939999998 | AT25: 0.172999993 | AU25: 0.1959999949 | AV25: 0.2060000002 | AW25: 0.1599999964 | AX25: 0.1620000005 | AY25: 0.1770000011 | AZ25: 0.2039999962 | BE25: 0.1870000064 | BF25: 0.1840000004 | BG25: 0.1979999989 | BH25: 0.2129999995 | BI25: 0.2370000035 | BJ25: 0.2689999938 | BK25: 0.3549999893
A26: -8.1 | B26: 0.2919999957 | C26: 0.2290000021 | D26: 0.1580000073 | E26: 0.2389999926 | F26: 0.2080000043 | G26: 0.1809999943 | H26: 0.1669999957 | I26: 0.1580000073 | J26: 0.1780000031 | K26: 0.3190000057 | L26: 0.4390000105 | M26: 0.1509999931 | N26: 0.1180000007 | O26: 0.1220000014 | P26: 0.1420000046 | Q26: 0.173999995 | R26: 0.2070000023 | S26: 0.3050000072 | X26: 0.2669999897 | Y26: 0.298999995 | Z26: 0.3120000064 | AA26: 0.3370000124 | AC26: 0.3589999974 | AD26: 0.4009999931 | AI26: 0.2700000107 | AJ26: 0.3149999976 | AK26: 0.3129999936 | AL26: 0.3289999962 | AM26: 0.3280000091 | AN26: 0.2879999876 | AO26: 0.3030000031 | AT26: 0.1809999943 | AU26: 0.2039999962 | AV26: 0.2150000036 | AW26: 0.1630000025 | AX26: 0.1650000066 | AY26: 0.1800000072 | AZ26: 0.2080000043 | BE26: 0.1850000024 | BF26: 0.1809999943 | BG26: 0.1949999928 | BH26: 0.2090000063 | BI26: 0.2300000042 | BJ26: 0.2599999905 | BK26: 0.3429999948
A27: -8 | B27: 0.3030000031 | C27: 0.2399999946 | D27: 0.1710000038 | E27: 0.2440000027 | F27: 0.2140000015 | G27: 0.1860000044 | H27: 0.1689999998 | I27: 0.1550000012 | J27: 0.1720000058 | K27: 0.3079999983 | L27: 0.4289999902 | M27: 0.1589999944 | N27: 0.1190000027 | O27: 0.1180000007 | P27: 0.1340000033 | Q27: 0.1650000066 | R27: 0.1969999969 | S27: 0.2930000126 | X27: 0.2599999905 | Y27: 0.2939999998 | Z27: 0.3079999983 | AA27: 0.3339999914 | AC27: 0.3580000103 | AD27: 0.40200001 | AI27: 0.2720000148 | AJ27: 0.3179999888 | AK27: 0.3179999888 | AL27: 0.3350000083 | AM27: 0.3350000083 | AN27: 0.2960000038 | AO27: 0.3120000064 | AT27: 0.1889999956 | AU27: 0.2129999995 | AV27: 0.2240000069 | AW27: 0.1669999957 | AX27: 0.1689999998 | AY27: 0.1840000004 | AZ27: 0.2119999975 | BE27: 0.1829999983 | BF27: 0.1780000031 | BG27: 0.1930000037 | BH27: 0.2039999962 | BI27: 0.2240000069 | BJ27: 0.2509999871 | BK27: 0.3310000002
A28: -7.9 | B28: 0.3140000105 | C28: 0.2509999871 | D28: 0.1829999983 | E28: 0.2509999871 | F28: 0.2199999988 | G28: 0.1909999996 | H28: 0.1720000058 | I28: 0.1529999971 | J28: 0.1659999937 | K28: 0.2969999909 | L28: 0.4199999869 | M28: 0.1669999957 | N28: 0.1209999993 | O28: 0.1150000021 | P28: 0.1270000041 | Q28: 0.1550000012 | R28: 0.1860000044 | S28: 0.2820000052 | X28: 0.2529999912 | Y28: 0.2879999876 | Z28: 0.3030000031 | AA28: 0.3300000131 | AC28: 0.3569999933 | AD28: 0.4029999971 | AI28: 0.2730000019 | AJ28: 0.3219999969 | AK28: 0.3219999969 | AL28: 0.3409999907 | AM28: 0.3420000076 | AN28: 0.3030000031 | AO28: 0.3210000098 | AT28: 0.1959999949 | AU28: 0.2220000029 | AV28: 0.2339999974 | AW28: 0.1710000038 | AX28: 0.172999993 | AY28: 0.1879999936 | AZ28: 0.2169999927 | BE28: 0.1790000051 | BF28: 0.174999997 | BG28: 0.1899999976 | BH28: 0.200000003 | BI28: 0.2189999968 | BJ28: 0.2430000007 | BK28: 0.3199999928
A29: -7.8 | B29: 0.3249999881 | C29: 0.2630000114 | D29: 0.1959999949 | E29: 0.2579999864 | F29: 0.2269999981 | G29: 0.1969999969 | H29: 0.174999997 | I29: 0.1519999951 | J29: 0.1609999985 | K29: 0.2860000134 | L29: 0.4099999964 | M29: 0.1770000011 | N29: 0.123999998 | O29: 0.112999998 | P29: 0.1199999973 | Q29: 0.1459999979 | R29: 0.174999997 | S29: 0.2700000107 | X29: 0.2460000068 | Y29: 0.2820000052 | Z29: 0.2969999909 | AA29: 0.326000005 | AC29: 0.3549999893 | AD29: 0.4029999971 | AI29: 0.2730000019 | AJ29: 0.324000001 | AK29: 0.3269999921 | AL29: 0.3459999859 | AM29: 0.3490000069 | AN29: 0.3100000024 | AO29: 0.3300000131 | AT29: 0.2039999962 | AU29: 0.2310000062 | AV29: 0.2430000007 | AW29: 0.174999997 | AX29: 0.1770000011 | AY29: 0.1930000037 | AZ29: 0.2230000049 | BE29: 0.174999997 | BF29: 0.1710000038 | BG29: 0.1879999936 | BH29: 0.1969999969 | BI29: 0.2140000015 | BJ29: 0.2360000014 | BK29: 0.3079999983
A30: -7.7 | B30: 0.3359999955 | C30: 0.275000006 | D30: 0.2090000063 | E30: 0.2649999857 | F30: 0.2349999994 | G30: 0.2039999962 | H30: 0.1790000051 | I30: 0.1519999951 | J30: 0.1560000032 | K30: 0.273999989 | L30: 0.400000006 | M30: 0.1870000064 | N30: 0.1289999932 | O30: 0.112999998 | P30: 0.1150000021 | Q30: 0.1369999945 | R30: 0.1640000045 | S30: 0.2579999864 | X30: 0.2380000055 | Y30: 0.2759999931 | Z30: 0.2919999957 | AA30: 0.3210000098 | AC30: 0.3529999852 | AD30: 0.40200001 | AI30: 0.2730000019 | AJ30: 0.326000005 | AK30: 0.3300000131 | AL30: 0.351000011 | AM30: 0.3549999893 | AN30: 0.3170000017 | AO30: 0.3389999866 | AT30: 0.2109999955 | AU30: 0.2399999946 | AV30: 0.2529999912 | AW30: 0.1800000072 | AX30: 0.1829999983 | AY30: 0.199000001 | AZ30: 0.2280000001 | BE30: 0.1710000038 | BF30: 0.1659999937 | BG30: 0.1850000024 | BH30: 0.1930000037 | BI30: 0.2090000063 | BJ30: 0.2290000021 | BK30: 0.2969999909
A31: -7.6 | B31: 0.34799999 | C31: 0.2870000005 | D31: 0.2230000049 | E31: 0.2730000019 | F31: 0.2430000007 | G31: 0.2119999975 | H31: 0.1840000004 | I31: 0.1519999951 | J31: 0.1519999951 | K31: 0.2619999945 | L31: 0.3889999986 | M31: 0.1979999989 | N31: 0.1350000054 | O31: 0.1140000001 | P31: 0.1110000014 | Q31: 0.1289999932 | R31: 0.1539999992 | S31: 0.2460000068 | X31: 0.2300000042 | Y31: 0.2689999938 | Z31: 0.2849999964 | AA31: 0.3149999976 | AC31: 0.349999994 | AD31: 0.40200001 | AI31: 0.2730000019 | AJ31: 0.3280000091 | AK31: 0.3330000043 | AL31: 0.3549999893 | AM31: 0.3600000143 | AN31: 0.324000001 | AO31: 0.3470000029 | AT31: 0.2179999948 | AU31: 0.248999998 | AV31: 0.2619999945 | AW31: 0.1860000044 | AX31: 0.1879999936 | AY31: 0.2039999962 | AZ31: 0.2349999994 | BE31: 0.1650000066 | BF31: 0.1599999964 | BG31: 0.1819999963 | BH31: 0.1889999956 | BI31: 0.2060000002 | BJ31: 0.2240000069 | BK31: 0.2870000005
A32: -7.5 | B32: 0.3600000143 | C32: 0.298999995 | D32: 0.2360000014 | E32: 0.2820000052 | F32: 0.2520000041 | G32: 0.2199999988 | H32: 0.1899999976 | I32: 0.1539999992 | J32: 0.1490000039 | K32: 0.2509999871 | L32: 0.3790000081 | M32: 0.2090000063 | N32: 0.1430000067 | O32: 0.1169999987 | P32: 0.1080000028 | Q32: 0.1209999993 | R32: 0.1430000067 | S32: 0.2339999974 | X32: 0.2220000029 | Y32: 0.2610000074 | Z32: 0.2779999971 | AA32: 0.3089999855 | AC32: 0.3459999859 | AD32: 0.400000006 | AI32: 0.2709999979 | AJ32: 0.3289999962 | AK32: 0.3359999955 | AL32: 0.3589999974 | AM32: 0.3650000095 | AN32: 0.3300000131 | AO32: 0.3549999893 | AT32: 0.224999994 | AU32: 0.2579999864 | AV32: 0.2720000148 | AW32: 0.1909999996 | AX32: 0.1940000057 | AY32: 0.2099999934 | AZ32: 0.2409999967 | BE32: 0.1580000073 | BF32: 0.1539999992 | BG32: 0.1780000031 | BH32: 0.1850000024 | BI32: 0.202000007 | BJ32: 0.2189999968 | BK32: 0.27700001
A33: -7.4 | B33: 0.3720000088 | C33: 0.3120000064 | D33: 0.25 | E33: 0.2899999917 | F33: 0.2610000074 | G33: 0.2280000001 | H33: 0.1959999949 | I33: 0.1560000032 | J33: 0.1459999979 | K33: 0.2389999926 | L33: 0.3680000007 | M33: 0.2210000008 | N33: 0.1509999931 | O33: 0.1220000014 | P33: 0.1070000008 | Q33: 0.1150000021 | R33: 0.1330000013 | S33: 0.2210000008 | X33: 0.2140000015 | Y33: 0.2540000081 | Z33: 0.2709999979 | AA33: 0.3030000031 | AC33: 0.3420000076 | AD33: 0.3980000019 | AI33: 0.2689999938 | AJ33: 0.3289999962 | AK33: 0.3370000124 | AL33: 0.3619999886 | AM33: 0.3689999878 | AN33: 0.3359999955 | AO33: 0.3630000055 | AT33: 0.2310000062 | AU33: 0.2660000026 | AV33: 0.2809999883 | AW33: 0.1979999989 | AX33: 0.200000003 | AY33: 0.2169999927 | AZ33: 0.2479999959 | BE33: 0.1509999931 | BF33: 0.1469999999 | BG33: 0.173999995 | BH33: 0.1809999943 | BI33: 0.199000001 | BJ33: 0.2150000036 | BK33: 0.2689999938
A34: -7.3 | B34: 0.3840000033 | C34: 0.324000001 | D34: 0.2630000114 | E34: 0.3000000119 | F34: 0.2700000107 | G34: 0.2370000035 | H34: 0.2029999942 | I34: 0.1599999964 | J34: 0.1439999938 | K34: 0.2259999961 | L34: 0.3569999933 | M34: 0.2329999954 | N34: 0.1609999985 | O34: 0.1280000061 | P34: 0.1080000028 | Q34: 0.1089999974 | R34: 0.123999998 | S34: 0.2080000043 | X34: 0.2049999982 | Y34: 0.2460000068 | Z34: 0.2639999986 | AA34: 0.2960000038 | AC34: 0.3379999995 | AD34: 0.3959999979 | AI34: 0.2669999897 | AJ34: 0.3280000091 | AK34: 0.3379999995 | AL34: 0.3639999926 | AM34: 0.3729999959 | AN34: 0.3409999907 | AO34: 0.3709999919 | AT34: 0.2370000035 | AU34: 0.273999989 | AV34: 0.2899999917 | AW34: 0.2039999962 | AX34: 0.2070000023 | AY34: 0.2240000069 | AZ34: 0.2560000122 | BE34: 0.1420000046 | BF34: 0.1379999965 | BG34: 0.1679999977 | BH34: 0.175999999 | BI34: 0.1949999928 | BJ34: 0.2109999955 | BK34: 0.2610000074
A35: -7.2 | B35: 0.3959999979 | C35: 0.3370000124 | D35: 0.27700001 | E35: 0.3089999855 | F35: 0.2800000012 | G35: 0.2460000068 | H35: 0.2099999934 | I35: 0.1640000045 | J35: 0.1439999938 | K35: 0.2140000015 | L35: 0.3459999859 | M35: 0.2450000048 | N35: 0.1710000038 | O35: 0.1360000074 | P35: 0.1110000014 | Q35: 0.1059999987 | R35: 0.1150000021 | S35: 0.1949999928 | X35: 0.1979999989 | Y35: 0.2370000035 | Z35: 0.2549999952 | AA35: 0.2890000045 | AC35: 0.3330000043 | AD35: 0.3930000067 | AI35: 0.2630000114 | AJ35: 0.3269999921 | AK35: 0.3389999866 | AL35: 0.3659999967 | AM35: 0.3759999871 | AN35: 0.3449999988 | AO35: 0.3779999912 | AT35: 0.2419999987 | AU35: 0.2809999883 | AV35: 0.298999995 | AW35: 0.2109999955 | AX35: 0.2140000015 | AY35: 0.2310000062 | AZ35: 0.2639999986 | BE35: 0.1319999993 | BF35: 0.1280000061 | BG35: 0.1620000005 | BH35: 0.1710000038 | BI35: 0.1920000017 | BJ35: 0.2080000043 | BK35: 0.2549999952
A36: -7.1 | B36: 0.4079999924 | C36: 0.349999994 | D36: 0.2910000086 | E36: 0.3190000057 | F36: 0.2899999917 | G36: 0.2560000122 | H36: 0.2179999948 | I36: 0.1689999998 | J36: 0.1439999938 | K36: 0.202000007 | L36: 0.3350000083 | M36: 0.2579999864 | N36: 0.1819999963 | O36: 0.1449999958 | P36: 0.1150000021 | Q36: 0.1040000021 | R36: 0.1070000008 | S36: 0.1819999963 | X36: 0.1899999976 | Y36: 0.2290000021 | Z36: 0.2469999939 | AA36: 0.2809999883 | AC36: 0.3269999921 | AD36: 0.3889999986 | AI36: 0.2590000033 | AJ36: 0.3249999881 | AK36: 0.3389999866 | AL36: 0.3670000136 | AM36: 0.3790000081 | AN36: 0.349999994 | AO36: 0.3840000033 | AT36: 0.2460000068 | AU36: 0.2879999876 | AV36: 0.3070000112 | AW36: 0.2169999927 | AX36: 0.2210000008 | AY36: 0.2380000055 | AZ36: 0.2720000148 | BE36: 0.1220000014 | BF36: 0.1180000007 | BG36: 0.1550000012 | BH36: 0.1640000045 | BI36: 0.1879999936 | BJ36: 0.2049999982 | BK36: 0.248999998
A37: -7 | B37: 0.4210000038 | C37: 0.3619999886 | D37: 0.3050000072 | E37: 0.3289999962 | F37: 0.3000000119 | G37: 0.2660000026 | H37: 0.2259999961 | I37: 0.174999997 | J37: 0.1449999958 | K37: 0.1889999956 | L37: 0.3230000138 | M37: 0.2709999979 | N37: 0.1930000037 | O37: 0.1539999992 | P37: 0.1220000014 | Q37: 0.1040000021 | R37: 0.1010000035 | S37: 0.1689999998 | X37: 0.1829999983 | Y37: 0.2199999988 | Z37: 0.2380000055 | AA37: 0.2720000148 | AC37: 0.3210000098 | AD37: 0.3849999905 | AI37: 0.2549999952 | AJ37: 0.3219999969 | AK37: 0.3379999995 | AL37: 0.3670000136 | AM37: 0.3810000122 | AN37: 0.3529999852 | AO37: 0.3899999857 | AT37: 0.25 | AU37: 0.2949999869 | AV37: 0.3149999976 | AW37: 0.2240000069 | AX37: 0.2280000001 | AY37: 0.2460000068 | AZ37: 0.2800000012 | BE37: 0.1110000014 | BF37: 0.1059999987 | BG37: 0.1459999979 | BH37: 0.1570000052 | BI37: 0.1829999983 | BJ37: 0.202000007 | BK37: 0.2450000048
A38: -6.9 | B38: 0.4329999983 | C38: 0.375 | D38: 0.3190000057 | E38: 0.3400000036 | F38: 0.3109999895 | G38: 0.2759999931 | H38: 0.2349999994 | I38: 0.1809999943 | J38: 0.1469999999 | K38: 0.1770000011 | L38: 0.3120000064 | M38: 0.2849999964 | N38: 0.2060000002 | O38: 0.1650000066 | P38: 0.1289999932 | Q38: 0.1059999987 | R38: 0.09600000083 | S38: 0.1560000032 | X38: 0.175999999 | Y38: 0.2109999955 | Z38: 0.2290000021 | AA38: 0.2639999986 | AC38: 0.3140000105 | AD38: 0.3799999952 | AI38: 0.248999998 | AJ38: 0.3179999888 | AK38: 0.3359999955 | AL38: 0.3670000136 | AM38: 0.3819999993 | AN38: 0.3560000062 | AO38: 0.3959999979 | AT38: 0.2540000081 | AU38: 0.300999999 | AV38: 0.3219999969 | AW38: 0.2310000062 | AX38: 0.2349999994 | AY38: 0.2540000081 | AZ38: 0.2890000045 | BE38: 0.09899999946 | BF38: 0.09200000018 | BG38: 0.1369999945 | BH38: 0.1490000039 | BI38: 0.1780000031 | BJ38: 0.199000001 | BK38: 0.2409999967
A39: -6.8 | B39: 0.4460000098 | C39: 0.3880000114 | D39: 0.3330000043 | E39: 0.349999994 | F39: 0.3219999969 | G39: 0.2870000005 | H39: 0.2440000027 | I39: 0.1879999936 | J39: 0.150000006 | K39: 0.1640000045 | L39: 0.3000000119 | M39: 0.298999995 | N39: 0.2179999948 | O39: 0.1770000011 | P39: 0.1379999965 | Q39: 0.1099999994 | R39: 0.09399999678 | S39: 0.1430000067 | X39: 0.1700000018 | Y39: 0.202000007 | Z39: 0.2199999988 | AA39: 0.2549999952 | AC39: 0.3070000112 | AD39: 0.375 | AI39: 0.2440000027 | AJ39: 0.3140000105 | AK39: 0.3330000043 | AL39: 0.3659999967 | AM39: 0.3819999993 | AN39: 0.3580000103 | AO39: 0.4009999931 | AT39: 0.2560000122 | AU39: 0.3059999943 | AV39: 0.3289999962 | AW39: 0.2370000035 | AX39: 0.2419999987 | AY39: 0.2610000074 | AZ39: 0.2980000079 | BE39: 0.0869999975 | BF39: 0.07800000161 | BG39: 0.126000002 | BH39: 0.1389999986 | BI39: 0.1710000038 | BJ39: 0.1949999928 | BK39: 0.2380000055
A40: -6.7 | B40: 0.4589999914 | C40: 0.4009999931 | D40: 0.3470000029 | E40: 0.3610000014 | F40: 0.3330000043 | G40: 0.2980000079 | H40: 0.2540000081 | I40: 0.1959999949 | J40: 0.1539999992 | K40: 0.1509999931 | L40: 0.2879999876 | M40: 0.3120000064 | N40: 0.2310000062 | O40: 0.1889999956 | P40: 0.1480000019 | Q40: 0.1159999967 | R40: 0.09300000221 | S40: 0.1299999952 | X40: 0.1659999937 | Y40: 0.1930000037 | Z40: 0.2099999934 | AA40: 0.2450000048 | AC40: 0.298999995 | AD40: 0.3689999878 | AI40: 0.2370000035 | AJ40: 0.3089999855 | AK40: 0.3300000131 | AL40: 0.3639999926 | AM40: 0.3819999993 | AN40: 0.3600000143 | AO40: 0.4050000012 | AT40: 0.2579999864 | AU40: 0.3100000024 | AV40: 0.3350000083 | AW40: 0.2430000007 | AX40: 0.248999998 | AY40: 0.2689999938 | AZ40: 0.3070000112 | BE40: 0.07599999756 | BF40: 0.06300000101 | BG40: 0.1140000001 | BH40: 0.1280000061 | BI40: 0.1640000045 | BJ40: 0.1909999996 | BK40: 0.2349999994
A41: -6.6 | B41: 0.4709999859 | C41: 0.4140000045 | D41: 0.3610000014 | E41: 0.3720000088 | F41: 0.3440000117 | G41: 0.3089999855 | H41: 0.2639999986 | I41: 0.2039999962 | J41: 0.1589999944 | K41: 0.1379999965 | L41: 0.2759999931 | M41: 0.3269999921 | N41: 0.2440000027 | O41: 0.201000005 | P41: 0.1599999964 | Q41: 0.123999998 | R41: 0.09600000083 | S41: 0.1169999987 | X41: 0.1620000005 | Y41: 0.1850000024 | Z41: 0.201000005 | AA41: 0.2349999994 | AC41: 0.2910000086 | AD41: 0.3619999886 | AI41: 0.2300000042 | AJ41: 0.3030000031 | AK41: 0.326000005 | AL41: 0.3610000014 | AM41: 0.3810000122 | AN41: 0.3610000014 | AO41: 0.4090000093 | AT41: 0.2590000033 | AU41: 0.3140000105 | AV41: 0.3400000036 | AW41: 0.248999998 | AX41: 0.2560000122 | AY41: 0.2759999931 | AZ41: 0.3160000145 | BE41: 0.06499999762 | BF41: 0.04600000009 | BG41: 0.1000000015 | BH41: 0.1169999987 | BI41: 0.1560000032 | BJ41: 0.1850000024 | BK41: 0.2329999954
A42: -6.5 | B42: 0.4839999974 | C42: 0.4269999862 | D42: 0.375 | E42: 0.3840000033 | F42: 0.3549999893 | G42: 0.3199999928 | H42: 0.273999989 | I42: 0.2129999995 | J42: 0.1650000066 | K42: 0.125 | L42: 0.2630000114 | M42: 0.3409999907 | N42: 0.2579999864 | O42: 0.2140000015 | P42: 0.1710000038 | Q42: 0.1330000013 | R42: 0.1000000015 | S42: 0.1049999967 | X42: 0.1599999964 | Y42: 0.1770000011 | Z42: 0.1909999996 | AA42: 0.224999994 | AC42: 0.2820000052 | AD42: 0.3549999893 | AI42: 0.2230000049 | AJ42: 0.2969999909 | AK42: 0.3210000098 | AL42: 0.3580000103 | AM42: 0.3790000081 | AN42: 0.3610000014 | AO42: 0.4129999876 | AT42: 0.2590000033 | AU42: 0.3170000017 | AV42: 0.3449999988 | AW42: 0.2549999952 | AX42: 0.2619999945 | AY42: 0.2840000093 | AZ42: 0.3249999881 | BE42: 0.05700000003 | BF42: 0.02999999933 | BG42: 0.08600000292 | BH42: 0.1040000021 | BI42: 0.1459999979 | BJ42: 0.1790000051 | BK42: 0.2310000062
A43: -6.4 | B43: 0.4970000088 | C43: 0.4399999976 | D43: 0.3889999986 | E43: 0.3950000107 | F43: 0.3670000136 | G43: 0.3319999874 | H43: 0.2840000093 | I43: 0.2220000029 | J43: 0.1720000058 | K43: 0.1120000035 | L43: 0.2509999871 | M43: 0.3549999893 | N43: 0.2720000148 | O43: 0.2280000001 | P43: 0.1840000004 | Q43: 0.1430000067 | R43: 0.1070000008 | S43: 0.09300000221 | X43: 0.1599999964 | Y43: 0.1689999998 | Z43: 0.1819999963 | AA43: 0.2150000036 | AC43: 0.2730000019 | AD43: 0.3470000029 | AI43: 0.2150000036 | AJ43: 0.2890000045 | AK43: 0.3160000145 | AL43: 0.3529999852 | AM43: 0.3770000041 | AN43: 0.3610000014 | AO43: 0.4149999917 | AT43: 0.2579999864 | AU43: 0.3190000057 | AV43: 0.34799999 | AW43: 0.2599999905 | AX43: 0.2689999938 | AY43: 0.2910000086 | AZ43: 0.3339999914 | BE43: 0.05299999937 | BF43: 0.01600000076 | BG43: 0.0700000003 | BH43: 0.09000000358 | BI43: 0.1360000074 | BJ43: 0.1720000058 | BK43: 0.2280000001
A44: -6.3 | B44: 0.5090000033 | C44: 0.4530000091 | D44: 0.4029999971 | E44: 0.4070000052 | F44: 0.3790000081 | G44: 0.3429999948 | H44: 0.2949999869 | I44: 0.2319999933 | J44: 0.1790000051 | K44: 0.1000000015 | L44: 0.2380000055 | M44: 0.3700000048 | N44: 0.2860000134 | O44: 0.2409999967 | P44: 0.1969999969 | Q44: 0.1539999992 | R44: 0.1150000021 | S44: 0.08299999684 | X44: 0.1620000005 | Y44: 0.1620000005 | Z44: 0.172999993 | AA44: 0.2049999982 | AC44: 0.2639999986 | AD44: 0.3389999866 | AI44: 0.2070000023 | AJ44: 0.2820000052 | AK44: 0.3100000024 | AL44: 0.34799999 | AM44: 0.3729999959 | AN44: 0.3600000143 | AO44: 0.4169999957 | AT44: 0.2560000122 | AU44: 0.3210000098 | AV44: 0.351000011 | AW44: 0.2649999857 | AX44: 0.273999989 | AY44: 0.2980000079 | AZ44: 0.3429999948 | BE44: 0.0540000014 | BF44: 0.01999999955 | BG44: 0.05299999937 | BH44: 0.07500000298 | BI44: 0.123999998 | BJ44: 0.1640000045 | BK44: 0.224999994
A45: -6.2 | B45: 0.5220000148 | C45: 0.4659999907 | D45: 0.4160000086 | E45: 0.4180000126 | F45: 0.3910000026 | G45: 0.3549999893 | H45: 0.3059999943 | I45: 0.2409999967 | J45: 0.1870000064 | K45: 0.0869999975 | L45: 0.2259999961 | M45: 0.3840000033 | N45: 0.300999999 | O45: 0.2560000122 | P45: 0.2099999934 | Q45: 0.1659999937 | R45: 0.125 | S45: 0.07500000298 | X45: 0.1650000066 | Y45: 0.1570000052 | Z45: 0.1650000066 | AA45: 0.1949999928 | AC45: 0.2540000081 | AD45: 0.3300000131 | AI45: 0.199000001 | AJ45: 0.2730000019 | AK45: 0.3030000031 | AL45: 0.3420000076 | AM45: 0.3689999878 | AN45: 0.3580000103 | AO45: 0.4180000126 | AT45: 0.2540000081 | AU45: 0.3210000098 | AV45: 0.3529999852 | AW45: 0.2700000107 | AX45: 0.2800000012 | AY45: 0.3039999902 | AZ45: 0.3519999981 | BE45: 0.06199999899 | BF45: 0.03799999878 | BG45: 0.03500000015 | BH45: 0.05999999866 | BI45: 0.1099999994 | BJ45: 0.1539999992 | BK45: 0.2220000029
A46: -6.1 | B46: 0.5350000262 | C46: 0.4790000021 | D46: 0.4300000072 | E46: 0.4300000072 | F46: 0.40200001 | G46: 0.3670000136 | H46: 0.3170000017 | I46: 0.2520000041 | J46: 0.1949999928 | K46: 0.07400000095 | L46: 0.2129999995 | M46: 0.398999989 | N46: 0.3149999976 | O46: 0.2700000107 | P46: 0.2240000069 | Q46: 0.1790000051 | R46: 0.1369999945 | S46: 0.0700000003 | X46: 0.1700000018 | Y46: 0.1529999971 | Z46: 0.1570000052 | AA46: 0.1850000024 | AC46: 0.2440000027 | AD46: 0.3210000098 | AI46: 0.1909999996 | AJ46: 0.2639999986 | AK46: 0.2949999869 | AL46: 0.3359999955 | AM46: 0.3639999926 | AN46: 0.3549999893 | AO46: 0.4189999998 | AT46: 0.25 | AU46: 0.3199999928 | AV46: 0.3549999893 | AW46: 0.2730000019 | AX46: 0.2849999964 | AY46: 0.3100000024 | AZ46: 0.3600000143 | BE46: 0.07299999893 | BF46: 0.05799999833 | BG46: 0.01799999923 | BH46: 0.04699999839 | BI46: 0.09600000083 | BJ46: 0.1439999938 | BK46: 0.2169999927
A47: -6 | B47: 0.5469999909 | C47: 0.4920000136 | D47: 0.4440000057 | E47: 0.4420000017 | F47: 0.4140000045 | G47: 0.3790000081 | H47: 0.3280000091 | I47: 0.2619999945 | J47: 0.2039999962 | K47: 0.06199999899 | L47: 0.200000003 | M47: 0.4140000045 | N47: 0.3300000131 | O47: 0.2849999964 | P47: 0.2389999926 | Q47: 0.1920000017 | R47: 0.1490000039 | S47: 0.0680000037 | X47: 0.1770000011 | Y47: 0.150000006 | Z47: 0.150000006 | AA47: 0.174999997 | AC47: 0.2329999954 | AD47: 0.3120000064 | AI47: 0.1829999983 | AJ47: 0.2540000081 | AK47: 0.2860000134 | AL47: 0.3280000091 | AM47: 0.3580000103 | AN47: 0.3519999981 | AO47: 0.4189999998 | AT47: 0.2460000068 | AU47: 0.3190000057 | AV47: 0.3549999893 | AW47: 0.27700001 | AX47: 0.2890000045 | AY47: 0.3160000145 | AZ47: 0.3680000007 | BE47: 0.0869999975 | BF47: 0.07999999821 | BG47: 0.01400000043 | BH47: 0.03700000048 | BI47: 0.08100000024 | BJ47: 0.1309999973 | BK47: 0.2109999955
A48: -5.9 | B48: 0.5600000024 | C48: 0.5049999952 | D48: 0.4580000043 | E48: 0.4539999962 | F48: 0.4269999862 | G48: 0.3910000026 | H48: 0.3400000036 | I48: 0.2730000019 | J48: 0.2140000015 | K48: 0.05099999905 | L48: 0.1860000044 | M48: 0.4289999902 | N48: 0.3449999988 | O48: 0.298999995 | P48: 0.2529999912 | Q48: 0.2060000002 | R48: 0.1620000005 | S48: 0.0700000003 | X48: 0.1860000044 | Y48: 0.1490000039 | Z48: 0.1449999958 | AA48: 0.1659999937 | AC48: 0.2230000049 | AD48: 0.300999999 | AI48: 0.174999997 | AJ48: 0.2430000007 | AK48: 0.27700001 | AL48: 0.3199999928 | AM48: 0.351000011 | AN48: 0.34799999 | AO48: 0.4169999957 | AT48: 0.2409999967 | AU48: 0.3160000145 | AV48: 0.3540000021 | AW48: 0.2790000141 | AX48: 0.2930000126 | AY48: 0.3210000098 | AZ48: 0.3759999871 | BE48: 0.1019999981 | BF48: 0.1019999981 | BG48: 0.03099999949 | BH48: 0.03799999878 | BI48: 0.06499999762 | BJ48: 0.1180000007 | BK48: 0.2049999982
A49: -5.8 | B49: 0.5720000267 | C49: 0.5180000067 | D49: 0.4720000029 | E49: 0.4659999907 | F49: 0.4390000105 | G49: 0.4029999971 | H49: 0.351000011 | I49: 0.2840000093 | J49: 0.2240000069 | K49: 0.04199999943 | L49: 0.172999993 | M49: 0.4429999888 | N49: 0.3600000143 | O49: 0.3140000105 | P49: 0.2680000067 | Q49: 0.2199999988 | R49: 0.175999999 | S49: 0.07599999756 | X49: 0.1969999969 | Y49: 0.150000006 | Z49: 0.1410000026 | AA49: 0.1580000073 | AC49: 0.2119999975 | AD49: 0.2910000086 | AI49: 0.1679999977 | AJ49: 0.2319999933 | AK49: 0.2669999897 | AL49: 0.3109999895 | AM49: 0.3440000117 | AN49: 0.3429999948 | AO49: 0.4160000086 | AT49: 0.2349999994 | AU49: 0.3120000064 | AV49: 0.3519999981 | AW49: 0.2809999883 | AX49: 0.2960000038 | AY49: 0.326000005 | AZ49: 0.3829999864 | BE49: 0.1180000007 | BF49: 0.125 | BG49: 0.05200000107 | BH49: 0.04899999872 | BI49: 0.05000000075 | BJ49: 0.1030000001 | BK49: 0.1969999969
A50: -5.7 | B50: 0.5849999785 | C50: 0.5310000181 | D50: 0.4850000143 | E50: 0.4779999852 | F50: 0.451000005 | G50: 0.4149999917 | H50: 0.3630000055 | I50: 0.2949999869 | J50: 0.2339999974 | K50: 0.03599999845 | L50: 0.1599999964 | M50: 0.4580000043 | N50: 0.375 | O50: 0.3289999962 | P50: 0.2829999924 | Q50: 0.2349999994 | R50: 0.1899999976 | S50: 0.08500000089 | X50: 0.2080000043 | Y50: 0.1529999971 | Z50: 0.1389999986 | AA50: 0.150000006 | AC50: 0.201000005 | AD50: 0.2790000141 | AI50: 0.1620000005 | AJ50: 0.2210000008 | AK50: 0.2569999993 | AL50: 0.300999999 | AM50: 0.3359999955 | AN50: 0.3370000124 | AO50: 0.4129999876 | AT50: 0.2280000001 | AU50: 0.3079999983 | AV50: 0.3490000069 | AW50: 0.2820000052 | AX50: 0.298999995 | AY50: 0.3289999962 | AZ50: 0.3899999857 | BE50: 0.1350000054 | BF50: 0.1480000019 | BG50: 0.07400000095 | BH50: 0.06700000167 | BI50: 0.03799999878 | BJ50: 0.08799999952 | BK50: 0.1870000064
A51: -5.6 | B51: 0.5970000029 | C51: 0.5440000296 | D51: 0.4990000129 | E51: 0.4900000095 | F51: 0.4629999995 | G51: 0.4280000031 | H51: 0.375 | I51: 0.3070000112 | J51: 0.2450000048 | K51: 0.03599999845 | L51: 0.1459999979 | M51: 0.47299999 | N51: 0.3899999857 | O51: 0.3449999988 | P51: 0.2980000079 | Q51: 0.25 | R51: 0.2039999962 | S51: 0.09600000083 | X51: 0.2220000029 | Y51: 0.1589999944 | Z51: 0.1389999986 | AA51: 0.1439999938 | AC51: 0.1899999976 | AD51: 0.2680000067 | AI51: 0.1570000052 | AJ51: 0.2090000063 | AK51: 0.2460000068 | AL51: 0.2910000086 | AM51: 0.3269999921 | AN51: 0.3300000131 | AO51: 0.4090000093 | AT51: 0.2210000008 | AU51: 0.3019999862 | AV51: 0.3449999988 | AW51: 0.2820000052 | AX51: 0.3000000119 | AY51: 0.3319999874 | AZ51: 0.3970000148 | BE51: 0.1509999931 | BF51: 0.1710000038 | BG51: 0.09600000083 | BH51: 0.08799999952 | BI51: 0.03400000185 | BJ51: 0.07100000232 | BK51: 0.175999999
A52: -5.5 | B52: 0.6100000143 | C52: 0.5559999943 | D52: 0.5130000114 | E52: 0.5019999743 | F52: 0.474999994 | G52: 0.4399999976 | H52: 0.3869999945 | I52: 0.3179999888 | J52: 0.2549999952 | K52: 0.03999999911 | L52: 0.1319999993 | M52: 0.4880000055 | N52: 0.4059999883 | O52: 0.3600000143 | P52: 0.3129999936 | Q52: 0.2649999857 | R52: 0.2189999968 | S52: 0.1089999974 | X52: 0.2360000014 | Y52: 0.1659999937 | Z52: 0.1420000046 | AA52: 0.1400000006 | AC52: 0.1790000051 | AD52: 0.2560000122 | AI52: 0.1529999971 | AJ52: 0.1979999989 | AK52: 0.2339999974 | AL52: 0.2800000012 | AM52: 0.3170000017 | AN52: 0.3230000138 | AO52: 0.4050000012 | AT52: 0.2129999995 | AU52: 0.2949999869 | AV52: 0.3400000036 | AW52: 0.2809999883 | AX52: 0.300999999 | AY52: 0.3350000083 | AZ52: 0.40200001 | BE52: 0.1659999937 | BF52: 0.1940000057 | BG52: 0.1190000027 | BH52: 0.1110000014 | BI52: 0.04399999976 | BJ52: 0.0540000014 | BK52: 0.1640000045
A53: -5.4 | B53: 0.621999979 | C53: 0.5690000057 | D53: 0.5260000229 | E53: 0.5139999986 | F53: 0.4880000055 | G53: 0.4519999921 | H53: 0.398999989 | I53: 0.3300000131 | J53: 0.2669999897 | K53: 0.04899999872 | L53: 0.1190000027 | M53: 0.503000021 | N53: 0.4210000038 | O53: 0.375 | P53: 0.3289999962 | Q53: 0.2800000012 | R53: 0.2349999994 | S53: 0.1230000034 | X53: 0.2509999871 | Y53: 0.174999997 | Z53: 0.1459999979 | AA53: 0.1379999965 | AC53: 0.1689999998 | AD53: 0.2440000027 | AI53: 0.1519999951 | AJ53: 0.1860000044 | AK53: 0.2220000029 | AL53: 0.2680000067 | AM53: 0.3059999943 | AN53: 0.3149999976 | AO53: 0.400000006 | AT53: 0.2039999962 | AU53: 0.2879999876 | AV53: 0.3339999914 | AW53: 0.2800000012 | AX53: 0.300999999 | AY53: 0.3359999955 | AZ53: 0.4070000052 | BE53: 0.1809999943 | BF53: 0.2160000056 | BG53: 0.1420000046 | BH53: 0.1340000033 | BI53: 0.06100000069 | BJ53: 0.03999999911 | BK53: 0.150000006
A54: -5.3 | B54: 0.6340000033 | C54: 0.5820000172 | D54: 0.5389999747 | E54: 0.5260000229 | F54: 0.5 | G54: 0.4650000036 | H54: 0.4110000134 | I54: 0.3420000076 | J54: 0.2779999971 | K54: 0.05999999866 | L54: 0.1049999967 | M54: 0.5180000067 | N54: 0.4359999895 | O54: 0.3910000026 | P54: 0.3449999988 | Q54: 0.2960000038 | R54: 0.25 | S54: 0.1369999945 | X54: 0.2669999897 | Y54: 0.1860000044 | Z54: 0.1529999971 | AA54: 0.1379999965 | AC54: 0.1589999944 | AD54: 0.2310000062 | AI54: 0.1529999971 | AJ54: 0.174999997 | AK54: 0.2099999934 | AL54: 0.2560000122 | AM54: 0.2939999998 | AN54: 0.3059999943 | AO54: 0.3939999938 | AT54: 0.1949999928 | AU54: 0.2790000141 | AV54: 0.3269999921 | AW54: 0.2779999971 | AX54: 0.3000000119 | AY54: 0.3370000124 | AZ54: 0.4110000134 | BE54: 0.1959999949 | BF54: 0.2380000055 | BG54: 0.1659999937 | BH54: 0.1580000073 | BI54: 0.08200000226 | BJ54: 0.03200000152 | BK54: 0.1350000054
A55: -5.2 | B55: 0.6460000277 | C55: 0.5939999819 | D55: 0.5529999733 | E55: 0.5389999747 | F55: 0.5120000243 | G55: 0.4769999981 | H55: 0.4230000079 | I55: 0.3540000021 | J55: 0.2890000045 | K55: 0.07299999893 | L55: 0.09099999815 | M55: 0.5329999924 | N55: 0.451000005 | O55: 0.4059999883 | P55: 0.3600000143 | Q55: 0.3109999895 | R55: 0.2660000026 | S55: 0.1529999971 | X55: 0.2829999924 | Y55: 0.1979999989 | Z55: 0.1620000005 | AA55: 0.1400000006 | AC55: 0.150000006 | AD55: 0.2189999968 | AI55: 0.1570000052 | AJ55: 0.1640000045 | AK55: 0.1969999969 | AL55: 0.2430000007 | AM55: 0.2820000052 | AN55: 0.2969999909 | AO55: 0.3869999945 | AT55: 0.1860000044 | AU55: 0.2689999938 | AV55: 0.3190000057 | AW55: 0.275000006 | AX55: 0.298999995 | AY55: 0.3370000124 | AZ55: 0.4149999917 | BE55: 0.2090000063 | BF55: 0.2590000033 | BG55: 0.1879999936 | BH55: 0.1829999983 | BI55: 0.1049999967 | BJ55: 0.03799999878 | BK55: 0.1190000027
A56: -5.1 | B56: 0.6579999924 | C56: 0.6060000062 | D56: 0.5659999847 | E56: 0.550999999 | F56: 0.5249999762 | G56: 0.4900000095 | H56: 0.4350000024 | I56: 0.3659999967 | J56: 0.300999999 | K56: 0.08600000292 | L56: 0.07699999958 | M56: 0.5479999781 | N56: 0.4670000076 | O56: 0.4219999909 | P56: 0.3759999871 | Q56: 0.3269999921 | R56: 0.2820000052 | S56: 0.1679999977 | X56: 0.3000000119 | Y56: 0.2119999975 | Z56: 0.172999993 | AA56: 0.1449999958 | AC56: 0.1430000067 | AD56: 0.2060000002 | AI56: 0.1630000025 | AJ56: 0.1539999992 | AK56: 0.1840000004 | AL56: 0.2290000021 | AM56: 0.2689999938 | AN56: 0.2860000134 | AO56: 0.3790000081 | AT56: 0.1770000011 | AU56: 0.2579999864 | AV56: 0.3089999855 | AW56: 0.2709999979 | AX56: 0.2960000038 | AY56: 0.3359999955 | AZ56: 0.4169999957 | BE56: 0.2210000008 | BF56: 0.2790000141 | BG56: 0.2109999955 | BH56: 0.2080000043 | BI56: 0.1289999932 | BJ56: 0.0540000014 | BK56: 0.1010000035
A57: -5 | B57: 0.6700000167 | C57: 0.6190000176 | D57: 0.5789999962 | E57: 0.5630000234 | F57: 0.5370000005 | G57: 0.5019999743 | H57: 0.4469999969 | I57: 0.3779999912 | J57: 0.3129999936 | K57: 0.09899999946 | L57: 0.06300000101 | M57: 0.5619999766 | N57: 0.4819999933 | O57: 0.4379999936 | P57: 0.3919999897 | Q57: 0.3429999948 | R57: 0.2980000079 | S57: 0.1850000024 | X57: 0.3179999888 | Y57: 0.2269999981 | Z57: 0.1860000044 | AA57: 0.1529999971 | AC57: 0.1369999945 | AD57: 0.1930000037 | AI57: 0.1710000038 | AJ57: 0.1449999958 | AK57: 0.1720000058 | AL57: 0.2150000036 | AM57: 0.2560000122 | AN57: 0.275000006 | AO57: 0.3709999919 | AT57: 0.1689999998 | AU57: 0.2469999939 | AV57: 0.298999995 | AW57: 0.2660000026 | AX57: 0.2930000126 | AY57: 0.3339999914 | AZ57: 0.4189999998 | BE57: 0.2310000062 | BF57: 0.2980000079 | BG57: 0.2329999954 | BH57: 0.2319999933 | BI57: 0.1529999971 | BJ57: 0.07500000298 | BK57: 0.08299999684
A58: -4.9 | B58: 0.6819999814 | C58: 0.6309999824 | D58: 0.5920000076 | E58: 0.5749999881 | F58: 0.5490000248 | G58: 0.5139999986 | H58: 0.4600000083 | I58: 0.3910000026 | J58: 0.3249999881 | K58: 0.112999998 | L58: 0.05000000075 | M58: 0.5770000219 | N58: 0.4970000088 | O58: 0.4530000091 | P58: 0.4079999924 | Q58: 0.3589999974 | R58: 0.3140000105 | S58: 0.201000005 | X58: 0.3359999955 | Y58: 0.2419999987 | Z58: 0.200000003 | AA58: 0.1620000005 | AC58: 0.1330000013 | AD58: 0.1800000072 | AI58: 0.1819999963 | AJ58: 0.1389999986 | AK58: 0.1599999964 | AL58: 0.201000005 | AM58: 0.2419999987 | AN58: 0.2639999986 | AO58: 0.3610000014 | AT58: 0.1620000005 | AU58: 0.2339999974 | AV58: 0.2879999876 | AW58: 0.2599999905 | AX58: 0.2879999876 | AY58: 0.3310000002 | AZ58: 0.4199999869 | BE58: 0.2399999946 | BF58: 0.3160000145 | BG58: 0.2540000081 | BH58: 0.2560000122 | BI58: 0.1780000031 | BJ58: 0.09799999744 | BK58: 0.06400000304
A59: -4.8 | B59: 0.6930000186 | C59: 0.6430000067 | D59: 0.6050000191 | E59: 0.5870000124 | F59: 0.5609999895 | G59: 0.52700001 | H59: 0.4720000029 | I59: 0.4029999971 | J59: 0.3370000124 | K59: 0.1280000061 | L59: 0.03700000048 | M59: 0.5910000205 | N59: 0.5130000114 | O59: 0.4690000117 | P59: 0.4230000079 | Q59: 0.375 | R59: 0.3300000131 | S59: 0.2179999948 | X59: 0.3549999893 | Y59: 0.2590000033 | Z59: 0.2150000036 | AA59: 0.172999993 | AC59: 0.1309999973 | AD59: 0.1679999977 | AI59: 0.1949999928 | AJ59: 0.1350000054 | AK59: 0.1490000039 | AL59: 0.1870000064 | AM59: 0.2269999981 | AN59: 0.2520000041 | AO59: 0.351000011 | AT59: 0.1560000032 | AU59: 0.2210000008 | AV59: 0.275000006 | AW59: 0.2529999912 | AX59: 0.2829999924 | AY59: 0.3269999921 | AZ59: 0.4189999998 | BE59: 0.2469999939 | BF59: 0.3319999874 | BG59: 0.273999989 | BH59: 0.2800000012 | BI59: 0.2029999942 | BJ59: 0.1220000014 | BK59: 0.04699999839
A60: -4.7 | B60: 0.7049999833 | C60: 0.6549999714 | D60: 0.6169999838 | E60: 0.5989999771 | F60: 0.5730000138 | G60: 0.5389999747 | H60: 0.4839999974 | I60: 0.4149999917 | J60: 0.349999994 | K60: 0.1420000046 | L60: 0.02600000054 | M60: 0.6060000062 | N60: 0.5279999971 | O60: 0.4839999974 | P60: 0.4390000105 | Q60: 0.3910000026 | R60: 0.3470000029 | S60: 0.2349999994 | X60: 0.3740000129 | Y60: 0.2759999931 | Z60: 0.2310000062 | AA60: 0.1860000044 | AC60: 0.1319999993 | AD60: 0.1560000032 | AI60: 0.2090000063 | AJ60: 0.1340000033 | AK60: 0.1389999986 | AL60: 0.172999993 | AM60: 0.2119999975 | AN60: 0.2389999926 | AO60: 0.3400000036 | AT60: 0.1519999951 | AU60: 0.2080000043 | AV60: 0.2619999945 | AW60: 0.2460000068 | AX60: 0.2759999931 | AY60: 0.3219999969 | AZ60: 0.4180000126 | BE60: 0.2520000041 | BF60: 0.3470000029 | BG60: 0.2930000126 | BH60: 0.3019999862 | BI60: 0.2269999981 | BJ60: 0.1469999999 | BK60: 0.03500000015
A61: -4.6 | B61: 0.7160000205 | C61: 0.6669999957 | D61: 0.6299999952 | E61: 0.6110000014 | F61: 0.5860000253 | G61: 0.550999999 | H61: 0.4970000088 | I61: 0.4280000031 | J61: 0.3619999886 | K61: 0.1560000032 | L61: 0.01999999955 | M61: 0.6200000048 | N61: 0.5429999828 | O61: 0.5 | P61: 0.4550000131 | Q61: 0.4070000052 | R61: 0.3630000055 | S61: 0.2520000041 | X61: 0.3930000067 | Y61: 0.2939999998 | Z61: 0.2469999939 | AA61: 0.201000005 | AC61: 0.1360000074 | AD61: 0.1459999979 | AI61: 0.2259999961 | AJ61: 0.1369999945 | AK61: 0.1319999993 | AL61: 0.1599999964 | AM61: 0.1969999969 | AN61: 0.2259999961 | AO61: 0.3280000091 | AT61: 0.150000006 | AU61: 0.1940000057 | AV61: 0.2469999939 | AW61: 0.2380000055 | AX61: 0.2689999938 | AY61: 0.3160000145 | AZ61: 0.4160000086 | BE61: 0.2549999952 | BF61: 0.3600000143 | BG61: 0.3109999895 | BH61: 0.324000001 | BI61: 0.2509999871 | BJ61: 0.1720000058 | BK61: 0.03799999878
A62: -4.5 | B62: 0.7269999981 | C62: 0.6779999733 | D62: 0.6420000196 | E62: 0.6230000257 | F62: 0.59799999 | G62: 0.5640000105 | H62: 0.5090000033 | I62: 0.4399999976 | J62: 0.3740000129 | K62: 0.1710000038 | L62: 0.02300000004 | M62: 0.6340000033 | N62: 0.5580000281 | O62: 0.5149999857 | P62: 0.4709999859 | Q62: 0.4230000079 | R62: 0.3799999952 | S62: 0.2689999938 | X62: 0.4120000005 | Y62: 0.3120000064 | Z62: 0.2649999857 | AA62: 0.2160000056 | AC62: 0.1420000046 | AD62: 0.1360000074 | AI62: 0.2440000027 | AJ62: 0.1430000067 | AK62: 0.1270000041 | AL62: 0.1469999999 | AM62: 0.1809999943 | AN62: 0.2119999975 | AO62: 0.3160000145 | AT62: 0.1519999951 | AU62: 0.1790000051 | AV62: 0.2319999933 | AW62: 0.2290000021 | AX62: 0.2610000074 | AY62: 0.3089999855 | AZ62: 0.4129999876 | BE62: 0.2560000122 | BF62: 0.3709999919 | BG62: 0.3269999921 | BH62: 0.3440000117 | BI62: 0.275000006 | BJ62: 0.1969999969 | BK62: 0.05299999937
A63: -4.4 | B63: 0.7379999757 | C63: 0.6899999976 | D63: 0.6549999714 | E63: 0.6340000033 | F63: 0.6100000143 | G63: 0.5759999752 | H63: 0.5210000277 | I63: 0.4530000091 | J63: 0.3869999945 | K63: 0.1860000044 | L63: 0.03400000185 | M63: 0.6480000019 | N63: 0.5730000138 | O63: 0.5310000181 | P63: 0.4869999886 | Q63: 0.4390000105 | R63: 0.3959999979 | S63: 0.2860000134 | X63: 0.4320000112 | Y63: 0.3310000002 | Z63: 0.2829999924 | AA63: 0.2329999954 | AC63: 0.1509999931 | AD63: 0.1280000061 | AI63: 0.2619999945 | AJ63: 0.1529999971 | AK63: 0.126000002 | AL63: 0.1360000074 | AM63: 0.1659999937 | AN63: 0.199000001 | AO63: 0.3019999862 | AT63: 0.1570000052 | AU63: 0.1659999937 | AV63: 0.2169999927 | AW63: 0.2199999988 | AX63: 0.2520000041 | AY63: 0.300999999 | AZ63: 0.4079999924 | BE63: 0.2540000081 | BF63: 0.3790000081 | BG63: 0.3409999907 | BH63: 0.3639999926 | BI63: 0.2980000079 | BJ63: 0.2220000029 | BK63: 0.07500000298
